Workbook

Sheet Notes
A1: SveVolatilityBands.xlsm; Traders Tip spreadsheet created for the January 2019 Issue
A2: Coded beginning 2018-September-05 by Ronald McAllister (rpmac_xltt@sprynet.com)
A4: This Workbook demonstrates an EXCEL version of the ideas presented
A5: by Sylvain Vervoort in an article titled "The V-Trade, Part 5"
A6: which originally appeared in the July 2018 issue of
A7: "Technical Analysis of Stocks and Commodities" magazine.
A9: CalculationsAndCharts construction Notes:
A14: Once again we have a use for the Modified Renko Brick builder routine last published in the November 2014 traders tip spreadsheet.
A16: For this traders tip I an showing a Price candle chart and corresponding Renko Brick chart one above the other to help emphasize the "timeless" nature of the Renko charting technique.
A18: I am dynamically adjusting the number of bars on the Renko chart to arrive at similar timestamps for the left-most and right-most bars on the two charts.
A19: As a result, the renko chart will almost never have the same number of bars displayed.
A20: This "timeless" aspect of the Renko chart also means that the peaks and valleys on the two charts are seldom vertically aligned.
A22: You can use the cursor to explore this effect. For this traders tip, the cursor slider directly controls the cursor on the price chart.
A23: Programatically I am adjusting the Renko cursor to highlight a bar that most closely matches the timestamp highlighted by the cursor on the price chart.
A24: You can place the price cursor on a peak or valley and see the nearest brick on the Renko chart.
A27: General Construction Notes
A29: This spreadsheet incorporates a major change to my Yahoo Finance historical data retrieval approach.
A30: Microsoft has indicated that the EDGE Browser will be replacing Internet Explorer going forward.
A31: Some newer machines are being delivered with Win 10 and EDGE and no Internet Explorer.
A32: This presents a looming problem as Win 7 and Win 8 begin to age out.
A33: EXCEL Querytables, as vehicles for web data retrieval, rely on parts of the Internet Explorer for automated Cookie processing.
A34: The current gate keeper protocols for access to the Yahoo Finance historical pricing data requires that both
A35: a valid Yahoo Finance cookie and a matching "Crumb" value be sent to Yahoo Finance with each historical data request.
A36: With EXCEL Query Tables the cookie part is automatic. At least as long as the necessary bits of IE remain available and functioning.
A37: However, the Crumb part is imbedded in the raw HTML returned for the Yahoo stock summary page, the Yahoo History page, and for certain other Yahoo Finance Entry level Pages.
A38: The problem has been that EXCEL provides no native capability to get at that raw HTML text.
A39: Enter MSXML.
A40: MSXML also shares the automatic Internet Explorer Cookie handlers. But if you want to ask programmatically, MSXML will show you inbound cookies destined for the IE cache.
A41: MSXML provides access to the raw HTML text and my VBA code extracts the necessary Crumb value from that text.
A42: Up until now I simply appended the Crumb value retrieved via MSXML to my Querytable history data request URLs and since cookies for Querytables are automatic, things worked just fine.
A44: Recently several folks have had the Querytable data retrievals stop working on their machines.
A45: The actual error text was Yahoo declaring an Invalid cookie but I have recently determined by trial and error that the crumb was the problem. (see below)
A46: Researching these failures led me to discover the coming IE End of life and the issues this may raise for Querytables.
A47: * * * *
A48: With this spreadsheet I am using WinHttpRequest as my VBA internet access vehicle.
A49: WinHttpRequest is analogous to MSXML with the exception that WinHttpRequest by default maintains its own in-memory cookie cache and does not share
A50: the in memory cache with any other windows processes. The downside is that Querytables can not see that cache. So I have replaced each of the Querytable calls with
A51: analogous WinHttpRequest calls and then must parse the returned pricing CSV structures in VBA where the Querytable mechanism did some of that parsing for me.
A52: Data retrieval elapsed times from Request to "charts ready" seem to be comparable to the Querytable process.
A54: Because the WinHttpRequest cookie cache exists only in memory, it does not stick around after I have completed data retrieval for a symbol.
A55: The next time you request data for a symbol, a new WinHttpRequest environment is created with an empty cache and a new cookie and new crumb get retrieved from Yahoo Finance.
A57: While I was testing my new code I ran into the "Invalid Cookie" error others have reported as an error highlighting a ".refresh" command in a Querytable call.
A58: Looking closer at the then current crumb value I realized that there was an Escape Sequence embedded in the Crumb text.
A59: As it turned out, this escape sequence, \u002F, is the encoding for a forward slash "/".
A60: I replaced the escape sequence in the crumb text with the forward slash and voila, using this corrected crumb text, the error went away!
A61: My crumb text went from "asdf898r\u002Fjv.s" to "asdf898r/jv.s" and my "Invalid Cookie" error went away.
A63: Escape sequences and the reasons they exist is too large a topic for here. Google it if you are curious.
A65: Sufficient to say that I think that this (randomly embedded escape sequences) may be what is killing things for the readers
A66: who have reported that the recent spreadsheets have all suddenly stopped working after behaving fine for months.
A67: The Yahoo finance cookie existing in the IE cache on their machine expired. Yahoo sent a new cookie.
A68: The newly generated matching crumb text unfortunately contains the forward slash or some other escaped character.
A70: Yahoo Finance cookies are good for a year. So once the problem hits, all of the Trader tips spreadsheets on that machine will report the same
A71: failure for a year until the cookie in cache expires and is replaced. Or the user removes the cookie from the IE cache.
A72: Then they must be lucky enough that the new Crumb does not also have embedded escape sequences
A74: HTML and or XML protocols use the forward slash as a delimiter so unless it appears in a proper delimiter position, any forward slash must be escape encoded
A75: to avoid problems when the recipient HTML decoder is working with the raw text.
A77: In my testing to date I have generated many successful crumbs and many failures. So far, I have only encountered the \u002F escape sequence in the failures.
A79: Escaped Characters Bottom Line: VBA code in this spreadsheet automatically looks for \u002F in a crumb text and will replace it with "/".
A80: Other escaped characters may someday turn up in the crumb text. I am taking a wait and see approach for now.
A82: How to fix this specific (\u002F) escape sequence exposure in recent spreadsheets:
A83: Open one of the problem spreadsheets
A84: Open the VBA editor ALT-F11 will do it
A85: Open the VBA editor "FIND" dialog. Ctrl-F will do it
A86: In the "Find What" box type "Function ExtractCrumbString"
A87: Click on the "Search In Current Project" radio button
A88: Click "Find Next"
A89: Scroll down to the "End Function" line. Less than a page.
A90: The immediately preceding line will begin with
A91: ExtractCrumbString = Mid(SourceText,
A92: Insert the following text between the line that begins ExtractCrumbString = Mid(SourceText,
A93: and the "End Function" line
A94: ExtractCrumbString = Replace(ExtractCrumbString, "\u002F", "/", 1, -1, vbTextCompare)
B95: Save your workbook and test as you see fit.
A97: Development Notes:
C98: This workbook contains and uses VBA macros and may use VBA Class structures.
C99: Input Data
C100: The data in this workbook is sorted date descending (most recent date at the top). All formulas and
C101: VBA routines are built accordingly.
B105: My sincere apologies to our Macintosh based readers: Neither MSXML nor WinHttpRequest are supported in your environment. So as it stands this version of the spreadsheet will not work for you.
B106: See "Why this approach does not work for Macintosh" below.
B107: I am investigating cURL as a non-Querytable based approach for the Macintosh environment.
A109: The new Yahoo Finance history download interface has changed rather radically. The biggest hurdle being a pseudo-security requirement of adding a
B110: crumb character string to any URL requesting any type of history download. That crumb must match up (by way of some sort of hash algorithm) with
B111: the Yahoo Finance cookie that must also be sent with any request to the new Yahoo History down load interface.
B113: A crumb value is returned, buried in the HTML for any of what I call the "entry level" Yahoo Finance web pages (no crumb security requirement for entry level pages).
B114: A crumb may come with other Yahoo Finance pages. A crumb may even accompany some of the secured pages as well. I have not checked.
B116: Entry level pages are the top level pages of the various Yahoo Finance dialogs and include: Quote Lookup, Stock Summary Quote, and any of the pages
B117: with links in the horizontal row with the "Summary" link on the quote summary page such as Options, Historical Data, and the rest.
B119: To date I have found no way to get at this crumb value using any native EXCEL capabilities.
B121: So this crumb requirement effectively shuts out any solution that attempts to exclusively use built-in facilities of EXCEL, which is to say a purely Querytables solution.
B123: The approach built for this Traders Tip spreadsheet uses a combination of MSXML and EXCEL Querytable calls to Load the InputPriceData worksheet.
B125: First I call MSXML to get the HTML text for the Yahoo Summary Quote page using the requested symbol. From this HTML text I extract the full company name,
B126: the market it trades, the market status and time stamp, and finally the associated crumb string. There is a bunch of other useful bits buried in this HTML
B127: text that do not necessarily appear on the web page your browser presents. Perhaps some day I will go after and build a worksheet with these other bits.
B129: Next I add the freshly extracted crumb string to the URLs I use in three separate Querytable calls to retrieve Price history, Split history, and Dividend history respectively.
B131: From there VBA code proceeds as in the past to fill in the cell formulas and formatting that make the "prettied up" InputPriceData sheet.
A133: Why this approach works for Windows:
B134: First, MSXML shares the permanent Internet Explorer web cache where cookies are maintained. Both IE and MSXML automatically
B135: update this cache when a "set cookie" header accompanies a web response. And they both automatically search this shared cache for
B136: cookies and add any "appropriate" cookies to the headers of any web requests they send out.
B137: This cookie handling automation means that even if the response to our MSXML call for the Summary web page includes a new version of
B138: the Yahoo Finance cookie, the imbedded Crumb value will always match the cookie newly installed in the cache!
B140: Second, in the Windows environment the EXCEL Querytable mechanism leans heavily on bits from Internet Explorer. This means that cookie
B141: handling is also automated from the shared cache for Querytable calls. We can count on any appropriate cookies being added to any Querytable call.
B142: We only need to do our part by adding the corresponding Crumb value to complete the security for the Querytable to access Yahoo History downloads.
A144: Why this approach does not work for Macintosh:
B145: For what it is worth, the Macintosh version of the MS Office suite of products do in fact maintain a special, shared amongst themselves only, cookie cache.
B146: They automate cookie handling into and from this cache JUST for the Office products and any Querytable activity they might originate.
B148: This cache is not tied to, nor shared with, any browser that might be installed on the MAC. And I have not found anything with HTTP capabilities similar to
B149: MSXML that can work with that Office product cookie cache.
B151: When working in the MAC EXCEL environment, without that MSXML like capability against the office shared cache, l have no mechanism
B152: to obtain a crumb value that would be a valid match to the Yahoo Finance cookie that will be automatically attached to a Querytable call.
B153: This missing facility pretty much eliminates the use of Mac environment Querytables to access the new Yahoo Finance history download interface.
A155: One very low probability potential "Gottcha" for any Querytables approach.
B156: Yahoo Finance cookies typically have an assigned expiration that is a year out (to the second) from the time they are issued.
B157: Further, these cookies are unique. Yours will not match mine.
B159: If for testing purposes, instead of MSXML, you use a fresh instance of Winhttp (Fresh instance = empty cache = no cookie to automatically send)
B160: every time you call an entry level page, the Yahoo server says "What? Entry level page? With no inbound cookie? Get them a cookie!!"
B161: and will send you a new, unique cookie and will imbed the matching crumb value in the response HTML text for each of these "no cookie attached" calls.
B163: The Gottcha: Lets say that the Yahoo Finance cookie presently in the IE cache has an expiration date and time that just happens
B164: to fall between our MSXML call to the summary page to fetch our crumb and our first (or second, or third) Querytable call.
B165: The Querytable call after the cookie expiration may fail with a cookie and crumb validation error.
B167: Querytable error reporting is atrocious. So we will not get any sort of helpful message here. Just a very generalized message like "failed to connect".
B169: The workaround is to simply go to the InputPriceData tab and click the download button.
B170: This second time through the retrieval process should not fail on a mismatch.
B171: After all, you now have a year before the new cookie that just got put into the cache expires!
A173: Calculation and Chart Worksheet Usage Comments:
C174: In General, Items in Bolded BLUE are items you may freely change to play what-if games.
C175: Be sure to have a backup copy of the spreadsheet before you alter anything else.
A177: Features carried forward from the June 2016 version of my T-Tips Template
A178: Added a pair of buttons near cell F12 that will allow the user to step the charting window forward or backward one bar for each click.
A179: I find this to be a good way to test my understanding of the author's ideas as I step through the evolution of the price behavior and the indicators.
B181: First: In the "Help! I would like to plot data" area.
B182: Added button to resolve #NA problems by locating the bar in the input data with a slightly more recent date than what the user actually requested.
B183: I find this particularly useful when I have a general idea of where I want to be date wise. Now I can pick a set of dates "out of the air".
B184: If either (or both) of my date specifications fall between dates that are available in the price history,
B185: this button will resolve them to the dates of the nearest, slightly more recent input bars.
B186: I can then refine my data interval search as necessary from there.
B187: Really great when working with Weekly or Monthly studies!
C188: 2016Jun11 - added logic to the "I would like to chart.." button to detect #N/A values and terminate
C189: gracefully with a message instead of blowing up in the charting logic.
B191: Second: In the "Price Chart Windowing Controls" area. (A11 and A12)
B192: When retrieving data for a new symbol or when changing from daily to weekly or monthly data, there was the possibility that the
B193: residual settings in A11 and A12 would fall outside of the number bars available on the input data tab after the new data retrieval.
B194: In certain combinations, this could create a serious error in the chart sizing logic and crash the spreadsheet.
B195: I have taken this opportunity to update the validity checking logic used in the chart sizing macros
B196: to adjust these values as necessary so that they fall within the boundaries of the newly retrieved input data.
A197: Features carried forward from the October 2015 Traders Tips Template
B198: Improved automation: changes to any of the following will automatically initiate calculations appropriate to reflect a change.
C199: Changing either of cells A11 (pan) or A12 (zoom) will automatically initiate the same chart sizing macros that the manual
C200: "Set Chart" button uses.

Sheet InputPriceData
A1: Casey's General Stores, Inc. (CASY) -NasdaqGS (Daily)
IJ2: 241.79
A3: Request Online Yahoo History for: | F3: Market State == > | G3: At close: | H3: 16:00:00 | I3: EST
A4: Symbol | B4: CASY | D4: Valid | I4: =OFFSET(I4,-2,0,1,1) -> 0
A5: From | B5: 1950-01-01 | D5: Data | AF5: Trailing 12 Div return (Cur Close)
A6: To | B6: =NOW() -> 2018-11-20T12:03:24.120 | D6: Types | E6: =VLOOKUP(B7,D7:E10,2,FALSE) -> d
A7: Data Type | B7: Daily | D7: Daily | E7: d
B8: U5nJVNydxv0 | D8: Weekly | E8: w
A9: Available Data | D9: Monthly | E9: m
A10: Bar Count: | B10: 8846 | AF10: =OFFSET(AC15,1,0,1,1)/OFFSET(N15,1,0,1,1) -> 0.008678500986
A11: From: | B11: =IF(B10<=0,"",OFFSET(B15,B10,IF(HistReqDataType="v",1,0),1,1)) -> 1983-10-20 | W11: Trailing 12 Month Dividend Returns
A12: To: | B12: =IF(B10<=0,"",IF(HistReqDataType="v",OFFSET(B15,2,1,1,1),OFFSET(B15,1,0,1,1))) -> 2018-11-19 | W12: Raw Close price on Dividend date | X12: Div Year and Month | Y12: Looking for year ago Div Year and Month | Z12: Year ago Div Date we found | AA12: row offset to year ago div Date | AB12: Same month flag | AC12: Trailing 12 Div Total | AD12: Trailing 12 Div return
Q13: Split History | S13: 4 | T13: Running | U13: Dividend History
B14: Raw Data Values | H14: Adjusted | I14: Price Adjust | J14: Vol Adjust | K14: Adjusted Values | P14: Last | Q14: Effective | R14: Shares | T14: Vol Adjust | V14: 118
A15: RelRow | B15: Date | C15: Open | D15: High | E15: Low | F15: Close | G15: Volume | H15: Close | I15: Factor | J15: Factor | K15: Open | L15: High | M15: Low | N15: Close | O15: Volume | P15: Trade | Q15: 43424 | R15: New | S15: Old | T15: 1 | U15: Date | V15: $ / Share
A16: 1 | B16: 2018-11-19 | C16: 128.559998 | D16: 129.509995 | E16: 126.440002 | F16: 126.75 | G16: 209700 | H16: 126.75 | I16: =IF(F16=0,1,H16/F16) -> 1 | J16: =INDEX(OFFSET($T$15,0,0,$S$13+1,1),MATCH(B16,OFFSET($Q$15,0,0,$S$13+1,1),-1)) -> 1 | K16: =ROUND($I16*C16,2) -> 128.56 | L16: =ROUND($I16*D16,2) -> 129.51 | M16: 126.44 | N16: 126.75 | O16: =G16*J16 -> 209700 | Q16: 1998-02-17 | R16: 2 | S16: 1 | T16: 2 | U16: 2018-10-31 | V16: 0.29 | W16: =(INDEX(OFFSET($F$15,1,0,$B$10,1),MATCH(U16,OFFSET($B$15,1,0,$B$10,1),-1))) -> 126.110001 | X16: =YEAR(U16)&RIGHT("0"&MONTH(U16),2) -> 201810 | Y16: =YEAR(U16)-1&RIGHT("0"&MONTH(U16),2) -> 201710 | Z16: =OFFSET(U15,AA16,0,1,1) -> 2017-10-31 | AA16: =MATCH(Y16,OFFSET($X$15,A16,0,$V$14+1-A16,1),-1) -> 5 | AB16: =IF(OR(AND(YEAR(U16)=YEAR(Z16),MONTH(U16)=MONTH(Z16)),MONTH(U16)=MONTH(Z16)),1,0) -> 1 | AC16: =(V16+IF(AA16-AB16=0,0,IFERROR(SUM(OFFSET(V16,1,0,AA16-AB16-1,1)),0))) -> 1.1 | AD16: =AC16/(INDEX(OFFSET($F$15,1,0,$B$10,1),MATCH(U16,OFFSET($B$15,1,0,$B$10,1),-1))) -> 0.008722543742
A17: 2 | B17: 2018-11-16 | C17: 126.940002 | D17: 129.419998 | E17: 126.089996 | F17: 128.440002 | G17: 362100 | H17: 128.440002 | I17: =IF(F17=0,1,H17/F17) -> 1 | J17: =INDEX(OFFSET($T$15,0,0,$S$13+1,1),MATCH(B17,OFFSET($Q$15,0,0,$S$13+1,1),-1)) -> 1 | K17: =ROUND($I17*C17,2) -> 126.94 | L17: =ROUND($I17*D17,2) -> 129.42 | M17: =ROUND($I17*E17,2) -> 126.09 | N17: =ROUND($I17*F17,2) -> 128.44 | O17: =G17*J17 -> 362100 | Q17: 1994-02-16 | R17: 2 | S17: 1 | T17: 4 | U17: 2018-07-31 | V17: 0.29 | W17: =(INDEX(OFFSET($F$15,1,0,$B$10,1),MATCH(U17,OFFSET($B$15,1,0,$B$10,1),-1))) -> 109.379997 | X17: =YEAR(U17)&RIGHT("0"&MONTH(U17),2) -> 201807 | Y17: =YEAR(U17)-1&RIGHT("0"&MONTH(U17),2) -> 201707 | Z17: =OFFSET(U16,AA17,0,1,1) -> 2017-07-28 | AA17: =MATCH(Y17,OFFSET($X$15,A17,0,$V$14+1-A17,1),-1) -> 6 | AB17: =IF(OR(AND(YEAR(U17)=YEAR(Z17),MONTH(U17)=MONTH(Z17)),MONTH(U17)=MONTH(Z17)),1,0) -> 1 | AC17: =(V17+IF(AA17-AB17=0,0,IFERROR(SUM(OFFSET(V17,1,0,AA17-AB17-1,1)),0))) -> 1.33 | AD17: =AC17/(INDEX(OFFSET($F$15,1,0,$B$10,1),MATCH(U17,OFFSET($B$15,1,0,$B$10,1),-1))) -> 0.01215944447
A18: 3 | B18: 2018-11-15 | C18: 126.529999 | D18: 127.57 | E18: 124.709999 | F18: 127.550003 | G18: 296800 | H18: 127.550003 | I18: 1 | J18: 1 | K18: 126.53 | L18: 127.57 | M18: 124.71 | N18: 127.55 | O18: 296800 | Q18: 1986-08-05 | R18: 2 | S18: 1 | T18: 8 | U18: 2018-04-30 | V18: 0.26 | W18: 96.599998 | X18: 201804 | Y18: 201704 | Z18: 2017-04-27 | AA18: 6 | AB18: 1 | AC18: 1.3 | AD18: 0.01345755721
A19: 4 | B19: 2018-11-14 | C19: 128.669998 | D19: 129.509995 | E19: 126.220001 | F19: 126.419998 | G19: 252300 | H19: 126.419998 | I19: 1 | J19: 1 | K19: 128.67 | L19: 129.51 | M19: 126.22 | N19: 126.42 | O19: 252300 | Q19: 1985-06-25 | R19: 3 | S19: 2 | T19: 12 | U19: 2018-01-31 | V19: 0.26 | W19: 121.110001 | X19: 201801 | Y19: 201701 | Z19: 2017-01-30 | AA19: 6 | AB19: 1 | AC19: 1.28 | AD19: 0.01056890421
A20: 5 | B20: 2018-11-13 | C20: 130.149994 | D20: 130.149994 | E20: 127.809998 | F20: 127.879997 | G20: 232000 | H20: 127.879997 | I20: 1 | J20: 1 | K20: 130.15 | L20: 130.15 | M20: 127.81 | N20: 127.88 | O20: 232000 | U20: 2017-10-31 | V20: 0.26 | W20: 114.57 | X20: 201710 | Y20: 201610 | Z20: 2016-10-28 | AA20: 6 | AB20: 1 | AC20: 1.26 | AD20: 0.01099764336
A21: 6 | B21: 2018-11-12 | C21: 130.039993 | D21: 131.289993 | E21: 128.729996 | F21: 129.800003 | G21: 227400 | H21: 129.800003 | I21: 1 | J21: 1 | K21: 130.04 | L21: 131.29 | M21: 128.73 | N21: 129.8 | O21: 227400 | U21: 2017-08-30 | V21: 0.26 | W21: 104.93 | X21: 201708 | Y21: 201608 | Z21: 2016-10-28 | AA21: 5 | AB21: 0 | AC21: 1.24 | AD21: 0.01181740208
A22: 7 | B22: 2018-11-09 | C22: 130.520004 | D22: 131.309998 | E22: 129.059998 | F22: 130.539993 | G22: 189900 | H22: 130.539993 | I22: 1 | J22: 1 | K22: 130.52 | L22: 131.31 | M22: 129.06 | N22: 130.54 | O22: 189900 | U22: 2017-07-28 | V22: 0.26 | W22: 105.900002 | X22: 201707 | Y22: 201607 | Z22: 2016-07-28 | AA22: 5 | AB22: 1 | AC22: 0.98 | AD22: 0.009254013045
A23: 8 | B23: 2018-11-08 | C23: 132.210007 | D23: 133.070007 | E23: 130.100006 | F23: 130.979996 | G23: 146800 | H23: 130.979996 | I23: 1 | J23: 1 | K23: 132.21 | L23: 133.07 | M23: 130.1 | N23: 130.98 | O23: 146800 | U23: 2017-04-27 | V23: 0.24 | W23: 113.139999 | X23: 201704 | Y23: 201604 | Z23: 2016-04-28 | AA23: 5 | AB23: 1 | AC23: 0.96 | AD23: 0.008485062829
A24: 9 | B24: 2018-11-07 | C24: 129.020004 | D24: 132.649994 | E24: 129.020004 | F24: 132.320007 | G24: 255300 | H24: 132.320007 | I24: 1 | J24: 1 | K24: 129.02 | L24: 132.65 | M24: 129.02 | N24: 132.32 | O24: 255300 | U24: 2017-01-30 | V24: 0.24 | W24: 113.379997 | X24: 201701 | Y24: 201601 | Z24: 2016-01-28 | AA24: 5 | AB24: 1 | AC24: 0.94 | AD24: 0.008290704047
A25: 10 | B25: 2018-11-06 | C25: 128.380005 | D25: 129.770004 | E25: 127 | F25: 129.130005 | G25: 214200 | H25: 129.130005 | I25: 1 | J25: 1 | K25: 128.38 | L25: 129.77 | M25: 127 | N25: 129.13 | O25: 214200 | U25: 2016-10-28 | V25: 0.24 | W25: 115.160004 | X25: 201610 | Y25: 201510 | Z25: 2015-10-29 | AA25: 5 | AB25: 1 | AC25: 0.92 | AD25: 0.007988884752
A26: 11 | B26: 2018-11-05 | C26: 127.870003 | D26: 128.639999 | E26: 127.029999 | F26: 128.309998 | G26: 230000 | H26: 128.309998 | I26: 1 | J26: 1 | K26: 127.87 | L26: 128.64 | M26: 127.03 | N26: 128.31 | O26: 230000 | U26: 2016-07-28 | V26: 0.24 | W26: 131.970001 | X26: 201607 | Y26: 201507 | Z26: 2015-07-30 | AA26: 5 | AB26: 1 | AC26: 0.9 | AD26: 0.006819731706
A27: 12 | B27: 2018-11-02 | C27: 126.879997 | D27: 128.479996 | E27: 126.559998 | F27: 127.879997 | G27: 189500 | H27: 127.879997 | I27: 1 | J27: 1 | K27: 126.88 | L27: 128.48 | M27: 126.56 | N27: 127.88 | O27: 189500 | U27: 2016-04-28 | V27: 0.22 | W27: 111.540001 | X27: 201604 | Y27: 201504 | Z27: 2015-04-29 | AA27: 5 | AB27: 1 | AC27: 0.88 | AD27: 0.00788954628
A28: 13 | B28: 2018-11-01 | C28: 126.199997 | D28: 127.480003 | E28: 124.769997 | F28: 126.580002 | G28: 213700 | H28: 126.580002 | I28: 1 | J28: 1 | K28: 126.2 | L28: 127.48 | M28: 124.77 | N28: 126.58 | O28: 213700 | U28: 2016-01-28 | V28: 0.22 | W28: 116.830002 | X28: 201601 | Y28: 201501 | Z28: 2015-01-29 | AA28: 5 | AB28: 1 | AC28: 0.86 | AD28: 0.007361122873
A29: 14 | B29: 2018-10-31 | C29: 126.660004 | D29: 127.309998 | E29: 124.730003 | F29: 126.110001 | G29: 231200 | H29: 126.110001 | I29: 1 | J29: 1 | K29: 126.66 | L29: 127.31 | M29: 124.73 | N29: 126.11 | O29: 231200 | U29: 2015-10-29 | V29: 0.22 | W29: 106.589996 | X29: 201510 | Y29: 201410 | Z29: 2014-10-30 | AA29: 5 | AB29: 1 | AC29: 0.84 | AD29: 0.007880664523
A30: 15 | B30: 2018-10-30 | C30: 124.160004 | D30: 127.879997 | E30: 122.809998 | F30: 126.5 | G30: 273800 | H30: 126.209999 | I30: 0.997707502 | J30: 1 | K30: 123.88 | L30: 127.59 | M30: 122.53 | N30: 126.21 | O30: 273800 | U30: 2015-07-30 | V30: 0.22 | W30: 100.419998 | X30: 201507 | Y30: 201407 | Z30: 2014-07-30 | AA30: 5 | AB30: 1 | AC30: 0.82 | AD30: 0.008165704206
A31: 16 | B31: 2018-10-29 | C31: 122.660004 | D31: 125.459999 | E31: 120 | F31: 123.980003 | G31: 246400 | H31: 123.695778 | I31: 0.9977074932 | J31: 1 | K31: 122.38 | L31: 125.17 | M31: 119.72 | N31: 123.7 | O31: 246400 | U31: 2015-04-29 | V31: 0.2 | W31: 82.019997 | X31: 201504 | Y31: 201404 | Z31: 2014-04-29 | AA31: 5 | AB31: 1 | AC31: 0.8 | AD31: 0.009753718962
A32: 17 | B32: 2018-10-26 | C32: 123.510002 | D32: 124.040001 | E32: 120.639999 | F32: 122.019997 | G32: 392800 | H32: 121.740265 | I32: 0.9977074905 | J32: 1 | K32: 123.23 | L32: 123.76 | M32: 120.36 | N32: 121.74 | O32: 392800 | U32: 2015-01-29 | V32: 0.2 | W32: 93.610001 | X32: 201501 | Y32: 201401 | Z32: 2014-01-30 | AA32: 5 | AB32: 1 | AC32: 0.78 | AD32: 0.008332443026
A33: 18 | B33: 2018-10-25 | C33: 125.18 | D33: 126.089996 | E33: 124.150002 | F33: 124.470001 | G33: 206600 | H33: 124.184654 | I33: 0.9977075038 | J33: 1 | K33: 124.89 | L33: 125.8 | M33: 123.87 | N33: 124.18 | O33: 206600 | U33: 2014-10-30 | V33: 0.2 | W33: 81.059998 | X33: 201410 | Y33: 201310 | Z33: 2013-10-30 | AA33: 5 | AB33: 1 | AC33: 0.76 | AD33: 0.009375771265
A34: 19 | B34: 2018-10-24 | C34: 125.839996 | D34: 127.830002 | E34: 124.870003 | F34: 124.989998 | G34: 394200 | H34: 124.703453 | I34: 0.9977074566 | J34: 1 | K34: 125.55 | L34: 127.54 | M34: 124.58 | N34: 124.7 | O34: 394200 | U34: 2014-07-30 | V34: 0.2 | W34: 66.779999 | X34: 201407 | Y34: 201307 | Z34: 2013-07-30 | AA34: 5 | AB34: 1 | AC34: 0.74 | AD34: 0.01108116219
A35: 20 | B35: 2018-10-23 | C35: 124.730003 | D35: 126.809998 | E35: 122.339996 | F35: 126.059998 | G35: 258500 | H35: 125.771004 | I35: 0.9977074885 | J35: 1 | K35: 124.44 | L35: 126.52 | M35: 122.06 | N35: 125.77 | O35: 258500 | U35: 2014-04-29 | V35: 0.18 | W35: 67.809998 | X35: 201404 | Y35: 201304 | Z35: 2013-04-29 | AA35: 5 | AB35: 1 | AC35: 0.72 | AD35: 0.01061790328
A36: 21 | B36: 2018-10-22 | C36: 126.419998 | D36: 127.129997 | E36: 124.93 | F36: 125.650002 | G36: 267400 | H36: 125.361946 | I36: 0.9977074732 | J36: 1 | K36: 126.13 | L36: 126.84 | M36: 124.64 | N36: 125.36 | O36: 267400 | U36: 2014-01-30 | V36: 0.18 | W36: 68.870003 | X36: 201401 | Y36: 201301 | Z36: 2013-01-30 | AA36: 5 | AB36: 1 | AC36: 0.705 | AD36: 0.01023667735
A37: 22 | B37: 2018-10-19 | C37: 128.059998 | D37: 128.490005 | E37: 126.190002 | F37: 126.709999 | G37: 235100 | H37: 126.419518 | I37: 0.9977075132 | J37: 1 | K37: 127.77 | L37: 128.2 | M37: 125.9 | N37: 126.42 | O37: 235100 | U37: 2013-10-30 | V37: 0.18 | W37: 73.139999 | X37: 201310 | Y37: 201210 | Z37: 2012-10-31 | AA37: 5 | AB37: 1 | AC37: 0.69 | AD37: 0.009433962393
A38: 23 | B38: 2018-10-18 | C38: 129.779999 | D38: 130.289993 | E38: 127.610001 | F38: 127.879997 | G38: 378500 | H38: 127.58683 | I38: 0.9977074835 | J38: 1 | K38: 129.48 | L38: 129.99 | M38: 127.32 | N38: 127.59 | O38: 378500 | U38: 2013-07-30 | V38: 0.18 | W38: 66.209999 | X38: 201307 | Y38: 201207 | Z38: 2012-07-30 | AA38: 5 | AB38: 1 | AC38: 0.675 | AD38: 0.01019483477
A39: 24 | B39: 2018-10-17 | C39: 127.57 | D39: 129.520004 | E39: 126.400002 | F39: 129.089996 | G39: 413000 | H39: 128.794052 | I39: 0.9977074598 | J39: 1 | K39: 127.28 | L39: 129.22 | M39: 126.11 | N39: 128.79 | O39: 413000 | U39: 2013-04-29 | V39: 0.165 | W39: 58.080002 | X39: 201304 | Y39: 201204 | Z39: 2012-04-27 | AA39: 5 | AB39: 1 | AC39: 0.66 | AD39: 0.01136363597
A40: 25 | B40: 2018-10-16 | C40: 125.669998 | D40: 127.5 | E40: 125.150002 | F40: 127.419998 | G40: 248600 | H40: 127.127884 | I40: 0.9977074713 | J40: 1 | K40: 125.38 | L40: 127.21 | M40: 124.86 | N40: 127.13 | O40: 248600 | U40: 2013-01-30 | V40: 0.165 | W40: 54.43 | X40: 201301 | Y40: 201201 | Z40: 2012-01-30 | AA40: 5 | AB40: 1 | AC40: 0.645 | AD40: 0.01185008267
A41: 26 | B41: 2018-10-15 | C41: 123.75 | D41: 126.150002 | E41: 123.459999 | F41: 125.360001 | G41: 276300 | H41: 125.072609 | I41: 0.9977074665 | J41: 1 | K41: 123.47 | L41: 125.86 | M41: 123.18 | N41: 125.07 | O41: 276300 | U41: 2012-10-31 | V41: 0.165 | W41: 51.549999 | X41: 201210 | Y41: 201110 | Z41: 2011-10-28 | AA41: 5 | AB41: 1 | AC41: 0.63 | AD41: 0.01222114476
A42: 27 | B42: 2018-10-12 | C42: 125.540001 | D42: 126.529999 | E42: 121.660004 | F42: 123.709999 | G42: 527800 | H42: 123.426392 | I42: 0.9977074852 | J42: 1 | K42: 125.25 | L42: 126.24 | M42: 121.38 | N42: 123.43 | O42: 527800 | U42: 2012-07-30 | V42: 0.165 | W42: 59.650002 | X42: 201207 | Y42: 201107 | Z42: 2011-07-28 | AA42: 5 | AB42: 1 | AC42: 0.615 | AD42: 0.01031014215
A43: 28 | B43: 2018-10-11 | C43: 122.410004 | D43: 127.110001 | E43: 122.330002 | F43: 125.029999 | G43: 802900 | H43: 124.743362 | I43: 0.9977074542 | J43: 1 | K43: 122.13 | L43: 126.82 | M43: 122.05 | N43: 124.74 | O43: 802900 | U43: 2012-04-27 | V43: 0.15 | W43: 57.330002 | X43: 201204 | Y43: 201104 | Z43: 2011-04-28 | AA43: 5 | AB43: 1 | AC43: 0.6 | AD43: 0.01046572439
A44: 29 | B44: 2018-10-10 | C44: 123.989998 | D44: 124.57 | E44: 122.540001 | F44: 122.730003 | G44: 272200 | H44: 122.448647 | I44: 0.9977075206 | J44: 1 | K44: 123.71 | L44: 124.28 | M44: 122.26 | N44: 122.45 | O44: 272200 | U44: 2012-01-30 | V44: 0.15 | W44: 51.119999 | X44: 201201 | Y44: 201101 | Z44: 2011-01-28 | AA44: 5 | AB44: 1 | AC44: 0.585 | AD44: 0.0114436622
A45: 30 | B45: 2018-10-09 | C45: 123.82 | D45: 124.720001 | E45: 122.779999 | F45: 124.209999 | G45: 280800 | H45: 123.925247 | I45: 0.9977074954 | J45: 1 | K45: 123.54 | L45: 124.43 | M45: 122.5 | N45: 123.93 | O45: 280800 | U45: 2011-10-28 | V45: 0.15 | W45: 49.490002 | X45: 201110 | Y45: 201010 | Z45: 2010-10-28 | AA45: 5 | AB45: 1 | AC45: 0.57 | AD45: 0.01151747781
A46: 31 | B46: 2018-10-08 | C46: 123.32 | D46: 124.190002 | E46: 122.050003 | F46: 123.580002 | G46: 304300 | H46: 123.296692 | I46: 0.997707477 | J46: 1 | K46: 123.04 | L46: 123.91 | M46: 121.77 | N46: 123.3 | O46: 304300 | U46: 2011-07-28 | V46: 0.15 | W46: 44.759998 | X46: 201107 | Y46: 201007 | Z46: 2010-07-29 | AA46: 5 | AB46: 1 | AC46: 0.555 | AD46: 0.01239946436
A47: 32 | B47: 2018-10-05 | C47: 124.139999 | D47: 125.610001 | E47: 122.580002 | F47: 123.400002 | G47: 300400 | H47: 123.117104 | I47: 0.9977074717 | J47: 1 | K47: 123.86 | L47: 125.32 | M47: 122.3 | N47: 123.12 | O47: 300400 | U47: 2011-04-28 | V47: 0.135 | W47: 39.139999 | X47: 201104 | Y47: 201004 | Z47: 2010-04-29 | AA47: 5 | AB47: 1 | AC47: 0.505 | AD47: 0.01290240196
A48: 33 | B48: 2018-10-04 | C48: 126.139999 | D48: 126.540001 | E48: 123.959999 | F48: 124.32 | G48: 499600 | H48: 124.034996 | I48: 0.9977074968 | J48: 1 | K48: 125.85 | L48: 126.25 | M48: 123.68 | N48: 124.03 | O48: 499600 | U48: 2011-01-28 | V48: 0.135 | W48: 42.759998 | X48: 201101 | Y48: 201001 | Z48: 2010-01-28 | AA48: 5 | AB48: 1 | AC48: 0.455 | AD48: 0.01064078628
A49: 34 | B49: 2018-10-03 | C49: 127.199997 | D49: 127.940002 | E49: 126.120003 | F49: 126.209999 | G49: 279900 | H49: 125.920662 | I49: 0.9977074954 | J49: 1 | K49: 126.91 | L49: 127.65 | M49: 125.83 | N49: 125.92 | O49: 279900 | U49: 2010-10-28 | V49: 0.135 | W49: 41.049999 | X49: 201010 | Y49: 200910 | Z49: 2009-10-29 | AA49: 5 | AB49: 1 | AC49: 0.405 | AD49: 0.009866017293
A50: 35 | B50: 2018-10-02 | C50: 127.07 | D50: 128.149994 | E50: 126.57 | F50: 127.139999 | G50: 408000 | H50: 126.848526 | I50: 0.9977074642 | J50: 1 | K50: 126.78 | L50: 127.86 | M50: 126.28 | N50: 126.85 | O50: 408000 | U50: 2010-07-29 | V50: 0.1 | W50: 38.040001 | X50: 201007 | Y50: 200907 | Z50: 2009-07-30 | AA50: 5 | AB50: 1 | AC50: 0.355 | AD50: 0.009332281563
A51: 36 | B51: 2018-10-01 | C51: 129.119995 | D51: 129.710007 | E51: 127.360001 | F51: 127.57 | G51: 341200 | H51: 127.277542 | I51: 0.9977074704 | J51: 1 | K51: 128.82 | L51: 129.41 | M51: 127.07 | N51: 127.28 | O51: 341200 | U51: 2010-04-29 | V51: 0.085 | W51: 38.990002 | X51: 201004 | Y51: 200904 | Z51: 2009-04-29 | AA51: 5 | AB51: 1 | AC51: 0.34 | AD51: 0.008720184215
A52: 37 | B52: 2018-09-28 | C52: 129.929993 | D52: 130.740005 | E52: 128.970001 | F52: 129.110001 | G52: 277600 | H52: 128.814011 | I52: 0.9977074588 | J52: 1 | K52: 129.63 | L52: 130.44 | M52: 128.67 | N52: 128.81 | O52: 277600 | U52: 2010-01-28 | V52: 0.085 | W52: 30.870001 | X52: 201001 | Y52: 200901 | Z52: 2009-01-29 | AA52: 5 | AB52: 1 | AC52: 0.33 | AD52: 0.01068998994
A53: 38 | B53: 2018-09-27 | C53: 129.630005 | D53: 130.339996 | E53: 129.199997 | F53: 129.740005 | G53: 220100 | H53: 129.442581 | I53: 0.9977075382 | J53: 1 | K53: 129.33 | L53: 130.04 | M53: 128.9 | N53: 129.44 | O53: 220100 | U53: 2009-10-29 | V53: 0.085 | W53: 32.009998 | X53: 200910 | Y53: 200810 | Z53: 2008-10-30 | AA53: 5 | AB53: 1 | AC53: 0.32 | AD53: 0.009996876601
A54: 39 | B54: 2018-09-26 | C54: 129.710007 | D54: 130.490005 | E54: 128.270004 | F54: 129.639999 | G54: 274600 | H54: 129.342804 | I54: 0.9977075362 | J54: 1 | K54: 129.41 | L54: 130.19 | M54: 127.98 | N54: 129.34 | O54: 274600 | U54: 2009-07-30 | V54: 0.085 | W54: 27.58 | X54: 200907 | Y54: 200807 | Z54: 2008-07-30 | AA54: 5 | AB54: 1 | AC54: 0.31 | AD54: 0.01124002901
A55: 40 | B55: 2018-09-25 | C55: 129.270004 | D55: 130.199997 | E55: 128.699997 | F55: 129.25 | G55: 637000 | H55: 128.95369 | I55: 0.9977074662 | J55: 1 | K55: 128.97 | L55: 129.9 | M55: 128.4 | N55: 128.95 | O55: 637000 | U55: 2009-04-29 | V55: 0.075 | W55: 27.43 | X55: 200904 | Y55: 200804 | Z55: 2008-04-29 | AA55: 5 | AB55: 1 | AC55: 0.3 | AD55: 0.01093693037
A56: 41 | B56: 2018-09-24 | C56: 128.5 | D56: 129.080002 | E56: 127.599998 | F56: 128.350006 | G56: 399600 | H56: 128.055756 | I56: 0.9977074407 | J56: 1 | K56: 128.21 | L56: 128.78 | M56: 127.31 | N56: 128.06 | O56: 399600 | U56: 2009-01-29 | V56: 0.075 | W56: 22.07 | X56: 200901 | Y56: 200801 | Z56: 2008-01-30 | AA56: 5 | AB56: 1 | AC56: 0.29 | AD56: 0.01314000906
A57: 42 | B57: 2018-09-21 | C57: 128.350006 | D57: 129.199997 | E57: 127.599998 | F57: 128.880005 | G57: 700100 | H57: 128.584549 | I57: 0.997707511 | J57: 1 | K57: 128.06 | L57: 128.9 | M57: 127.31 | N57: 128.58 | O57: 700100 | U57: 2008-10-30 | V57: 0.075 | W57: 30.26 | X57: 200810 | Y57: 200710 | Z57: 2007-10-30 | AA57: 5 | AB57: 1 | AC57: 0.28 | AD57: 0.009253139458
A58: 43 | B58: 2018-09-20 | C58: 127.639999 | D58: 129.360001 | E58: 127.449997 | F58: 128.270004 | G58: 413100 | H58: 127.975945 | I58: 0.9977074999 | J58: 1 | K58: 127.35 | L58: 129.06 | M58: 127.16 | N58: 127.98 | O58: 413100 | U58: 2008-07-30 | V58: 0.075 | W58: 24.85 | X58: 200807 | Y58: 200707 | Z58: 2007-07-30 | AA58: 5 | AB58: 1 | AC58: 0.27 | AD58: 0.01086519115
A59: 44 | B59: 2018-09-19 | C59: 127.669998 | D59: 128.240005 | E59: 126.959999 | F59: 127.169998 | G59: 441700 | H59: 126.878456 | I59: 0.9977074624 | J59: 1 | K59: 127.38 | L59: 127.95 | M59: 126.67 | N59: 126.88 | O59: 441700 | U59: 2008-04-29 | V59: 0.065 | W59: 22.26 | X59: 200804 | Y59: 200704 | Z59: 2007-04-27 | AA59: 5 | AB59: 1 | AC59: 0.26 | AD59: 0.01168014376
A60: 45 | B60: 2018-09-18 | C60: 127.650002 | D60: 128.830002 | E60: 126.690002 | F60: 127.760002 | G60: 587500 | H60: 127.46711 | I60: 0.9977074828 | J60: 1 | K60: 127.36 | L60: 128.53 | M60: 126.4 | N60: 127.47 | O60: 587500 | U60: 2008-01-30 | V60: 0.065 | W60: 24.99 | X60: 200801 | Y60: 200701 | Z60: 2007-01-30 | AA60: 5 | AB60: 1 | AC60: 0.245 | AD60: 0.009803921569
A61: 46 | B61: 2018-09-17 | C61: 126.43 | D61: 126.43 | E61: 124.629997 | F61: 125.279999 | G61: 440500 | H61: 124.99279 | I61: 0.9977074633 | J61: 1 | K61: 126.14 | L61: 126.14 | M61: 124.34 | N61: 124.99 | O61: 440500 | U61: 2007-10-30 | V61: 0.065 | W61: 28.07 | X61: 200710 | Y61: 200610 | Z61: 2006-10-30 | AA61: 5 | AB61: 1 | AC61: 0.23 | AD61: 0.008193801211
A62: 47 | B62: 2018-09-14 | C62: 127.989998 | D62: 129 | E62: 125.489998 | F62: 126.110001 | G62: 494500 | H62: 125.820892 | I62: 0.9977074855 | J62: 1 | K62: 127.7 | L62: 128.7 | M62: 125.2 | N62: 125.82 | O62: 494500 | U62: 2007-07-30 | V62: 0.065 | W62: 24 | X62: 200707 | Y62: 200607 | Z62: 2006-07-28 | AA62: 5 | AB62: 1 | AC62: 0.215 | AD62: 0.008958333333
A63: 48 | B63: 2018-09-13 | C63: 128.240005 | D63: 128.850006 | E63: 126.57 | F63: 127.779999 | G63: 370300 | H63: 127.487061 | I63: 0.9977074816 | J63: 1 | K63: 127.95 | L63: 128.55 | M63: 126.28 | N63: 127.49 | O63: 370300 | U63: 2007-04-27 | V63: 0.05 | W63: 25.99 | X63: 200704 | Y63: 200604 | Z63: 2006-04-27 | AA63: 5 | AB63: 1 | AC63: 0.2 | AD63: 0.007695267411
A64: 49 | B64: 2018-09-12 | C64: 126.260002 | D64: 128.830002 | E64: 125.400002 | F64: 128.240005 | G64: 660200 | H64: 127.946014 | I64: 0.9977074939 | J64: 1 | K64: 125.97 | L64: 128.53 | M64: 125.11 | N64: 127.95 | O64: 660200 | U64: 2007-01-30 | V64: 0.05 | W64: 25.49 | X64: 200701 | Y64: 200601 | Z64: 2006-01-30 | AA64: 5 | AB64: 1 | AC64: 0.195 | AD64: 0.007650058847
A65: 50 | B65: 2018-09-11 | C65: 120 | D65: 130.5 | E65: 119.510002 | F65: 124.779999 | G65: 2042100 | H65: 124.493942 | I65: 0.9977075092 | J65: 1 | K65: 119.72 | L65: 130.2 | M65: 119.24 | N65: 124.49 | O65: 2042100 | U65: 2006-10-30 | V65: 0.05 | W65: 24.25 | X65: 200610 | Y65: 200510 | Z65: 2005-10-28 | AA65: 5 | AB65: 1 | AC65: 0.19 | AD65: 0.007835051546
A66: 51 | B66: 2018-09-10 | C66: 115.339996 | D66: 117.32 | E66: 115.199997 | F66: 116.790001 | G66: 492400 | H66: 116.522255 | I66: 0.9977074578 | J66: 1 | K66: 115.08 | L66: 117.05 | M66: 114.94 | N66: 116.52 | O66: 492400 | U66: 2006-07-28 | V66: 0.05 | W66: 22.74 | X66: 200607 | Y66: 200507 | Z66: 2005-07-28 | AA66: 5 | AB66: 1 | AC66: 0.185 | AD66: 0.008135444151
A67: 52 | B67: 2018-09-07 | C67: 115.449997 | D67: 116.779999 | E67: 114.68 | F67: 114.989998 | G67: 435200 | H67: 114.726379 | I67: 0.9977074615 | J67: 1 | K67: 115.19 | L67: 116.51 | M67: 114.42 | N67: 114.73 | O67: 435200 | U67: 2006-04-27 | V67: 0.045 | W67: 20.639999 | X67: 200604 | Y67: 200504 | Z67: 2005-04-28 | AA67: 5 | AB67: 1 | AC67: 0.18 | AD67: 0.008720930655
A68: 53 | B68: 2018-09-06 | C68: 115.279999 | D68: 117 | E68: 114.589996 | F68: 115.739998 | G68: 341300 | H68: 115.474663 | I68: 0.9977074909 | J68: 1 | K68: 115.02 | L68: 116.73 | M68: 114.33 | N68: 115.47 | O68: 341300 | U68: 2006-01-30 | V68: 0.045 | W68: 25.110001 | X68: 200601 | Y68: 200501 | Z68: 2005-01-28 | AA68: 5 | AB68: 1 | AC68: 0.175 | AD68: 0.006969334649
A69: 54 | B69: 2018-09-05 | C69: 115.370003 | D69: 115.610001 | E69: 114.239998 | F69: 115.279999 | G69: 291100 | H69: 115.015717 | I69: 0.9977074774 | J69: 1 | K69: 115.11 | L69: 115.34 | M69: 113.98 | N69: 115.02 | O69: 291100 | U69: 2005-10-28 | V69: 0.045 | W69: 21.059999 | X69: 200510 | Y69: 200410 | Z69: 2004-10-28 | AA69: 5 | AB69: 1 | AC69: 0.17 | AD69: 0.008072175122
A70: 55 | B70: 2018-09-04 | C70: 114.18 | D70: 115.949997 | E70: 113.370003 | F70: 115.220001 | G70: 261300 | H70: 114.955856 | I70: 0.9977074727 | J70: 1 | K70: 113.92 | L70: 115.68 | M70: 113.11 | N70: 114.96 | O70: 261300 | U70: 2005-07-28 | V70: 0.045 | W70: 21.75 | X70: 200507 | Y70: 200407 | Z70: 2004-07-29 | AA70: 5 | AB70: 1 | AC70: 0.165 | AD70: 0.007586206897
A71: 56 | B71: 2018-08-31 | C71: 112.529999 | D71: 114.43 | E71: 112.410004 | F71: 114.169998 | G71: 297100 | H71: 113.908264 | I71: 0.9977075063 | J71: 1 | K71: 112.27 | L71: 114.17 | M71: 112.15 | N71: 113.91 | O71: 297100 | U71: 2005-04-28 | V71: 0.04 | W71: 16.85 | X71: 200504 | Y71: 200404 | Z71: 2004-04-29 | AA71: 5 | AB71: 1 | AC71: 0.16 | AD71: 0.009495548961
A72: 57 | B72: 2018-08-30 | C72: 113.760002 | D72: 114.730003 | E72: 112.160004 | F72: 112.989998 | G72: 256200 | H72: 112.730965 | I72: 0.9977074696 | J72: 1 | K72: 113.5 | L72: 114.47 | M72: 111.9 | N72: 112.73 | O72: 256200 | U72: 2005-01-28 | V72: 0.04 | W72: 17.190001 | X72: 200501 | Y72: 200401 | Z72: 2004-01-29 | AA72: 5 | AB72: 1 | AC72: 0.155 | AD72: 0.009016869749
A73: 58 | B73: 2018-08-29 | C73: 114.470001 | D73: 114.610001 | E73: 113.650002 | F73: 114.110001 | G73: 347800 | H73: 113.848404 | I73: 0.9977075016 | J73: 1 | K73: 114.21 | L73: 114.35 | M73: 113.39 | N73: 113.85 | O73: 347800 | U73: 2004-10-28 | V73: 0.04 | W73: 18.08 | X73: 200410 | Y73: 200310 | Z73: 2003-10-30 | AA73: 5 | AB73: 1 | AC73: 0.15 | AD73: 0.008296460177
A74: 59 | B74: 2018-08-28 | C74: 114.029999 | D74: 115.110001 | E74: 113.650002 | F74: 114.339996 | G74: 356800 | H74: 114.077873 | I74: 0.9977075126 | J74: 1 | K74: 113.77 | L74: 114.85 | M74: 113.39 | N74: 114.08 | O74: 356800 | U74: 2004-07-29 | V74: 0.04 | W74: 16.469999 | X74: 200407 | Y74: 200307 | Z74: 2003-07-30 | AA74: 5 | AB74: 1 | AC74: 0.145 | AD74: 0.008803886388
A75: 60 | B75: 2018-08-27 | C75: 115.580002 | D75: 115.830002 | E75: 113.639999 | F75: 114.110001 | G75: 361500 | H75: 113.848404 | I75: 0.9977075016 | J75: 1 | K75: 115.32 | L75: 115.56 | M75: 113.38 | N75: 113.85 | O75: 361500 | U75: 2004-04-29 | V75: 0.035 | W75: 16.58 | X75: 200404 | Y75: 200304 | Z75: 2003-04-29 | AA75: 5 | AB75: 1 | AC75: 0.14 | AD75: 0.008443908323
A76: 61 | B76: 2018-08-24 | C76: 116.529999 | D76: 116.529999 | E76: 114.93 | F76: 115.400002 | G76: 290000 | H76: 115.135445 | I76: 0.9977074784 | J76: 1 | K76: 116.26 | L76: 116.26 | M76: 114.67 | N76: 115.14 | O76: 290000 | U76: 2004-01-29 | V76: 0.035 | W76: 16.91 | X76: 200401 | Y76: 200301 | Z76: 2003-01-30 | AA76: 5 | AB76: 1 | AC76: 0.13 | AD76: 0.007687758723
A77: 62 | B77: 2018-08-23 | C77: 117.330002 | D77: 117.589996 | E77: 115.599998 | F77: 116.550003 | G77: 324500 | H77: 116.282814 | I77: 0.9977075161 | J77: 1 | K77: 117.06 | L77: 117.32 | M77: 115.33 | N77: 116.28 | O77: 324500 | U77: 2003-10-30 | V77: 0.035 | W77: 15.24 | X77: 200310 | Y77: 200210 | Z77: 2002-10-30 | AA77: 5 | AB77: 1 | AC77: 0.12 | AD77: 0.007874015748
A78: 63 | B78: 2018-08-22 | C78: 116.669998 | D78: 117.639999 | E78: 115.580002 | F78: 117.160004 | G78: 259900 | H78: 116.891411 | I78: 0.9977074685 | J78: 1 | K78: 116.4 | L78: 117.37 | M78: 115.32 | N78: 116.89 | O78: 259900 | U78: 2003-07-30 | V78: 0.035 | W78: 15.28 | X78: 200307 | Y78: 200207 | Z78: 2002-07-30 | AA78: 5 | AB78: 1 | AC78: 0.11 | AD78: 0.00719895288
A79: 64 | B79: 2018-08-21 | C79: 114.959999 | D79: 117.019997 | E79: 114.959999 | F79: 116.919998 | G79: 316900 | H79: 116.651955 | I79: 0.9977074666 | J79: 1 | K79: 114.7 | L79: 116.75 | M79: 114.7 | N79: 116.65 | O79: 316900 | U79: 2003-04-29 | V79: 0.025 | W79: 12.96 | X79: 200304 | Y79: 200204 | Z79: 2002-04-29 | AA79: 5 | AB79: 1 | AC79: 0.1 | AD79: 0.007716049383
A80: 65 | B80: 2018-08-20 | C80: 114.959999 | D80: 116.129997 | E80: 114.629997 | F80: 114.75 | G80: 238200 | H80: 114.486931 | I80: 0.9977074597 | J80: 1 | K80: 114.7 | L80: 115.86 | M80: 114.37 | N80: 114.49 | O80: 238200 | U80: 2003-01-30 | V80: 0.025 | W80: 11.4 | X80: 200301 | Y80: 200201 | Z80: 2002-01-30 | AA80: 5 | AB80: 1 | AC80: 0.1 | AD80: 0.008771929825
A81: 66 | B81: 2018-08-17 | C81: 113.529999 | D81: 114.870003 | E81: 113.209999 | F81: 114.639999 | G81: 199100 | H81: 114.377182 | I81: =IF(F81=0,1,H81/F81) -> 0.9977074581 | J81: =INDEX(OFFSET($T$15,0,0,$S$13+1,1),MATCH(B81,OFFSET($Q$15,0,0,$S$13+1,1),-1)) -> 1 | K81: =ROUND($I81*C81,2) -> 113.27 | L81: =ROUND($I81*D81,2) -> 114.61 | M81: =ROUND($I81*E81,2) -> 112.95 | N81: =ROUND($I81*F81,2) -> 114.38 | O81: =G81*J81 -> 199100 | U81: 2002-10-30 | V81: 0.025 | W81: =(INDEX(OFFSET($F$15,1,0,$B$10,1),MATCH(U81,OFFSET($B$15,1,0,$B$10,1),-1))) -> 11.65 | X81: =YEAR(U81)&RIGHT("0"&MONTH(U81),2) -> 200210 | Y81: =YEAR(U81)-1&RIGHT("0"&MONTH(U81),2) -> 200110 | Z81: =OFFSET(U80,AA81,0,1,1) -> 2001-10-30 | AA81: =MATCH(Y81,OFFSET($X$15,A81,0,$V$14+1-A81,1),-1) -> 5 | AB81: =IF(OR(AND(YEAR(U81)=YEAR(Z81),MONTH(U81)=MONTH(Z81)),MONTH(U81)=MONTH(Z81)),1,0) -> 1 | AC81: =(V81+IF(AA81-AB81=0,0,IFERROR(SUM(OFFSET(V81,1,0,AA81-AB81-1,1)),0))) -> 0.1 | AD81: =AC81/(INDEX(OFFSET($F$15,1,0,$B$10,1),MATCH(U81,OFFSET($B$15,1,0,$B$10,1),-1))) -> 0.008583690987
A82: 67 | B82: 2018-08-16 | C82: 113.57 | D82: 114.470001 | E82: 113.099998 | F82: 113.540001 | G82: 238900 | H82: 113.279709 | I82: 0.9977074864 | J82: 1 | K82: 113.31 | L82: 114.21 | M82: 112.84 | N82: 113.28 | O82: 238900 | U82: 2002-07-30 | V82: 0.025 | W82: 11.75 | X82: 200207 | Y82: 200107 | Z82: 2001-07-30 | AA82: 5 | AB82: 1 | AC82: 0.095 | AD82: 0.008085106383
A83: 68 | B83: 2018-08-15 | C83: 112.540001 | D83: 113.629997 | E83: 112.230003 | F83: 112.660004 | G83: 204200 | H83: 112.401726 | I83: 0.9977074561 | J83: 1 | K83: 112.28 | L83: 113.37 | M83: 111.97 | N83: 112.4 | O83: 204200 | U83: 2002-04-29 | V83: 0.025 | W83: 12.67 | X83: 200204 | Y83: 200104 | Z83: 2001-04-27 | AA83: 5 | AB83: 1 | AC83: 0.09 | AD83: 0.007103393844
A84: 69 | B84: 2018-08-14 | C84: 111.25 | D84: 113.080002 | E84: 111.190002 | F84: 112.900002 | G84: 270700 | H84: 112.641174 | I84: 0.997707458 | J84: 1 | K84: 110.99 | L84: 112.82 | M84: 110.94 | N84: 112.64 | O84: 270700 | U84: 2002-01-30 | V84: 0.025 | W84: 14.89 | X84: 200201 | Y84: 200101 | Z84: 2001-01-30 | AA84: 5 | AB84: 1 | AC84: 0.085 | AD84: 0.005708529214
A85: 70 | B85: 2018-08-13 | C85: 111.190002 | D85: 111.419998 | E85: 110.43 | F85: 111 | G85: 212700 | H85: 110.745529 | I85: 0.9977074685 | J85: 1 | K85: 110.94 | L85: 111.16 | M85: 110.18 | N85: 110.75 | O85: 212700 | U85: 2001-10-30 | V85: 0.02 | W85: 12.5 | X85: 200110 | Y85: 200010 | Z85: 2000-10-30 | AA85: 5 | AB85: 1 | AC85: 0.08 | AD85: 0.0064
A86: 71 | B86: 2018-08-10 | C86: 112.110001 | D86: 112.849998 | E86: 110.589996 | F86: 110.839996 | G86: 188700 | H86: 110.585892 | I86: 0.9977074701 | J86: 1 | K86: 111.85 | L86: 112.59 | M86: 110.34 | N86: 110.59 | O86: 188700 | U86: 2001-07-30 | V86: 0.02 | W86: 13.66 | X86: 200107 | Y86: 200007 | Z86: 2000-07-28 | AA86: 5 | AB86: 1 | AC86: 0.08 | AD86: 0.005856515373
A87: 72 | B87: 2018-08-09 | C87: 113.089996 | D87: 113.620003 | E87: 111.959999 | F87: 112.580002 | G87: 243800 | H87: 112.321907 | I87: 0.9977074525 | J87: 1 | K87: 112.83 | L87: 113.36 | M87: 111.7 | N87: 112.32 | O87: 243800 | U87: 2001-04-27 | V87: 0.02 | W87: 11.94 | X87: 200104 | Y87: 200004 | Z87: 2000-04-27 | AA87: 5 | AB87: 1 | AC87: 0.08 | AD87: 0.006700167504
A88: 73 | B88: 2018-08-08 | C88: 112.32 | D88: 113.150002 | E88: 112.239998 | F88: 112.970001 | G88: 175500 | H88: 112.711014 | I88: 0.997707471 | J88: 1 | K88: 112.06 | L88: 112.89 | M88: 111.98 | N88: 112.71 | O88: 175500 | U88: 2001-01-30 | V88: 0.02 | W88: 12.0625 | X88: 200101 | Y88: 200001 | Z88: 2000-01-28 | AA88: 5 | AB88: 1 | AC88: 0.075 | AD88: 0.00621761658
A89: 74 | B89: 2018-08-07 | C89: 111.25 | D89: 113.389999 | E89: 111.25 | F89: 112.050003 | G89: 219700 | H89: 111.793129 | I89: 0.9977075056 | J89: 1 | K89: 110.99 | L89: 113.13 | M89: 110.99 | N89: 111.79 | O89: 219700 | U89: 2000-10-30 | V89: 0.02 | W89: 12.0625 | X89: 200010 | Y89: 199910 | Z89: 1999-10-28 | AA89: 5 | AB89: 1 | AC89: 0.07 | AD89: 0.005803108808
A90: 75 | B90: 2018-08-06 | C90: 110.879997 | D90: 111.440002 | E90: 110.050003 | F90: 111.239998 | G90: 204800 | H90: 110.984978 | I90: 0.9977074793 | J90: 1 | K90: 110.63 | L90: 111.18 | M90: 109.8 | N90: 110.98 | O90: 204800 | U90: 2000-07-28 | V90: 0.02 | W90: 11.625 | X90: 200007 | Y90: 199907 | Z90: 1999-07-29 | AA90: 5 | AB90: 1 | AC90: 0.065 | AD90: 0.005591397849
A91: 76 | B91: 2018-08-03 | C91: 110.370003 | D91: 111.400002 | E91: 110.260002 | F91: 110.690002 | G91: 238400 | H91: 110.436241 | I91: 0.9977074623 | J91: 1 | K91: 110.12 | L91: 111.14 | M91: 110.01 | N91: 110.44 | O91: 238400 | U91: 2000-04-27 | V91: 0.015 | W91: 11.375 | X91: 200004 | Y91: 199904 | Z91: 1999-04-29 | AA91: 5 | AB91: 1 | AC91: 0.06 | AD91: 0.005274725275
A92: 77 | B92: 2018-08-02 | C92: 108.5 | D92: 110.690002 | E92: 108.5 | F92: 110.410004 | G92: 263400 | H92: 110.156891 | I92: 0.9977075175 | J92: 1 | K92: 108.25 | L92: 110.44 | M92: 108.25 | N92: 110.16 | O92: 263400 | U92: 2000-01-28 | V92: 0.015 | W92: 10.125 | X92: 200001 | Y92: 199901 | Z92: 1999-01-28 | AA92: 5 | AB92: 1 | AC92: 0.06 | AD92: 0.005925925926
A93: 78 | B93: 2018-08-01 | C93: 108.849998 | D93: 109.379997 | E93: 107.790001 | F93: 108.300003 | G93: 159100 | H93: 108.051727 | I93: 0.9977075162 | J93: 1 | K93: 108.6 | L93: 109.13 | M93: 107.54 | N93: 108.05 | O93: 159100 | U93: 1999-10-28 | V93: 0.015 | W93: 12.875 | X93: 199910 | Y93: 199810 | Z93: 1998-10-29 | AA93: 5 | AB93: 1 | AC93: 0.06 | AD93: 0.004660194175
A94: 79 | B94: 2018-07-31 | C94: 109.949997 | D94: 109.980003 | E94: 109.080002 | F94: 109.379997 | G94: 319200 | H94: 109.129242 | I94: 0.9977074876 | J94: 1 | K94: 109.7 | L94: 109.73 | M94: 108.83 | N94: 109.13 | O94: 319200 | U94: 1999-07-29 | V94: 0.015 | W94: 15.0312 | X94: 199907 | Y94: 199807 | Z94: 1998-07-30 | AA94: 5 | AB94: 1 | AC94: 0.06 | AD94: 0.00399169727
A95: 80 | B95: 2018-07-30 | C95: 108.629997 | D95: 110.43 | E95: 108.629997 | F95: 109.970001 | G95: 273500 | H95: 109.428558 | I95: 0.9950764482 | J95: 1 | K95: 108.1 | L95: 109.89 | M95: 108.1 | N95: 109.43 | O95: 273500 | U95: 1999-04-29 | V95: 0.015 | W95: 13.5312 | X95: 199904 | Y95: 199804 | Z95: 1998-04-29 | AA95: 5 | AB95: 1 | AC95: 0.06 | AD95: 0.004434196524
A96: 81 | B96: 2018-07-27 | C96: 109.400002 | D96: 109.690002 | E96: 108.519997 | F96: 108.889999 | G96: 221300 | H96: 108.353874 | I96: 0.9950764533 | J96: 1 | K96: 108.86 | L96: 109.15 | M96: 107.99 | N96: 108.35 | O96: 221300 | U96: 1999-01-28 | V96: 0.015 | W96: 13.4375 | X96: 199901 | Y96: 199801 | Z96: 1998-01-29 | AA96: 5 | AB96: 1 | AC96: 0.06 | AD96: 0.004465116279
A97: 82 | B97: 2018-07-26 | C97: 108.099998 | D97: 110.279999 | E97: 107.800003 | F97: 109.43 | G97: 406600 | H97: 108.891212 | I97: 0.9950764141 | J97: 1 | K97: 107.57 | L97: 109.74 | M97: 107.27 | N97: 108.89 | O97: 406600 | U97: 1998-10-29 | V97: 0.015 | W97: 13.25 | X97: 199810 | Y97: 199710 | Z97: 1997-10-30 | AA97: 5 | AB97: 1 | AC97: 0.075 | AD97: 0.005660377358
A98: 83 | B98: 2018-07-25 | C98: 107.660004 | D98: 108.169998 | E98: 106.75 | F98: 107.919998 | G98: 258600 | H98: 107.388649 | I98: 0.9950764547 | J98: 1 | K98: 107.13 | L98: 107.64 | M98: 106.22 | N98: 107.39 | O98: 258600 | U98: 1998-07-30 | V98: 0.015 | W98: 15.5 | X98: 199807 | Y98: 199707 | Z98: 1997-07-30 | AA98: 5 | AB98: 1 | AC98: 0.09 | AD98: 0.005806451613
A99: 84 | B99: 2018-07-24 | C99: 109.339996 | D99: 109.360001 | E99: 107.529999 | F99: 108.5 | G99: 229700 | H99: 107.96579 | I99: 0.9950764055 | J99: 1 | K99: 108.8 | L99: 108.82 | M99: 107 | N99: 107.97 | O99: 229700 | U99: 1998-04-29 | V99: 0.015 | W99: 15.375 | X99: 199804 | Y99: 199704 | Z99: 1997-04-29 | AA99: 5 | AB99: 1 | AC99: 0.105 | AD99: 0.006829268293
A100: 85 | B100: 2018-07-23 | C100: 109.650002 | D100: 110.650002 | E100: 109.059998 | F100: 109.330002 | G100: 249300 | H100: 108.79171 | I100: 0.9950764475 | J100: 1 | K100: 109.11 | L100: 110.11 | M100: 108.52 | N100: 108.79 | O100: 249300 | U100: 1998-01-29 | V100: 0.03 | W100: 14.3125 | X100: 199801 | Y100: 199701 | Z100: 1997-01-30 | AA100: 5 | AB100: 1 | AC100: 0.115 | AD100: 0.008034934498
A101: 86 | B101: 2018-07-20 | C101: 108.889999 | D101: 109.870003 | E101: 108.800003 | F101: 109.669998 | G101: 162900 | H101: 109.130035 | I101: 0.9950764748 | J101: 1 | K101: 108.35 | L101: 109.33 | M101: 108.26 | N101: 109.13 | O101: 162900 | U101: 1997-10-30 | V101: 0.03 | W101: 11.875 | X101: 199710 | Y101: 199610 | Z101: 1996-10-30 | AA101: 5 | AB101: 1 | AC101: 0.11 | AD101: 0.009263157895
A102: 87 | B102: 2018-07-19 | C102: 108.150002 | D102: 109.620003 | E102: 108.059998 | F102: 109.160004 | G102: 276400 | H102: 108.622551 | I102: 0.9950764659 | J102: 1 | K102: 107.62 | L102: 109.08 | M102: 107.53 | N102: 108.62 | O102: 276400 | U102: 1997-07-30 | V102: 0.03 | W102: 11.3125 | X102: 199707 | Y102: 199607 | Z102: 1996-07-30 | AA102: 6 | AB102: 1 | AC102: 0.13 | AD102: 0.01149171271
A103: 88 | B103: 2018-07-18 | C103: 111.349998 | D103: 111.400002 | E103: 108.629997 | F103: 108.639999 | G103: 375600 | H103: 108.105103 | I103: 0.9950764359 | J103: 1 | K103: 110.8 | L103: 110.85 | M103: 108.1 | N103: 108.11 | O103: 375600 | U103: 1997-04-29 | V103: 0.025 | W103: 9.5625 | X103: 199704 | Y103: 199604 | Z103: 1996-04-30 | AA103: 7 | AB103: 1 | AC103: 0.15 | AD103: 0.01568627451
A104: 89 | B104: 2018-07-17 | C104: 109.739998 | D104: 112.209999 | E104: 109.480003 | F104: 111.080002 | G104: 386700 | H104: 110.533089 | I104: 0.9950764045 | J104: 1 | K104: 109.2 | L104: 111.66 | M104: 108.94 | N104: 110.53 | O104: 386700 | U104: 1997-01-30 | V104: 0.025 | W104: 8.8125 | X104: 199701 | Y104: 199601 | Z104: 1996-01-30 | AA104: 8 | AB104: 1 | AC104: 0.175 | AD104: 0.01985815603
A105: 90 | B105: 2018-07-16 | C105: 109.309998 | D105: 109.720001 | E105: 107.809998 | F105: 109.669998 | G105: 238500 | H105: 109.130035 | I105: 0.9950764748 | J105: 1 | K105: 108.77 | L105: 109.18 | M105: 107.28 | N105: 109.13 | O105: 238500 | U105: 1996-10-30 | V105: 0.025 | W105: 8.8125 | X105: 199610 | Y105: 199510 | Z105: 1995-10-30 | AA105: 8 | AB105: 1 | AC105: 0.175 | AD105: 0.01985815603
A106: 91 | B106: 2018-07-13 | C106: 108.260002 | D106: 109.959999 | E106: 108.260002 | F106: 109.169998 | G106: 300900 | H106: 108.632492 | I106: 0.9950764312 | J106: 1 | K106: 107.73 | L106: 109.42 | M106: 107.73 | N106: 108.63 | O106: 300900 | U106: 1996-10-29 | V106: 0.025 | W106: 8.96875 | X106: 199610 | Y106: 199510 | Z106: 1995-10-30 | AA106: 7 | AB106: 1 | AC106: 0.15 | AD106: 0.01672473868
A107: 92 | B107: 2018-07-12 | C107: 108 | D107: 109.129997 | E107: 107.769997 | F107: 108.93 | G107: 241000 | H107: 108.393677 | I107: 0.9950764436 | J107: 1 | K107: 107.47 | L107: 108.59 | M107: 107.24 | N107: 108.39 | O107: 241000 | U107: 1996-07-30 | V107: 0.025 | W107: 8.5625 | X107: 199607 | Y107: 199507 | Z107: 1995-07-28 | AA107: 7 | AB107: 1 | AC107: 0.15 | AD107: 0.01751824818
A108: 93 | B108: 2018-07-11 | C108: 107.68 | D108: 108.370003 | E108: 106.650002 | F108: 107.82 | G108: 309800 | H108: 107.289146 | I108: 0.9950764793 | J108: 1 | K108: 107.15 | L108: 107.84 | M108: 106.12 | N108: 107.29 | O108: 309800 | U108: 1996-07-29 | V108: 0.025 | W108: 8.5625 | X108: 199607 | Y108: 199507 | Z108: 1995-07-28 | AA108: 6 | AB108: 1 | AC108: 0.125 | AD108: 0.01459854015
A109: 94 | B109: 2018-07-10 | C109: 108.379997 | D109: 108.550003 | E109: 107.059998 | F109: 107.730003 | G109: 205000 | H109: 107.199593 | I109: 0.9950764877 | J109: 1 | K109: 107.85 | L109: 108.02 | M109: 106.53 | N109: 107.2 | O109: 205000 | U109: 1996-04-30 | V109: 0.025 | W109: 10.78125 | X109: 199604 | Y109: 199504 | Z109: 1995-04-25 | AA109: 6 | AB109: 1 | AC109: 0.125 | AD109: 0.0115942029
A110: 95 | B110: 2018-07-09 | C110: 107.080002 | D110: 108.470001 | E110: 107.080002 | F110: 108.029999 | G110: 282700 | H110: 107.498108 | I110: 0.9950764509 | J110: 1 | K110: 106.55 | L110: 107.94 | M110: 106.55 | N110: 107.5 | O110: 282700 | U110: 1996-04-29 | V110: 0.025 | W110: 10.6875 | X110: 199604 | Y110: 199504 | Z110: 1995-04-25 | AA110: 5 | AB110: 1 | AC110: 0.1 | AD110: 0.009356725146
A111: 96 | B111: 2018-07-06 | C111: 105.470001 | D111: 107.550003 | E111: 105.470001 | F111: 106.889999 | G111: 357000 | H111: 106.363716 | I111: 0.9950764056 | J111: 1 | K111: 104.95 | L111: 107.02 | M111: 104.95 | N111: 106.36 | O111: 357000 | U111: 1996-01-30 | V111: 0.025 | W111: 11.5 | X111: 199601 | Y111: 199501 | Z111: 1995-01-26 | AA111: 5 | AB111: 1 | AC111: 0.095 | AD111: 0.008260869565
A112: 97 | B112: 2018-07-05 | C112: 103.290001 | D112: 105.279999 | E112: 102.959999 | F112: 105.220001 | G112: 286100 | H112: 104.701942 | I112: 0.9950764209 | J112: 1 | K112: 102.78 | L112: 104.76 | M112: 102.45 | N112: 104.7 | O112: 286100 | U112: 1995-10-30 | V112: 0.025 | W112: 11.5 | X112: 199510 | Y112: 199410 | Z112: 1994-10-26 | AA112: 5 | AB112: 1 | AC112: 0.09 | AD112: 0.007826086957
A113: 98 | B113: 2018-07-03 | C113: 103.629997 | D113: 104.900002 | E113: 102.68 | F113: 102.849998 | G113: 192000 | H113: 102.343613 | I113: 0.9950764705 | J113: 1 | K113: 103.12 | L113: 104.38 | M113: 102.17 | N113: 102.34 | O113: 192000 | U113: 1995-07-28 | V113: 0.025 | W113: 10.0625 | X113: 199507 | Y113: 199407 | Z113: 1994-07-26 | AA113: 5 | AB113: 1 | AC113: 0.085 | AD113: 0.008447204969
A114: 99 | B114: 2018-07-02 | C114: 104.580002 | D114: 104.699997 | E114: 102.470001 | F114: 103.540001 | G114: 431100 | H114: 103.03022 | I114: 0.9950764826 | J114: 1 | K114: 104.07 | L114: 104.18 | M114: 101.97 | N114: 103.03 | O114: 431100 | U114: 1995-04-25 | V114: 0.02 | W114: 8.75 | X114: 199504 | Y114: 199404 | Z114: 1994-04-26 | AA114: 5 | AB114: 1 | AC114: 0.08 | AD114: 0.009142857143
A115: 100 | B115: 2018-06-29 | C115: 105.959999 | D115: 106.139999 | E115: 104.489998 | F115: 105.080002 | G115: 541100 | H115: 104.562637 | I115: 0.9950764656 | J115: 1 | K115: 105.44 | L115: 105.62 | M115: 103.98 | N115: 104.56 | O115: 541100 | U115: 1995-01-26 | V115: 0.02 | W115: 7.4375 | X115: 199501 | Y115: 199401 | Z115: 1994-01-26 | AA115: 5 | AB115: 1 | AC115: 0.08 | AD115: 0.01075630252
A116: 101 | B116: 2018-06-28 | C116: 106.150002 | D116: 107.230003 | E116: 104.629997 | F116: 106.169998 | G116: 911400 | H116: 105.64727 | I116: 0.9950764999 | J116: 1 | K116: 105.63 | L116: 106.7 | M116: 104.11 | N116: 105.65 | O116: 911400 | U116: 1994-10-26 | V116: 0.02 | W116: 6.9375 | X116: 199410 | Y116: 199310 | Z116: 1993-10-26 | AA116: 5 | AB116: 1 | AC116: 0.0976 | AD116: 0.01406846847
A117: 102 | B117: 2018-06-27 | C117: 106.760002 | D117: 108.459999 | E117: 105.010002 | F117: 106.510002 | G117: 622700 | H117: 105.985588 | I117: 0.9950763873 | J117: 1 | K117: 106.23 | L117: 107.93 | M117: 104.49 | N117: 105.99 | O117: 622700 | U117: 1994-07-26 | V117: 0.02 | W117: 6.125 | X117: 199407 | Y117: 199307 | Z117: 1993-07-27 | AA117: 5 | AB117: 1 | AC117: 0.1152 | AD117: 0.01880816327
A118: 103 | B118: 2018-06-26 | C118: 108.599998 | D118: 108.910004 | E118: 106.949997 | F118: 107.209999 | G118: 490000 | H118: 106.682144 | I118: 0.9950764387 | J118: 1 | K118: 108.07 | L118: 108.37 | M118: 106.42 | N118: 106.68 | O118: 490000 | U118: 1994-04-26 | V118: 0.02 | W118: 6.1875 | X118: 199404 | Y118: 199304 | Z118: 1993-04-27 | AA118: 5 | AB118: 1 | AC118: 0.1328 | AD118: 0.02146262626
A119: 104 | B119: 2018-06-25 | C119: 106.849998 | D119: 108.790001 | E119: 106.269997 | F119: 108.339996 | G119: 609800 | H119: 107.80658 | I119: 0.9950764628 | J119: 1 | K119: 106.32 | L119: 108.25 | M119: 105.75 | N119: 107.81 | O119: 609800 | U119: 1994-01-26 | V119: 0.0376 | W119: 6.3125 | X119: 199401 | Y119: 199301 | Z119: 1993-01-26 | AA119: 5 | AB119: 1 | AC119: 0.1428 | AD119: 0.02262178218
A120: 105 | B120: 2018-06-22 | C120: 107.5 | D120: 108.120003 | E120: 105.699997 | F120: 106.839996 | G120: 1017900 | H120: 106.313965 | I120: 0.9950764599 | J120: 1 | K120: 106.97 | L120: 107.59 | M120: 105.18 | N120: 106.31 | O120: 1017900 | U120: 1993-10-26 | V120: 0.0376 | W120: 5.40625 | X120: 199310 | Y120: 199210 | Z120: 1992-10-27 | AA120: 5 | AB120: 1 | AC120: 0.1352 | AD120: 0.02500809249
A121: 106 | B121: 2018-06-21 | C121: 103.720001 | D121: 107.040001 | E121: 103.720001 | F121: 106.669998 | G121: 809200 | H121: 106.144798 | I121: 0.9950764038 | J121: 1 | K121: 103.21 | L121: 106.51 | M121: 103.21 | N121: 106.14 | O121: 809200 | U121: 1993-07-27 | V121: 0.0376 | W121: 4.875 | X121: 199307 | Y121: 199207 | Z121: 1992-07-28 | AA121: 5 | AB121: 1 | AC121: 0.1276 | AD121: 0.02617435897
A122: 107 | B122: 2018-06-20 | C122: 101.040001 | D122: 103.82 | E122: 99.849998 | F122: 103.730003 | G122: 609700 | H122: 103.219284 | I122: 0.9950764583 | J122: 1 | K122: 100.54 | L122: 103.31 | M122: 99.36 | N122: 103.22 | O122: 609700 | U122: 1993-04-27 | V122: 0.03 | W122: 4 | X122: 199304 | Y122: 199204 | Z122: 1992-04-27 | AA122: 5 | AB122: 1 | AC122: 0.12 | AD122: 0.03
A123: 108 | B123: 2018-06-19 | C123: 100.150002 | D123: 101.019997 | E123: 99.339996 | F123: 100.559998 | G123: 477500 | H123: 100.06488 | I123: 0.9950763921 | J123: 1 | K123: 99.66 | L123: 100.52 | M123: 98.85 | N123: 100.06 | O123: 477500 | U123: 1993-01-26 | V123: 0.03 | W123: 4.21875 | X123: 199301 | Y123: 199201 | Z123: 1992-01-28 | AA123: 5 | AB123: 1 | AC123: 0.12 | AD123: 0.02844444444
A124: 109 | B124: 2018-06-18 | C124: 100.489998 | D124: 102.519997 | E124: 99.720001 | F124: 100.610001 | G124: 641200 | H124: 100.114639 | I124: 0.9950764139 | J124: 1 | K124: 100 | L124: 102.02 | M124: 99.23 | N124: 100.11 | O124: 641200 | U124: 1992-10-27 | V124: 0.03 | W124: 4.1875 | X124: 199210 | Y124: 199110 | Z124: 1991-10-28 | AA124: 5 | AB124: 1 | AC124: 0.12 | AD124: 0.02865671642
A125: 110 | B125: 2018-06-15 | C125: 99.169998 | D125: 101.019997 | E125: 99.059998 | F125: 100.830002 | G125: 601900 | H125: 100.333557 | I125: 0.9950764158 | J125: 1 | K125: 98.68 | L125: 100.52 | M125: 98.57 | N125: 100.33 | O125: 601900 | U125: 1992-07-28 | V125: 0.03 | W125: 3.65625 | X125: 199207 | Y125: 199107 | Z125: 1991-07-26 | AA125: 5 | AB125: 1 | AC125: 0.12 | AD125: 0.03282051282
A126: 111 | B126: 2018-06-14 | C126: 99.169998 | D126: 100.269997 | E126: 98.849998 | F126: 99.110001 | G126: 439400 | H126: 98.622025 | I126: 0.9950764202 | J126: 1 | K126: 98.68 | L126: 99.78 | M126: 98.36 | N126: 98.62 | O126: 439400 | U126: 1992-04-27 | V126: 0.03 | W126: 3.90625 | X126: 199204 | Y126: 199104 | Z126: 1991-04-25 | AA126: 5 | AB126: 1 | AC126: 0.12 | AD126: 0.03072
A127: 112 | B127: 2018-06-13 | C127: 96.529999 | D127: 100.589996 | E127: 95.269997 | F127: 99.18 | G127: 994400 | H127: 98.691681 | I127: 0.9950764368 | J127: 1 | K127: 96.05 | L127: 100.09 | M127: 94.8 | N127: 98.69 | O127: 994400 | U127: 1992-01-28 | V127: 0.03 | W127: 3.90625 | X127: 199201 | Y127: 199101 | Z127: 1991-01-28 | AA127: 5 | AB127: 1 | AC127: 0.1152 | AD127: 0.0294912
A128: 113 | B128: 2018-06-12 | C128: 94.300003 | D128: 97.25 | E128: 90.419998 | F128: 96.669998 | G128: 2283800 | H128: 96.194038 | I128: 0.9950764455 | J128: 1 | K128: 93.84 | L128: 96.77 | M128: 89.97 | N128: 96.19 | O128: 2283800 | U128: 1991-10-28 | V128: 0.03 | W128: 4 | X128: 199110 | Y128: 199010 | Z128: 1990-10-26 | AA128: 5 | AB128: 1 | AC128: 0.1104 | AD128: 0.0276
A129: 114 | B129: 2018-06-11 | C129: 96.690002 | D129: 97.620003 | E129: 95.529999 | F129: 96.370003 | G129: 639700 | H129: 95.895515 | I129: 0.9950763932 | J129: 1 | K129: 96.21 | L129: 97.14 | M129: 95.06 | N129: 95.9 | O129: 639700 | U129: 1991-07-26 | V129: 0.03 | W129: 2.40625 | X129: 199107 | Y129: 199007 | Z129: 1990-07-26 | AA129: 5 | AB129: 1 | AC129: 0.1056 | AD129: 0.04388571429
A130: 115 | B130: 2018-06-08 | C130: 96.739998 | D130: 97.650002 | E130: 96.059998 | F130: 96.610001 | G130: 502700 | H130: 96.134331 | I130: 0.9950763897 | J130: 1 | K130: 96.26 | L130: 97.17 | M130: 95.59 | N130: 96.13 | O130: 502700 | U130: 1991-04-25 | V130: 0.0252 | W130: 2.25 | X130: 199104 | Y130: 199004 | Z130: 1990-07-26 | AA130: 4 | AB130: 0 | AC130: 0.1008 | AD130: 0.0448
A131: 116 | B131: 2018-06-07 | C131: 98.709999 | D131: 98.800003 | E131: 96.529999 | F131: 96.809998 | G131: 350200 | H131: 96.333344 | I131: 0.995076397 | J131: 1 | K131: 98.22 | L131: 98.31 | M131: 96.05 | N131: 96.33 | O131: 350200 | U131: 1991-01-28 | V131: 0.0252 | W131: 1.90625 | X131: 199101 | Y131: 199001 | Z131: 1990-07-26 | AA131: 3 | AB131: 0 | AC131: 0.0756 | AD131: 0.03965901639
A132: 117 | B132: 2018-06-06 | C132: 98.190002 | D132: 98.860001 | E132: 97.589996 | F132: 98.699997 | G132: 391000 | H132: 98.214043 | I132: 0.9950764538 | J132: 1 | K132: 97.71 | L132: 98.37 | M132: 97.11 | N132: 98.21 | O132: 391000 | U132: 1990-10-26 | V132: 0.0252 | W132: 1.40625 | X132: 199010 | Y132: 198910 | Z132: 1990-07-26 | AA132: 2 | AB132: 0 | AC132: 0.0504 | AD132: 0.03584
A133: 118 | B133: 2018-06-05 | C133: 96.050003 | D133: 98.150002 | E133: 95.669998 | F133: 97.75 | G133: 728300 | H133: 97.268723 | I133: 0.9950764501 | J133: 1 | K133: 95.58 | L133: 97.67 | M133: 95.2 | N133: 97.27 | O133: 728300 | U133: 1990-07-26 | V133: 0.0252 | W133: 2 | X133: 199007 | Y133: 198907 | Z133: 1990-07-26 | AA133: 1 | AB133: 1 | AC133: 0.0252 | AD133: 0.0126
A134: 119 | B134: 2018-06-04 | C134: 97.199997 | D134: 98.970001 | E134: 95.879997 | F134: 96.169998 | G134: 528700 | H134: 95.696495 | I134: 0.9950763959 | J134: 1 | K134: 96.72 | L134: 98.48 | M134: 95.41 | N134: 95.7 | O134: 528700
A135: 120 | B135: 2018-06-01 | C135: 97.400002 | D135: 97.660004 | E135: 96.519997 | F135: 96.699997 | G135: 514400 | H135: 96.223885 | I135: 0.9950764011 | J135: 1 | K135: 96.92 | L135: 97.18 | M135: 96.04 | N135: 96.22 | O135: 514400
A136: 121 | B136: 2018-05-31 | C136: 98.610001 | D136: 99 | E136: 96.330002 | F136: 96.800003 | G136: 578300 | H136: 96.323402 | I136: 0.9950764361 | J136: 1 | K136: 98.12 | L136: 98.51 | M136: 95.86 | N136: 96.32 | O136: 578300
A137: 122 | B137: 2018-05-30 | C137: 97.129997 | D137: 99.190002 | E137: 96.690002 | F137: 98.839996 | G137: 540000 | H137: 98.353348 | I137: 0.9950764061 | J137: 1 | K137: 96.65 | L137: 98.7 | M137: 96.21 | N137: 98.35 | O137: 540000
A138: 123 | B138: 2018-05-29 | C138: 95.769997 | D138: 97.419998 | E138: 95.459999 | F138: 96.75 | G138: 609200 | H138: 96.273643 | I138: 0.9950764134 | J138: 1 | K138: 95.3 | L138: 96.94 | M138: 94.99 | N138: 96.27 | O138: 609200
A139: 124 | B139: 2018-05-25 | C139: 96.690002 | D139: 97.449997 | E139: 95.900002 | F139: 96.25 | G139: 473600 | H139: 95.776108 | I139: 0.9950764468 | J139: 1 | K139: 96.21 | L139: 96.97 | M139: 95.43 | N139: 95.78 | O139: 473600
A140: 125 | B140: 2018-05-24 | C140: 99.849998 | D140: 100.019997 | E140: 95.800003 | F140: 96.720001 | G140: 1095100 | H140: 96.243797 | I140: 0.9950764682 | J140: 1 | K140: 99.36 | L140: 99.53 | M140: 95.33 | N140: 96.24 | O140: 1095100
A141: 126 | B141: 2018-05-23 | C141: 96.309998 | D141: 104.230003 | E141: 95.18 | F141: 99.849998 | G141: 3661400 | H141: 99.358383 | I141: 0.9950764646 | J141: 1 | K141: 95.84 | L141: 103.72 | M141: 94.71 | N141: 99.36 | O141: 3661400
A142: 127 | B142: 2018-05-22 | C142: 100.089996 | D142: 100.089996 | E142: 96.269997 | F142: 96.779999 | G142: 710700 | H142: 96.303497 | I142: 0.9950764414 | J142: 1 | K142: 99.6 | L142: 99.6 | M142: 95.8 | N142: 96.3 | O142: 710700
A143: 128 | B143: 2018-05-21 | C143: 100.760002 | D143: 101.220001 | E143: 100.059998 | F143: 100.300003 | G143: 398900 | H143: 99.806168 | I143: 0.9950764209 | J143: 1 | K143: 100.26 | L143: 100.72 | M143: 99.57 | N143: 99.81 | O143: 398900
A144: 129 | B144: 2018-05-18 | C144: 101.379997 | D144: 101.839996 | E144: 100.279999 | F144: 100.589996 | G144: 494700 | H144: 100.094734 | I144: 0.9950764289 | J144: 1 | K144: 100.88 | L144: 101.34 | M144: 99.79 | N144: 100.09 | O144: 494700
A145: 130 | B145: 2018-05-17 | C145: 101.75 | D145: 102.419998 | E145: 101.080002 | F145: 101.230003 | G145: 417100 | H145: 100.73159 | I145: =IF(F145=0,1,H145/F145) -> 0.9950764301 | J145: =INDEX(OFFSET($T$15,0,0,$S$13+1,1),MATCH(B145,OFFSET($Q$15,0,0,$S$13+1,1),-1)) -> 1 | K145: =ROUND($I145*C145,2) -> 101.25 | L145: =ROUND($I145*D145,2) -> 101.92 | M145: =ROUND($I145*E145,2) -> 100.58 | N145: =ROUND($I145*F145,2) -> 100.73 | O145: =G145*J145 -> 417100
A146: 131 | B146: 2018-05-16 | C146: 100.620003 | D146: 102.019997 | E146: 100.489998 | F146: 101.510002 | G146: 375300 | H146: 101.010216 | I146: 0.9950764852 | J146: 1 | K146: 100.12 | L146: 101.52 | M146: 100 | N146: 101.01 | O146: 375300
A147: 132 | B147: 2018-05-15 | C147: 100.169998 | D147: 100.970001 | E147: 99.730003 | F147: 100.360001 | G147: 273300 | H147: 99.865868 | I147: 0.995076395 | J147: 1 | K147: 99.68 | L147: 100.47 | M147: 99.24 | N147: 99.87 | O147: 273300
A148: 133 | B148: 2018-05-14 | C148: 99.5 | D148: 100.650002 | E148: 99.129997 | F148: 100.209999 | G148: 505100 | H148: 99.716606 | I148: 0.9950764095 | J148: 1 | K148: 99.01 | L148: 100.15 | M148: 98.64 | N148: 99.72 | O148: 505100
A149: 134 | B149: 2018-05-11 | C149: 99.080002 | D149: 100.300003 | E149: 99.040001 | F149: 99.739998 | G149: 288700 | H149: 99.248924 | I149: 0.9950764587 | J149: 1 | K149: 98.59 | L149: 99.81 | M149: 98.55 | N149: 99.25 | O149: 288700
A150: 135 | B150: 2018-05-10 | C150: 99.870003 | D150: 99.870003 | E150: 99.019997 | F150: 99.330002 | G150: 208200 | H150: 98.840942 | I150: 0.9950764121 | J150: 1 | K150: 99.38 | L150: 99.38 | M150: 98.53 | N150: 98.84 | O150: 208200
A151: 136 | B151: 2018-05-09 | C151: 98.82 | D151: 100.300003 | E151: 98.410004 | F151: 99.440002 | G151: 346400 | H151: 98.950409 | I151: 0.9950764985 | J151: 1 | K151: 98.33 | L151: 99.81 | M151: 97.93 | N151: 98.95 | O151: 346400
A152: 137 | B152: 2018-05-08 | C152: 101 | D152: 101.739998 | E152: 98.660004 | F152: 98.690002 | G152: 631600 | H152: 98.204094 | I152: 0.9950764212 | J152: 1 | K152: 100.5 | L152: 101.24 | M152: 98.17 | N152: 98.2 | O152: 631600
A153: 138 | B153: 2018-05-07 | C153: 99.809998 | D153: 101.519997 | E153: 99.559998 | F153: 100.959999 | G153: 475800 | H153: 100.462914 | I153: 0.9950764164 | J153: 1 | K153: 99.32 | L153: 101.02 | M153: 99.07 | N153: 100.46 | O153: 475800
A154: 139 | B154: 2018-05-04 | C154: 98.959999 | D154: 100.5 | E154: 98.769997 | F154: 99.540001 | G154: 406300 | H154: 99.049911 | I154: 0.9950764517 | J154: 1 | K154: 98.47 | L154: 100.01 | M154: 98.28 | N154: 99.05 | O154: 406300
A155: 140 | B155: 2018-05-03 | C155: 98.779999 | D155: 99.589996 | E155: 98.07 | F155: 98.800003 | G155: 482600 | H155: 98.313553 | I155: 0.9950764172 | J155: 1 | K155: 98.29 | L155: 99.1 | M155: 97.59 | N155: 98.31 | O155: 482600
A156: 141 | B156: 2018-05-02 | C156: 97.889999 | D156: 99.839996 | E156: 96.43 | F156: 99 | G156: 790700 | H156: 98.512566 | I156: 0.9950764242 | J156: 1 | K156: 97.41 | L156: 99.35 | M156: 95.96 | N156: 98.51 | O156: 790700
A157: 142 | B157: 2018-05-01 | C157: 96.540001 | D157: 98.739998 | E157: 95.620003 | F157: 98.330002 | G157: 556200 | H157: 97.845863 | I157: 0.9950763857 | J157: 1 | K157: 96.06 | L157: 98.25 | M157: 95.15 | N157: 97.85 | O157: 556200
A158: 143 | B158: 2018-04-30 | C158: 96.599998 | D158: 97.699997 | E158: 96.580002 | F158: 96.599998 | G158: 648400 | H158: 96.124382 | I158: 0.9950764388 | J158: 1 | K158: 96.12 | L158: 97.22 | M158: 96.1 | N158: 96.12 | O158: 648400
A159: 144 | B159: 2018-04-27 | C159: 97.169998 | D159: 97.800003 | E159: 95.93 | F159: 96.57 | G159: 512500 | H159: 95.835808 | I159: 0.9923973077 | J159: 1 | K159: 96.43 | L159: 97.06 | M159: 95.2 | N159: 95.84 | O159: 512500
A160: 145 | B160: 2018-04-26 | C160: 97.779999 | D160: 98.209999 | E160: 97.080002 | F160: 97.169998 | G160: 392500 | H160: 96.431252 | I160: 0.9923973859 | J160: 1 | K160: 97.04 | L160: 97.46 | M160: 96.34 | N160: 96.43 | O160: 392500
A161: 146 | B161: 2018-04-25 | C161: 96.589996 | D161: 98.389999 | E161: 96.18 | F161: 97.790001 | G161: 366100 | H161: 97.046539 | I161: 0.9923973618 | J161: 1 | K161: 95.86 | L161: 97.64 | M161: 95.45 | N161: 97.05 | O161: 366100
A162: 147 | B162: 2018-04-24 | C162: 98.790001 | D162: 99.220001 | E162: 96.809998 | F162: 96.970001 | G162: 489600 | H162: 96.232773 | I162: 0.9923973601 | J162: 1 | K162: 98.04 | L162: 98.47 | M162: 96.07 | N162: 96.23 | O162: 489600
A163: 148 | B163: 2018-04-23 | C163: 100.139999 | D163: 101.43 | E163: 98.019997 | F163: 98.18 | G163: 516500 | H163: 97.433571 | I163: 0.9923973416 | J163: 1 | K163: 99.38 | L163: 100.66 | M163: 97.27 | N163: 97.43 | O163: 516500
A164: 149 | B164: 2018-04-20 | C164: 101.879997 | D164: 102.860001 | E164: 100.220001 | F164: 100.769997 | G164: 317400 | H164: 100.003876 | I164: 0.9923973303 | J164: 1 | K164: 101.11 | L164: 102.08 | M164: 99.46 | N164: 100 | O164: 317400
A165: 150 | B165: 2018-04-19 | C165: 101.870003 | D165: 102.190002 | E165: 101.099998 | F165: 101.459999 | G165: 356800 | H165: 100.688637 | I165: 0.9923973782 | J165: 1 | K165: 101.1 | L165: 101.41 | M165: 100.33 | N165: 100.69 | O165: 356800
A166: 151 | B166: 2018-04-18 | C166: 101.75 | D166: 103.5 | E166: 101.470001 | F166: 101.849998 | G166: 382900 | H166: 101.075668 | I166: 0.9923973489 | J166: 1 | K166: 100.98 | L166: 102.71 | M166: 100.7 | N166: 101.08 | O166: 382900
A167: 152 | B167: 2018-04-17 | C167: 102.440002 | D167: 103.43 | E167: 101.599998 | F167: 101.860001 | G167: 436100 | H167: 101.085602 | I167: 0.9923974181 | J167: 1 | K167: 101.66 | L167: 102.64 | M167: 100.83 | N167: 101.09 | O167: 436100
A168: 153 | B168: 2018-04-16 | C168: 101.879997 | D168: 103 | E168: 100.139999 | F168: 101.860001 | G168: 369000 | H168: 101.085602 | I168: 0.9923974181 | J168: 1 | K168: 101.11 | L168: 102.22 | M168: 99.38 | N168: 101.09 | O168: 369000
A169: 154 | B169: 2018-04-13 | C169: 106.57 | D169: 106.800003 | E169: 100.419998 | F169: 101.57 | G169: 894700 | H169: 100.797798 | I169: 0.9923973417 | J169: 1 | K169: 105.76 | L169: 105.99 | M169: 99.66 | N169: 100.8 | O169: 894700
A170: 155 | B170: 2018-04-12 | C170: 108.050003 | D170: 108.519997 | E170: 106.919998 | F170: 107.040001 | G170: 350000 | H170: 106.226212 | I170: 0.9923973375 | J170: 1 | K170: 107.23 | L170: 107.69 | M170: 106.11 | N170: 106.23 | O170: 350000
A171: 156 | B171: 2018-04-11 | C171: 107.029999 | D171: 108.379997 | E171: 106.339996 | F171: 107.419998 | G171: 364900 | H171: 106.603317 | I171: 0.9923973095 | J171: 1 | K171: 106.22 | L171: 107.56 | M171: 105.53 | N171: 106.6 | O171: 364900
A172: 157 | B172: 2018-04-10 | C172: 108 | D172: 108.099998 | E172: 106.800003 | F172: 107.519997 | G172: 365300 | H172: 106.70256 | I172: 0.9923973491 | J172: 1 | K172: 107.18 | L172: 107.28 | M172: 105.99 | N172: 106.7 | O172: 365300
A173: 158 | B173: 2018-04-09 | C173: 107.349998 | D173: 108.739998 | E173: 106.459999 | F173: 107.419998 | G173: 278200 | H173: 106.603317 | I173: 0.9923973095 | J173: 1 | K173: 106.53 | L173: 107.91 | M173: 105.65 | N173: 106.6 | O173: 278200
A174: 159 | B174: 2018-04-06 | C174: 107.139999 | D174: 109.099998 | E174: 106.389999 | F174: 107.18 | G174: 333200 | H174: 106.36515 | I174: 0.9923973689 | J174: 1 | K174: 106.33 | L174: 108.27 | M174: 105.58 | N174: 106.37 | O174: 333200
A175: 160 | B175: 2018-04-05 | C175: 109.25 | D175: 109.25 | E175: 107.040001 | F175: 107.639999 | G175: 384700 | H175: 106.821655 | I175: 0.9923973987 | J175: 1 | K175: 108.42 | L175: 108.42 | M175: 106.23 | N175: 106.82 | O175: 384700
A176: 161 | B176: 2018-04-04 | C176: 107.889999 | D176: 110.169998 | E176: 107.379997 | F176: 109.580002 | G176: 441700 | H176: 108.746902 | I176: 0.9923973354 | J176: 1 | K176: 107.07 | L176: 109.33 | M176: 106.56 | N176: 108.75 | O176: 441700
A177: 162 | B177: 2018-04-03 | C177: 109.830002 | D177: 110.830002 | E177: 107.669998 | F177: 109.139999 | G177: 462900 | H177: 108.310249 | I177: 0.9923973794 | J177: 1 | K177: 109 | L177: 109.99 | M177: 106.85 | N177: 108.31 | O177: 462900
A178: 163 | B178: 2018-04-02 | C178: 109.769997 | D178: 110.389999 | E178: 108.239998 | F178: 109.199997 | G178: 418100 | H178: 108.369789 | I178: 0.9923973624 | J178: 1 | K178: 108.94 | L178: 109.55 | M178: 107.42 | N178: 108.37 | O178: 418100
A179: 164 | B179: 2018-03-29 | C179: 108 | D179: 110.199997 | E179: 107.93 | F179: 109.769997 | G179: 364200 | H179: 108.935455 | I179: 0.9923973579 | J179: 1 | K179: 107.18 | L179: 109.36 | M179: 107.11 | N179: 108.94 | O179: 364200
A180: 165 | B180: 2018-03-28 | C180: 107.470001 | D180: 108.199997 | E180: 106.519997 | F180: 107.449997 | G180: 316600 | H180: 106.633095 | I180: 0.9923973753 | J180: 1 | K180: 106.65 | L180: 107.38 | M180: 105.71 | N180: 106.63 | O180: 316600
A181: 166 | B181: 2018-03-27 | C181: 107.970001 | D181: 111.150002 | E181: 106.650002 | F181: 107.18 | G181: 315700 | H181: 106.36515 | I181: 0.9923973689 | J181: 1 | K181: 107.15 | L181: 110.3 | M181: 105.84 | N181: 106.37 | O181: 315700
A182: 167 | B182: 2018-03-26 | C182: 108.089996 | D182: 108.110001 | E182: 106.57 | F182: 107.900002 | G182: 522600 | H182: 107.079674 | I182: 0.992397331 | J182: 1 | K182: 107.27 | L182: 107.29 | M182: 105.76 | N182: 107.08 | O182: 522600
A183: 168 | B183: 2018-03-23 | C183: 109.629997 | D183: 110.709999 | E183: 107.050003 | F183: 107.269997 | G183: 482500 | H183: 106.45446 | I183: 0.9923973429 | J183: 1 | K183: 108.8 | L183: 109.87 | M183: 106.24 | N183: 106.45 | O183: 482500
A184: 169 | B184: 2018-03-22 | C184: 110.519997 | D184: 112.040001 | E184: 109.419998 | F184: 109.510002 | G184: 263100 | H184: 108.677437 | I184: 0.9923973611 | J184: 1 | K184: 109.68 | L184: 111.19 | M184: 108.59 | N184: 108.68 | O184: 263100
A185: 170 | B185: 2018-03-21 | C185: 110.760002 | D185: 112.5 | E185: 110.110001 | F185: 111.080002 | G185: 513300 | H185: 110.235504 | I185: 0.9923973894 | J185: 1 | K185: 109.92 | L185: 111.64 | M185: 109.27 | N185: 110.24 | O185: 513300
A186: 171 | B186: 2018-03-20 | C186: 112.370003 | D186: 112.980003 | E186: 110.089996 | F186: 110.449997 | G186: 337900 | H186: 109.610291 | I186: 0.9923974104 | J186: 1 | K186: 111.52 | L186: 112.12 | M186: 109.25 | N186: 109.61 | O186: 337900
A187: 172 | B187: 2018-03-19 | C187: 110.970001 | D187: 113.550003 | E187: 110.860001 | F187: 112.589996 | G187: 402400 | H187: 111.734009 | I187: 0.9923973085 | J187: 1 | K187: 110.13 | L187: 112.69 | M187: 110.02 | N187: 111.73 | O187: 402400
A188: 173 | B188: 2018-03-16 | C188: 110.900002 | D188: 112.160004 | E188: 110.519997 | F188: 111.139999 | G188: 847500 | H188: 110.295044 | I188: 0.9923973816 | J188: 1 | K188: 110.06 | L188: 111.31 | M188: 109.68 | N188: 110.3 | O188: 847500
A189: 174 | B189: 2018-03-15 | C189: 111.790001 | D189: 112.019997 | E189: 110.550003 | F189: 110.699997 | G189: 373300 | H189: 109.858383 | I189: 0.992397344 | J189: 1 | K189: 110.94 | L189: 111.17 | M189: 109.71 | N189: 109.86 | O189: 373300
A190: 175 | B190: 2018-03-14 | C190: 112 | D190: 112.160004 | E190: 110.800003 | F190: 111.57 | G190: 454000 | H190: 110.721771 | I190: 0.992397338 | J190: 1 | K190: 111.15 | L190: 111.31 | M190: 109.96 | N190: 110.72 | O190: 454000
A191: 176 | B191: 2018-03-13 | C191: 111.830002 | D191: 111.830002 | E191: 110.529999 | F191: 111.389999 | G191: 476800 | H191: 110.543144 | I191: 0.9923973875 | J191: 1 | K191: 110.98 | L191: 110.98 | M191: 109.69 | N191: 110.54 | O191: 476800
A192: 177 | B192: 2018-03-12 | C192: 111.260002 | D192: 112.389999 | E192: 110.389999 | F192: 111.809998 | G192: 303800 | H192: 110.959946 | I192: 0.9923973525 | J192: 1 | K192: 110.41 | L192: 111.54 | M192: 109.55 | N192: 110.96 | O192: 303800
A193: 178 | B193: 2018-03-09 | C193: 109.330002 | D193: 111.970001 | E193: 108 | F193: 110.800003 | G193: 531400 | H193: 109.957626 | I193: 0.9923973197 | J193: 1 | K193: 108.5 | L193: 111.12 | M193: 107.18 | N193: 109.96 | O193: 531400
A194: 179 | B194: 2018-03-08 | C194: 111.309998 | D194: 111.699997 | E194: 108.379997 | F194: 109.080002 | G194: 658100 | H194: 108.250702 | I194: 0.9923973232 | J194: 1 | K194: 110.46 | L194: 110.85 | M194: 107.56 | N194: 108.25 | O194: 658100
A195: 180 | B195: 2018-03-07 | C195: 108.68 | D195: 114.599998 | E195: 105.449997 | F195: 112.580002 | G195: 1257300 | H195: 111.724098 | I195: 0.9923973709 | J195: 1 | K195: 107.85 | L195: 113.73 | M195: 104.65 | N195: 111.72 | O195: 1257300
A196: 181 | B196: 2018-03-06 | C196: 111.470001 | D196: 112.349998 | E196: 110.269997 | F196: 111.160004 | G196: 779400 | H196: 110.314896 | I196: 0.9923973734 | J196: 1 | K196: 110.62 | L196: 111.5 | M196: 109.43 | N196: 110.31 | O196: 779400
A197: 182 | B197: 2018-03-05 | C197: 111.220001 | D197: 112.82 | E197: 110.260002 | F197: 111.550003 | G197: 452400 | H197: 110.701927 | I197: 0.9923973467 | J197: 1 | K197: 110.37 | L197: 111.96 | M197: 109.42 | N197: 110.7 | O197: 452400
A198: 183 | B198: 2018-03-02 | C198: 111.639999 | D198: 112.25 | E198: 109.440002 | F198: 111.900002 | G198: 451300 | H198: 111.049271 | I198: 0.9923973996 | J198: 1 | K198: 110.79 | L198: 111.4 | M198: 108.61 | N198: 111.05 | O198: 451300
A199: 184 | B199: 2018-03-01 | C199: 112.309998 | D199: 114.470001 | E199: 111.690002 | F199: 112.459999 | G199: 357400 | H199: 111.605011 | I199: 0.9923974035 | J199: 1 | K199: 111.46 | L199: 113.6 | M199: 110.84 | N199: 111.61 | O199: 357400
A200: 185 | B200: 2018-02-28 | C200: 114.010002 | D200: 114.150002 | E200: 112.300003 | F200: 112.309998 | G200: 241200 | H200: 111.456146 | I200: 0.9923973643 | J200: 1 | K200: 113.14 | L200: 113.28 | M200: 111.45 | N200: 111.46 | O200: 241200
... 4300 more rows

Sheet CalculationsAndCharts
A1: SveVolatilityBand Indicator | R1: Price Chart Controls | S1: 3
A2: =InputPriceData!A1 -> Casey's General Stores, Inc. (CASY) -NasdaqGS (Daily) | E2: =A2 & " (Renko)" -> Casey's General Stores, Inc. (CASY) -NasdaqGS (Daily) (Renko) | V2: Align Renko Chart to Price Plot
S3: TRUE | V3: Bar # | W3: Date Range
A4: User Charting Controls | E4: Click to Shift Chart One Bar: | S4: TRUE | V4: =MATCH($C$13-1,OFFSET($K$32,1,0,$A$8,1),-1)-1 -> 88 | W4: =OFFSET($K$32,$V4,0,1,1) -> 2016-07-08
A5: Data Control | S5: TRUE | V5: 1 | W5: =OFFSET($K$32,$V5,0,1,1) -> 2018-11-19
A6: =InputPriceData!$B$10 -> 8846 | B6: Available Input Data Rows | E6: Earliest: | F6: =OFFSET(InputPriceData!B15,CalculationsAndCharts!A6,0,1,1) -> 1983-10-20 | S6: TRUE
B7: Use Close Adjusted: | C7: TRUE | E7: Latest: | F7: =OFFSET(InputPriceData!B15,1,0,1,1) -> 2018-11-19
A8: =MIN(A6-A11,LOOKUP(2,1/(B:B<>0),ROW(A:A))-32) -> 2000 | B8: Logically Available for Calc / Plot | E8: $ Change: | F8: =G33-G34 -> -1.69
F10: Y-axis Range | S10: 3
A11: 0 | B11: Input Data Offset (Pan) | E11: Max High+ | F11: =CEILING(MAX(MAX(OFFSET($E$33,0,0,$A$12,1)))+2*F14,0.1) -> 137.6
A12: 600 | B12: Data Points to Plot (Zoom) | E12: Min Low- | F12: =FLOOR(MIN(MIN(OFFSET($F$33,0,0,$A$12,1)))-2*F14,0.1) -> 85.4
B13: First: | C13: =OFFSET(B32,A12,0,1,1) -> 2016-07-06 | E13: White space %: | F13: 0.05
B14: ="Last: " & IF(OFFSET(InputPriceData!P15,1+A11,0,1,1)="","",TEXT(OFFSET(InputPriceData!P15,1+A11,0,1,1),"H:MM AM/PM")) -> Last: | C14: =B33 -> 2018-11-19 | E14: Allowance: | F14: =FLOOR((CEILING(MAX(MAX(OFFSET($E$33,0,0,$A$12,1))),1)-FLOOR(MIN(MIN(OFFSET($F$33,0,0,$A$12,1))),1))*F13,0.01) -> 2.25 | R14: Renko Chart Controls
A15: User Controls
A16: 230 | B16: RenkoTickSize | C16: rangeValue: | D16: =A16*0.01 -> 2.3 | S16: TRUE
S17: TRUE
A18: SMAs | B18: 50 | C18: 100 | D18: 200 | S18: TRUE
S19: TRUE
A20: SVE Volatility Parameters
A21: 20 | B21: Bands Period | C21: =(A21+1)*A21/2 -> 210
A22: 2.4 | B22: Bands Deviation | S22: 3
A23: 0.9 | B23: LowbandAdjust
A24: 20 | B24: MiddleLineLwma | C24: =(A24+1)*A24/2 -> 210
A25: Help! I would like to plot data
A26: From | B26: 2016-01-25 | C26: =OFFSET(InputPriceData!$A$15,MATCH(B26,OFFSET(InputPriceData!B15,1,0,InputPriceData!$B$10,1),0),0,1,1)-C27 -> 618 | E26: 301
A27: To | B27: 2018-07-06 | C27: =OFFSET(InputPriceData!$A$15,MATCH(B27,OFFSET(InputPriceData!$B$15,1,0,InputPriceData!$B$10,1),0),0,1,1)-1 -> 95 | E27: =$A$12-$E$26+1 -> 300
H28: @ Price Cursor => | I28: =OFFSET(A32,$E$27,0,1,1)&"(RR)" -> 300(RR) | J28: =OFFSET($B$32,E27,0,1,1) -> 2017-09-13 | K28: =TEXT(OFFSET($D$32,$E$27,0,1,1),"#,##0.00")&"(o)" -> 105.74(o) | L28: =TEXT(OFFSET($E$32,$E$27,0,1,1),"#,##0.00")&"(h)" -> 106.57(h) | M28: =TEXT(OFFSET($F$32,$E$27,0,1,1),"#,##0.00")&"(l)" -> 105.31(l) | N28: =TEXT(OFFSET($G$32,$E$27,0,1,1),"#,##0.00")&"(c)" -> 105.55(c) | O28: =IF(OFFSET($C$32,$E$27,0,1,1)>9999999,TEXT(OFFSET($C$32,$E$27,0,1,1)/1000000,"#,##0.00")&"M",TEXT(OFFSET($C$32,$E$27,0,1,1),"#,##0"))&"(v)" -> 298,700(v)
E29: Cursor ==> | AU29: Chart Cursor work area
A31: Rel Row | H31: LWMA Weight Sticks | J31: =MAX(OFFSET($J$32,1,0,$A$8,1)) -> 195 | K31: ="Modified Renko Bars (" & $A$16 & ", 0.01)" -> Modified Renko Bars (230, 0.01) | N31: =MAX(OFFSET(N32,1,0,$J$31,1)) -> 131.47 | O31: =MIN(OFFSET(O32,1,0,$J$31,1)) -> 33.76 | Q31: Ticks in bar | R31: Total Ticks | S31: Renko | X31: Renko SveVolatility Bands | AD31: Renko Bollinger Bands | BB31: Price | BG31: Price SveVolatility Bands | BM31: Price Bollinger Bands
B32: Date | C32: Volume | D32: Open | E32: High | F32: Low | G32: Close | H32: Bands | I32: Middle | J32: Row | K32: Date/time | L32: Volume | M32: R Open | N32: R High | O32: R Low | P32: R Close | R32: =SUM(OFFSET($Q$32,1,0,$J$31,1)) -> 2000 | S32: ="Typical" -> Typical | T32: ="SMA("&B$18&")" -> SMA(50) | U32: ="SMA("&C$18&")" -> SMA(100) | V32: ="SMA("&D$18&")" -> SMA(200) | W32: ="LWMA(" & A24 & ")" -> LWMA(20) | X32: TempBuf | Y32: AtrBuf | Z32: LwmaClose | AA32: HighChan | AB32: LowChan | AC32: MedianChan | AD32: StdDev | AE32: HiChan | AF32: Low Chan | AG32: Median | AH32: HiChan | AI32: Low Chan | AJ32: Median | AW32: Renko Cursor | AY32: Price Chart Cursor | BB32: ="Typical" -> Typical | BC32: ="SMA("&B$18&")" -> SMA(50) | BD32: ="SMA("&C$18&")" -> SMA(100) | BE32: ="SMA("&D$18&")" -> SMA(200) | BF32: ="LWMA(" &A24 & ")" -> LWMA(20) | BG32: TempBuf | BH32: AtrBuf | BI32: LwmaClose | BJ32: HighChan | BK32: LowChan | BL32: MedianChan | BM32: StdDev | BN32: HiChan | BO32: Low Chan | BP32: Median | BQ32: HiChan | BR32: Low Chan | BS32: Median
A33: 1 | B33: =OFFSET(InputPriceData!B$15,CalculationsAndCharts!$A33+$A$11,0,1,1) -> 2018-11-19 | C33: =OFFSET(InputPriceData!G$15,CalculationsAndCharts!$A33+$A$11,IF($C$7,8,0),1,1) -> 209700 | D33: =OFFSET(InputPriceData!C$15,CalculationsAndCharts!$A33+$A$11,IF($C$7,8,0),1,1) -> 128.56 | E33: =OFFSET(InputPriceData!D$15,CalculationsAndCharts!$A33+$A$11,IF($C$7,8,0),1,1) -> 129.51 | F33: =OFFSET(InputPriceData!E$15,CalculationsAndCharts!$A33+$A$11,IF($C$7,8,0),1,1) -> 126.44 | G33: =OFFSET(InputPriceData!F$15,CalculationsAndCharts!$A33+$A$11,IF($C$7,8,0),1,1) -> 126.75 | H33: =A21 -> 20 | I33: =A24 -> 20 | J33: =SVERenkoBars(OFFSET($B$32,1,0,$A$8,1),OFFSET($C$32,1,0,$A$8,1),OFFSET($D$32,1,0,$A$8,1),OFFSET($E$32,1,0,$A$8,1),OFFSET($F$32,1,0,$A$8,1),OFFSET($G$32,1,0,$A$8,1), $D$16) -> 1 | K33: 2018-11-19 | L33: 2172300 | M33: 130.36 | N33: 129.51 | O33: 126.44 | P33: 126.75 | Q33: 8 | S33: =SUM(N33:P33)/3 -> 127.5666667 | T33: =IF($S$16,AVERAGE(OFFSET($P33,0,0,B$18,1)),NA()) -> 113.5898 | U33: =IF($S$17,AVERAGE(OFFSET($P33,0,0,C$18,1)),NA()) -> 114.2239 | V33: =IF($S$18,AVERAGE(OFFSET($P33,0,0,D$18,1)),NA()) -> 95.79145 | W33: =IF($S$19,SUMPRODUCT(OFFSET($S33,0,0,$A$24,1),OFFSET($I$33,0,0,$A$24,1))/$C$24,NA()) -> 122.200127 | X33: =IF(A33<$J$31,MAX(N33,P34)-MIN(O33,P34),IF(A33=$J$31,N33-O33,NA())) -> 3.92 | Y33: =AVERAGE(OFFSET(X33,0,0,$A$21*2-1,1))*$A$22 -> 7.650461538 | Z33: =SUMPRODUCT(OFFSET($P33,0,0,$A$21,1),OFFSET($I$33,0,0,$A$21,1))/$C$21 -> 122.5466667 | AA33: =Z33+Z33*Y33/P33 -> 129.9434206 | AB33: =Z33-Z33*Y33*$A$23/P33 -> 115.8895881 | AC33: =SUMPRODUCT(OFFSET($S33,0,0,$A$24,1),OFFSET($I$33,0,0,$A$24,1))/$C$24 -> 122.200127 | AD33: =_xlfn.STDEV.P(OFFSET($P33,0,0,$A$21,1)) -> 9.145053567 | AE33: =AG33+AD33*$A$22 -> 144.1482555 | AF33: =AG33-AD33*$A$22 -> 100.2519984 | AG33: =SUMPRODUCT(OFFSET($S33,0,0,$A$24,1),OFFSET($I$33,0,0,$A$24,1))/$C$24 -> 122.200127 | AH33: =IF($S$22=1,AA33,IF($S$22=2,AE33,NA())) ->  | AI33: =IF($S$22=1,AB33,IF($S$22=2,AF33,NA())) ->  | AJ33: =IF($S$22=1,AC33,IF($S$22=2,AG33,NA())) ->  | AW33: =MATCH($J$28,OFFSET($K$32,1,0,$A$8,1),-1)-1 -> 57 | AX33: 45.2789025 | AY33: =E27 -> 300 | AZ33: 87.72075 | BB33: =SUM(E33:G33)/3 -> 127.5666667 | BC33: =IF($S$3,AVERAGE(OFFSET($G33,0,0,B$18,1)),NA()) -> 126.733 | BD33: =IF($S$4,AVERAGE(OFFSET($G33,0,0,C$18,1)),NA()) -> 118.7718 | BE33: =IF($S$5,AVERAGE(OFFSET($G33,0,0,D$18,1)),NA()) -> 111.561 | BF33: =IF($S$6,SUMPRODUCT(OFFSET($BB33,0,0,$A$24,1),OFFSET($I$33,0,0,$A$24,1))/$C$24,NA()) -> 128.0165556 | BG33: =IF(A33<$A$8,MAX(E33,G34)-MIN(F33,G34),IF(A33=$A$8,E33-F33,NA())) -> 3.07 | BH33: =AVERAGE(OFFSET(BG33,0,0,$A$21*2-1,1))*$A$22 -> 6.710769231 | BI33: =SUMPRODUCT(OFFSET($G33,0,0,$A$21,1),OFFSET($I$33,0,0,$A$21,1))/$C$21 -> 128.0567143 | BJ33: =BI33+BI33*BH33/G33 -> 134.8366674 | BK33: =BI33-BI33*BH33*$A$23/G33 -> 121.9547565 | BL33: =SUMPRODUCT(OFFSET($BB33,0,0,$A$24,1),OFFSET($I$33,0,0,$A$24,1))/$C$24 -> 128.0165556 | BM33: =_xlfn.STDEV.P(OFFSET($G33,0,0,$A$21,1)) -> 2.537239593 | BN33: =BP33+BM33*$A$22 -> 134.1059306 | BO33: =BP33-BM33*$A$22 -> 121.9271805 | BP33: =SUMPRODUCT(OFFSET($BB33,0,0,$A$24,1),OFFSET($I$33,0,0,$A$24,1))/$C$24 -> 128.0165556 | BQ33: =IF($S$10=1,BJ33,IF($S$10=2,BN33,NA())) ->  | BR33: =IF($S$10=1,BK33,IF($S$10=2,BO33,NA())) -> 
A34: 2 | B34: =OFFSET(InputPriceData!B$15,CalculationsAndCharts!$A34+$A$11,0,1,1) -> 2018-11-16 | C34: =OFFSET(InputPriceData!G$15,CalculationsAndCharts!$A34+$A$11,IF($C$7,8,0),1,1) -> 362100 | D34: =OFFSET(InputPriceData!C$15,CalculationsAndCharts!$A34+$A$11,IF($C$7,8,0),1,1) -> 126.94 | E34: =OFFSET(InputPriceData!D$15,CalculationsAndCharts!$A34+$A$11,IF($C$7,8,0),1,1) -> 129.42 | F34: =OFFSET(InputPriceData!E$15,CalculationsAndCharts!$A34+$A$11,IF($C$7,8,0),1,1) -> 126.09 | G34: =OFFSET(InputPriceData!F$15,CalculationsAndCharts!$A34+$A$11,IF($C$7,8,0),1,1) -> 128.44 | H34: =H33-1 -> 19 | I34: =I33-1 -> 19 | J34: 2 | K34: 2018-11-07 | L34: 444200 | M34: 128.06 | N34: 130.36 | O34: 127 | P34: 130.36 | Q34: 2 | S34: =SUM(N34:P34)/3 -> 129.24 | T34: 113.524 | U34: 114.053 | V34: 95.1577 | W34: 121.0915397 | X34: =IF(A34<$J$31,MAX(N34,P35)-MIN(O34,P35),IF(A34=$J$31,N34-O34,NA())) -> 3.36 | Y34: 7.550769231 | Z34: 121.5652381 | AA34: =Z34+Z34*Y34/P34 -> 128.6065933 | AB34: 115.2280184 | AC34: 121.0915397 | AD34: 9.634639329 | AE34: 144.2146741 | AF34: 97.96840529 | AG34: 121.0915397 | AW34: =AW33 -> 57 | AX34: 134.75675 | AY34: =E27 -> 300 | AZ34: 136.39675 | BB34: =SUM(E34:G34)/3 -> 127.9833333 | BC34: 126.5284 | BD34: 118.5608 | BE34: 111.48765 | BF34: 127.9674444 | BG34: =IF(A34<$A$8,MAX(E34,G35)-MIN(F34,G35),IF(A34=$A$8,E34-F34,NA())) -> 3.33 | BH34: 6.635076923 | BI34: 128.0976667 | BJ34: =BI34+BI34*BH34/G34 -> 134.715059 | BK34: 122.1420136 | BL34: 127.9674444 | BM34: 2.568811009 | BN34: 134.1325909 | BO34: 121.802298 | BP34: 127.9674444 | BQ34: =IF($S$10=1,BJ34,IF($S$10=2,BN34,NA())) ->  | BR34: =IF($S$10=1,BK34,IF($S$10=2,BO34,NA())) ->  | BS34: =IF($S$10=1,BL34,IF($S$10=2,BP34,NA())) -> 
A35: 3 | B35: =OFFSET(InputPriceData!B$15,CalculationsAndCharts!$A35+$A$11,0,1,1) -> 2018-11-15 | C35: =OFFSET(InputPriceData!G$15,CalculationsAndCharts!$A35+$A$11,IF($C$7,8,0),1,1) -> 296800 | D35: =OFFSET(InputPriceData!C$15,CalculationsAndCharts!$A35+$A$11,IF($C$7,8,0),1,1) -> 126.53 | E35: =OFFSET(InputPriceData!D$15,CalculationsAndCharts!$A35+$A$11,IF($C$7,8,0),1,1) -> 127.57 | F35: =OFFSET(InputPriceData!E$15,CalculationsAndCharts!$A35+$A$11,IF($C$7,8,0),1,1) -> 124.71 | G35: =OFFSET(InputPriceData!F$15,CalculationsAndCharts!$A35+$A$11,IF($C$7,8,0),1,1) -> 127.55 | H35: =H34-1 -> 18 | I35: =I34-1 -> 18 | J35: 3 | K35: 2018-11-05 | L35: 1547400 | M35: 123.46 | N35: 128.06 | O35: 126.56 | P35: 128.06 | Q35: 6 | S35: 127.56 | T35: 113.34 | U35: 113.8 | V35: 94.5059 | W35: 119.6704603 | X35: 4.6 | Y35: 7.485538462 | Z35: 120.0757143 | AA35: 127.0945443 | AB35: 113.7587672 | AC35: 119.6704603 | AD35: 10.06759157 | AE35: 143.8326801 | AF35: 95.50824055 | AG35: 119.6704603 | BB35: 126.61 | BC35: 126.2542 | BD35: 118.3363 | BE35: 111.427 | BF35: 127.8732063 | BG35: 2.86 | BH35: 6.520615385 | BI35: 127.9680476 | BJ35: 134.5100344 | BK35: 122.0802595 | BL35: 127.8732063 | BM35: 2.556968713 | BN35: 134.0099313 | BO35: 121.7364814 | BP35: 127.8732063
A36: 4 | B36: =OFFSET(InputPriceData!B$15,CalculationsAndCharts!$A36+$A$11,0,1,1) -> 2018-11-14 | C36: =OFFSET(InputPriceData!G$15,CalculationsAndCharts!$A36+$A$11,IF($C$7,8,0),1,1) -> 252300 | D36: =OFFSET(InputPriceData!C$15,CalculationsAndCharts!$A36+$A$11,IF($C$7,8,0),1,1) -> 128.67 | E36: =OFFSET(InputPriceData!D$15,CalculationsAndCharts!$A36+$A$11,IF($C$7,8,0),1,1) -> 129.51 | F36: =OFFSET(InputPriceData!E$15,CalculationsAndCharts!$A36+$A$11,IF($C$7,8,0),1,1) -> 126.22 | G36: =OFFSET(InputPriceData!F$15,CalculationsAndCharts!$A36+$A$11,IF($C$7,8,0),1,1) -> 126.42 | H36: 17 | I36: 17 | J36: 4 | K36: 2018-10-26 | L36: 2153300 | M36: 128.06 | N36: 125.8 | O36: 123.46 | P36: 123.46 | Q36: 7 | S36: 124.24 | T36: 113.156 | U36: 113.616 | V36: 93.8656 | W36: 118.276873 | X36: 4.6 | Y36: 7.344 | Z36: 118.6738095 | AA36: 125.7331037 | AB36: 112.3204448 | AC36: 118.276873 | AD36: 10.03601515 | AE36: 142.3633094 | AF36: 94.19043667 | AG36: 118.276873 | BB36: 127.3833333 | BC36: 126.0126 | BD36: 118.1276 | BE36: 111.3845 | BF36: 127.9178095 | BG36: 3.29 | BH36: 6.442461538 | BI36: 127.923381 | BJ36: 134.442456 | BK36: 122.0562135 | BL36: 127.9178095 | BM36: 2.557351951 | BN36: 134.0554542 | BO36: 121.7801648 | BP36: 127.9178095
A37: 5 | B37: =OFFSET(InputPriceData!B$15,CalculationsAndCharts!$A37+$A$11,0,1,1) -> 2018-11-13 | C37: =OFFSET(InputPriceData!G$15,CalculationsAndCharts!$A37+$A$11,IF($C$7,8,0),1,1) -> 232000 | D37: =OFFSET(InputPriceData!C$15,CalculationsAndCharts!$A37+$A$11,IF($C$7,8,0),1,1) -> 130.15 | E37: =OFFSET(InputPriceData!D$15,CalculationsAndCharts!$A37+$A$11,IF($C$7,8,0),1,1) -> 130.15 | F37: =OFFSET(InputPriceData!E$15,CalculationsAndCharts!$A37+$A$11,IF($C$7,8,0),1,1) -> 127.81 | G37: =OFFSET(InputPriceData!F$15,CalculationsAndCharts!$A37+$A$11,IF($C$7,8,0),1,1) -> 127.88 | H37: 16 | I37: 16 | J37: 5 | K37: 2018-10-17 | L37: 3013300 | M37: 123.46 | N37: 128.06 | O37: 124.86 | P37: 128.06 | Q37: 8 | S37: 126.9933333 | T37: 113.018 | U37: 113.455 | V37: 93.2483 | W37: 117.066873 | X37: 4.6 | Y37: 7.344 | Z37: 117.5785714 | AA37: 124.3214812 | AB37: 111.5099526 | AC37: 117.066873 | AD37: 10.43906126 | AE37: 142.12062 | AF37: 92.01312599 | AG37: 117.066873 | BB37: 128.6133333 | BC37: 125.7846 | BD37: 117.9415 | BE37: 111.35335 | BF37: 127.8918889 | BG37: 2.34 | BH37: 6.374153846 | BI37: 127.997619 | BJ37: 134.3776356 | BK37: 122.2556042 | BL37: 127.8918889 | BM37: 2.578797152 | BN37: 134.0810021 | BO37: 121.7027757 | BP37: 127.8918889
A38: 6 | B38: =OFFSET(InputPriceData!B$15,CalculationsAndCharts!$A38+$A$11,0,1,1) -> 2018-11-12 | C38: =OFFSET(InputPriceData!G$15,CalculationsAndCharts!$A38+$A$11,IF($C$7,8,0),1,1) -> 227400 | D38: =OFFSET(InputPriceData!C$15,CalculationsAndCharts!$A38+$A$11,IF($C$7,8,0),1,1) -> 130.04 | E38: =OFFSET(InputPriceData!D$15,CalculationsAndCharts!$A38+$A$11,IF($C$7,8,0),1,1) -> 131.29 | F38: =OFFSET(InputPriceData!E$15,CalculationsAndCharts!$A38+$A$11,IF($C$7,8,0),1,1) -> 128.73 | G38: =OFFSET(InputPriceData!F$15,CalculationsAndCharts!$A38+$A$11,IF($C$7,8,0),1,1) -> 129.8 | H38: 15 | I38: 15 | J38: 6 | K38: 2018-10-05 | L38: 4037700 | M38: 128.06 | N38: 126.25 | O38: 123.46 | P38: 123.46 | Q38: 10 | S38: 124.39 | T38: 112.742 | U38: 113.225 | V38: 92.608 | W38: 115.461 | X38: 4.6 | Y38: 7.202461538 | Z38: 115.9028571 | AA38: 122.6644469 | AB38: 109.8174264 | AC38: 115.461 | AD38: 10.16368413 | AE38: 139.8538419 | AF38: 91.0681581 | AG38: 115.461 | BB38: 129.94 | BC38: 125.5262 | BD38: 117.7258 | BE38: 111.323 | BF38: 127.7382857 | BG38: 2.56 | BH38: 6.308923077 | BI38: 127.9292381 | BJ38: 134.1472329 | BK38: 122.3330428 | BL38: 127.7382857 | BM38: 2.574077699 | BN38: 133.9160722 | BO38: 121.5604992 | BP38: 127.7382857
A39: 7 | B39: =OFFSET(InputPriceData!B$15,CalculationsAndCharts!$A39+$A$11,0,1,1) -> 2018-11-09 | C39: =OFFSET(InputPriceData!G$15,CalculationsAndCharts!$A39+$A$11,IF($C$7,8,0),1,1) -> 189900 | D39: =OFFSET(InputPriceData!C$15,CalculationsAndCharts!$A39+$A$11,IF($C$7,8,0),1,1) -> 130.52 | E39: =OFFSET(InputPriceData!D$15,CalculationsAndCharts!$A39+$A$11,IF($C$7,8,0),1,1) -> 131.31 | F39: =OFFSET(InputPriceData!E$15,CalculationsAndCharts!$A39+$A$11,IF($C$7,8,0),1,1) -> 129.06 | G39: =OFFSET(InputPriceData!F$15,CalculationsAndCharts!$A39+$A$11,IF($C$7,8,0),1,1) -> 130.54 | H39: 14 | I39: 14 | J39: 7 | K39: 2018-09-21 | L39: 2747600 | M39: 125.76 | N39: 128.06 | O39: 127.16 | P39: 128.06 | Q39: 6 | S39: 127.76 | T39: 112.512 | U39: 112.995 | V39: 91.9907 | W39: 113.990619 | X39: 2.3 | Y39: 7.060923077 | Z39: 114.5557143 | AA39: 120.8720432 | AB39: 108.8710182 | AC39: 113.990619 | AD39: 9.926705143 | AE39: 137.8147114 | AF39: 90.1665267 | AG39: 113.990619 | BB39: 130.3033333 | BC39: 125.2084 | BD39: 117.4892 | BE39: 111.2892 | BF39: 127.4333968 | BG39: 2.25 | BH39: 6.369230769 | BI39: 127.6554762 | BJ39: 133.883967 | BK39: 122.0498345 | BL39: 127.4333968 | BM39: 2.537876031 | BN39: 133.5242993 | BO39: 121.3424944 | BP39: 127.4333968
A40: 8 | B40: =OFFSET(InputPriceData!B$15,CalculationsAndCharts!$A40+$A$11,0,1,1) -> 2018-11-08 | C40: =OFFSET(InputPriceData!G$15,CalculationsAndCharts!$A40+$A$11,IF($C$7,8,0),1,1) -> 146800 | D40: =OFFSET(InputPriceData!C$15,CalculationsAndCharts!$A40+$A$11,IF($C$7,8,0),1,1) -> 132.21 | E40: =OFFSET(InputPriceData!D$15,CalculationsAndCharts!$A40+$A$11,IF($C$7,8,0),1,1) -> 133.07 | F40: =OFFSET(InputPriceData!E$15,CalculationsAndCharts!$A40+$A$11,IF($C$7,8,0),1,1) -> 130.1 | G40: =OFFSET(InputPriceData!F$15,CalculationsAndCharts!$A40+$A$11,IF($C$7,8,0),1,1) -> 130.98 | H40: 13 | I40: 13 | J40: 8 | K40: 2018-09-13 | L40: 0 | M40: 123.46 | N40: 125.76 | O40: 123.46 | P40: 125.76 | Q40: 1 | S40: 124.9933333 | T40: 112.144 | U40: 112.742 | V40: 91.3504 | W40: 112.0838889 | X40: 2.3 | Y40: 7.060923077 | Z40: 112.65 | AA40: 118.9748488 | AB40: 106.9576361 | AC40: 112.0838889 | AD40: 9.028781756 | AE40: 133.7529651 | AF40: 90.41481267 | AG40: 112.0838889 | BB40: 131.3833333 | BC40: 124.8522 | BD40: 117.216 | BE40: 111.26895 | BF40: 127.062381 | BG40: 2.97 | BH40: 6.341538462 | BI40: 127.277381 | BJ40: 133.4396531 | BK40: 121.731336 | BL40: 127.062381 | BM40: 2.504422089 | BN40: 133.072994 | BO40: 121.0517679 | BP40: 127.062381
A41: 9 | B41: =OFFSET(InputPriceData!B$15,CalculationsAndCharts!$A41+$A$11,0,1,1) -> 2018-11-07 | C41: =OFFSET(InputPriceData!G$15,CalculationsAndCharts!$A41+$A$11,IF($C$7,8,0),1,1) -> 255300 | D41: =OFFSET(InputPriceData!C$15,CalculationsAndCharts!$A41+$A$11,IF($C$7,8,0),1,1) -> 129.02 | E41: =OFFSET(InputPriceData!D$15,CalculationsAndCharts!$A41+$A$11,IF($C$7,8,0),1,1) -> 132.65 | F41: =OFFSET(InputPriceData!E$15,CalculationsAndCharts!$A41+$A$11,IF($C$7,8,0),1,1) -> 129.02 | G41: =OFFSET(InputPriceData!F$15,CalculationsAndCharts!$A41+$A$11,IF($C$7,8,0),1,1) -> 132.32 | H41: 12 | I41: 12 | J41: 9 | K41: 2018-09-12 | L41: 0 | M41: 121.16 | N41: 123.46 | O41: 121.16 | P41: 123.46 | Q41: 1 | S41: 122.6933333 | T41: 111.776 | U41: 112.558 | V41: 90.7216 | W41: 110.3499048 | X41: 2.3 | Y41: 7.060923077 | Z41: 110.8647619 | AA41: 117.2053383 | AB41: 105.1582432 | AC41: 110.3499048 | AD41: 8.075424137 | AE41: 129.7309227 | AF41: 90.96888683 | AG41: 110.3499048 | BB41: 131.33 | BC41: 124.5096 | BD41: 116.9068 | BE41: 111.2298 | BF41: 126.5559048 | BG41: 3.63 | BH41: 6.374153846 | BI41: 126.8276667 | BJ41: 132.9372424 | BK41: 121.3290485 | BL41: 126.5559048 | BM41: 2.317288502 | BN41: 132.1173972 | BO41: 120.9944124 | BP41: 126.5559048
A42: 10 | B42: =OFFSET(InputPriceData!B$15,CalculationsAndCharts!$A42+$A$11,0,1,1) -> 2018-11-06 | C42: =OFFSET(InputPriceData!G$15,CalculationsAndCharts!$A42+$A$11,IF($C$7,8,0),1,1) -> 214200 | D42: =OFFSET(InputPriceData!C$15,CalculationsAndCharts!$A42+$A$11,IF($C$7,8,0),1,1) -> 128.38 | E42: =OFFSET(InputPriceData!D$15,CalculationsAndCharts!$A42+$A$11,IF($C$7,8,0),1,1) -> 129.77 | F42: =OFFSET(InputPriceData!E$15,CalculationsAndCharts!$A42+$A$11,IF($C$7,8,0),1,1) -> 127 | G42: =OFFSET(InputPriceData!F$15,CalculationsAndCharts!$A42+$A$11,IF($C$7,8,0),1,1) -> 129.13 | H42: 11 | I42: 11 | J42: 10 | K42: 2018-09-11 | L42: 0 | M42: 118.86 | N42: 121.16 | O42: 118.86 | P42: 121.16 | Q42: 0 | S42: 120.3933333 | T42: 111.362 | U42: 112.351 | V42: 90.1043 | W42: 108.7680317 | X42: 2.3 | Y42: 7.060923077 | Z42: 109.2219048 | AA42: 115.5871034 | AB42: 103.493226 | AC42: 108.7680317 | AD42: 7.144823301 | AE42: 125.9156077 | AF42: 91.62045582 | AG42: 108.7680317 | BB42: 128.6333333 | BC42: 124.1448 | BD42: 116.5847 | BE42: 111.18645 | BF42: 126.0148254 | BG42: 2.77 | BH42: 6.290461538 | BI42: 126.2033333 | BJ42: 132.3512247 | BK42: 120.6702311 | BL42: 126.0148254 | BM42: 2.003480659 | BN42: 130.823179 | BO42: 121.2064718 | BP42: 126.0148254
A43: 11 | B43: =OFFSET(InputPriceData!B$15,CalculationsAndCharts!$A43+$A$11,0,1,1) -> 2018-11-05 | C43: =OFFSET(InputPriceData!G$15,CalculationsAndCharts!$A43+$A$11,IF($C$7,8,0),1,1) -> 230000 | D43: =OFFSET(InputPriceData!C$15,CalculationsAndCharts!$A43+$A$11,IF($C$7,8,0),1,1) -> 127.87 | E43: =OFFSET(InputPriceData!D$15,CalculationsAndCharts!$A43+$A$11,IF($C$7,8,0),1,1) -> 128.64 | F43: =OFFSET(InputPriceData!E$15,CalculationsAndCharts!$A43+$A$11,IF($C$7,8,0),1,1) -> 127.03 | G43: =OFFSET(InputPriceData!F$15,CalculationsAndCharts!$A43+$A$11,IF($C$7,8,0),1,1) -> 128.31 | H43: 10 | I43: 10 | J43: 11 | K43: 2018-09-11 | L43: 4632000 | M43: 116.56 | N43: 118.86 | O43: 114.94 | P43: 118.86 | Q43: 14 | S43: 117.5533333 | T43: 111.086 | U43: 112.19 | V43: 89.4985 | W43: 107.3605556 | X43: 3.92 | Y43: 7.060923077 | Z43: 107.7433333 | AA43: 114.1438666 | AB43: 101.9828534 | AC43: 107.3605556 | AD43: 6.33544592 | AE43: 122.5656258 | AF43: 92.15548535 | AG43: 107.3605556 | BB43: 127.9933333 | BC43: 123.8392 | BD43: 116.2967 | BE43: 111.155 | BF43: 125.7066984 | BG43: 1.61 | BH43: 6.368615385 | BI43: 125.8580476 | BJ43: 132.1049613 | BK43: 120.2358253 | BL43: 125.7066984 | BM43: 1.883686479 | BN43: 130.227546 | BO43: 121.1858509 | BP43: 125.7066984
A44: 12 | B44: =OFFSET(InputPriceData!B$15,CalculationsAndCharts!$A44+$A$11,0,1,1) -> 2018-11-02 | C44: =OFFSET(InputPriceData!G$15,CalculationsAndCharts!$A44+$A$11,IF($C$7,8,0),1,1) -> 189500 | D44: =OFFSET(InputPriceData!C$15,CalculationsAndCharts!$A44+$A$11,IF($C$7,8,0),1,1) -> 126.88 | E44: =OFFSET(InputPriceData!D$15,CalculationsAndCharts!$A44+$A$11,IF($C$7,8,0),1,1) -> 128.48 | F44: =OFFSET(InputPriceData!E$15,CalculationsAndCharts!$A44+$A$11,IF($C$7,8,0),1,1) -> 126.56 | G44: =OFFSET(InputPriceData!F$15,CalculationsAndCharts!$A44+$A$11,IF($C$7,8,0),1,1) -> 127.88 | H44: 9 | I44: 9 | J44: 12 | K44: 2018-08-21 | L44: 437300 | M44: 114.26 | N44: 116.56 | O44: 114.37 | P44: 116.56 | Q44: 2 | S44: 115.83 | T44: 110.81 | U44: 112.075 | V44: 88.9042 | W44: 106.2033175 | X44: 2.3 | Y44: 7.133538462 | Z44: 106.4509524 | AA44: 112.9658114 | AB44: 100.5875793 | AC44: 106.2033175 | AD44: 5.768370654 | AE44: 120.047407 | AF44: 92.35922789 | AG44: 106.2033175 | BB44: 127.64 | BC44: 123.5758 | BD44: 115.9998 | BE44: 111.1182 | BF44: 125.4357143 | BG44: 1.92 | BH44: 7.111384615 | BI44: 125.567 | BJ44: 132.5497591 | BK44: 119.2825168 | BL44: 125.4357143 | BM44: 1.826191118 | BN44: 129.818573 | BO44: 121.0528556 | BP44: 125.4357143
A45: 13 | B45: =OFFSET(InputPriceData!B$15,CalculationsAndCharts!$A45+$A$11,0,1,1) -> 2018-11-01 | C45: =OFFSET(InputPriceData!G$15,CalculationsAndCharts!$A45+$A$11,IF($C$7,8,0),1,1) -> 213700 | D45: =OFFSET(InputPriceData!C$15,CalculationsAndCharts!$A45+$A$11,IF($C$7,8,0),1,1) -> 126.2 | E45: =OFFSET(InputPriceData!D$15,CalculationsAndCharts!$A45+$A$11,IF($C$7,8,0),1,1) -> 127.48 | F45: =OFFSET(InputPriceData!E$15,CalculationsAndCharts!$A45+$A$11,IF($C$7,8,0),1,1) -> 124.77 | G45: =OFFSET(InputPriceData!F$15,CalculationsAndCharts!$A45+$A$11,IF($C$7,8,0),1,1) -> 126.58 | H45: 8 | I45: 8 | J45: 13 | K45: 2018-08-17 | L45: 1534500 | M45: 111.96 | N45: 114.26 | O45: 112.84 | P45: 114.26 | Q45: 7 | S45: 113.7866667 | T45: 110.488 | U45: 112.006 | V45: 88.3214 | W45: 105.206381 | X45: 2.3 | Y45: 7.133538462 | Z45: 105.3666667 | AA45: 111.944972 | AB45: 99.44619185 | AC45: 105.206381 | AD45: 5.561769053 | AE45: 118.5546267 | AF45: 91.85813522 | AG45: 105.206381 | BB45: 126.2766667 | BC45: 123.3438 | BD45: 115.7079 | BE45: 111.0835 | BF45: 125.1790476 | BG45: 2.71 | BH45: 7.136 | BI45: 125.2942381 | BJ45: 132.3577527 | BK45: 118.9370749 | BL45: 125.1790476 | BM45: 1.777985939 | BN45: 129.4462139 | BO45: 120.9118814 | BP45: 125.1790476
A46: 14 | B46: =OFFSET(InputPriceData!B$15,CalculationsAndCharts!$A46+$A$11,0,1,1) -> 2018-10-31 | C46: =OFFSET(InputPriceData!G$15,CalculationsAndCharts!$A46+$A$11,IF($C$7,8,0),1,1) -> 231200 | D46: =OFFSET(InputPriceData!C$15,CalculationsAndCharts!$A46+$A$11,IF($C$7,8,0),1,1) -> 126.66 | E46: =OFFSET(InputPriceData!D$15,CalculationsAndCharts!$A46+$A$11,IF($C$7,8,0),1,1) -> 127.31 | F46: =OFFSET(InputPriceData!E$15,CalculationsAndCharts!$A46+$A$11,IF($C$7,8,0),1,1) -> 124.73 | G46: =OFFSET(InputPriceData!F$15,CalculationsAndCharts!$A46+$A$11,IF($C$7,8,0),1,1) -> 126.11 | H46: 7 | I46: 7 | J46: 14 | K46: 2018-08-08 | L46: 4245200 | M46: 109.66 | N46: 111.96 | O46: 110.99 | P46: 111.96 | Q46: 16 | S46: 111.6366667 | T46: 110.258 | U46: 111.983 | V46: 87.7501 | W46: 104.4209048 | X46: 2.3 | Y46: 7.133538462 | Z46: 104.512381 | AA46: 111.1713939 | AB46: 98.5192693 | AC46: 104.4209048 | AD46: 5.768370654 | AE46: 118.2649943 | AF46: 90.57681519 | AG46: 104.4209048 | BB46: 126.05 | BC46: 123.15 | BD46: 115.404 | BE46: 111.06235 | BF46: 125.0444921 | BG46: 2.58 | BH46: 7.097846154 | BI46: 125.1331429 | BJ46: 132.1760086 | BK46: 118.7945637 | BL46: 125.0444921 | BM46: 1.752507561 | BN46: 129.2505102 | BO46: 120.8384739 | BP46: 125.0444921
A47: 15 | B47: =OFFSET(InputPriceData!B$15,CalculationsAndCharts!$A47+$A$11,0,1,1) -> 2018-10-30 | C47: =OFFSET(InputPriceData!G$15,CalculationsAndCharts!$A47+$A$11,IF($C$7,8,0),1,1) -> 273800 | D47: =OFFSET(InputPriceData!C$15,CalculationsAndCharts!$A47+$A$11,IF($C$7,8,0),1,1) -> 123.88 | E47: =OFFSET(InputPriceData!D$15,CalculationsAndCharts!$A47+$A$11,IF($C$7,8,0),1,1) -> 127.59 | F47: =OFFSET(InputPriceData!E$15,CalculationsAndCharts!$A47+$A$11,IF($C$7,8,0),1,1) -> 122.53 | G47: =OFFSET(InputPriceData!F$15,CalculationsAndCharts!$A47+$A$11,IF($C$7,8,0),1,1) -> 126.21 | H47: 6 | I47: 6 | J47: 15 | K47: 2018-07-17 | L47: 1577900 | M47: 107.36 | N47: 109.66 | O47: 107.28 | P47: 109.66 | Q47: 6 | S47: 108.8666667 | T47: 110.12 | U47: 112.006 | V47: 87.1903 | W47: 103.8769841 | X47: 2.38 | Y47: 7.140307692 | Z47: 103.91 | AA47: 110.6759071 | AB47: 97.82068361 | AC47: 103.8769841 | AD47: 6.33544592 | AE47: 119.0820543 | AF47: 88.67191392 | AG47: 103.8769841 | BB47: 125.4433333 | BC47: 122.9608 | BD47: 115.1019 | BE47: 111.04055 | BF47: 124.9335079 | BG47: 5.06 | BH47: 7.086769231 | BI47: 125.0159048 | BJ47: 132.0356248 | BK47: 118.6981567 | BL47: 124.9335079 | BM47: 1.746364509 | BN47: 129.1247828 | BO47: 120.7422331 | BP47: 124.9335079
A48: 16 | B48: =OFFSET(InputPriceData!B$15,CalculationsAndCharts!$A48+$A$11,0,1,1) -> 2018-10-29 | C48: =OFFSET(InputPriceData!G$15,CalculationsAndCharts!$A48+$A$11,IF($C$7,8,0),1,1) -> 246400 | D48: =OFFSET(InputPriceData!C$15,CalculationsAndCharts!$A48+$A$11,IF($C$7,8,0),1,1) -> 122.38 | E48: =OFFSET(InputPriceData!D$15,CalculationsAndCharts!$A48+$A$11,IF($C$7,8,0),1,1) -> 125.17 | F48: =OFFSET(InputPriceData!E$15,CalculationsAndCharts!$A48+$A$11,IF($C$7,8,0),1,1) -> 119.72 | G48: =OFFSET(InputPriceData!F$15,CalculationsAndCharts!$A48+$A$11,IF($C$7,8,0),1,1) -> 123.7 | H48: 5 | I48: 5 | J48: 16 | K48: 2018-07-09 | L48: 835100 | M48: 102.76 | N48: 107.36 | O48: 104.95 | P48: 107.36 | Q48: 3 | S48: 106.5566667 | T48: 110.074 | U48: 112.098 | V48: 86.642 | W48: 103.6574762 | X48: 4.6 | Y48: 7.161846154 | Z48: 103.5814286 | AA48: 110.4912111 | AB48: 97.36262427 | AC48: 103.6574762 | AD48: 7.144823301 | AE48: 120.8050521 | AF48: 86.50990027 | AG48: 103.6574762 | BB48: 122.8633333 | BC48: 122.7264 | BD48: 114.8011 | BE48: 111.01885 | BF48: 124.8876984 | BG48: 5.45 | BH48: 6.859076923 | BI48: 124.8921905 | BJ48: 131.8173735 | BK48: 118.6595257 | BL48: 124.8876984 | BM48: 1.776071226 | BN48: 129.1502694 | BO48: 120.6251275 | BP48: 124.8876984
A49: 17 | B49: =OFFSET(InputPriceData!B$15,CalculationsAndCharts!$A49+$A$11,0,1,1) -> 2018-10-26 | C49: =OFFSET(InputPriceData!G$15,CalculationsAndCharts!$A49+$A$11,IF($C$7,8,0),1,1) -> 392800 | D49: =OFFSET(InputPriceData!C$15,CalculationsAndCharts!$A49+$A$11,IF($C$7,8,0),1,1) -> 123.23 | E49: =OFFSET(InputPriceData!D$15,CalculationsAndCharts!$A49+$A$11,IF($C$7,8,0),1,1) -> 123.76 | F49: =OFFSET(InputPriceData!E$15,CalculationsAndCharts!$A49+$A$11,IF($C$7,8,0),1,1) -> 120.36 | G49: =OFFSET(InputPriceData!F$15,CalculationsAndCharts!$A49+$A$11,IF($C$7,8,0),1,1) -> 121.74 | H49: 4 | I49: 4 | J49: 17 | K49: 2018-07-03 | L49: 3606100 | M49: 107.36 | N49: 104.18 | O49: 102.76 | P49: 102.76 | Q49: 6 | S49: 103.2333333 | T49: 110.12 | U49: 112.19 | V49: 86.1052 | W49: 103.7442063 | X49: 4.6 | Y49: 7.020307692 | Z49: 103.5595238 | AA49: 110.634453 | AB49: 97.19208756 | AC49: 103.7442063 | AD49: 8.321424157 | AE49: 123.7156243 | AF49: 83.77278837 | AG49: 103.7442063 | BB49: 121.9533333 | BC49: 122.54 | BD49: 114.5274 | BE49: 111.01555 | BF49: 125.1116825 | BG49: 3.82 | BH49: 6.681846154 | BI49: 125.0245714 | BJ49: 131.8866952 | BK49: 118.84866 | BL49: 125.1116825 | BM49: 1.824738337 | BN49: 129.4910545 | BO49: 120.7323105 | BP49: 125.1116825
A50: 18 | B50: =OFFSET(InputPriceData!B$15,CalculationsAndCharts!$A50+$A$11,0,1,1) -> 2018-10-25 | C50: =OFFSET(InputPriceData!G$15,CalculationsAndCharts!$A50+$A$11,IF($C$7,8,0),1,1) -> 206600 | D50: =OFFSET(InputPriceData!C$15,CalculationsAndCharts!$A50+$A$11,IF($C$7,8,0),1,1) -> 124.89 | E50: =OFFSET(InputPriceData!D$15,CalculationsAndCharts!$A50+$A$11,IF($C$7,8,0),1,1) -> 125.8 | F50: =OFFSET(InputPriceData!E$15,CalculationsAndCharts!$A50+$A$11,IF($C$7,8,0),1,1) -> 123.87 | G50: =OFFSET(InputPriceData!F$15,CalculationsAndCharts!$A50+$A$11,IF($C$7,8,0),1,1) -> 124.18 | H50: 3 | I50: 3 | J50: 18 | K50: 2018-06-25 | L50: 1017900 | M50: 105.06 | N50: 107.36 | O50: 105.06 | P50: 107.36 | Q50: 1 | S50: 106.5933333 | T50: 110.35 | U50: 112.282 | V50: 85.5914 | W50: 104.2386825 | X50: 2.3 | Y50: 6.908923077 | Z50: 104.0742857 | AA50: 110.7717637 | AB50: 98.04655555 | AC50: 104.2386825 | AD50: 8.975158773 | AE50: 125.7790636 | AF50: 82.69830148 | AG50: 104.2386825 | BB50: 124.6166667 | BC50: 122.3708 | BD50: 114.2921 | BE50: 111.01195 | BF50: 125.4573492 | BG50: 1.93 | BH50: 6.571076923 | BI50: 125.3772857 | BJ50: 132.0117179 | BK50: 119.4062967 | BL50: 125.4573492 | BM50: 1.826335881 | BN50: 129.8405553 | BO50: 121.0741431 | BP50: 125.4573492
A51: 19 | B51: =OFFSET(InputPriceData!B$15,CalculationsAndCharts!$A51+$A$11,0,1,1) -> 2018-10-24 | C51: =OFFSET(InputPriceData!G$15,CalculationsAndCharts!$A51+$A$11,IF($C$7,8,0),1,1) -> 394200 | D51: =OFFSET(InputPriceData!C$15,CalculationsAndCharts!$A51+$A$11,IF($C$7,8,0),1,1) -> 125.55 | E51: =OFFSET(InputPriceData!D$15,CalculationsAndCharts!$A51+$A$11,IF($C$7,8,0),1,1) -> 127.54 | F51: =OFFSET(InputPriceData!E$15,CalculationsAndCharts!$A51+$A$11,IF($C$7,8,0),1,1) -> 124.58 | G51: =OFFSET(InputPriceData!F$15,CalculationsAndCharts!$A51+$A$11,IF($C$7,8,0),1,1) -> 124.7 | H51: 2 | I51: 2 | J51: 19 | K51: 2018-06-22 | L51: 0 | M51: 102.76 | N51: 105.06 | O51: 102.76 | P51: 105.06 | Q51: 1 | S51: 104.2933333 | T51: 110.442 | U51: 112.351 | V51: 85.0546 | W51: 104.4801111 | X51: 2.3 | Y51: 6.908923077 | Z51: 104.2166667 | AA51: 111.0701307 | AB51: 98.04854902 | AC51: 104.4801111 | AD51: 9.406831294 | AE51: 127.0565062 | AF51: 81.903716 | AG51: 104.4801111 | BB51: 125.6066667 | BC51: 122.1352 | BD51: 114.023 | BE51: 110.98565 | BF51: 125.5724286 | BG51: 2.96 | BH51: 6.610461538 | BI51: 125.5226667 | BJ51: 132.1767385 | BK51: 119.534002 | BL51: 125.5724286 | BM51: 1.996274718 | BN51: 130.3634879 | BO51: 120.7813692 | BP51: 125.5724286
A52: 20 | B52: =OFFSET(InputPriceData!B$15,CalculationsAndCharts!$A52+$A$11,0,1,1) -> 2018-10-23 | C52: =OFFSET(InputPriceData!G$15,CalculationsAndCharts!$A52+$A$11,IF($C$7,8,0),1,1) -> 258500 | D52: =OFFSET(InputPriceData!C$15,CalculationsAndCharts!$A52+$A$11,IF($C$7,8,0),1,1) -> 124.44 | E52: =OFFSET(InputPriceData!D$15,CalculationsAndCharts!$A52+$A$11,IF($C$7,8,0),1,1) -> 126.52 | F52: =OFFSET(InputPriceData!E$15,CalculationsAndCharts!$A52+$A$11,IF($C$7,8,0),1,1) -> 122.06 | G52: =OFFSET(InputPriceData!F$15,CalculationsAndCharts!$A52+$A$11,IF($C$7,8,0),1,1) -> 125.77 | H52: 1 | I52: 1 | J52: 20 | K52: 2018-06-21 | L52: 0 | M52: 100.46 | N52: 102.76 | O52: 100.46 | P52: 102.76 | Q52: 1 | S52: 101.9933333 | T52: 110.488 | U52: 112.466 | V52: 84.5293 | W52: 105.0063016 | X52: =IF(A52<$J$31,MAX(N52,P53)-MIN(O52,P53),IF(A52=$J$31,N52-O52,NA())) -> 2.3 | Y52: 7.050461538 | Z52: 104.6438095 | AA52: 111.823521 | AB52: 98.18206917 | AC52: 105.0063016 | AD52: 9.607147079 | AE52: 128.0634546 | AF52: 81.9491486 | AG52: 105.0063016 | BB52: 124.7833333 | BC52: 121.894 | BD52: 113.733 | BE52: 110.96835 | BF52: 125.6101905 | BG52: 4.46 | BH52: 6.487384615 | BI52: 125.640619 | BJ52: 132.12133 | BK52: 119.8079792 | BL52: 125.6101905 | BM52: 2.130904209 | BN52: 130.7243606 | BO52: 120.4960204 | BP52: 125.6101905
A53: 21 | B53: =OFFSET(InputPriceData!B$15,CalculationsAndCharts!$A53+$A$11,0,1,1) -> 2018-10-22 | C53: =OFFSET(InputPriceData!G$15,CalculationsAndCharts!$A53+$A$11,IF($C$7,8,0),1,1) -> 267400 | D53: =OFFSET(InputPriceData!C$15,CalculationsAndCharts!$A53+$A$11,IF($C$7,8,0),1,1) -> 126.13 | E53: =OFFSET(InputPriceData!D$15,CalculationsAndCharts!$A53+$A$11,IF($C$7,8,0),1,1) -> 126.84 | F53: =OFFSET(InputPriceData!E$15,CalculationsAndCharts!$A53+$A$11,IF($C$7,8,0),1,1) -> 124.64 | G53: =OFFSET(InputPriceData!F$15,CalculationsAndCharts!$A53+$A$11,IF($C$7,8,0),1,1) -> 125.36 | H53: 0 | I53: 0 | J53: 21 | K53: 2018-06-20 | L53: 11294300 | M53: 95.86 | N53: 100.46 | O53: 98.85 | P53: 100.46 | Q53: 17 | S53: 99.92333333 | T53: 110.626 | U53: 112.627 | V53: 84.0155 | W53: 105.817254 | X53: 4.6 | Y53: 7.192 | Z53: 105.3557143 | AA53: 112.8982018 | AB53: 98.56747551 | AC53: 105.817254 | AD53: 9.590613901 | AE53: 128.8347273 | AF53: 82.79978061 | AG53: 105.817254 | BB53: 125.6133333 | BC53: 121.5936 | BD53: 113.4375 | BE53: 110.9485 | BF53: 125.7468413 | BG53: 2.2 | BH53: 6.302769231 | BI53: 125.6718095 | BJ53: 131.9902557 | BK53: 119.985208 | BL53: 125.7468413 | BM53: 2.228790872 | BN53: 131.0959394 | BO53: 120.3977432 | BP53: 125.7468413
A54: 22 | B54: =OFFSET(InputPriceData!B$15,CalculationsAndCharts!$A54+$A$11,0,1,1) -> 2018-10-19 | C54: =OFFSET(InputPriceData!G$15,CalculationsAndCharts!$A54+$A$11,IF($C$7,8,0),1,1) -> 235100 | D54: =OFFSET(InputPriceData!C$15,CalculationsAndCharts!$A54+$A$11,IF($C$7,8,0),1,1) -> 127.77 | E54: =OFFSET(InputPriceData!D$15,CalculationsAndCharts!$A54+$A$11,IF($C$7,8,0),1,1) -> 128.2 | F54: =OFFSET(InputPriceData!E$15,CalculationsAndCharts!$A54+$A$11,IF($C$7,8,0),1,1) -> 125.9 | G54: =OFFSET(InputPriceData!F$15,CalculationsAndCharts!$A54+$A$11,IF($C$7,8,0),1,1) -> 126.42 | H54: -1 | I54: -1 | J54: 22 | K54: 2018-05-25 | L54: 9882300 | M54: 100.46 | N54: 99.53 | O54: 95.86 | P54: 95.86 | Q54: 14 | S54: 97.08333333 | T54: 110.856 | U54: 112.857 | V54: 83.5132 | W54: 106.8899683 | X54: 4.6 | Y54: 7.057230769 | Z54: 106.352381 | AA54: 114.1820627 | AB54: 99.30566735 | AC54: 106.8899683 | AD54: 9.356082246 | AE54: 129.3445656 | AF54: 84.43537086 | AG54: 106.8899683 | BB54: 126.84 | BC54: 121.2982 | BD54: 113.1471 | BE54: 110.923 | BF54: 125.8160476 | BG54: 2.3 | BH54: 6.301538462 | BI54: 125.7549048 | BJ54: 132.0232908 | BK54: 120.1133573 | BL54: 125.8160476 | BM54: 2.261561131 | BN54: 131.2437943 | BO54: 120.3883009 | BP54: 125.8160476
A55: 23 | B55: =OFFSET(InputPriceData!B$15,CalculationsAndCharts!$A55+$A$11,0,1,1) -> 2018-10-18 | C55: =OFFSET(InputPriceData!G$15,CalculationsAndCharts!$A55+$A$11,IF($C$7,8,0),1,1) -> 378500 | D55: =OFFSET(InputPriceData!C$15,CalculationsAndCharts!$A55+$A$11,IF($C$7,8,0),1,1) -> 129.48 | E55: =OFFSET(InputPriceData!D$15,CalculationsAndCharts!$A55+$A$11,IF($C$7,8,0),1,1) -> 129.99 | F55: =OFFSET(InputPriceData!E$15,CalculationsAndCharts!$A55+$A$11,IF($C$7,8,0),1,1) -> 127.32 | G55: =OFFSET(InputPriceData!F$15,CalculationsAndCharts!$A55+$A$11,IF($C$7,8,0),1,1) -> 127.59 | H55: -2 | I55: -2 | J55: 23 | K55: 2018-05-07 | L55: 3396700 | M55: 95.86 | N55: 100.46 | O55: 98.28 | P55: 100.46 | Q55: 6 | S55: 99.73333333 | T55: 111.27 | U55: 113.11 | V55: 83.0339 | W55: 108.3015556 | X55: 4.6 | Y55: 7.057230769 | Z55: 107.8638095 | AA55: 115.4411517 | AB55: 101.0442016 | AC55: 108.3015556 | AD55: 8.694486759 | AE55: 129.1683238 | AF55: 87.43478733 | AG55: 108.3015556 | BB55: 128.3 | BC55: 121.0162 | BD55: 112.8664 | BE55: 110.89845 | BF55: 125.7752063 | BG55: 2.67 | BH55: 6.259076923 | BI55: 125.7473333 | BJ55: 131.9160161 | BK55: 120.1955189 | BL55: 125.7752063 | BM55: 2.318787345 | BN55: 131.340296 | BO55: 120.2101167 | BP55: 125.7752063
A56: 24 | B56: =OFFSET(InputPriceData!B$15,CalculationsAndCharts!$A56+$A$11,0,1,1) -> 2018-10-17 | C56: =OFFSET(InputPriceData!G$15,CalculationsAndCharts!$A56+$A$11,IF($C$7,8,0),1,1) -> 413000 | D56: =OFFSET(InputPriceData!C$15,CalculationsAndCharts!$A56+$A$11,IF($C$7,8,0),1,1) -> 127.28 | E56: =OFFSET(InputPriceData!D$15,CalculationsAndCharts!$A56+$A$11,IF($C$7,8,0),1,1) -> 129.22 | F56: =OFFSET(InputPriceData!E$15,CalculationsAndCharts!$A56+$A$11,IF($C$7,8,0),1,1) -> 126.11 | G56: =OFFSET(InputPriceData!F$15,CalculationsAndCharts!$A56+$A$11,IF($C$7,8,0),1,1) -> 128.79 | H56: -3 | I56: -3 | J56: 24 | K56: 2018-04-27 | L56: 1764700 | M56: 98.16 | N56: 97.46 | O56: 95.86 | P56: 95.86 | Q56: 4 | S56: 96.39333333 | T56: 111.5 | U56: 113.294 | V56: 82.5316 | W56: 109.5063492 | X56: 2.3 | Y56: 6.923692308 | Z56: 108.9809524 | AA56: 116.8523334 | AB56: 101.8967095 | AC56: 109.5063492 | AD56: 8.321424157 | AE56: 129.4777672 | AF56: 89.53493123 | AG56: 109.5063492 | BB56: 128.04 | BC56: 120.7186 | BD56: 112.5532 | BE56: 110.8557 | BF56: 125.5942063 | BG56: 3.11 | BH56: 6.217230769 | BI56: 125.6301905 | BJ56: 131.6948841 | BK56: 120.1719663 | BL56: 125.5942063 | BM56: 2.330821744 | BN56: 131.1881785 | BO56: 120.0002342 | BP56: 125.5942063
A57: 25 | B57: =OFFSET(InputPriceData!B$15,CalculationsAndCharts!$A57+$A$11,0,1,1) -> 2018-10-16 | C57: =OFFSET(InputPriceData!G$15,CalculationsAndCharts!$A57+$A$11,IF($C$7,8,0),1,1) -> 248600 | D57: =OFFSET(InputPriceData!C$15,CalculationsAndCharts!$A57+$A$11,IF($C$7,8,0),1,1) -> 125.38 | E57: =OFFSET(InputPriceData!D$15,CalculationsAndCharts!$A57+$A$11,IF($C$7,8,0),1,1) -> 127.21 | F57: =OFFSET(InputPriceData!E$15,CalculationsAndCharts!$A57+$A$11,IF($C$7,8,0),1,1) -> 124.86 | G57: =OFFSET(InputPriceData!F$15,CalculationsAndCharts!$A57+$A$11,IF($C$7,8,0),1,1) -> 127.13 | H57: -4 | I57: -4 | J57: 25 | K57: 2018-04-23 | L57: 317400 | M57: 100.46 | N57: 100.46 | O57: 98.16 | P57: 98.16 | Q57: 1 | S57: 98.92666667 | T57: 111.868 | U57: 113.501 | V57: 82.0523 | W57: 111.0741587 | X57: 2.3 | Y57: 6.950153846 | Z57: 110.58 | AA57: 118.4095437 | AB57: 103.5334106 | AC57: 111.0741587 | AD57: 7.631703611 | AE57: 129.3902474 | AF57: 92.75807006 | AG57: 111.0741587 | BB57: 126.4 | BC57: 120.3786 | BD57: 112.2231 | BE57: 110.76825 | BF57: 125.4338095 | BG57: 2.35 | BH57: 6.152 | BI57: 125.3896667 | BJ57: 131.4574495 | BK57: 119.9286621 | BL57: 125.4338095 | BM57: 2.267572435 | BN57: 130.8759834 | BO57: 119.9916357 | BP57: 125.4338095
A58: 26 | B58: =OFFSET(InputPriceData!B$15,CalculationsAndCharts!$A58+$A$11,0,1,1) -> 2018-10-15 | C58: =OFFSET(InputPriceData!G$15,CalculationsAndCharts!$A58+$A$11,IF($C$7,8,0),1,1) -> 276300 | D58: =OFFSET(InputPriceData!C$15,CalculationsAndCharts!$A58+$A$11,IF($C$7,8,0),1,1) -> 123.47 | E58: =OFFSET(InputPriceData!D$15,CalculationsAndCharts!$A58+$A$11,IF($C$7,8,0),1,1) -> 125.86 | F58: =OFFSET(InputPriceData!E$15,CalculationsAndCharts!$A58+$A$11,IF($C$7,8,0),1,1) -> 123.18 | G58: =OFFSET(InputPriceData!F$15,CalculationsAndCharts!$A58+$A$11,IF($C$7,8,0),1,1) -> 125.07 | H58: -5 | I58: -5 | J58: 26 | K58: 2018-04-20 | L58: 1544800 | M58: 102.76 | N58: 101.41 | O58: 100.46 | P58: 100.46 | Q58: 4 | S58: 100.7766667 | T58: 112.236 | U58: 113.662 | V58: 81.5615 | W58: 112.4445079 | X58: 2.3 | Y58: 6.950153846 | Z58: 112.0038095 | AA58: 119.7526022 | AB58: 105.0298962 | AC58: 112.4445079 | AD58: 6.99517691 | AE58: 129.2329325 | AF58: 95.65608335 | AG58: 112.4445079 | BB58: 124.7033333 | BC58: 120.0556 | BD58: 111.9142 | BE58: 110.68685 | BF58: 125.4346825 | BG58: 2.68 | BH58: 6.146461538 | BI58: 125.3088571 | BJ58: 131.4670571 | BK58: 119.7664772 | BL58: 125.4346825 | BM58: 2.275258831 | BN58: 130.8953037 | BO58: 119.9740613 | BP58: 125.4346825
A59: 27 | B59: =OFFSET(InputPriceData!B$15,CalculationsAndCharts!$A59+$A$11,0,1,1) -> 2018-10-12 | C59: =OFFSET(InputPriceData!G$15,CalculationsAndCharts!$A59+$A$11,IF($C$7,8,0),1,1) -> 527800 | D59: =OFFSET(InputPriceData!C$15,CalculationsAndCharts!$A59+$A$11,IF($C$7,8,0),1,1) -> 125.25 | E59: =OFFSET(InputPriceData!D$15,CalculationsAndCharts!$A59+$A$11,IF($C$7,8,0),1,1) -> 126.24 | F59: =OFFSET(InputPriceData!E$15,CalculationsAndCharts!$A59+$A$11,IF($C$7,8,0),1,1) -> 121.38 | G59: =OFFSET(InputPriceData!F$15,CalculationsAndCharts!$A59+$A$11,IF($C$7,8,0),1,1) -> 123.43 | H59: -6 | I59: -6 | J59: 27 | K59: 2018-04-16 | L59: 0 | M59: 105.06 | N59: 105.06 | O59: 102.76 | P59: 102.76 | Q59: 1 | S59: 103.5266667 | T59: 112.65 | U59: 113.777 | V59: 81.0592 | W59: 113.684619 | X59: 2.3 | Y59: 6.950153846 | Z59: 113.252381 | AA59: 120.9121851 | AB59: 106.3585572 | AC59: 113.684619 | AD59: 6.427666762 | AE59: 129.1110193 | AF59: 98.25821882 | AG59: 113.684619 | BB59: 123.6833333 | BC59: 119.763 | BD59: 111.6571 | BE59: 110.61845 | BF59: 125.5993016 | BG59: 4.86 | BH59: 6.073230769 | BI59: 125.4238571 | BJ59: 131.5951934 | BK59: 119.8696546 | BL59: 125.5993016 | BM59: 2.277454445 | BN59: 131.0651923 | BO59: 120.1334109 | BP59: 125.5993016
A60: 28 | B60: =OFFSET(InputPriceData!B$15,CalculationsAndCharts!$A60+$A$11,0,1,1) -> 2018-10-11 | C60: =OFFSET(InputPriceData!G$15,CalculationsAndCharts!$A60+$A$11,IF($C$7,8,0),1,1) -> 802900 | D60: =OFFSET(InputPriceData!C$15,CalculationsAndCharts!$A60+$A$11,IF($C$7,8,0),1,1) -> 122.13 | E60: =OFFSET(InputPriceData!D$15,CalculationsAndCharts!$A60+$A$11,IF($C$7,8,0),1,1) -> 126.82 | F60: =OFFSET(InputPriceData!E$15,CalculationsAndCharts!$A60+$A$11,IF($C$7,8,0),1,1) -> 122.05 | G60: =OFFSET(InputPriceData!F$15,CalculationsAndCharts!$A60+$A$11,IF($C$7,8,0),1,1) -> 124.74 | H60: -7 | I60: -7 | J60: 28 | K60: 2018-04-13 | L60: 5400600 | M60: 107.36 | N60: 107.69 | O60: 105.06 | P60: 105.06 | Q60: 14 | S60: 105.9366667 | T60: 112.972 | U60: 113.846 | V60: 80.5454 | W60: 114.7066349 | X60: 2.63 | Y60: 7.187692308 | Z60: 114.3257143 | AA60: 122.1473215 | AB60: 107.2862678 | AC60: 114.7066349 | AD60: 5.948957892 | AE60: 128.9841339 | AF60: 100.429136 | AG60: 114.7066349 | BB60: 124.5366667 | BC60: 119.4976 | BD60: 111.3858 | BE60: 110.55195 | BF60: 125.8748254 | BG60: 4.77 | BH60: 5.876307692 | BI60: 125.7064286 | BJ60: 131.6282632 | BK60: 120.3767774 | BL60: 125.8748254 | BM60: 2.185765541 | BN60: 131.1206627 | BO60: 120.6289881 | BP60: 125.8748254
A61: 29 | B61: =OFFSET(InputPriceData!B$15,CalculationsAndCharts!$A61+$A$11,0,1,1) -> 2018-10-10 | C61: =OFFSET(InputPriceData!G$15,CalculationsAndCharts!$A61+$A$11,IF($C$7,8,0),1,1) -> 272200 | D61: =OFFSET(InputPriceData!C$15,CalculationsAndCharts!$A61+$A$11,IF($C$7,8,0),1,1) -> 123.71 | E61: =OFFSET(InputPriceData!D$15,CalculationsAndCharts!$A61+$A$11,IF($C$7,8,0),1,1) -> 124.28 | F61: =OFFSET(InputPriceData!E$15,CalculationsAndCharts!$A61+$A$11,IF($C$7,8,0),1,1) -> 122.26 | G61: =OFFSET(InputPriceData!F$15,CalculationsAndCharts!$A61+$A$11,IF($C$7,8,0),1,1) -> 122.45 | H61: -8 | I61: -8 | J61: 29 | K61: 2018-03-23 | L61: 5161600 | M61: 109.66 | N61: 111.19 | O61: 107.36 | P61: 107.36 | Q61: 11 | S61: 108.6366667 | T61: 113.202 | U61: 113.869 | V61: 80.0201 | W61: 115.5424127 | X61: 3.83 | Y61: 7.167384615 | Z61: 115.2238095 | AA61: 122.9161843 | AB61: 108.3006722 | AC61: 115.5424127 | AD61: 5.581944106 | AE61: 128.9390786 | AF61: 102.1457468 | AG61: 115.5424127 | BB61: 122.9966667 | BC61: 119.1638 | BD61: 111.1365 | BE61: 110.47605 | BF61: 126.0829048 | BG61: 2.02 | BH61: 5.694153846 | BI61: 125.8773333 | BJ61: 131.7308646 | BK61: 120.6091552 | BL61: 126.0829048 | BM61: 2.163588397 | BN61: 131.2755169 | BO61: 120.8902926 | BP61: 126.0829048
A62: 30 | B62: =OFFSET(InputPriceData!B$15,CalculationsAndCharts!$A62+$A$11,0,1,1) -> 2018-10-09 | C62: =OFFSET(InputPriceData!G$15,CalculationsAndCharts!$A62+$A$11,IF($C$7,8,0),1,1) -> 280800 | D62: =OFFSET(InputPriceData!C$15,CalculationsAndCharts!$A62+$A$11,IF($C$7,8,0),1,1) -> 123.54 | E62: =OFFSET(InputPriceData!D$15,CalculationsAndCharts!$A62+$A$11,IF($C$7,8,0),1,1) -> 124.43 | F62: =OFFSET(InputPriceData!E$15,CalculationsAndCharts!$A62+$A$11,IF($C$7,8,0),1,1) -> 122.5 | G62: =OFFSET(InputPriceData!F$15,CalculationsAndCharts!$A62+$A$11,IF($C$7,8,0),1,1) -> 123.93 | H62: -9 | I62: -9 | J62: 30 | K62: 2018-03-08 | L62: 8683400 | M62: 111.96 | N62: 113.73 | O62: 109.66 | P62: 109.66 | Q62: 19 | S62: 111.0166667 | T62: 113.34 | U62: 113.846 | V62: 79.4833 | W62: 116.1624286 | X62: 4.07 | Y62: 7.214769231 | Z62: 115.9466667 | AA62: 123.5750493 | AB62: 109.0811223 | AC62: 116.1624286 | AD62: 5.349663541 | AE62: 129.0016211 | AF62: 103.3232361 | AG62: 116.1624286 | BB62: 123.62 | BC62: 118.8974 | BD62: 110.9129 | BE62: 110.4137 | BF62: 126.4576508 | BG62: 1.93 | BH62: 5.656 | BI62: 126.2925238 | BJ62: 132.0563462 | BK62: 121.1050836 | BL62: 126.4576508 | BM62: 1.967616515 | BN62: 131.1799304 | BO62: 121.7353712 | BP62: 126.4576508
A63: 31 | B63: =OFFSET(InputPriceData!B$15,CalculationsAndCharts!$A63+$A$11,0,1,1) -> 2018-10-08 | C63: =OFFSET(InputPriceData!G$15,CalculationsAndCharts!$A63+$A$11,IF($C$7,8,0),1,1) -> 304300 | D63: =OFFSET(InputPriceData!C$15,CalculationsAndCharts!$A63+$A$11,IF($C$7,8,0),1,1) -> 123.04 | E63: =OFFSET(InputPriceData!D$15,CalculationsAndCharts!$A63+$A$11,IF($C$7,8,0),1,1) -> 123.91 | F63: =OFFSET(InputPriceData!E$15,CalculationsAndCharts!$A63+$A$11,IF($C$7,8,0),1,1) -> 121.77 | G63: =OFFSET(InputPriceData!F$15,CalculationsAndCharts!$A63+$A$11,IF($C$7,8,0),1,1) -> 123.3 | H63: -10 | I63: -10 | J63: 31 | K63: 2018-02-08 | L63: 796800 | M63: 114.26 | N63: 115.99 | O63: 111.96 | P63: 111.96 | Q63: 2 | S63: 113.3033333 | T63: 113.34 | U63: 113.754 | V63: 78.935 | W63: 116.6012222 | X63: 4.03 | Y63: 7.105846154 | Z63: 116.4942857 | AA63: 123.8879127 | AB63: 109.8400215 | AC63: 116.6012222 | AD63: 5.269962049 | AE63: 129.2491311 | AF63: 103.9533133 | AG63: 116.6012222 | BB63: 122.9933333 | BC63: 118.6074 | BD63: 110.6809 | BE63: 110.33915 | BF63: 126.7779048 | BG63: 2.14 | BH63: 5.664615385 | BI63: 126.5694286 | BJ63: 132.3842472 | BK63: 121.3360918 | BL63: 126.7779048 | BM63: 1.930067033 | BN63: 131.4100656 | BO63: 122.1457439 | BP63: 126.7779048
A64: 32 | B64: =OFFSET(InputPriceData!B$15,CalculationsAndCharts!$A64+$A$11,0,1,1) -> 2018-10-05 | C64: =OFFSET(InputPriceData!G$15,CalculationsAndCharts!$A64+$A$11,IF($C$7,8,0),1,1) -> 300400 | D64: =OFFSET(InputPriceData!C$15,CalculationsAndCharts!$A64+$A$11,IF($C$7,8,0),1,1) -> 123.86 | E64: =OFFSET(InputPriceData!D$15,CalculationsAndCharts!$A64+$A$11,IF($C$7,8,0),1,1) -> 125.32 | F64: =OFFSET(InputPriceData!E$15,CalculationsAndCharts!$A64+$A$11,IF($C$7,8,0),1,1) -> 122.3 | G64: =OFFSET(InputPriceData!F$15,CalculationsAndCharts!$A64+$A$11,IF($C$7,8,0),1,1) -> 123.12 | H64: -11 | I64: -11 | J64: 32 | K64: 2018-02-06 | L64: 0 | M64: 116.56 | N64: 116.56 | O64: 114.26 | P64: 114.26 | Q64: 1 | S64: 115.0266667 | T64: 113.34 | U64: 113.662 | V64: 78.3752 | W64: 116.8681429 | X64: 2.3 | Y64: 7.108307692 | Z64: 116.877619 | AA64: 124.1487732 | AB64: 110.3335803 | AC64: 116.8681429 | AD64: 5.485150408 | AE64: 130.0325038 | AF64: 103.7037819 | AG64: 116.8681429 | BB64: 123.58 | BC64: 118.3084 | BD64: 110.458 | BE64: 110.2684 | BF64: 127.1253492 | BG64: 3.02 | BH64: 5.593230769 | BI64: 126.8740476 | BJ64: 132.6378214 | BK64: 121.6866512 | BL64: 127.1253492 | BM64: 2.882201025 | BN64: 134.0426317 | BO64: 120.2080667 | BP64: 127.1253492
A65: 33 | B65: =OFFSET(InputPriceData!B$15,CalculationsAndCharts!$A65+$A$11,0,1,1) -> 2018-10-04 | C65: =OFFSET(InputPriceData!G$15,CalculationsAndCharts!$A65+$A$11,IF($C$7,8,0),1,1) -> 499600 | D65: =OFFSET(InputPriceData!C$15,CalculationsAndCharts!$A65+$A$11,IF($C$7,8,0),1,1) -> 125.85 | E65: =OFFSET(InputPriceData!D$15,CalculationsAndCharts!$A65+$A$11,IF($C$7,8,0),1,1) -> 126.25 | F65: =OFFSET(InputPriceData!E$15,CalculationsAndCharts!$A65+$A$11,IF($C$7,8,0),1,1) -> 123.68 | G65: =OFFSET(InputPriceData!F$15,CalculationsAndCharts!$A65+$A$11,IF($C$7,8,0),1,1) -> 124.03 | H65: -12 | I65: -12 | J65: 33 | K65: 2018-02-05 | L65: 0 | M65: 118.86 | N65: 118.86 | O65: 116.56 | P65: 116.56 | Q65: 1 | S65: 117.3266667 | T65: 113.34 | U65: 113.593 | V65: 77.8039 | W65: 116.9979841 | X65: 2.3 | Y65: 7.249846154 | Z65: 117.0747619 | AA65: 124.3566254 | AB65: 110.5210847 | AC65: 116.9979841 | AD65: 5.581944106 | AE65: 130.39465 | AF65: 103.6013183 | AG65: 116.9979841 | BB65: 124.6533333 | BC65: 118.0238 | BD65: 110.2255 | BE65: 110.1871 | BF65: 127.3771111 | BG65: 2.57 | BH65: 5.545846154 | BI65: 127.1558571 | BJ65: 132.8414721 | BK65: 122.0388037 | BL65: 127.3771111 | BM65: 3.805951786 | BN65: 136.5113954 | BO65: 118.2428268 | BP65: 127.3771111
A66: 34 | B66: =OFFSET(InputPriceData!B$15,CalculationsAndCharts!$A66+$A$11,0,1,1) -> 2018-10-03 | C66: =OFFSET(InputPriceData!G$15,CalculationsAndCharts!$A66+$A$11,IF($C$7,8,0),1,1) -> 279900 | D66: =OFFSET(InputPriceData!C$15,CalculationsAndCharts!$A66+$A$11,IF($C$7,8,0),1,1) -> 126.91 | E66: =OFFSET(InputPriceData!D$15,CalculationsAndCharts!$A66+$A$11,IF($C$7,8,0),1,1) -> 127.65 | F66: =OFFSET(InputPriceData!E$15,CalculationsAndCharts!$A66+$A$11,IF($C$7,8,0),1,1) -> 125.83 | G66: =OFFSET(InputPriceData!F$15,CalculationsAndCharts!$A66+$A$11,IF($C$7,8,0),1,1) -> 125.92 | H66: -13 | I66: -13 | J66: 34 | K66: 2018-02-02 | L66: 650200 | M66: 121.16 | N66: 120.37 | O66: 118.86 | P66: 118.86 | Q66: 2 | S66: 119.3633333 | T66: 113.34 | U66: 113.478 | V66: 77.2211 | W66: 116.912254 | X66: 2.3 | Y66: 7.391384615 | Z66: 117.0638095 | AA66: 124.3434969 | AB66: 110.5120909 | AC66: 116.912254 | AD66: 5.609124263 | AE66: 130.3741522 | AF66: 103.4503557 | AG66: 116.912254 | BB66: 126.4666667 | BC66: 117.691 | BD66: 109.9824 | BE66: 110.1013 | BF66: 127.4831111 | BG66: 1.82 | BH66: 5.489846154 | BI66: 127.3102381 | BJ66: 132.8606957 | BK66: 122.3148263 | BL66: 127.4831111 | BM66: 4.440687897 | BN66: 138.1407621 | BO66: 116.8254602 | BP66: 127.4831111
A67: 35 | B67: =OFFSET(InputPriceData!B$15,CalculationsAndCharts!$A67+$A$11,0,1,1) -> 2018-10-02 | C67: =OFFSET(InputPriceData!G$15,CalculationsAndCharts!$A67+$A$11,IF($C$7,8,0),1,1) -> 408000 | D67: =OFFSET(InputPriceData!C$15,CalculationsAndCharts!$A67+$A$11,IF($C$7,8,0),1,1) -> 126.78 | E67: =OFFSET(InputPriceData!D$15,CalculationsAndCharts!$A67+$A$11,IF($C$7,8,0),1,1) -> 127.86 | F67: =OFFSET(InputPriceData!E$15,CalculationsAndCharts!$A67+$A$11,IF($C$7,8,0),1,1) -> 126.28 | G67: =OFFSET(InputPriceData!F$15,CalculationsAndCharts!$A67+$A$11,IF($C$7,8,0),1,1) -> 126.85 | H67: -14 | I67: -14 | J67: 35 | K67: 2018-01-31 | L67: 1680000 | M67: 125.76 | N67: 122.46 | O67: 121.16 | P67: 121.16 | Q67: 3 | S67: 121.5933333 | T67: 113.34 | U67: 113.317 | V67: 76.6268 | W67: 116.614873 | X67: 4.6 | Y67: 7.391384615 | Z67: 116.8228571 | AA67: 123.9496537 | AB67: 110.4087403 | AC67: 116.614873 | AD67: 5.581944106 | AE67: 130.0115389 | AF67: 103.2182072 | AG67: 116.614873 | BB67: 126.9966667 | BC67: 117.332 | BD67: 109.7157 | BE67: 109.9977 | BF67: 127.3607619 | BG67: 1.58 | BH67: 5.445538462 | BI67: 127.2327143 | BJ67: 132.6946823 | BK67: 122.3169431 | BL67: 127.3607619 | BM67: 5.00699251 | BN67: 139.3775439 | BO67: 115.3439799 | BP67: 127.3607619
A68: 36 | B68: =OFFSET(InputPriceData!B$15,CalculationsAndCharts!$A68+$A$11,0,1,1) -> 2018-10-01 | C68: =OFFSET(InputPriceData!G$15,CalculationsAndCharts!$A68+$A$11,IF($C$7,8,0),1,1) -> 341200 | D68: =OFFSET(InputPriceData!C$15,CalculationsAndCharts!$A68+$A$11,IF($C$7,8,0),1,1) -> 128.82 | E68: =OFFSET(InputPriceData!D$15,CalculationsAndCharts!$A68+$A$11,IF($C$7,8,0),1,1) -> 129.41 | F68: =OFFSET(InputPriceData!E$15,CalculationsAndCharts!$A68+$A$11,IF($C$7,8,0),1,1) -> 127.07 | G68: =OFFSET(InputPriceData!F$15,CalculationsAndCharts!$A68+$A$11,IF($C$7,8,0),1,1) -> 127.28 | H68: -15 | I68: -15 | J68: 36 | K68: 2018-01-26 | L68: 567300 | M68: 123.46 | N68: 125.76 | O68: 122.48 | P68: 125.76 | Q68: 2 | S68: 124.6666667 | T68: 113.34 | U68: 113.11 | V68: 76.021 | W68: 116.0683016 | X68: 3.28 | Y68: 7.249846154 | Z68: 116.33 | AA68: 123.036223 | AB68: 110.2943993 | AC68: 116.0683016 | AD68: 5.485150408 | AE68: 129.2326626 | AF68: 102.9039406 | AG68: 116.0683016 | BB68: 127.92 | BC68: 116.9708 | BD68: 109.4356 | BE68: 109.8823 | BF68: 127.1288254 | BG68: 2.34 | BH68: 5.480615385 | BI68: 127.01 | BJ68: 132.4789893 | BK68: 122.0879096 | BL68: 127.1288254 | BM68: 5.45082863 | BN68: 140.2108141 | BO68: 114.0468367 | BP68: 127.1288254
A69: 37 | B69: =OFFSET(InputPriceData!B$15,CalculationsAndCharts!$A69+$A$11,0,1,1) -> 2018-09-28 | C69: =OFFSET(InputPriceData!G$15,CalculationsAndCharts!$A69+$A$11,IF($C$7,8,0),1,1) -> 277600 | D69: =OFFSET(InputPriceData!C$15,CalculationsAndCharts!$A69+$A$11,IF($C$7,8,0),1,1) -> 129.63 | E69: =OFFSET(InputPriceData!D$15,CalculationsAndCharts!$A69+$A$11,IF($C$7,8,0),1,1) -> 130.44 | F69: =OFFSET(InputPriceData!E$15,CalculationsAndCharts!$A69+$A$11,IF($C$7,8,0),1,1) -> 128.67 | G69: =OFFSET(InputPriceData!F$15,CalculationsAndCharts!$A69+$A$11,IF($C$7,8,0),1,1) -> 128.81 | H69: -16 | I69: -16 | J69: 37 | K69: 2018-01-24 | L69: 4084400 | M69: 121.16 | N69: 123.46 | O69: 120.26 | P69: 123.46 | Q69: 11 | S69: 122.3933333 | T69: 113.294 | U69: 112.834 | V69: 75.3922 | W69: 115.1640952 | X69: 3.2 | Y69: 7.331076923 | Z69: 115.3333333 | AA69: 122.1818473 | AB69: 109.1696707 | AC69: 115.1640952 | AD69: 5.063918937 | AE69: 127.3175007 | AF69: 103.0106898 | AG69: 115.1640952 | BB69: 129.3066667 | BC69: 116.6078 | BD69: 109.1523 | BE69: 109.77995 | BF69: 126.7398571 | BG69: 1.77 | BH69: 5.421538462 | BI69: 126.6826667 | BJ69: 132.0146669 | BK69: 121.8838665 | BL69: 126.7398571 | BM69: 5.873755272 | BN69: 140.8368698 | BO69: 112.6428445 | BP69: 126.7398571
A70: 38 | B70: =OFFSET(InputPriceData!B$15,CalculationsAndCharts!$A70+$A$11,0,1,1) -> 2018-09-27 | C70: =OFFSET(InputPriceData!G$15,CalculationsAndCharts!$A70+$A$11,IF($C$7,8,0),1,1) -> 220100 | D70: =OFFSET(InputPriceData!C$15,CalculationsAndCharts!$A70+$A$11,IF($C$7,8,0),1,1) -> 129.33 | E70: =OFFSET(InputPriceData!D$15,CalculationsAndCharts!$A70+$A$11,IF($C$7,8,0),1,1) -> 130.04 | F70: =OFFSET(InputPriceData!E$15,CalculationsAndCharts!$A70+$A$11,IF($C$7,8,0),1,1) -> 128.9 | G70: =OFFSET(InputPriceData!F$15,CalculationsAndCharts!$A70+$A$11,IF($C$7,8,0),1,1) -> 129.44 | H70: -17 | I70: -17 | J70: 38 | K70: 2018-01-08 | L70: 709100 | M70: 118.86 | N70: 121.16 | O70: 119.64 | P70: 121.16 | Q70: 2 | S70: 120.6533333 | T70: 113.34 | U70: 112.558 | V70: 74.7749 | W70: 114.4141905 | X70: 2.3 | Y70: 7.277538462 | Z70: 114.49 | AA70: 121.3669014 | AB70: 108.3007887 | AC70: 114.4141905 | AD70: 4.839573845 | AE70: 126.0291677 | AF70: 102.7992132 | AG70: 114.4141905 | BB70: 129.46 | BC70: 116.204 | BD70: 108.8462 | BE70: 109.6666 | BF70: 126.1413333 | BG70: 1.14 | BH70: 5.382153846 | BI70: 126.1330476 | BJ70: 131.3776974 | BK70: 121.4128628 | BL70: 126.1413333 | BM70: 6.228641024 | BN70: 141.0900718 | BO70: 111.1925949 | BP70: 126.1413333
A71: 39 | B71: =OFFSET(InputPriceData!B$15,CalculationsAndCharts!$A71+$A$11,0,1,1) -> 2018-09-26 | C71: =OFFSET(InputPriceData!G$15,CalculationsAndCharts!$A71+$A$11,IF($C$7,8,0),1,1) -> 274600 | D71: =OFFSET(InputPriceData!C$15,CalculationsAndCharts!$A71+$A$11,IF($C$7,8,0),1,1) -> 129.41 | E71: =OFFSET(InputPriceData!D$15,CalculationsAndCharts!$A71+$A$11,IF($C$7,8,0),1,1) -> 130.19 | F71: =OFFSET(InputPriceData!E$15,CalculationsAndCharts!$A71+$A$11,IF($C$7,8,0),1,1) -> 127.98 | G71: =OFFSET(InputPriceData!F$15,CalculationsAndCharts!$A71+$A$11,IF($C$7,8,0),1,1) -> 129.34 | H71: -18 | I71: -18 | J71: 39 | K71: 2018-01-04 | L71: 0 | M71: 116.56 | N71: 118.86 | O71: 116.56 | P71: 118.86 | Q71: 1 | S71: 118.0933333 | T71: 113.524 | U71: 112.282 | V71: 74.1691 | W71: 113.7649524 | X71: 2.3 | Y71: 7.277538462 | Z71: 113.8 | AA71: 120.7677257 | AB71: 107.5290469 | AC71: 113.7649524 | AD71: 4.839573845 | AE71: 125.3799296 | AF71: 102.1499752 | AG71: 113.7649524 | BB71: 129.17 | BC71: 115.7774 | BD71: 108.5564 | BE71: 109.61975 | BF71: 125.4539365 | BG71: 2.21 | BH71: 5.459076923 | BI71: 125.4491905 | BJ71: 130.7440473 | BK71: 120.6838193 | BL71: 125.4539365 | BM71: 6.353077581 | BN71: 140.7013227 | BO71: 110.2065503 | BP71: 125.4539365
A72: 40 | B72: =OFFSET(InputPriceData!B$15,CalculationsAndCharts!$A72+$A$11,0,1,1) -> 2018-09-25 | C72: =OFFSET(InputPriceData!G$15,CalculationsAndCharts!$A72+$A$11,IF($C$7,8,0),1,1) -> 637000 | D72: =OFFSET(InputPriceData!C$15,CalculationsAndCharts!$A72+$A$11,IF($C$7,8,0),1,1) -> 128.97 | E72: =OFFSET(InputPriceData!D$15,CalculationsAndCharts!$A72+$A$11,IF($C$7,8,0),1,1) -> 129.9 | F72: =OFFSET(InputPriceData!E$15,CalculationsAndCharts!$A72+$A$11,IF($C$7,8,0),1,1) -> 128.4 | G72: =OFFSET(InputPriceData!F$15,CalculationsAndCharts!$A72+$A$11,IF($C$7,8,0),1,1) -> 128.95 | H72: -19 | I72: -19 | J72: 40 | K72: 2018-01-03 | L72: 0 | M72: 114.26 | N72: 116.56 | O72: 114.26 | P72: 116.56 | Q72: 0 | S72: 115.7933333 | T72: 113.708 | U72: 112.006 | V72: 73.5748 | W72: 113.2892857 | X72: 2.3 | Y72: 7.277538462 | Z72: 113.252381 | AA72: 120.323405 | AB72: 106.8884593 | AC72: 113.2892857 | AD72: 5.269962049 | AE72: 125.9371946 | AF72: 100.6413768 | AG72: 113.2892857 | BB72: 129.0833333 | BC72: 115.4012 | BD72: 108.2535 | BE72: 109.59105 | BF72: 124.7224286 | BG72: 1.84 | BH72: 5.420923077 | BI72: 124.7021905 | BJ72: 129.9445401 | BK72: 119.9840758 | BL72: 124.7224286 | BM72: 6.373222321 | BN72: 140.0181621 | BO72: 109.426695 | BP72: 124.7224286
A73: 41 | B73: =OFFSET(InputPriceData!B$15,CalculationsAndCharts!$A73+$A$11,0,1,1) -> 2018-09-24 | C73: =OFFSET(InputPriceData!G$15,CalculationsAndCharts!$A73+$A$11,IF($C$7,8,0),1,1) -> 399600 | D73: =OFFSET(InputPriceData!C$15,CalculationsAndCharts!$A73+$A$11,IF($C$7,8,0),1,1) -> 128.21 | E73: =OFFSET(InputPriceData!D$15,CalculationsAndCharts!$A73+$A$11,IF($C$7,8,0),1,1) -> 128.78 | F73: =OFFSET(InputPriceData!E$15,CalculationsAndCharts!$A73+$A$11,IF($C$7,8,0),1,1) -> 127.31 | G73: =OFFSET(InputPriceData!F$15,CalculationsAndCharts!$A73+$A$11,IF($C$7,8,0),1,1) -> 128.06 | H73: -20 | I73: -20 | J73: 41 | K73: 2018-01-03 | L73: 0 | M73: 111.96 | N73: 114.26 | O73: 111.96 | P73: 114.26 | Q73: 0 | S73: 113.4933333 | T73: 113.892 | U73: 111.73 | V73: 72.992 | W73: 112.9886825 | X73: 2.3 | Y73: 7.419076923 | Z73: 112.88 | AA73: 120.2094714 | AB73: 106.2834757 | AC73: 112.9886825 | AD73: 5.349663541 | AE73: 125.827875 | AF73: 100.14949 | AG73: 112.9886825 | BB73: 128.05 | BC73: 115.0048 | BD73: 107.9471 | BE73: 109.55865 | BF73: 123.9286032 | BG73: 1.47 | BH73: 5.363076923 | BI73: 123.9204286 | BJ73: 129.1101427 | BK73: 119.2496859 | BL73: 123.9286032 | BM73: 6.33984643 | BN73: 139.1442346 | BO73: 108.7129717 | BP73: 123.9286032
A74: 42 | B74: =OFFSET(InputPriceData!B$15,CalculationsAndCharts!$A74+$A$11,0,1,1) -> 2018-09-21 | C74: =OFFSET(InputPriceData!G$15,CalculationsAndCharts!$A74+$A$11,IF($C$7,8,0),1,1) -> 700100 | D74: =OFFSET(InputPriceData!C$15,CalculationsAndCharts!$A74+$A$11,IF($C$7,8,0),1,1) -> 128.06 | E74: =OFFSET(InputPriceData!D$15,CalculationsAndCharts!$A74+$A$11,IF($C$7,8,0),1,1) -> 128.9 | F74: =OFFSET(InputPriceData!E$15,CalculationsAndCharts!$A74+$A$11,IF($C$7,8,0),1,1) -> 127.31 | G74: =OFFSET(InputPriceData!F$15,CalculationsAndCharts!$A74+$A$11,IF($C$7,8,0),1,1) -> 128.58 | H74: -21 | I74: -21 | J74: 42 | K74: 2018-01-03 | L74: 2436400 | M74: 109.66 | N74: 111.96 | O74: 110.42 | P74: 111.96 | Q74: 6 | S74: 111.4466667 | T74: 114.076 | U74: 111.454 | V74: 72.4207 | W74: 112.8657143 | X74: 2.3 | Y74: 7.419076923 | Z74: 112.6828571 | AA74: 120.1498345 | AB74: 105.9625775 | AC74: 112.8657143 | AD74: 5.581944106 | AE74: 126.2623801 | AF74: 99.46904843 | AG74: 112.8657143 | BB74: 128.2633333 | BC74: 114.6162 | BD74: 107.6516 | BE74: 109.53515 | BF74: 123.172746 | BG74: 1.59 | BH74: 5.382769231 | BI74: 123.1619048 | BJ74: 128.3178552 | BK74: 118.5215493 | BL74: 123.172746 | BM74: 6.218291948 | BN74: 138.0966467 | BO74: 108.2488454 | BP74: 123.172746
A75: 43 | B75: =OFFSET(InputPriceData!B$15,CalculationsAndCharts!$A75+$A$11,0,1,1) -> 2018-09-20 | C75: =OFFSET(InputPriceData!G$15,CalculationsAndCharts!$A75+$A$11,IF($C$7,8,0),1,1) -> 413100 | D75: =OFFSET(InputPriceData!C$15,CalculationsAndCharts!$A75+$A$11,IF($C$7,8,0),1,1) -> 127.35 | E75: =OFFSET(InputPriceData!D$15,CalculationsAndCharts!$A75+$A$11,IF($C$7,8,0),1,1) -> 129.06 | F75: =OFFSET(InputPriceData!E$15,CalculationsAndCharts!$A75+$A$11,IF($C$7,8,0),1,1) -> 127.16 | G75: =OFFSET(InputPriceData!F$15,CalculationsAndCharts!$A75+$A$11,IF($C$7,8,0),1,1) -> 127.98 | H75: -22 | I75: -22 | J75: 43 | K75: 2017-12-22 | L75: 3858200 | M75: 105.06 | N75: 109.66 | O75: 108.6 | P75: 109.66 | Q75: 6 | S75: 109.3066667 | T75: 114.26 | U75: 111.178 | V75: 71.8609 | W75: 112.8892063 | X75: 4.6 | Y75: 7.440615385 | Z75: 112.65 | AA75: 120.2934919 | AB75: 105.7708573 | AC75: 112.8892063 | AD75: 6.140396974 | AE75: 127.6261591 | AF75: 98.15225361 | AG75: 112.8892063 | BB75: 128.0666667 | BC75: 114.2124 | BD75: 107.3443 | BE75: 109.5034 | BF75: 122.3396508 | BG75: 2.18 | BH75: 5.356307692 | BI75: 122.2952857 | BJ75: 127.4136728 | BK75: 117.6887373 | BL75: 122.3396508 | BM75: 5.95125993 | BN75: 136.6226746 | BO75: 108.056627 | BP75: 122.3396508
A76: 44 | B76: =OFFSET(InputPriceData!B$15,CalculationsAndCharts!$A76+$A$11,0,1,1) -> 2018-09-19 | C76: =OFFSET(InputPriceData!G$15,CalculationsAndCharts!$A76+$A$11,IF($C$7,8,0),1,1) -> 441700 | D76: =OFFSET(InputPriceData!C$15,CalculationsAndCharts!$A76+$A$11,IF($C$7,8,0),1,1) -> 127.38 | E76: =OFFSET(InputPriceData!D$15,CalculationsAndCharts!$A76+$A$11,IF($C$7,8,0),1,1) -> 127.95 | F76: =OFFSET(InputPriceData!E$15,CalculationsAndCharts!$A76+$A$11,IF($C$7,8,0),1,1) -> 126.67 | G76: =OFFSET(InputPriceData!F$15,CalculationsAndCharts!$A76+$A$11,IF($C$7,8,0),1,1) -> 126.88 | H76: -23 | I76: -23 | J76: 44 | K76: 2017-12-14 | L76: 1099900 | M76: 107.36 | N76: 107.36 | O76: 105.06 | P76: 105.06 | Q76: 1 | S76: 105.8266667 | T76: 114.398 | U76: 110.879 | V76: 71.3126 | W76: 113.0896667 | X76: 2.3 | Y76: 7.352615385 | Z76: 112.8033333 | AA76: 120.6978653 | AB76: 105.6982546 | AC76: 113.0896667 | AD76: 6.427666762 | AE76: 128.5160669 | AF76: 97.66326644 | AG76: 113.0896667 | BB76: 127.1666667 | BC76: 113.7986 | BD76: 107.0257 | BE76: 109.46595 | BF76: 121.4703333 | BG76: 1.28 | BH76: 5.374153846 | BI76: 121.433 | BJ76: 126.5764397 | BK76: 116.8039043 | BL76: 121.4703333 | BM76: 5.642116979 | BN76: 135.0114141 | BO76: 107.9292526 | BP76: 121.4703333
A77: 45 | B77: =OFFSET(InputPriceData!B$15,CalculationsAndCharts!$A77+$A$11,0,1,1) -> 2018-09-18 | C77: =OFFSET(InputPriceData!G$15,CalculationsAndCharts!$A77+$A$11,IF($C$7,8,0),1,1) -> 587500 | D77: =OFFSET(InputPriceData!C$15,CalculationsAndCharts!$A77+$A$11,IF($C$7,8,0),1,1) -> 127.36 | E77: =OFFSET(InputPriceData!D$15,CalculationsAndCharts!$A77+$A$11,IF($C$7,8,0),1,1) -> 128.53 | F77: =OFFSET(InputPriceData!E$15,CalculationsAndCharts!$A77+$A$11,IF($C$7,8,0),1,1) -> 126.4 | G77: =OFFSET(InputPriceData!F$15,CalculationsAndCharts!$A77+$A$11,IF($C$7,8,0),1,1) -> 127.47 | H77: -24 | I77: -24 | J77: 45 | K77: 2017-12-13 | L77: 0 | M77: 109.66 | N77: 109.66 | O77: 107.36 | P77: 107.36 | Q77: 1 | S77: 108.1266667 | T77: 114.72 | U77: 110.649 | V77: 70.7873 | W77: 113.6204762 | X77: 2.3 | Y77: 7.352615385 | Z77: 113.3947619 | AA77: 121.1606717 | AB77: 106.4054431 | AC77: 113.6204762 | AD77: 6.427666762 | AE77: 129.0468764 | AF77: 98.19407596 | AG77: 113.6204762 | BB77: =SUM(E77:G77)/3 -> 127.4666667 | BC77: 113.405 | BD77: 106.7153 | BE77: 109.4283 | BF77: 120.6337143 | BG77: =IF(A77<$A$8,MAX(E77,G78)-MIN(F77,G78),IF(A77=$A$8,E77-F77,NA())) -> 3.54 | BH77: 5.403076923 | BI77: 120.6267619 | BJ77: =BI77+BI77*BH77/G77 -> 125.7397742 | BK77: 116.0250509 | BL77: 120.6337143 | BM77: 5.354209069 | BN77: 133.4838161 | BO77: 107.7836125 | BP77: 120.6337143
A78: 46 | B78: =OFFSET(InputPriceData!B$15,CalculationsAndCharts!$A78+$A$11,0,1,1) -> 2018-09-17 | C78: =OFFSET(InputPriceData!G$15,CalculationsAndCharts!$A78+$A$11,IF($C$7,8,0),1,1) -> 440500 | D78: =OFFSET(InputPriceData!C$15,CalculationsAndCharts!$A78+$A$11,IF($C$7,8,0),1,1) -> 126.14 | E78: =OFFSET(InputPriceData!D$15,CalculationsAndCharts!$A78+$A$11,IF($C$7,8,0),1,1) -> 126.14 | F78: =OFFSET(InputPriceData!E$15,CalculationsAndCharts!$A78+$A$11,IF($C$7,8,0),1,1) -> 124.34 | G78: =OFFSET(InputPriceData!F$15,CalculationsAndCharts!$A78+$A$11,IF($C$7,8,0),1,1) -> 124.99 | H78: -25 | I78: -25 | J78: 46 | K78: 2017-12-12 | L78: 0 | M78: 111.96 | N78: 111.96 | O78: 109.66 | P78: 109.66 | Q78: 0 | S78: 110.4266667 | T78: 114.95 | U78: 110.419 | V78: 70.2505 | W78: 113.9322381 | X78: 2.3 | Y78: 7.352615385 | Z78: 113.7671429 | AA78: 121.3951389 | AB78: 106.9019464 | AC78: 113.9322381 | AD78: 6.427666762 | AE78: 129.3586383 | AF78: 98.50583787 | AG78: 113.9322381 | BB78: 125.1566667 | BC78: 113.0056 | BD78: 106.4049 | BE78: 109.38885 | BF78: 119.7087143 | BG78: 1.8 | BH78: 5.297230769 | BI78: 119.7025238 | BJ78: 124.7756648 | BK78: 115.1366969 | BL78: 119.7087143 | BM78: 4.991626463 | BN78: 131.6886178 | BO78: 107.7288108 | BP78: 119.7087143
A79: 47 | B79: =OFFSET(InputPriceData!B$15,CalculationsAndCharts!$A79+$A$11,0,1,1) -> 2018-09-14 | C79: =OFFSET(InputPriceData!G$15,CalculationsAndCharts!$A79+$A$11,IF($C$7,8,0),1,1) -> 494500 | D79: =OFFSET(InputPriceData!C$15,CalculationsAndCharts!$A79+$A$11,IF($C$7,8,0),1,1) -> 127.7 | E79: =OFFSET(InputPriceData!D$15,CalculationsAndCharts!$A79+$A$11,IF($C$7,8,0),1,1) -> 128.7 | F79: =OFFSET(InputPriceData!E$15,CalculationsAndCharts!$A79+$A$11,IF($C$7,8,0),1,1) -> 125.2 | G79: =OFFSET(InputPriceData!F$15,CalculationsAndCharts!$A79+$A$11,IF($C$7,8,0),1,1) -> 125.82 | H79: -26 | I79: -26 | J79: 47 | K79: 2017-12-12 | L79: 0 | M79: 114.26 | N79: 114.26 | O79: 111.96 | P79: 111.96 | Q79: 0 | S79: 112.7266667 | T79: 115.088 | U79: 110.212 | V79: 69.7022 | W79: 114.0310794 | X79: 2.3 | Y79: 7.352615385 | Z79: 113.9204762 | AA79: 121.4018396 | AB79: 107.1872491 | AC79: 114.0310794 | AD79: 6.427666762 | AE79: 129.4574796 | AF79: 98.60467914 | AG79: 114.0310794 | BB79: 126.5733333 | BC79: 112.633 | BD79: 106.1255 | BE79: 109.36955 | BF79: 118.9504921 | BG79: 3.5 | BH79: 5.284307692 | BI79: 118.9639524 | BJ79: 123.9603133 | BK79: 114.4672276 | BL79: 118.9504921 | BM79: 4.753768505 | BN79: 130.3595365 | BO79: 107.5414477 | BP79: 118.9504921
A80: 48 | B80: =OFFSET(InputPriceData!B$15,CalculationsAndCharts!$A80+$A$11,0,1,1) -> 2018-09-13 | C80: =OFFSET(InputPriceData!G$15,CalculationsAndCharts!$A80+$A$11,IF($C$7,8,0),1,1) -> 370300 | D80: =OFFSET(InputPriceData!C$15,CalculationsAndCharts!$A80+$A$11,IF($C$7,8,0),1,1) -> 127.95 | E80: =OFFSET(InputPriceData!D$15,CalculationsAndCharts!$A80+$A$11,IF($C$7,8,0),1,1) -> 128.55 | F80: =OFFSET(InputPriceData!E$15,CalculationsAndCharts!$A80+$A$11,IF($C$7,8,0),1,1) -> 126.28 | G80: =OFFSET(InputPriceData!F$15,CalculationsAndCharts!$A80+$A$11,IF($C$7,8,0),1,1) -> 127.49 | H80: -27 | I80: -27 | J80: 48 | K80: 2017-12-12 | L80: 0 | M80: 116.56 | N80: 116.56 | O80: 114.26 | P80: 114.26 | Q80: 0 | S80: 115.0266667 | T80: 115.134 | U80: 109.959 | V80: 69.1424 | W80: 113.9146508 | X80: 2.3 | Y80: 7.352615385 | Z80: 113.8657143 | AA80: 121.1929574 | AB80: 107.2711954 | AC80: 113.9146508 | AD80: 6.459479468 | AE80: 129.4174015 | AF80: 98.41190007 | AG80: 113.9146508 | BB80: 127.44 | BC80: 112.2106 | BD80: 105.8296 | BE80: 109.3302 | BF80: 117.9948254 | BG80: 2.27 | BH80: 5.134769231 | BI80: 118.086619 | BJ80: 122.842659 | BK80: 113.8061831 | BL80: 117.9948254 | BM80: 4.393424177 | BN80: 128.5390434 | BO80: 107.4506074 | BP80: 117.9948254
A81: 49 | B81: =OFFSET(InputPriceData!B$15,CalculationsAndCharts!$A81+$A$11,0,1,1) -> 2018-09-12 | C81: =OFFSET(InputPriceData!G$15,CalculationsAndCharts!$A81+$A$11,IF($C$7,8,0),1,1) -> 660200 | D81: =OFFSET(InputPriceData!C$15,CalculationsAndCharts!$A81+$A$11,IF($C$7,8,0),1,1) -> 125.97 | E81: =OFFSET(InputPriceData!D$15,CalculationsAndCharts!$A81+$A$11,IF($C$7,8,0),1,1) -> 128.53 | F81: =OFFSET(InputPriceData!E$15,CalculationsAndCharts!$A81+$A$11,IF($C$7,8,0),1,1) -> 125.11 | G81: =OFFSET(InputPriceData!F$15,CalculationsAndCharts!$A81+$A$11,IF($C$7,8,0),1,1) -> 127.95 | H81: -28 | I81: -28 | J81: 49 | K81: 2017-12-12 | L81: 0 | M81: 118.86 | N81: 118.86 | O81: 116.56 | P81: 116.56 | Q81: 0 | S81: 117.3266667 | T81: 115.042 | U81: 109.66 | V81: 68.5711 | W81: 113.562381 | X81: 2.3 | Y81: 7.562461538 | Z81: 113.5809524 | AA81: 120.9501321 | AB81: 106.9486907 | AC81: 113.562381 | AD81: 6.427666762 | AE81: 128.9887812 | AF81: 98.13598072 | AG81: 113.562381 | BB81: 127.1966667 | BC81: 111.7076 | BD81: 105.529 | BE81: 109.27645 | BF81: 116.8858571 | BG81: 4.04 | BH81: 5.090461538 | BI81: 116.978381 | BJ81: 121.6323391 | BK81: 112.7898186 | BL81: 116.8858571 | BM81: 3.700996183 | BN81: 125.768248 | BO81: 108.0034663 | BP81: 116.8858571
A82: 50 | B82: =OFFSET(InputPriceData!B$15,CalculationsAndCharts!$A82+$A$11,0,1,1) -> 2018-09-11 | C82: =OFFSET(InputPriceData!G$15,CalculationsAndCharts!$A82+$A$11,IF($C$7,8,0),1,1) -> 2042100 | D82: =OFFSET(InputPriceData!C$15,CalculationsAndCharts!$A82+$A$11,IF($C$7,8,0),1,1) -> 119.72 | E82: =OFFSET(InputPriceData!D$15,CalculationsAndCharts!$A82+$A$11,IF($C$7,8,0),1,1) -> 130.2 | F82: =OFFSET(InputPriceData!E$15,CalculationsAndCharts!$A82+$A$11,IF($C$7,8,0),1,1) -> 119.24 | G82: =OFFSET(InputPriceData!F$15,CalculationsAndCharts!$A82+$A$11,IF($C$7,8,0),1,1) -> 124.49 | H82: -29 | I82: -29 | J82: 50 | K82: 2017-12-12 | L82: 1192700 | M82: 123.46 | N82: 123.96 | O82: 118.86 | P82: 118.86 | Q82: 2 | S82: 120.56 | T82: 114.996 | U82: 109.292 | V82: 67.9883 | W82: 112.947254 | X82: 5.1 | Y82: 7.567384615 | Z82: 113.0333333 | AA82: 120.2297552 | AB82: 106.5565536 | AC82: 112.947254 | AD82: 6.361485676 | AE82: 128.2148196 | AF82: 97.67968835 | AG82: 112.947254 | BB82: 124.6433333 | BC82: 111.2092 | BD82: 105.2495 | BE82: 109.2272 | BF82: 115.7283333 | BG82: 13.68 | BH82: 5.011076923 | BI82: 115.7534286 | BJ82: 120.4128336 | BK82: 111.559964 | BL82: 115.7283333 | BM82: 2.512259143 | BN82: 121.7577553 | BO82: 109.6989114 | BP82: 115.7283333
A83: 51 | B83: =OFFSET(InputPriceData!B$15,CalculationsAndCharts!$A83+$A$11,0,1,1) -> 2018-09-10 | C83: =OFFSET(InputPriceData!G$15,CalculationsAndCharts!$A83+$A$11,IF($C$7,8,0),1,1) -> 492400 | D83: =OFFSET(InputPriceData!C$15,CalculationsAndCharts!$A83+$A$11,IF($C$7,8,0),1,1) -> 115.08 | E83: =OFFSET(InputPriceData!D$15,CalculationsAndCharts!$A83+$A$11,IF($C$7,8,0),1,1) -> 117.05 | F83: =OFFSET(InputPriceData!E$15,CalculationsAndCharts!$A83+$A$11,IF($C$7,8,0),1,1) -> 114.94 | G83: =OFFSET(InputPriceData!F$15,CalculationsAndCharts!$A83+$A$11,IF($C$7,8,0),1,1) -> 116.52 | H83: -30 | I83: -30 | J83: 51 | K83: 2017-12-08 | L83: 1248100 | M83: 121.16 | N83: 123.46 | O83: 121.91 | P83: 123.46 | Q83: 3 | S83: 122.9433333 | T83: 114.858 | U83: 108.947 | V83: 67.394 | W83: 111.978746 | X83: 2.3 | Y83: 7.395076923 | Z83: 112.2228571 | AA83: 118.9448453 | AB83: 106.1730678 | AC83: 111.978746 | AD83: 6.089573056 | AE83: 126.5937214 | AF83: 97.3637707 | AG83: 111.978746 | BB83: 116.17 | BC83: 110.8106 | BD83: 105.0115 | BE83: 109.19545 | BF83: 114.7475714 | BG83: 2.32 | BH83: 4.336615385 | BI83: 114.7925714 | BJ83: 119.0648958 | BK83: 110.9474795 | BL83: 114.7475714 | BM83: 1.536394806 | BN83: 118.434919 | BO83: 111.0602239 | BP83: 114.7475714
A84: 52 | B84: =OFFSET(InputPriceData!B$15,CalculationsAndCharts!$A84+$A$11,0,1,1) -> 2018-09-07 | C84: =OFFSET(InputPriceData!G$15,CalculationsAndCharts!$A84+$A$11,IF($C$7,8,0),1,1) -> 435200 | D84: =OFFSET(InputPriceData!C$15,CalculationsAndCharts!$A84+$A$11,IF($C$7,8,0),1,1) -> 115.19 | E84: =OFFSET(InputPriceData!D$15,CalculationsAndCharts!$A84+$A$11,IF($C$7,8,0),1,1) -> 116.51 | F84: =OFFSET(InputPriceData!E$15,CalculationsAndCharts!$A84+$A$11,IF($C$7,8,0),1,1) -> 114.42 | G84: =OFFSET(InputPriceData!F$15,CalculationsAndCharts!$A84+$A$11,IF($C$7,8,0),1,1) -> 114.73 | H84: -31 | I84: -31 | J84: 52 | K84: 2017-12-05 | L84: 1454300 | M84: 118.86 | N84: 121.16 | O84: 119.8 | P84: 121.16 | Q84: 4 | S84: 120.7066667 | T84: 114.582 | U84: 108.533 | V84: 66.7767 | W84: 110.7354286 | X84: 2.3 | Y84: 7.395076923 | Z84: 110.9195238 | AA84: 117.6895668 | AB84: 104.8264851 | AC84: 110.7354286 | AD84: 5.318672297 | AE84: 123.5002421 | AF84: 97.97061506 | AG84: 110.7354286 | BB84: 115.22 | BC84: 110.5932 | BD84: 104.8571 | BE84: 109.20065 | BF84: 114.55 | BG84: 2.09 | BH84: 4.310769231 | BI84: 114.5625238 | BJ84: 118.8670004 | BK84: 110.6884949 | BL84: 114.55 | BM84: 1.665615427 | BN84: 118.547477 | BO84: 110.552523 | BP84: 114.55
A85: 53 | B85: =OFFSET(InputPriceData!B$15,CalculationsAndCharts!$A85+$A$11,0,1,1) -> 2018-09-06 | C85: =OFFSET(InputPriceData!G$15,CalculationsAndCharts!$A85+$A$11,IF($C$7,8,0),1,1) -> 341300 | D85: =OFFSET(InputPriceData!C$15,CalculationsAndCharts!$A85+$A$11,IF($C$7,8,0),1,1) -> 115.02 | E85: =OFFSET(InputPriceData!D$15,CalculationsAndCharts!$A85+$A$11,IF($C$7,8,0),1,1) -> 116.73 | F85: =OFFSET(InputPriceData!E$15,CalculationsAndCharts!$A85+$A$11,IF($C$7,8,0),1,1) -> 114.33 | G85: =OFFSET(InputPriceData!F$15,CalculationsAndCharts!$A85+$A$11,IF($C$7,8,0),1,1) -> 115.47 | H85: -32 | I85: -32 | J85: 53 | K85: 2017-11-29 | L85: 2249400 | M85: 116.56 | N85: 118.86 | O85: 116.45 | P85: 118.86 | Q85: 7 | S85: 118.0566667 | T85: 114.26 | U85: 108.119 | V85: 66.1709 | W85: 109.6814444 | X85: 2.41 | Y85: 7.395076923 | Z85: 109.8133333 | AA85: 116.6455565 | AB85: 103.6643325 | AC85: 109.6814444 | AD85: 4.904719666 | AE85: 121.4527716 | AF85: 97.91011725 | AG85: 109.6814444 | BB85: 115.51 | BC85: 110.4184 | BD85: 104.7207 | BE85: 109.2174 | BF85: 114.4297619 | BG85: 2.4 | BH85: 4.286153846 | BI85: 114.4914762 | BJ85: 118.741308 | BK85: 110.6666275 | BL85: 114.4297619 | BM85: 1.702766572 | BN85: 118.5164017 | BO85: 110.3431221 | BP85: 114.4297619
A86: 54 | B86: =OFFSET(InputPriceData!B$15,CalculationsAndCharts!$A86+$A$11,0,1,1) -> 2018-09-05 | C86: =OFFSET(InputPriceData!G$15,CalculationsAndCharts!$A86+$A$11,IF($C$7,8,0),1,1) -> 291100 | D86: =OFFSET(InputPriceData!C$15,CalculationsAndCharts!$A86+$A$11,IF($C$7,8,0),1,1) -> 115.11 | E86: =OFFSET(InputPriceData!D$15,CalculationsAndCharts!$A86+$A$11,IF($C$7,8,0),1,1) -> 115.34 | F86: =OFFSET(InputPriceData!E$15,CalculationsAndCharts!$A86+$A$11,IF($C$7,8,0),1,1) -> 113.98 | G86: =OFFSET(InputPriceData!F$15,CalculationsAndCharts!$A86+$A$11,IF($C$7,8,0),1,1) -> 115.02 | H86: -33 | I86: -33 | J86: 54 | K86: 2017-11-17 | L86: 3983000 | M86: 114.26 | N86: 116.56 | O86: 113.83 | P86: 116.56 | Q86: 11 | S86: 115.65 | T86: 114.076 | U86: 107.705 | V86: 65.5766 | W86: 108.8533651 | X86: 2.73 | Y86: 7.529846154 | Z86: 108.8933333 | AA86: 115.9279082 | AB86: 102.5622159 | AC86: 108.8533651 | AD86: 4.459865469 | AE86: 119.5570422 | AF86: 98.14968795 | AG86: 108.8533651 | BB86: 114.78 | BC86: 110.2426 | BD86: 104.5769 | BE86: 109.2245 | BF86: 114.2676984 | BG86: 1.36 | BH86: 4.221538462 | BI86: 114.3368095 | BJ86: 118.5332731 | BK86: 110.5599923 | BL86: 114.2676984 | BM86: 1.688524208 | BN86: 118.3201565 | BO86: 110.2152403 | BP86: 114.2676984
A87: 55 | B87: =OFFSET(InputPriceData!B$15,CalculationsAndCharts!$A87+$A$11,0,1,1) -> 2018-09-04 | C87: =OFFSET(InputPriceData!G$15,CalculationsAndCharts!$A87+$A$11,IF($C$7,8,0),1,1) -> 261300 | D87: =OFFSET(InputPriceData!C$15,CalculationsAndCharts!$A87+$A$11,IF($C$7,8,0),1,1) -> 113.92 | E87: =OFFSET(InputPriceData!D$15,CalculationsAndCharts!$A87+$A$11,IF($C$7,8,0),1,1) -> 115.68 | F87: =OFFSET(InputPriceData!E$15,CalculationsAndCharts!$A87+$A$11,IF($C$7,8,0),1,1) -> 113.11 | G87: =OFFSET(InputPriceData!F$15,CalculationsAndCharts!$A87+$A$11,IF($C$7,8,0),1,1) -> 114.96 | H87: -34 | I87: -34 | J87: 55 | K87: 2017-11-02 | L87: 4609200 | M87: 111.96 | N87: 114.26 | O87: 113.07 | P87: 114.26 | Q87: 14 | S87: 113.8633333 | T87: 113.892 | U87: 107.291 | V87: 64.9938 | W87: 108.2493175 | X87: 2.3 | Y87: 7.644923077 | Z87: 108.1814286 | AA87: 115.4196458 | AB87: 101.6670331 | AC87: 108.2493175 | AD87: 4.295215361 | AE87: 118.5578343 | AF87: 97.94080059 | AG87: 108.2493175 | BB87: 114.5833333 | BC87: 110.0984 | BD87: 104.4347 | BE87: 109.2279 | BF87: 114.1617778 | BG87: 2.57 | BH87: 4.243692308 | BI87: 114.209619 | BJ87: 118.4256114 | BK87: 110.4152259 | BL87: 114.1617778 | BM87: 1.722635989 | BN87: 118.2961042 | BO87: 110.0274514 | BP87: 114.1617778
A88: 56 | B88: =OFFSET(InputPriceData!B$15,CalculationsAndCharts!$A88+$A$11,0,1,1) -> 2018-08-31 | C88: =OFFSET(InputPriceData!G$15,CalculationsAndCharts!$A88+$A$11,IF($C$7,8,0),1,1) -> 297100 | D88: =OFFSET(InputPriceData!C$15,CalculationsAndCharts!$A88+$A$11,IF($C$7,8,0),1,1) -> 112.27 | E88: =OFFSET(InputPriceData!D$15,CalculationsAndCharts!$A88+$A$11,IF($C$7,8,0),1,1) -> 114.17 | F88: =OFFSET(InputPriceData!E$15,CalculationsAndCharts!$A88+$A$11,IF($C$7,8,0),1,1) -> 112.15 | G88: =OFFSET(InputPriceData!F$15,CalculationsAndCharts!$A88+$A$11,IF($C$7,8,0),1,1) -> 113.91 | H88: -35 | I88: -35 | J88: 56 | K88: 2017-10-13 | L88: 1747100 | M88: 109.66 | N88: 111.96 | O88: 109.17 | P88: 111.96 | Q88: 5 | S88: 111.03 | T88: 113.708 | U88: 106.877 | V88: 64.4225 | W88: 107.829746 | X88: 2.79 | Y88: 7.644923077 | Z88: 107.6995238 | AA88: 115.0535304 | AB88: 101.0809179 | AC88: 107.829746 | AD88: 4.459865469 | AE88: 118.5334232 | AF88: 97.12606891 | AG88: 107.829746 | BB88: 113.41 | BC88: 109.9254 | BD88: 104.3474 | BE88: 109.22135 | BF88: 114.055873 | BG88: 2.02 | BH88: 4.177230769 | BI88: 114.0691905 | BJ88: 118.252259 | BK88: 110.3044288 | BL88: 114.055873 | BM88: 1.792273626 | BN88: 118.3573297 | BO88: 109.7544163 | BP88: 114.055873
A89: 57 | B89: =OFFSET(InputPriceData!B$15,CalculationsAndCharts!$A89+$A$11,0,1,1) -> 2018-08-30 | C89: =OFFSET(InputPriceData!G$15,CalculationsAndCharts!$A89+$A$11,IF($C$7,8,0),1,1) -> 256200 | D89: =OFFSET(InputPriceData!C$15,CalculationsAndCharts!$A89+$A$11,IF($C$7,8,0),1,1) -> 113.5 | E89: =OFFSET(InputPriceData!D$15,CalculationsAndCharts!$A89+$A$11,IF($C$7,8,0),1,1) -> 114.47 | F89: =OFFSET(InputPriceData!E$15,CalculationsAndCharts!$A89+$A$11,IF($C$7,8,0),1,1) -> 111.9 | G89: =OFFSET(InputPriceData!F$15,CalculationsAndCharts!$A89+$A$11,IF($C$7,8,0),1,1) -> 112.73 | H89: -36 | I89: -36 | J89: 57 | K89: 2017-10-06 | L89: 4741700 | M89: 107.36 | N89: 109.66 | O89: 108.67 | P89: 109.66 | Q89: 12 | S89: 109.33 | T89: 113.478 | U89: 106.463 | V89: 63.8627 | W89: 107.7245556 | X89: 2.3 | Y89: 7.625230769 | Z89: 107.4804762 | AA89: 114.9541533 | AB89: 100.7541668 | AC89: 107.7245556 | AD89: 5.142956348 | AE89: 120.0676508 | AF89: 95.38146032 | AG89: 107.7245556 | BB89: 113.0333333 | BC89: 109.77 | BD89: 104.2743 | BE89: 109.22605 | BF89: 114.048 | BG89: 2.57 | BH89: 4.150153846 | BI89: 114.0122381 | BJ89: 118.2095975 | BK89: 110.2346146 | BL89: 114.048 | BM89: 1.907062138 | BN89: 118.6249491 | BO89: 109.4710509 | BP89: 114.048
A90: 58 | B90: =OFFSET(InputPriceData!B$15,CalculationsAndCharts!$A90+$A$11,0,1,1) -> 2018-08-29 | C90: =OFFSET(InputPriceData!G$15,CalculationsAndCharts!$A90+$A$11,IF($C$7,8,0),1,1) -> 347800 | D90: =OFFSET(InputPriceData!C$15,CalculationsAndCharts!$A90+$A$11,IF($C$7,8,0),1,1) -> 114.21 | E90: =OFFSET(InputPriceData!D$15,CalculationsAndCharts!$A90+$A$11,IF($C$7,8,0),1,1) -> 114.35 | F90: =OFFSET(InputPriceData!E$15,CalculationsAndCharts!$A90+$A$11,IF($C$7,8,0),1,1) -> 113.39 | G90: =OFFSET(InputPriceData!F$15,CalculationsAndCharts!$A90+$A$11,IF($C$7,8,0),1,1) -> 113.85 | H90: -37 | I90: -37 | J90: 58 | K90: 2017-09-20 | L90: 11319000 | M90: 102.76 | N90: 107.36 | O90: 106.26 | P90: 107.36 | Q90: 23 | S90: 106.9933333 | T90: 113.34 | U90: 106.049 | V90: 63.3144 | W90: 107.823 | X90: 4.6 | Y90: 7.625230769 | Z90: 107.5242857 | AA90: 115.1611849 | AB90: 100.6510765 | AC90: 107.823 | AD90: 5.52 | AE90: 121.071 | AF90: 94.575 | AG90: 107.823 | BB90: 113.8633333 | BC90: 109.5798 | BD90: 104.214 | BE90: 109.2349 | BF90: 114.0597302 | BG90: 0.96 | BH90: 4.134769231 | BI90: 114.0554286 | BJ90: 118.1976585 | BK90: 110.3274216 | BL90: 114.0597302 | BM90: 2.024893269 | BN90: 118.919474 | BO90: 109.1999863 | BP90: 114.0597302
A91: 59 | B91: =OFFSET(InputPriceData!B$15,CalculationsAndCharts!$A91+$A$11,0,1,1) -> 2018-08-28 | C91: =OFFSET(InputPriceData!G$15,CalculationsAndCharts!$A91+$A$11,IF($C$7,8,0),1,1) -> 356800 | D91: =OFFSET(InputPriceData!C$15,CalculationsAndCharts!$A91+$A$11,IF($C$7,8,0),1,1) -> 113.77 | E91: =OFFSET(InputPriceData!D$15,CalculationsAndCharts!$A91+$A$11,IF($C$7,8,0),1,1) -> 114.85 | F91: =OFFSET(InputPriceData!E$15,CalculationsAndCharts!$A91+$A$11,IF($C$7,8,0),1,1) -> 113.39 | G91: =OFFSET(InputPriceData!F$15,CalculationsAndCharts!$A91+$A$11,IF($C$7,8,0),1,1) -> 114.08 | H91: -38 | I91: -38 | J91: 59 | K91: 2017-08-17 | L91: 3509800 | M91: 107.36 | N91: 104.51 | O91: 102.76 | P91: 102.76 | Q91: 10 | S91: 103.3433333 | T91: 113.34 | U91: 105.612 | V91: 62.7776 | W91: 108.1858889 | X91: 4.6 | Y91: 7.625230769 | Z91: 107.8309524 | AA91: 115.8324695 | AB91: 100.629587 | AC91: 108.1858889 | AD91: 5.652574635 | AE91: 121.752068 | AF91: 94.61970977 | AG91: 108.1858889 | BB91: 114.1066667 | BC91: 109.304 | BD91: 104.1415 | BE91: 109.23725 | BF91: 113.9656349 | BG91: 1.46 | BH91: 4.224615385 | BI91: 113.9643333 | BJ91: 118.1846653 | BK91: 110.1660345 | BL91: 113.9656349 | BM91: 2.304674109 | BN91: 119.4968528 | BO91: 108.4344171 | BP91: 113.9656349
A92: 60 | B92: =OFFSET(InputPriceData!B$15,CalculationsAndCharts!$A92+$A$11,0,1,1) -> 2018-08-27 | C92: =OFFSET(InputPriceData!G$15,CalculationsAndCharts!$A92+$A$11,IF($C$7,8,0),1,1) -> 361500 | D92: =OFFSET(InputPriceData!C$15,CalculationsAndCharts!$A92+$A$11,IF($C$7,8,0),1,1) -> 115.32 | E92: =OFFSET(InputPriceData!D$15,CalculationsAndCharts!$A92+$A$11,IF($C$7,8,0),1,1) -> 115.56 | F92: =OFFSET(InputPriceData!E$15,CalculationsAndCharts!$A92+$A$11,IF($C$7,8,0),1,1) -> 113.38 | G92: =OFFSET(InputPriceData!F$15,CalculationsAndCharts!$A92+$A$11,IF($C$7,8,0),1,1) -> 113.85 | H92: -39 | I92: -39 | J92: 60 | K92: 2017-08-03 | L92: 3427200 | M92: 105.06 | N92: 107.36 | O92: 104.95 | P92: 107.36 | Q92: 8 | S92: 106.5566667 | T92: 113.34 | U92: 105.244 | V92: 62.2638 | W92: 108.9455079 | X92: 2.41 | Y92: 7.625230769 | Z92: 108.6304762 | AA92: 116.3459424 | AB92: 101.6865566 | AC92: 108.9455079 | AD92: 5.407446255 | AE92: 121.9233789 | AF92: 95.96763692 | AG92: 108.9455079 | BB92: 114.2633333 | BC92: 109.0246 | BD92: 104.0644 | BE92: 109.23045 | BF92: 113.8251429 | BG92: 2.18 | BH92: 4.270769231 | BI92: 113.8277619 | BJ92: 118.0976969 | BK92: 109.9848204 | BL92: 113.8251429 | BM92: 2.42653539 | BN92: 119.6488278 | BO92: 108.0014579 | BP92: 113.8251429
A93: 61 | B93: =OFFSET(InputPriceData!B$15,CalculationsAndCharts!$A93+$A$11,0,1,1) -> 2018-08-24 | C93: =OFFSET(InputPriceData!G$15,CalculationsAndCharts!$A93+$A$11,IF($C$7,8,0),1,1) -> 290000 | D93: =OFFSET(InputPriceData!C$15,CalculationsAndCharts!$A93+$A$11,IF($C$7,8,0),1,1) -> 116.26 | E93: =OFFSET(InputPriceData!D$15,CalculationsAndCharts!$A93+$A$11,IF($C$7,8,0),1,1) -> 116.26 | F93: =OFFSET(InputPriceData!E$15,CalculationsAndCharts!$A93+$A$11,IF($C$7,8,0),1,1) -> 114.67 | G93: =OFFSET(InputPriceData!F$15,CalculationsAndCharts!$A93+$A$11,IF($C$7,8,0),1,1) -> 115.14 | H93: -40 | I93: -40 | J93: 61 | K93: 2017-07-24 | L93: 4847600 | M93: 100.46 | N93: 105.06 | O93: 104.27 | P93: 105.06 | Q93: 10 | S93: 104.7966667 | T93: 113.294 | U93: 104.876 | V93: 61.727 | W93: 109.4164286 | X93: 4.6 | Y93: 7.618461538 | Z93: 109.0028571 | AA93: 116.9072363 | AB93: 101.8889159 | AC93: 109.4164286 | AD93: 5.349663541 | AE93: 122.2556211 | AF93: 96.57723607 | AG93: 109.4164286 | BB93: 115.3566667 | BC93: 108.7542 | BD93: 103.9941 | BE93: 109.22545 | BF93: 113.6453333 | BG93: 1.61 | BH93: 4.296 | BI93: 113.6920476 | BJ93: 117.9340229 | BK93: 109.8742698 | BL93: 113.6453333 | BM93: 2.506767839 | BN93: 119.6615761 | BO93: 107.6290905 | BP93: 113.6453333
A94: 62 | B94: =OFFSET(InputPriceData!B$15,CalculationsAndCharts!$A94+$A$11,0,1,1) -> 2018-08-23 | C94: =OFFSET(InputPriceData!G$15,CalculationsAndCharts!$A94+$A$11,IF($C$7,8,0),1,1) -> 324500 | D94: =OFFSET(InputPriceData!C$15,CalculationsAndCharts!$A94+$A$11,IF($C$7,8,0),1,1) -> 117.06 | E94: =OFFSET(InputPriceData!D$15,CalculationsAndCharts!$A94+$A$11,IF($C$7,8,0),1,1) -> 117.32 | F94: =OFFSET(InputPriceData!E$15,CalculationsAndCharts!$A94+$A$11,IF($C$7,8,0),1,1) -> 115.33 | G94: =OFFSET(InputPriceData!F$15,CalculationsAndCharts!$A94+$A$11,IF($C$7,8,0),1,1) -> 116.28 | H94: -41 | I94: -41 | J94: 62 | K94: 2017-07-10 | L94: 1541500 | M94: 102.76 | N94: 102.89 | O94: 100.46 | P94: 100.46 | Q94: 2 | S94: 101.27 | T94: 113.34 | U94: 104.508 | V94: 61.2017 | W94: 110.0932857 | X94: 2.43 | Y94: 7.634461538 | Z94: 109.6271429 | AA94: 117.9582618 | AB94: 102.1291358 | AC94: 110.0932857 | AD94: 5.157080085 | AE94: 122.4702779 | AF94: 97.71629351 | AG94: 110.0932857 | BB94: 116.31 | BC94: 108.4238 | BD94: 103.9302 | BE94: 109.2122 | BF94: 113.3287302 | BG94: 1.99 | BH94: 4.299692308 | BI94: 113.4011429 | BJ94: 117.5943835 | BK94: 109.6272263 | BL94: 113.3287302 | BM94: 2.574945582 | BN94: 119.5085996 | BO94: 107.1488608 | BP94: 113.3287302
A95: 63 | B95: =OFFSET(InputPriceData!B$15,CalculationsAndCharts!$A95+$A$11,0,1,1) -> 2018-08-22 | C95: =OFFSET(InputPriceData!G$15,CalculationsAndCharts!$A95+$A$11,IF($C$7,8,0),1,1) -> 259900 | D95: =OFFSET(InputPriceData!C$15,CalculationsAndCharts!$A95+$A$11,IF($C$7,8,0),1,1) -> 116.4 | E95: =OFFSET(InputPriceData!D$15,CalculationsAndCharts!$A95+$A$11,IF($C$7,8,0),1,1) -> 117.37 | F95: =OFFSET(InputPriceData!E$15,CalculationsAndCharts!$A95+$A$11,IF($C$7,8,0),1,1) -> 115.32 | G95: =OFFSET(InputPriceData!F$15,CalculationsAndCharts!$A95+$A$11,IF($C$7,8,0),1,1) -> 116.89 | H95: -42 | I95: -42 | J95: 63 | K95: 2017-07-06 | L95: 6724800 | M95: 105.06 | N95: 105.49 | O95: 102.76 | P95: 102.76 | Q95: 11 | S95: 103.67 | T95: 113.524 | U95: 104.14 | V95: 60.6994 | W95: 111.1729048 | X95: 2.73 | Y95: 7.768 | Z95: 110.7552381 | AA95: 119.1276271 | AB95: 103.220088 | AC95: 111.1729048 | AD95: 4.499719436 | AE95: 121.9722314 | AF95: 100.3735781 | AG95: 111.1729048 | BB95: 116.5266667 | BC95: 108.072 | BD95: 103.8505 | BE95: 109.20615 | BF95: 112.8847778 | BG95: 2.05 | BH95: 4.336615385 | BI95: 112.9664762 | BJ95: 117.157529 | BK95: 109.1945287 | BL95: 112.8847778 | BM95: 2.474809892 | BN95: 118.8243215 | BO95: 106.945234 | BP95: 112.8847778
A96: 64 | B96: =OFFSET(InputPriceData!B$15,CalculationsAndCharts!$A96+$A$11,0,1,1) -> 2018-08-21 | C96: =OFFSET(InputPriceData!G$15,CalculationsAndCharts!$A96+$A$11,IF($C$7,8,0),1,1) -> 316900 | D96: =OFFSET(InputPriceData!C$15,CalculationsAndCharts!$A96+$A$11,IF($C$7,8,0),1,1) -> 114.7 | E96: =OFFSET(InputPriceData!D$15,CalculationsAndCharts!$A96+$A$11,IF($C$7,8,0),1,1) -> 116.75 | F96: =OFFSET(InputPriceData!E$15,CalculationsAndCharts!$A96+$A$11,IF($C$7,8,0),1,1) -> 114.7 | G96: =OFFSET(InputPriceData!F$15,CalculationsAndCharts!$A96+$A$11,IF($C$7,8,0),1,1) -> 116.65 | H96: -43 | I96: -43 | J96: 64 | K96: 2017-06-20 | L96: 5890500 | M96: 107.36 | N96: 106.68 | O96: 105.06 | P96: 105.06 | Q96: 10 | S96: 105.6 | T96: 113.708 | U96: 103.772 | V96: 60.1856 | W96: 112.0879841 | X96: 2.3 | Y96: 7.883076923 | Z96: 111.73 | AA96: 120.113554 | AB96: 104.1848014 | AC96: 112.0879841 | AD96: 4.015130758 | AE96: 121.7242979 | AF96: 102.4516703 | AG96: 112.0879841 | BB96: 116.0333333 | BC96: 107.658 | BD96: 103.7653 | BE96: 109.19935 | BF96: 112.3752222 | BG96: 2.26 | BH96: 4.422153846 | BI96: 112.4284762 | BJ96: 116.6905938 | BK96: 108.5925703 | BL96: 112.3752222 | BM96: 2.34441016 | BN96: 118.0018066 | BO96: 106.7486378 | BP96: 112.3752222
A97: 65 | B97: =OFFSET(InputPriceData!B$15,CalculationsAndCharts!$A97+$A$11,0,1,1) -> 2018-08-20 | C97: =OFFSET(InputPriceData!G$15,CalculationsAndCharts!$A97+$A$11,IF($C$7,8,0),1,1) -> 238200 | D97: =OFFSET(InputPriceData!C$15,CalculationsAndCharts!$A97+$A$11,IF($C$7,8,0),1,1) -> 114.7 | E97: =OFFSET(InputPriceData!D$15,CalculationsAndCharts!$A97+$A$11,IF($C$7,8,0),1,1) -> 115.86 | F97: =OFFSET(InputPriceData!E$15,CalculationsAndCharts!$A97+$A$11,IF($C$7,8,0),1,1) -> 114.37 | G97: =OFFSET(InputPriceData!F$15,CalculationsAndCharts!$A97+$A$11,IF($C$7,8,0),1,1) -> 114.49 | H97: -44 | I97: -44 | J97: 65 | K97: 2017-06-06 | L97: 0 | M97: 109.66 | N97: 109.66 | O97: 107.36 | P97: 107.36 | Q97: 0 | S97: 108.1266667 | T97: =IF($S$16,AVERAGE(OFFSET($P97,0,0,B$18,1)),NA()) -> 113.892 | U97: =IF($S$17,AVERAGE(OFFSET($P97,0,0,C$18,1)),NA()) -> 103.404 | V97: =IF($S$18,AVERAGE(OFFSET($P97,0,0,D$18,1)),NA()) -> 59.6603 | W97: =IF($S$19,SUMPRODUCT(OFFSET($S97,0,0,$A$24,1),OFFSET($I$33,0,0,$A$24,1))/$C$24,NA()) -> 112.8860476 | X97: 2.3 | Y97: =AVERAGE(OFFSET(X97,0,0,$A$21*2-1,1))*$A$22 -> 8.034461538 | Z97: =SUMPRODUCT(OFFSET($P97,0,0,$A$21,1),OFFSET($I$33,0,0,$A$21,1))/$C$21 -> 112.5514286 | AA97: 120.9743992 | AB97: =Z97-Z97*Y97*$A$23/P97 -> 104.970755 | AC97: =SUMPRODUCT(OFFSET($S97,0,0,$A$24,1),OFFSET($I$33,0,0,$A$24,1))/$C$24 -> 112.8860476 | AD97: =_xlfn.STDEV.P(OFFSET($P97,0,0,$A$21,1)) -> 3.770527151 | AE97: =AG97+AD97*$A$22 -> 121.9353128 | AF97: =AG97-AD97*$A$22 -> 103.8367825 | AG97: =SUMPRODUCT(OFFSET($S97,0,0,$A$24,1),OFFSET($I$33,0,0,$A$24,1))/$C$24 -> 112.8860476 | AH97: =IF($S$22=1,AA97,IF($S$22=2,AE97,NA())) ->  | AI97: =IF($S$22=1,AB97,IF($S$22=2,AF97,NA())) ->  | AJ97: =IF($S$22=1,AC97,IF($S$22=2,AG97,NA())) ->  | BB97: 114.9066667 | BC97: =IF($S$3,AVERAGE(OFFSET($G97,0,0,B$18,1)),NA()) -> 107.243 | BD97: =IF($S$4,AVERAGE(OFFSET($G97,0,0,C$18,1)),NA()) -> 103.6882 | BE97: =IF($S$5,AVERAGE(OFFSET($G97,0,0,D$18,1)),NA()) -> 109.19025 | BF97: =IF($S$6,SUMPRODUCT(OFFSET($BB97,0,0,$A$24,1),OFFSET($I$33,0,0,$A$24,1))/$C$24,NA()) -> 111.8740635 | BG97: 1.49 | BH97: =AVERAGE(OFFSET(BG97,0,0,$A$21*2-1,1))*$A$22 -> 4.403076923 | BI97: =SUMPRODUCT(OFFSET($G97,0,0,$A$21,1),OFFSET($I$33,0,0,$A$21,1))/$C$21 -> 111.872 | BJ97: 116.1743934 | BK97: =BI97-BI97*BH97*$A$23/G97 -> 107.9998459 | BL97: =SUMPRODUCT(OFFSET($BB97,0,0,$A$24,1),OFFSET($I$33,0,0,$A$24,1))/$C$24 -> 111.8740635 | BM97: =_xlfn.STDEV.P(OFFSET($G97,0,0,$A$21,1)) -> 2.092847582 | BN97: =BP97+BM97*$A$22 -> 116.8968977 | BO97: =BP97-BM97*$A$22 -> 106.8512293 | BP97: =SUMPRODUCT(OFFSET($BB97,0,0,$A$24,1),OFFSET($I$33,0,0,$A$24,1))/$C$24 -> 111.8740635
A98: 66 | B98: =OFFSET(InputPriceData!B$15,CalculationsAndCharts!$A98+$A$11,0,1,1) -> 2018-08-17 | C98: =OFFSET(InputPriceData!G$15,CalculationsAndCharts!$A98+$A$11,IF($C$7,8,0),1,1) -> 199100 | D98: =OFFSET(InputPriceData!C$15,CalculationsAndCharts!$A98+$A$11,IF($C$7,8,0),1,1) -> 113.27 | E98: =OFFSET(InputPriceData!D$15,CalculationsAndCharts!$A98+$A$11,IF($C$7,8,0),1,1) -> 114.61 | F98: =OFFSET(InputPriceData!E$15,CalculationsAndCharts!$A98+$A$11,IF($C$7,8,0),1,1) -> 112.95 | G98: =OFFSET(InputPriceData!F$15,CalculationsAndCharts!$A98+$A$11,IF($C$7,8,0),1,1) -> 114.38 | H98: -45 | I98: -45 | J98: 66 | K98: 2017-06-06 | L98: 2354700 | M98: 114.26 | N98: 115.82 | O98: 109.66 | P98: 109.66 | Q98: 4 | S98: =SUM(N98:P98)/3 -> 111.7133333 | T98: 114.122 | U98: 103.059 | V98: 59.1235 | W98: 113.5091905 | X98: =IF(A98<$J$31,MAX(N98,P99)-MIN(O98,P99),IF(A98=$J$31,N98-O98,NA())) -> 6.16 | Y98: 8.034461538 | Z98: 113.2195238 | AA98: =Z98+Z98*Y98/P98 -> 121.5147811 | AB98: 105.7537923 | AC98: 113.5091905 | AD98: 3.812384424 | AE98: 122.6589131 | AF98: 104.3594679 | AG98: 113.5091905 | BB98: 113.98 | BC98: 106.8758 | BD98: 103.6096 | BE98: 109.18485 | BF98: 111.452746 | BG98: 1.66 | BH98: 4.465230769 | BI98: 111.4940952 | BJ98: 115.8466644 | BK98: 107.576783 | BL98: 111.452746 | BM98: 1.955498913 | BN98: 116.1459434 | BO98: 106.7595486 | BP98: 111.452746 | BQ98: =IF($S$10=1,BJ98,IF($S$10=2,BN98,NA())) ->  | BR98: =IF($S$10=1,BK98,IF($S$10=2,BO98,NA())) ->  | BS98: =IF($S$10=1,BL98,IF($S$10=2,BP98,NA())) -> 
A99: 67 | B99: =OFFSET(InputPriceData!B$15,CalculationsAndCharts!$A99+$A$11,0,1,1) -> 2018-08-16 | C99: =OFFSET(InputPriceData!G$15,CalculationsAndCharts!$A99+$A$11,IF($C$7,8,0),1,1) -> 238900 | D99: =OFFSET(InputPriceData!C$15,CalculationsAndCharts!$A99+$A$11,IF($C$7,8,0),1,1) -> 113.31 | E99: =OFFSET(InputPriceData!D$15,CalculationsAndCharts!$A99+$A$11,IF($C$7,8,0),1,1) -> 114.21 | F99: =OFFSET(InputPriceData!E$15,CalculationsAndCharts!$A99+$A$11,IF($C$7,8,0),1,1) -> 112.84 | G99: =OFFSET(InputPriceData!F$15,CalculationsAndCharts!$A99+$A$11,IF($C$7,8,0),1,1) -> 113.28 | H99: =H98-1 -> -46 | I99: =I98-1 -> -46 | J99: 67 | K99: 2017-05-31 | L99: 8597400 | M99: 111.96 | N99: 114.26 | O99: 112.04 | P99: 114.26 | Q99: 24 | S99: 113.52 | T99: 114.26 | U99: 102.668 | V99: 58.5752 | W99: 113.8503333 | X99: 2.3 | Y99: 7.938461538 | Z99: 113.7342857 | AA99: 121.6362221 | AB99: 106.622543 | AC99: 113.8503333 | AD99: 4.132006171 | AE99: 123.7671481 | AF99: 103.9335185 | AG99: 113.8503333 | BB99: 113.4433333 | BC99: 106.5148 | BD99: 103.5295 | BE99: 109.18025 | BF99: 111.0955238 | BG99: 1.81 | BH99: 4.511384615 | BI99: 111.1016667 | BJ99: 115.526299 | BK99: 107.1194976 | BL99: 111.0955238 | BM99: 1.762879675 | BN99: 115.326435 | BO99: 106.8646126 | BP99: 111.0955238
A100: 68 | B100: =OFFSET(InputPriceData!B$15,CalculationsAndCharts!$A100+$A$11,0,1,1) -> 2018-08-15 | C100: =OFFSET(InputPriceData!G$15,CalculationsAndCharts!$A100+$A$11,IF($C$7,8,0),1,1) -> 204200 | D100: =OFFSET(InputPriceData!C$15,CalculationsAndCharts!$A100+$A$11,IF($C$7,8,0),1,1) -> 112.28 | E100: =OFFSET(InputPriceData!D$15,CalculationsAndCharts!$A100+$A$11,IF($C$7,8,0),1,1) -> 113.37 | F100: =OFFSET(InputPriceData!E$15,CalculationsAndCharts!$A100+$A$11,IF($C$7,8,0),1,1) -> 111.97 | G100: =OFFSET(InputPriceData!F$15,CalculationsAndCharts!$A100+$A$11,IF($C$7,8,0),1,1) -> 112.4 | H100: -47 | I100: -47 | J100: 68 | K100: 2017-04-26 | L100: 16805300 | M100: 107.36 | N100: 111.96 | O100: 110.58 | P100: 111.96 | Q100: 34 | S100: 111.5 | T100: 114.214 | U100: 102.208 | V100: 58.0039 | W100: 114.0867619 | X100: 4.6 | Y100: 8.039384615 | Z100: 113.8657143 | AA100: 122.0419404 | AB100: 106.5071108 | AC100: 114.0867619 | AD100: 4.735989865 | AE100: 125.4531376 | AF100: 102.7203862 | AG100: 114.0867619 | BB100: 112.58 | BC100: 106.2134 | BD100: 103.4675 | BE100: 109.1794 | BF100: 110.7654444 | BG100: 1.4 | BH100: 4.603076923 | BI100: 110.7918095 | BJ100: 115.3290268 | BK100: 106.708314 | BL100: 110.7654444 | BM100: 1.652780309 | BN100: 114.7321172 | BO100: 106.7987717 | BP100: 110.7654444
A101: 69 | B101: =OFFSET(InputPriceData!B$15,CalculationsAndCharts!$A101+$A$11,0,1,1) -> 2018-08-14 | C101: =OFFSET(InputPriceData!G$15,CalculationsAndCharts!$A101+$A$11,IF($C$7,8,0),1,1) -> 270700 | D101: =OFFSET(InputPriceData!C$15,CalculationsAndCharts!$A101+$A$11,IF($C$7,8,0),1,1) -> 110.99 | E101: =OFFSET(InputPriceData!D$15,CalculationsAndCharts!$A101+$A$11,IF($C$7,8,0),1,1) -> 112.82 | F101: =OFFSET(InputPriceData!E$15,CalculationsAndCharts!$A101+$A$11,IF($C$7,8,0),1,1) -> 110.94 | G101: =OFFSET(InputPriceData!F$15,CalculationsAndCharts!$A101+$A$11,IF($C$7,8,0),1,1) -> 112.64 | H101: -48 | I101: -48 | J101: 69 | K101: 2017-03-08 | L101: 2972400 | M101: 109.66 | N101: 109.66 | O101: 107.36 | P101: 107.36 | Q101: 1 | S101: 108.1266667 | T101: 114.26 | U101: 101.748 | V101: 57.4441 | W101: 114.6016032 | X101: 2.3 | Y101: 8.078153846 | Z101: 114.3038095 | AA101: 122.9044407 | AB101: 106.5632415 | AC101: 114.6016032 | AD101: 5.633826408 | AE101: 128.1227866 | AF101: 101.0804198 | AG101: 114.6016032 | BB101: 112.1333333 | BC101: 105.9108 | BD101: 103.408 | BE101: 109.18085 | BF101: 110.5006349 | BG101: 2.07 | BH101: 4.76 | BI101: 110.5453333 | BJ101: 115.2168158 | BK101: 106.3409991 | BL101: 110.5006349 | BM101: 1.608616175 | BN101: 114.3613137 | BO101: 106.6399561 | BP101: 110.5006349
A102: 70 | B102: =OFFSET(InputPriceData!B$15,CalculationsAndCharts!$A102+$A$11,0,1,1) -> 2018-08-13 | C102: =OFFSET(InputPriceData!G$15,CalculationsAndCharts!$A102+$A$11,IF($C$7,8,0),1,1) -> 212700 | D102: =OFFSET(InputPriceData!C$15,CalculationsAndCharts!$A102+$A$11,IF($C$7,8,0),1,1) -> 110.94 | E102: =OFFSET(InputPriceData!D$15,CalculationsAndCharts!$A102+$A$11,IF($C$7,8,0),1,1) -> 111.16 | F102: =OFFSET(InputPriceData!E$15,CalculationsAndCharts!$A102+$A$11,IF($C$7,8,0),1,1) -> 110.18 | G102: =OFFSET(InputPriceData!F$15,CalculationsAndCharts!$A102+$A$11,IF($C$7,8,0),1,1) -> 110.75 | H102: -49 | I102: -49 | J102: 70 | K102: 2017-03-07 | L102: 1426600 | M102: 111.96 | N102: 113.73 | O102: 109.66 | P102: 109.66 | Q102: 2 | S102: 111.0166667 | T102: 114.444 | U102: 101.311 | V102: 56.9073 | W102: 115.5306032 | X102: 4.07 | Y102: 8.219692308 | Z102: 115.2785714 | AA102: 123.9194103 | AB102: 107.5018165 | AC102: 115.5306032 | AD102: 5.748849885 | AE102: 129.3278429 | AF102: 101.7333635 | AG102: 115.5306032 | BB102: 110.6966667 | BC102: 105.572 | BD102: 103.3684 | BE102: 109.17945 | BF102: 110.27 | BG102: 0.98 | BH102: 4.735384615 | BI102: 110.2659524 | BJ102: 114.9806404 | BK102: 106.0227332 | BL102: 110.27 | BM102: 1.484052812 | BN102: 113.8317267 | BO102: 106.7082733 | BP102: 110.27
A103: 71 | B103: =OFFSET(InputPriceData!B$15,CalculationsAndCharts!$A103+$A$11,0,1,1) -> 2018-08-10 | C103: =OFFSET(InputPriceData!G$15,CalculationsAndCharts!$A103+$A$11,IF($C$7,8,0),1,1) -> 188700 | D103: =OFFSET(InputPriceData!C$15,CalculationsAndCharts!$A103+$A$11,IF($C$7,8,0),1,1) -> 111.85 | E103: =OFFSET(InputPriceData!D$15,CalculationsAndCharts!$A103+$A$11,IF($C$7,8,0),1,1) -> 112.59 | F103: =OFFSET(InputPriceData!E$15,CalculationsAndCharts!$A103+$A$11,IF($C$7,8,0),1,1) -> 110.34 | G103: =OFFSET(InputPriceData!F$15,CalculationsAndCharts!$A103+$A$11,IF($C$7,8,0),1,1) -> 110.59 | H103: -50 | I103: -50 | J103: 71 | K103: 2017-03-03 | L103: 8242400 | M103: 116.56 | N103: 114.78 | O103: 111.96 | P103: 111.96 | Q103: 16 | S103: 112.9 | T103: 114.628 | U103: 100.828 | V103: 56.359 | W103: 116.2509206 | X103: 4.6 | Y103: 8.110769231 | Z103: 116.1109524 | AA103: 124.5224309 | AB103: 108.5406217 | AC103: 116.2509206 | AD103: 5.708449877 | AE103: 129.9512003 | AF103: 102.5506409 | AG103: 116.2509206 | BB103: 111.1733333 | BC103: 105.2814 | BD103: 103.3633 | BE103: 109.18915 | BF103: 110.165873 | BG103: 2.25 | BH103: 4.846769231 | BI103: 110.1588571 | BJ103: 114.9867309 | BK103: 105.8137708 | BL103: 110.165873 | BM103: 1.469021698 | BN103: 113.6915251 | BO103: 106.6402209 | BP103: 110.165873
A104: 72 | B104: =OFFSET(InputPriceData!B$15,CalculationsAndCharts!$A104+$A$11,0,1,1) -> 2018-08-09 | C104: =OFFSET(InputPriceData!G$15,CalculationsAndCharts!$A104+$A$11,IF($C$7,8,0),1,1) -> 243800 | D104: =OFFSET(InputPriceData!C$15,CalculationsAndCharts!$A104+$A$11,IF($C$7,8,0),1,1) -> 112.83 | E104: =OFFSET(InputPriceData!D$15,CalculationsAndCharts!$A104+$A$11,IF($C$7,8,0),1,1) -> 113.36 | F104: =OFFSET(InputPriceData!E$15,CalculationsAndCharts!$A104+$A$11,IF($C$7,8,0),1,1) -> 111.7 | G104: =OFFSET(InputPriceData!F$15,CalculationsAndCharts!$A104+$A$11,IF($C$7,8,0),1,1) -> 112.32 | H104: -51 | I104: -51 | J104: 72 | K104: 2017-02-08 | L104: 6628600 | M104: 111.96 | N104: 116.56 | O104: 114.08 | P104: 116.56 | Q104: 10 | S104: 115.7333333 | T104: 114.858 | U104: 100.299 | V104: 55.7992 | W104: 116.8385079 | X104: 4.6 | Y104: 7.969230769 | Z104: 116.7790476 | AA104: 124.7632547 | AB104: 109.5932612 | AC104: 116.8385079 | AD104: 5.609124263 | AE104: 130.3004062 | AF104: 103.3766097 | AG104: 116.8385079 | BB104: 112.46 | BC104: 104.996 | BD104: 103.3535 | BE104: 109.201 | BF104: 110.0040635 | BG104: 1.66 | BH104: 4.828307692 | BI104: 110.0576667 | BJ104: 114.7887233 | BK104: 105.7997157 | BL104: 110.0040635 | BM104: 1.466785175 | BN104: 113.5243479 | BO104: 106.4837791 | BP104: 110.0040635
A105: 73 | B105: =OFFSET(InputPriceData!B$15,CalculationsAndCharts!$A105+$A$11,0,1,1) -> 2018-08-08 | C105: =OFFSET(InputPriceData!G$15,CalculationsAndCharts!$A105+$A$11,IF($C$7,8,0),1,1) -> 175500 | D105: =OFFSET(InputPriceData!C$15,CalculationsAndCharts!$A105+$A$11,IF($C$7,8,0),1,1) -> 112.06 | E105: =OFFSET(InputPriceData!D$15,CalculationsAndCharts!$A105+$A$11,IF($C$7,8,0),1,1) -> 112.89 | F105: =OFFSET(InputPriceData!E$15,CalculationsAndCharts!$A105+$A$11,IF($C$7,8,0),1,1) -> 111.98 | G105: =OFFSET(InputPriceData!F$15,CalculationsAndCharts!$A105+$A$11,IF($C$7,8,0),1,1) -> 112.71 | H105: -52 | I105: -52 | J105: 73 | K105: 2017-01-25 | L105: 1922000 | M105: 114.26 | N105: 113.57 | O105: 111.96 | P105: 111.96 | Q105: 4 | S105: 112.4966667 | T105: 114.95 | U105: 99.701 | V105: 55.2164 | W105: 117.1784762 | X105: 2.3 | Y105: 8.147076923 | Z105: 117.0309524 | AA105: 125.5470311 | AB105: 109.3664815 | AC105: 117.1784762 | AD105: 5.599685259 | AE105: 130.6177208 | AF105: 103.7392316 | AG105: 117.1784762 | BB105: 112.5266667 | BC105: 104.7166 | BD105: 103.3476 | BE105: 109.20225 | BF105: 109.6988254 | BG105: 1.1 | BH105: 4.813538462 | BI105: 109.773 | BJ105: 114.4611072 | BK105: 105.5537036 | BL105: 109.6988254 | BM105: 1.337026178 | BN105: 112.9076882 | BO105: 106.4899626 | BP105: 109.6988254
A106: 74 | B106: =OFFSET(InputPriceData!B$15,CalculationsAndCharts!$A106+$A$11,0,1,1) -> 2018-08-07 | C106: =OFFSET(InputPriceData!G$15,CalculationsAndCharts!$A106+$A$11,IF($C$7,8,0),1,1) -> 219700 | D106: =OFFSET(InputPriceData!C$15,CalculationsAndCharts!$A106+$A$11,IF($C$7,8,0),1,1) -> 110.99 | E106: =OFFSET(InputPriceData!D$15,CalculationsAndCharts!$A106+$A$11,IF($C$7,8,0),1,1) -> 113.13 | F106: =OFFSET(InputPriceData!E$15,CalculationsAndCharts!$A106+$A$11,IF($C$7,8,0),1,1) -> 110.99 | G106: =OFFSET(InputPriceData!F$15,CalculationsAndCharts!$A106+$A$11,IF($C$7,8,0),1,1) -> 111.79 | H106: -53 | I106: -53 | J106: 74 | K106: 2017-01-19 | L106: 5815600 | M106: 116.56 | N106: 115.17 | O106: 114.26 | P106: 114.26 | Q106: 13 | S106: 114.5633333 | T106: 115.088 | U106: 99.126 | V106: 54.6566 | W106: 117.8465714 | X106: 2.3 | Y106: 8.147076923 | Z106: 117.7428571 | AA106: 126.1382721 | AB106: 110.1869837 | AC106: 117.8465714 | AD106: 5.387845117 | AE106: 130.7773997 | AF106: 104.9157431 | AG106: 117.8465714 | BB106: 111.97 | BC106: 104.3878 | BD106: 103.3235 | BE106: 109.19275 | BF106: 109.3613175 | BG106: 2.15 | BH106: 5.071384615 | BI106: 109.425381 | BJ106: 114.389494 | BK106: 104.9576792 | BL106: 109.3613175 | BM106: 1.16258333 | BN106: 112.1515175 | BO106: 106.5711175 | BP106: 109.3613175
A107: 75 | B107: =OFFSET(InputPriceData!B$15,CalculationsAndCharts!$A107+$A$11,0,1,1) -> 2018-08-06 | C107: =OFFSET(InputPriceData!G$15,CalculationsAndCharts!$A107+$A$11,IF($C$7,8,0),1,1) -> 204800 | D107: =OFFSET(InputPriceData!C$15,CalculationsAndCharts!$A107+$A$11,IF($C$7,8,0),1,1) -> 110.63 | E107: =OFFSET(InputPriceData!D$15,CalculationsAndCharts!$A107+$A$11,IF($C$7,8,0),1,1) -> 111.18 | F107: =OFFSET(InputPriceData!E$15,CalculationsAndCharts!$A107+$A$11,IF($C$7,8,0),1,1) -> 109.8 | G107: =OFFSET(InputPriceData!F$15,CalculationsAndCharts!$A107+$A$11,IF($C$7,8,0),1,1) -> 110.98 | H107: -54 | I107: -54 | J107: 75 | K107: 2016-12-29 | L107: 8508700 | M107: 121.16 | N107: 117.49 | O107: 116.56 | P107: 116.56 | Q107: 15 | S107: 116.87 | T107: 115.134 | U107: 98.505 | V107: 54.0853 | W107: 118.3456032 | X107: 4.6 | Y107: 8.147076923 | Z107: 118.2685714 | AA107: 126.5350706 | AB107: 110.8287221 | AC107: 118.3456032 | AD107: 5.264940645 | AE107: 130.9814607 | AF107: 105.7097456 | AG107: 118.3456032 | BB107: 110.6533333 | BC107: 104.0676 | BD107: 103.3042 | BE107: 109.1836 | BF107: 109.0543492 | BG107: 1.38 | BH107: 5.357538462 | BI107: 109.1435238 | BJ107: 114.4124067 | BK107: 104.4015292 | BL107: 109.0543492 | BM107: 1.048458273 | BN107: 111.5706491 | BO107: 106.5380494 | BP107: 109.0543492
A108: 76 | B108: =OFFSET(InputPriceData!B$15,CalculationsAndCharts!$A108+$A$11,0,1,1) -> 2018-08-03 | C108: =OFFSET(InputPriceData!G$15,CalculationsAndCharts!$A108+$A$11,IF($C$7,8,0),1,1) -> 238400 | D108: =OFFSET(InputPriceData!C$15,CalculationsAndCharts!$A108+$A$11,IF($C$7,8,0),1,1) -> 110.12 | E108: =OFFSET(InputPriceData!D$15,CalculationsAndCharts!$A108+$A$11,IF($C$7,8,0),1,1) -> 111.14 | F108: =OFFSET(InputPriceData!E$15,CalculationsAndCharts!$A108+$A$11,IF($C$7,8,0),1,1) -> 110.01 | G108: =OFFSET(InputPriceData!F$15,CalculationsAndCharts!$A108+$A$11,IF($C$7,8,0),1,1) -> 110.44 | H108: -55 | I108: -55 | J108: 76 | K108: 2016-12-07 | L108: 7083600 | M108: 118.86 | N108: 121.16 | O108: 118.83 | P108: 121.16 | Q108: 15 | S108: 120.3833333 | T108: 115.088 | U108: 97.838 | V108: 53.5025 | W108: 118.6305079 | X108: 2.33 | Y108: 8.147076923 | Z108: 118.5861905 | AA108: 126.5601985 | AB108: 111.4095832 | AC108: 118.6305079 | AD108: 5.2182636 | AE108: 131.1543406 | AF108: 106.1066753 | AG108: 118.6305079 | BB108: 110.53 | BC108: 103.7728 | BD108: 103.3016 | BE108: 109.1809 | BF108: 108.8569524 | BG108: 1.13 | BH108: 5.400615385 | BI108: 108.9222381 | BJ108: 114.2486336 | BK108: 104.1284822 | BL108: 108.8569524 | BM108: 0.9625397394 | BN108: 111.1670478 | BO108: 106.546857 | BP108: 108.8569524
A109: 77 | B109: =OFFSET(InputPriceData!B$15,CalculationsAndCharts!$A109+$A$11,0,1,1) -> 2018-08-02 | C109: =OFFSET(InputPriceData!G$15,CalculationsAndCharts!$A109+$A$11,IF($C$7,8,0),1,1) -> 263400 | D109: =OFFSET(InputPriceData!C$15,CalculationsAndCharts!$A109+$A$11,IF($C$7,8,0),1,1) -> 108.25 | E109: =OFFSET(InputPriceData!D$15,CalculationsAndCharts!$A109+$A$11,IF($C$7,8,0),1,1) -> 110.44 | F109: =OFFSET(InputPriceData!E$15,CalculationsAndCharts!$A109+$A$11,IF($C$7,8,0),1,1) -> 108.25 | G109: =OFFSET(InputPriceData!F$15,CalculationsAndCharts!$A109+$A$11,IF($C$7,8,0),1,1) -> 110.16 | H109: -56 | I109: -56 | J109: 77 | K109: 2016-11-15 | L109: 746600 | M109: 116.56 | N109: 118.86 | O109: 116.56 | P109: 118.86 | Q109: 1 | S109: 118.0933333 | T109: 114.904 | U109: 97.079 | V109: 52.8967 | W109: 118.5595873 | X109: 2.3 | Y109: 8.145230769 | Z109: 118.4438095 | AA109: 126.5605196 | AB109: 111.1387704 | AC109: 118.5595873 | AD109: 5.258657148 | AE109: 131.1803645 | AF109: 105.9388101 | AG109: 118.5595873 | BB109: 109.6166667 | BC109: 103.5512 | BD109: 103.3026 | BE109: 109.1889 | BF109: 108.650254 | BG109: 2.39 | BH109: 5.428307692 | BI109: 108.7329524 | BJ109: 114.0909401 | BK109: 103.9107635 | BL109: 108.650254 | BM109: 0.9947455705 | BN109: 111.0376433 | BO109: 106.2628646 | BP109: 108.650254
A110: 78 | B110: =OFFSET(InputPriceData!B$15,CalculationsAndCharts!$A110+$A$11,0,1,1) -> 2018-08-01 | C110: =OFFSET(InputPriceData!G$15,CalculationsAndCharts!$A110+$A$11,IF($C$7,8,0),1,1) -> 159100 | D110: =OFFSET(InputPriceData!C$15,CalculationsAndCharts!$A110+$A$11,IF($C$7,8,0),1,1) -> 108.6 | E110: =OFFSET(InputPriceData!D$15,CalculationsAndCharts!$A110+$A$11,IF($C$7,8,0),1,1) -> 109.13 | F110: =OFFSET(InputPriceData!E$15,CalculationsAndCharts!$A110+$A$11,IF($C$7,8,0),1,1) -> 107.54 | G110: =OFFSET(InputPriceData!F$15,CalculationsAndCharts!$A110+$A$11,IF($C$7,8,0),1,1) -> 108.05 | H110: -57 | I110: -57 | J110: 78 | K110: 2016-11-14 | L110: 337700 | M110: 114.26 | N110: 116.56 | O110: 114.26 | P110: 116.56 | Q110: 1 | S110: 115.7933333 | T110: 114.72 | U110: 96.366 | V110: 52.3024 | W110: 118.6864286 | X110: 2.3 | Y110: 8.286769231 | Z110: 118.4985714 | AA110: 126.9231623 | AB110: 110.9164396 | AC110: 118.6864286 | AD110: 5.387845117 | AE110: 131.6172569 | AF110: 105.7556003 | AG110: 118.6864286 | BB110: 108.24 | BC110: 103.274 | BD110: 103.3106 | BE110: 109.19995 | BF110: 108.5036508 | BG110: 1.59 | BH110: 5.420307692 | BI110: 108.5443333 | BJ110: 113.9894392 | BK110: 103.6437381 | BL110: 108.5036508 | BM110: 1.213785298 | BN110: 111.4167355 | BO110: 105.5905661 | BP110: 108.5036508
A111: 79 | B111: =OFFSET(InputPriceData!B$15,CalculationsAndCharts!$A111+$A$11,0,1,1) -> 2018-07-31 | C111: =OFFSET(InputPriceData!G$15,CalculationsAndCharts!$A111+$A$11,IF($C$7,8,0),1,1) -> 319200 | D111: =OFFSET(InputPriceData!C$15,CalculationsAndCharts!$A111+$A$11,IF($C$7,8,0),1,1) -> 109.7 | E111: =OFFSET(InputPriceData!D$15,CalculationsAndCharts!$A111+$A$11,IF($C$7,8,0),1,1) -> 109.73 | F111: =OFFSET(InputPriceData!E$15,CalculationsAndCharts!$A111+$A$11,IF($C$7,8,0),1,1) -> 108.83 | G111: =OFFSET(InputPriceData!F$15,CalculationsAndCharts!$A111+$A$11,IF($C$7,8,0),1,1) -> 109.13 | H111: -58 | I111: -58 | J111: 79 | K111: 2016-11-11 | L111: 3181700 | M111: 109.66 | N111: 114.26 | O111: 112.45 | P111: 114.26 | Q111: 6 | S111: 113.6566667 | T111: 114.536 | U111: 95.699 | V111: 51.7196 | W111: 119.0103016 | X111: 4.6 | Y111: 8.286769231 | Z111: 118.7395238 | AA111: 127.351173 | AB111: 110.9890396 | AC111: 119.0103016 | AD111: 5.768370654 | AE111: 132.8543912 | AF111: 105.166212 | AG111: 119.0103016 | BB111: 109.23 | BC111: 103.1092 | BD111: 103.3297 | BE111: 109.22485 | BF111: 108.4630317 | BG111: 0.9 | BH111: 5.4 | BI111: 108.5294762 | BJ111: 113.8997609 | BK111: 103.6962199 | BL111: 108.4630317 | BM111: 1.759520958 | BN111: 112.685882 | BO111: 104.2401814 | BP111: 108.4630317
A112: 80 | B112: =OFFSET(InputPriceData!B$15,CalculationsAndCharts!$A112+$A$11,0,1,1) -> 2018-07-30 | C112: =OFFSET(InputPriceData!G$15,CalculationsAndCharts!$A112+$A$11,IF($C$7,8,0),1,1) -> 273500 | D112: =OFFSET(InputPriceData!C$15,CalculationsAndCharts!$A112+$A$11,IF($C$7,8,0),1,1) -> 108.1 | E112: =OFFSET(InputPriceData!D$15,CalculationsAndCharts!$A112+$A$11,IF($C$7,8,0),1,1) -> 109.89 | F112: =OFFSET(InputPriceData!E$15,CalculationsAndCharts!$A112+$A$11,IF($C$7,8,0),1,1) -> 108.1 | G112: =OFFSET(InputPriceData!F$15,CalculationsAndCharts!$A112+$A$11,IF($C$7,8,0),1,1) -> 109.43 | H112: -59 | I112: -59 | J112: 80 | K112: 2016-11-03 | L112: 3942400 | M112: 111.96 | N112: 111.27 | O112: 109.66 | P112: 109.66 | Q112: 13 | S112: 110.1966667 | T112: 114.352 | U112: 95.078 | V112: 51.1483 | W112: 119.5368889 | X112: 2.3 | Y112: 8.288 | Z112: 119.1995238 | AA112: 128.2085121 | AB112: 111.0914344 | AC112: 119.5368889 | AD112: 5.768370654 | AE112: 133.3809785 | AF112: 105.6927993 | AG112: 119.5368889 | BB112: 109.14 | BC112: 102.9284 | BD112: 103.3209 | BE112: 109.23605 | BF112: 108.298746 | BG112: 1.79 | BH112: 5.496615385 | BI112: 108.3827143 | BJ112: 113.826725 | BK112: 103.4831046 | BL112: 108.298746 | BM112: 2.027172662 | BN112: 113.1639604 | BO112: 103.4335316 | BP112: 108.298746
A113: 81 | B113: =OFFSET(InputPriceData!B$15,CalculationsAndCharts!$A113+$A$11,0,1,1) -> 2018-07-27 | C113: =OFFSET(InputPriceData!G$15,CalculationsAndCharts!$A113+$A$11,IF($C$7,8,0),1,1) -> 221300 | D113: =OFFSET(InputPriceData!C$15,CalculationsAndCharts!$A113+$A$11,IF($C$7,8,0),1,1) -> 108.86 | E113: =OFFSET(InputPriceData!D$15,CalculationsAndCharts!$A113+$A$11,IF($C$7,8,0),1,1) -> 109.15 | F113: =OFFSET(InputPriceData!E$15,CalculationsAndCharts!$A113+$A$11,IF($C$7,8,0),1,1) -> 107.99 | G113: =OFFSET(InputPriceData!F$15,CalculationsAndCharts!$A113+$A$11,IF($C$7,8,0),1,1) -> 108.35 | H113: -60 | I113: -60 | J113: 81 | K113: 2016-10-17 | L113: 8092600 | M113: 114.26 | N113: 114.61 | O113: 111.96 | P113: 111.96 | Q113: 15 | S113: 112.8433333 | T113: 114.168 | U113: 94.549 | V113: 50.6 | W113: 120.3936825 | X113: 2.65 | Y113: 8.288 | Z113: 120.1085714 | AA113: 128.9997811 | AB113: 112.1064827 | AC113: 120.3936825 | AD113: 5.599685259 | AE113: 133.8329272 | AF113: 106.9544379 | AG113: 120.3936825 | BB113: 108.4966667 | BC113: 102.7544 | BD113: 103.3438 | BE113: 109.23285 | BF113: 108.1219841 | BG113: 1.16 | BH113: 5.575384615 | BI113: 108.1841905 | BJ113: 113.751043 | BK113: 103.1740232 | BL113: 108.1219841 | BM113: 2.083126196 | BN113: 113.121487 | BO113: 103.1224813 | BP113: 108.1219841
A114: 82 | B114: =OFFSET(InputPriceData!B$15,CalculationsAndCharts!$A114+$A$11,0,1,1) -> 2018-07-26 | C114: =OFFSET(InputPriceData!G$15,CalculationsAndCharts!$A114+$A$11,IF($C$7,8,0),1,1) -> 406600 | D114: =OFFSET(InputPriceData!C$15,CalculationsAndCharts!$A114+$A$11,IF($C$7,8,0),1,1) -> 107.57 | E114: =OFFSET(InputPriceData!D$15,CalculationsAndCharts!$A114+$A$11,IF($C$7,8,0),1,1) -> 109.74 | F114: =OFFSET(InputPriceData!E$15,CalculationsAndCharts!$A114+$A$11,IF($C$7,8,0),1,1) -> 107.27 | G114: =OFFSET(InputPriceData!F$15,CalculationsAndCharts!$A114+$A$11,IF($C$7,8,0),1,1) -> 108.89 | H114: -61 | I114: -61 | J114: 82 | K114: 2016-09-26 | L114: 4577500 | M114: 116.56 | N114: 117.43 | O114: 114.26 | P114: 114.26 | Q114: 8 | S114: 115.3166667 | T114: 113.984 | U114: 93.974 | V114: 50.0402 | W114: 120.9792857 | X114: 3.17 | Y114: 8.408 | Z114: 120.787619 | AA114: 129.6759641 | AB114: 112.7881085 | AC114: 120.9792857 | AD114: 5.768370654 | AE114: 134.8233753 | AF114: 107.1351961 | AG114: 120.9792857 | BB114: 108.6333333 | BC114: 102.6076 | BD114: 103.3634 | BE114: 109.23445 | BF114: 107.9921587 | BG114: 2.47 | BH114: 5.574153846 | BI114: 108.0756667 | BJ114: 113.6081342 | BK114: 103.0964459 | BL114: 107.9921587 | BM114: 2.101065147 | BN114: 113.0347151 | BO114: 102.9496024 | BP114: 107.9921587
A115: 83 | B115: =OFFSET(InputPriceData!B$15,CalculationsAndCharts!$A115+$A$11,0,1,1) -> 2018-07-25 | C115: =OFFSET(InputPriceData!G$15,CalculationsAndCharts!$A115+$A$11,IF($C$7,8,0),1,1) -> 258600 | D115: =OFFSET(InputPriceData!C$15,CalculationsAndCharts!$A115+$A$11,IF($C$7,8,0),1,1) -> 107.13 | E115: =OFFSET(InputPriceData!D$15,CalculationsAndCharts!$A115+$A$11,IF($C$7,8,0),1,1) -> 107.64 | F115: =OFFSET(InputPriceData!E$15,CalculationsAndCharts!$A115+$A$11,IF($C$7,8,0),1,1) -> 106.22 | G115: =OFFSET(InputPriceData!F$15,CalculationsAndCharts!$A115+$A$11,IF($C$7,8,0),1,1) -> 107.39 | H115: -62 | I115: -62 | J115: 83 | K115: 2016-09-14 | L115: 3125100 | M115: 118.86 | N115: 118.23 | O115: 116.56 | P115: 116.56 | Q115: 4 | S115: 117.1166667 | T115: 113.846 | U115: 93.33 | V115: 49.4689 | W115: 121.2857778 | X115: 2.3 | Y115: 8.408615385 | Z115: 121.2038095 | AA115: 129.9474284 | AB115: 113.3345525 | AC115: 121.2857778 | AD115: 6.460503076 | AE115: 136.7909852 | AF115: 105.7805704 | AG115: 121.2857778 | BB115: 107.0833333 | BC115: 102.4272 | BD115: 103.3815 | BE115: 109.23275 | BF115: 107.8374286 | BG115: 1.75 | BH115: 5.585230769 | BI115: 107.9019048 | BJ115: 113.5137591 | BK115: 102.8512358 | BL115: 107.8374286 | BM115: 2.080118927 | BN115: 112.829714 | BO115: 102.8451431 | BP115: 107.8374286
A116: 84 | B116: =OFFSET(InputPriceData!B$15,CalculationsAndCharts!$A116+$A$11,0,1,1) -> 2018-07-24 | C116: =OFFSET(InputPriceData!G$15,CalculationsAndCharts!$A116+$A$11,IF($C$7,8,0),1,1) -> 229700 | D116: =OFFSET(InputPriceData!C$15,CalculationsAndCharts!$A116+$A$11,IF($C$7,8,0),1,1) -> 108.8 | E116: =OFFSET(InputPriceData!D$15,CalculationsAndCharts!$A116+$A$11,IF($C$7,8,0),1,1) -> 108.82 | F116: =OFFSET(InputPriceData!E$15,CalculationsAndCharts!$A116+$A$11,IF($C$7,8,0),1,1) -> 107 | G116: =OFFSET(InputPriceData!F$15,CalculationsAndCharts!$A116+$A$11,IF($C$7,8,0),1,1) -> 107.97 | H116: -63 | I116: -63 | J116: 84 | K116: 2016-09-08 | L116: 0 | M116: 121.16 | N116: 121.16 | O116: 118.86 | P116: 118.86 | Q116: 1 | S116: 119.6266667 | T116: 113.616 | U116: 92.709 | V116: 48.8861 | W116: 121.3777778 | X116: 2.3 | Y116: 8.408615385 | Z116: 121.3680952 | AA116: 129.954143 | AB116: 113.6406523 | AC116: 121.3777778 | AD116: 6.740020401 | AE116: 137.5538267 | AF116: 105.2017288 | AG116: 121.3777778 | BB116: 107.93 | BC116: 102.2738 | BD116: 103.4181 | BE116: 109.24445 | BF116: 107.8306667 | BG116: 1.82 | BH116: 5.630769231 | BI116: 107.867619 | BJ116: 113.493049 | BK116: 102.8047321 | BL116: 107.8306667 | BM116: 2.080336511 | BN116: 112.8234743 | BO116: 102.837859 | BP116: 107.8306667
A117: 85 | B117: =OFFSET(InputPriceData!B$15,CalculationsAndCharts!$A117+$A$11,0,1,1) -> 2018-07-23 | C117: =OFFSET(InputPriceData!G$15,CalculationsAndCharts!$A117+$A$11,IF($C$7,8,0),1,1) -> 249300 | D117: =OFFSET(InputPriceData!C$15,CalculationsAndCharts!$A117+$A$11,IF($C$7,8,0),1,1) -> 109.11 | E117: =OFFSET(InputPriceData!D$15,CalculationsAndCharts!$A117+$A$11,IF($C$7,8,0),1,1) -> 110.11 | F117: =OFFSET(InputPriceData!E$15,CalculationsAndCharts!$A117+$A$11,IF($C$7,8,0),1,1) -> 108.52 | G117: =OFFSET(InputPriceData!F$15,CalculationsAndCharts!$A117+$A$11,IF($C$7,8,0),1,1) -> 108.79 | H117: -64 | I117: -64 | J117: 85 | K117: 2016-09-07 | L117: 0 | M117: 123.46 | N117: 123.46 | O117: 121.16 | P117: 121.16 | Q117: 0 | S117: 121.9266667 | T117: 113.294 | U117: 92.042 | V117: 48.2918 | W117: 121.1695397 | X117: 2.3 | Y117: 8.408615385 | Z117: 121.2585714 | AA117: 129.6740278 | AB117: 113.6846607 | AC117: 121.1695397 | AD117: 7.144823301 | AE117: 138.3171156 | AF117: 104.0219638 | AG117: 121.1695397 | BB117: 109.14 | BC117: 102.0994 | BD117: 103.4545 | BE117: 109.25155 | BF117: 107.740127 | BG117: 1.59 | BH117: 5.638769231 | BI117: 107.7773333 | BJ117: 113.3636143 | BK117: 102.7496804 | BL117: 107.740127 | BM117: 2.077011314 | BN117: 112.7249541 | BO117: 102.7552998 | BP117: 107.740127
A118: 86 | B118: =OFFSET(InputPriceData!B$15,CalculationsAndCharts!$A118+$A$11,0,1,1) -> 2018-07-20 | C118: =OFFSET(InputPriceData!G$15,CalculationsAndCharts!$A118+$A$11,IF($C$7,8,0),1,1) -> 162900 | D118: =OFFSET(InputPriceData!C$15,CalculationsAndCharts!$A118+$A$11,IF($C$7,8,0),1,1) -> 108.35 | E118: =OFFSET(InputPriceData!D$15,CalculationsAndCharts!$A118+$A$11,IF($C$7,8,0),1,1) -> 109.33 | F118: =OFFSET(InputPriceData!E$15,CalculationsAndCharts!$A118+$A$11,IF($C$7,8,0),1,1) -> 108.26 | G118: =OFFSET(InputPriceData!F$15,CalculationsAndCharts!$A118+$A$11,IF($C$7,8,0),1,1) -> 109.13 | H118: -65 | I118: -65 | J118: 86 | K118: 2016-09-07 | L118: 0 | M118: 125.76 | N118: 125.76 | O118: 123.46 | P118: 123.46 | Q118: 0 | S118: 124.2266667 | T118: 112.88 | U118: 91.329 | V118: 47.686 | W118: 120.6608413 | X118: 2.3 | Y118: 8.408615385 | Z118: 120.8533333 | AA118: 129.0844138 | AB118: 113.4453609 | AC118: 120.6608413 | AD118: 7.603056951 | AE118: 138.908178 | AF118: 102.4135046 | AG118: 120.6608413 | BB118: 108.9066667 | BC118: 101.9004 | BD118: 103.4812 | BE118: 109.2512 | BF118: 107.5211111 | BG118: 1.07 | BH118: 5.635692308 | BI118: 107.5971429 | BJ118: 113.1536753 | BK118: 102.5962636 | BL118: 107.5211111 | BM118: 2.041483774 | BN118: 112.4206722 | BO118: 102.6215501 | BP118: 107.5211111
A119: 87 | B119: =OFFSET(InputPriceData!B$15,CalculationsAndCharts!$A119+$A$11,0,1,1) -> 2018-07-19 | C119: =OFFSET(InputPriceData!G$15,CalculationsAndCharts!$A119+$A$11,IF($C$7,8,0),1,1) -> 276400 | D119: =OFFSET(InputPriceData!C$15,CalculationsAndCharts!$A119+$A$11,IF($C$7,8,0),1,1) -> 107.62 | E119: =OFFSET(InputPriceData!D$15,CalculationsAndCharts!$A119+$A$11,IF($C$7,8,0),1,1) -> 109.08 | F119: =OFFSET(InputPriceData!E$15,CalculationsAndCharts!$A119+$A$11,IF($C$7,8,0),1,1) -> 107.53 | G119: =OFFSET(InputPriceData!F$15,CalculationsAndCharts!$A119+$A$11,IF($C$7,8,0),1,1) -> 108.62 | H119: -66 | I119: -66 | J119: 87 | K119: 2016-09-07 | L119: 13384900 | M119: 130.36 | N119: 131.47 | O119: 125.76 | P119: 125.76 | Q119: 42 | S119: 127.6633333 | T119: 112.374 | U119: 90.57 | V119: 47.0687 | W119: 119.8261746 | X119: 5.71 | Y119: 8.460307692 | Z119: 120.1195238 | AA119: 128.2003773 | AB119: 112.8467557 | AC119: 119.8261746 | AD119: 8.237564871 | AE119: 139.5963303 | AF119: 100.0560189 | AG119: 119.8261746 | BB119: 108.41 | BC119: 101.6968 | BD119: 103.5187 | BE119: 109.24485 | BF119: 107.3070794 | BG119: 1.55 | BH119: 5.828307692 | BI119: 107.3703333 | BJ119: 113.1315867 | BK119: 102.1852053 | BL119: 107.3070794 | BM119: 1.981146827 | BN119: 112.0618317 | BO119: 102.552327 | BP119: 107.3070794
A120: 88 | B120: =OFFSET(InputPriceData!B$15,CalculationsAndCharts!$A120+$A$11,0,1,1) -> 2018-07-18 | C120: =OFFSET(InputPriceData!G$15,CalculationsAndCharts!$A120+$A$11,IF($C$7,8,0),1,1) -> 375600 | D120: =OFFSET(InputPriceData!C$15,CalculationsAndCharts!$A120+$A$11,IF($C$7,8,0),1,1) -> 110.8 | E120: =OFFSET(InputPriceData!D$15,CalculationsAndCharts!$A120+$A$11,IF($C$7,8,0),1,1) -> 110.85 | F120: =OFFSET(InputPriceData!E$15,CalculationsAndCharts!$A120+$A$11,IF($C$7,8,0),1,1) -> 108.1 | G120: =OFFSET(InputPriceData!F$15,CalculationsAndCharts!$A120+$A$11,IF($C$7,8,0),1,1) -> 108.11 | H120: -67 | I120: -67 | J120: 88 | K120: 2016-07-08 | L120: 1988100 | M120: 128.06 | N120: 130.36 | O120: 127.98 | P120: 130.36 | Q120: 2 | S120: 129.5666667 | T120: 111.776 | U120: 89.765 | V120: 46.4399 | W120: 118.5539206 | X120: 2.38 | Y120: 8.324923077 | Z120: 119.0571429 | AA120: 126.6602539 | AB120: 112.2143429 | AC120: 118.5539206 | AD120: 8.365014943 | AE120: 138.6299565 | AF120: 98.47788477 | AG120: 118.5539206 | BB120: 109.02 | BC120: 101.4884 | BD120: 103.5619 | BE120: 109.2365 | BF120: 107.1096508 | BG120: 2.75 | BH120: 6.287384615 | BI120: 107.166381 | BJ120: 113.3988872 | BK120: 101.5571253 | BL120: 107.1096508 | BM120: 2.073507355 | BN120: 112.0860684 | BO120: 102.1332331 | BP120: 107.1096508
A121: 89 | B121: =OFFSET(InputPriceData!B$15,CalculationsAndCharts!$A121+$A$11,0,1,1) -> 2018-07-17 | C121: =OFFSET(InputPriceData!G$15,CalculationsAndCharts!$A121+$A$11,IF($C$7,8,0),1,1) -> 386700 | D121: =OFFSET(InputPriceData!C$15,CalculationsAndCharts!$A121+$A$11,IF($C$7,8,0),1,1) -> 109.2 | E121: =OFFSET(InputPriceData!D$15,CalculationsAndCharts!$A121+$A$11,IF($C$7,8,0),1,1) -> 111.66 | F121: =OFFSET(InputPriceData!E$15,CalculationsAndCharts!$A121+$A$11,IF($C$7,8,0),1,1) -> 108.94 | G121: =OFFSET(InputPriceData!F$15,CalculationsAndCharts!$A121+$A$11,IF($C$7,8,0),1,1) -> 110.53 | H121: -68 | I121: -68 | J121: 89 | K121: 2016-07-06 | L121: 1374800 | M121: 125.76 | N121: 128.06 | O121: 126.78 | P121: 128.06 | Q121: 3 | S121: 127.6333333 | T121: 111.04 | U121: 88.891 | V121: 45.7881 | W121: 116.9896667 | X121: 2.3 | Y121: 8.32 | Z121: 117.4471429 | AA121: 125.0776304 | AB121: 110.5797041 | AC121: 116.9896667 | AD121: 7.67231875 | AE121: 135.4032317 | AF121: 98.57610167 | AG121: 116.9896667 | BB121: 110.3766667 | BC121: 101.3354 | BD121: 103.5936 | BE121: 109.23665 | BF121: 106.8102698 | BG121: 2.72 | BH121: 6.364923077 | BI121: 106.9726667 | BJ121: 113.132739 | BK121: 101.4286016 | BL121: 106.8102698 | BM121: 2.462558426 | BN121: 112.7204101 | BO121: 100.9001296 | BP121: 106.8102698
A122: 90 | B122: =OFFSET(InputPriceData!B$15,CalculationsAndCharts!$A122+$A$11,0,1,1) -> 2018-07-16 | C122: =OFFSET(InputPriceData!G$15,CalculationsAndCharts!$A122+$A$11,IF($C$7,8,0),1,1) -> 238500 | D122: =OFFSET(InputPriceData!C$15,CalculationsAndCharts!$A122+$A$11,IF($C$7,8,0),1,1) -> 108.77 | E122: =OFFSET(InputPriceData!D$15,CalculationsAndCharts!$A122+$A$11,IF($C$7,8,0),1,1) -> 109.18 | F122: =OFFSET(InputPriceData!E$15,CalculationsAndCharts!$A122+$A$11,IF($C$7,8,0),1,1) -> 107.28 | G122: =OFFSET(InputPriceData!F$15,CalculationsAndCharts!$A122+$A$11,IF($C$7,8,0),1,1) -> 109.13 | H122: -69 | I122: -69 | J122: 90 | K122: 2016-06-30 | L122: 0 | M122: 123.46 | N122: 125.76 | O122: 123.46 | P122: 125.76 | Q122: 0 | S122: 124.9933333 | T122: 110.304 | U122: 87.994 | V122: 45.1478 | W122: 115.494746 | X122: 2.3 | Y122: 8.490461538 | Z122: 115.9357143 | AA122: 123.7629067 | AB122: 108.8912411 | AC122: 115.494746 | AD122: 7.233125189 | AE122: 132.8542465 | AF122: 98.13524558 | AG122: 115.494746 | BB122: 108.53 | BC122: 101.1058 | BD122: 103.6069 | BE122: 109.2288 | BF122: 106.3344286 | BG122: 1.9 | BH122: 6.268307692 | BI122: 106.4988571 | BJ122: 112.6160349 | BK122: 100.9933972 | BL122: 106.3344286 | BM122: 2.565249501 | BN122: 112.4910274 | BO122: 100.1778298 | BP122: 106.3344286
A123: 91 | B123: =OFFSET(InputPriceData!B$15,CalculationsAndCharts!$A123+$A$11,0,1,1) -> 2018-07-13 | C123: =OFFSET(InputPriceData!G$15,CalculationsAndCharts!$A123+$A$11,IF($C$7,8,0),1,1) -> 300900 | D123: =OFFSET(InputPriceData!C$15,CalculationsAndCharts!$A123+$A$11,IF($C$7,8,0),1,1) -> 107.73 | E123: =OFFSET(InputPriceData!D$15,CalculationsAndCharts!$A123+$A$11,IF($C$7,8,0),1,1) -> 109.42 | F123: =OFFSET(InputPriceData!E$15,CalculationsAndCharts!$A123+$A$11,IF($C$7,8,0),1,1) -> 107.73 | G123: =OFFSET(InputPriceData!F$15,CalculationsAndCharts!$A123+$A$11,IF($C$7,8,0),1,1) -> 108.63 | H123: -70 | I123: -70 | J123: 91 | K123: 2016-06-30 | L123: 0 | M123: 121.16 | N123: 123.46 | O123: 121.16 | P123: 123.46 | Q123: 1 | S123: 122.6933333 | T123: 109.568 | U123: 87.166 | V123: 44.519 | W123: 114.1599841 | X123: 2.3 | Y123: 8.632 | Z123: 114.5447619 | AA123: 122.5534318 | AB123: 107.336959 | AC123: 114.1599841 | AD123: 6.676936049 | AE123: 130.1846306 | AF123: 98.13533761 | AG123: 114.1599841 | BB123: 108.5933333 | BC123: 100.8894 | BD123: 103.644 | BE123: 109.2311 | BF123: 105.9929206 | BG123: 1.69 | BH123: 6.246769231 | BI123: 106.1164762 | BJ123: 112.2187052 | BK123: 100.6244701 | BL123: 105.9929206 | BM123: 2.667003 | BN123: 112.3937278 | BO123: 99.59211344 | BP123: 105.9929206
A124: 92 | B124: =OFFSET(InputPriceData!B$15,CalculationsAndCharts!$A124+$A$11,0,1,1) -> 2018-07-12 | C124: =OFFSET(InputPriceData!G$15,CalculationsAndCharts!$A124+$A$11,IF($C$7,8,0),1,1) -> 241000 | D124: =OFFSET(InputPriceData!C$15,CalculationsAndCharts!$A124+$A$11,IF($C$7,8,0),1,1) -> 107.47 | E124: =OFFSET(InputPriceData!D$15,CalculationsAndCharts!$A124+$A$11,IF($C$7,8,0),1,1) -> 108.59 | F124: =OFFSET(InputPriceData!E$15,CalculationsAndCharts!$A124+$A$11,IF($C$7,8,0),1,1) -> 107.24 | G124: =OFFSET(InputPriceData!F$15,CalculationsAndCharts!$A124+$A$11,IF($C$7,8,0),1,1) -> 108.39 | H124: -71 | I124: -71 | J124: 92 | K124: 2016-06-29 | L124: 11104100 | M124: 116.56 | N124: 121.16 | O124: 118.88 | P124: 121.16 | Q124: 14 | S124: 120.4 | T124: 108.832 | U124: 86.338 | V124: 43.9017 | W124: 112.9831429 | X124: 4.6 | Y124: 8.632 | Z124: 113.2961905 | AA124: 121.3679362 | AB124: 106.0316193 | AC124: 112.9831429 | AD124: 6.089573056 | AE124: 127.5981182 | AF124: 98.36816752 | AG124: 112.9831429 | BB124: 108.0733333 | BC124: 100.687 | BD124: 103.7024 | BE124: 109.23575 | BF124: 105.5993175 | BG124: 1.35 | BH124: 6.225230769 | BI124: 105.7340476 | BJ124: 111.8067374 | BK124: 100.2686268 | BL124: 105.5993175 | BM124: 2.890310494 | BN124: 112.5360626 | BO124: 98.66257228 | BP124: 105.5993175
A125: 93 | B125: =OFFSET(InputPriceData!B$15,CalculationsAndCharts!$A125+$A$11,0,1,1) -> 2018-07-11 | C125: =OFFSET(InputPriceData!G$15,CalculationsAndCharts!$A125+$A$11,IF($C$7,8,0),1,1) -> 309800 | D125: =OFFSET(InputPriceData!C$15,CalculationsAndCharts!$A125+$A$11,IF($C$7,8,0),1,1) -> 107.15 | E125: =OFFSET(InputPriceData!D$15,CalculationsAndCharts!$A125+$A$11,IF($C$7,8,0),1,1) -> 107.84 | F125: =OFFSET(InputPriceData!E$15,CalculationsAndCharts!$A125+$A$11,IF($C$7,8,0),1,1) -> 106.12 | G125: =OFFSET(InputPriceData!F$15,CalculationsAndCharts!$A125+$A$11,IF($C$7,8,0),1,1) -> 107.29 | H125: -72 | I125: -72 | J125: 93 | K125: 2016-06-09 | L125: 3029900 | M125: 121.16 | N125: 116.89 | O125: 116.56 | P125: 116.56 | Q125: 5 | S125: 116.67 | T125: 108.096 | U125: 85.51 | V125: 43.2959 | W125: 111.9772222 | X125: 4.6 | Y125: 8.632 | Z125: 112.2119048 | AA125: 120.521901 | AB125: 104.7329081 | AC125: 111.9772222 | AD125: 5.561769053 | AE125: 125.3254679 | AF125: 98.62897649 | AG125: 111.9772222 | BB125: 107.0833333 | BC125: 100.4762 | BD125: 103.7775 | BE125: 109.2381 | BF125: 105.2066032 | BG125: 1.72 | BH125: 6.243692308 | BI125: 105.3282857 | BJ125: 111.457817 | BK125: 99.81170759 | BL125: 105.2066032 | BM125: 3.026703611 | BN125: 112.4706918 | BO125: 97.94251451 | BP125: 105.2066032
A126: 94 | B126: =OFFSET(InputPriceData!B$15,CalculationsAndCharts!$A126+$A$11,0,1,1) -> 2018-07-10 | C126: =OFFSET(InputPriceData!G$15,CalculationsAndCharts!$A126+$A$11,IF($C$7,8,0),1,1) -> 205000 | D126: =OFFSET(InputPriceData!C$15,CalculationsAndCharts!$A126+$A$11,IF($C$7,8,0),1,1) -> 107.85 | E126: =OFFSET(InputPriceData!D$15,CalculationsAndCharts!$A126+$A$11,IF($C$7,8,0),1,1) -> 108.02 | F126: =OFFSET(InputPriceData!E$15,CalculationsAndCharts!$A126+$A$11,IF($C$7,8,0),1,1) -> 106.53 | G126: =OFFSET(InputPriceData!F$15,CalculationsAndCharts!$A126+$A$11,IF($C$7,8,0),1,1) -> 107.2 | H126: -73 | I126: -73 | J126: 94 | K126: 2016-06-02 | L126: 473200 | M126: 118.86 | N126: 121.16 | O126: 118.86 | P126: 121.16 | Q126: 1 | S126: 120.3933333 | T126: 107.36 | U126: 84.682 | V126: 42.7131 | W126: 111.3077619 | X126: 2.3 | Y126: 8.490461538 | Z126: 111.5438095 | AA126: 119.3604027 | AB126: 104.5088757 | AC126: 111.3077619 | AD126: 5.368172408 | AE126: 124.1913757 | AF126: 98.42414813 | AG126: 111.3077619 | BB126: 107.25 | BC126: 100.2528 | BD126: 103.8476 | BE126: 109.23465 | BF126: 104.8473492 | BG126: 1.49 | BH126: 6.213538462 | BI126: 104.9744286 | BJ126: 111.0589682 | BK126: 99.4983429 | BL126: 104.8473492 | BM126: 3.391939674 | BN126: 112.9880044 | BO126: 96.70669399 | BP126: 104.8473492
A127: 95 | B127: =OFFSET(InputPriceData!B$15,CalculationsAndCharts!$A127+$A$11,0,1,1) -> 2018-07-09 | C127: =OFFSET(InputPriceData!G$15,CalculationsAndCharts!$A127+$A$11,IF($C$7,8,0),1,1) -> 282700 | D127: =OFFSET(InputPriceData!C$15,CalculationsAndCharts!$A127+$A$11,IF($C$7,8,0),1,1) -> 106.55 | E127: =OFFSET(InputPriceData!D$15,CalculationsAndCharts!$A127+$A$11,IF($C$7,8,0),1,1) -> 107.94 | F127: =OFFSET(InputPriceData!E$15,CalculationsAndCharts!$A127+$A$11,IF($C$7,8,0),1,1) -> 106.55 | G127: =OFFSET(InputPriceData!F$15,CalculationsAndCharts!$A127+$A$11,IF($C$7,8,0),1,1) -> 107.5 | H127: -74 | I127: -74 | J127: 95 | K127: 2016-06-01 | L127: 835900 | M127: 116.56 | N127: 118.86 | O127: 116.39 | P127: 118.86 | Q127: 3 | S127: 118.0366667 | T127: 106.578 | U127: 83.831 | V127: 42.1073 | W127: 110.2591587 | X127: 2.47 | Y127: 8.624 | Z127: 110.4047619 | AA127: 118.4152841 | AB127: 103.1952919 | AC127: 110.2591587 | AD127: 4.802540994 | AE127: 121.7852571 | AF127: 98.73306034 | AG127: 110.2591587 | BB127: 107.33 | BC127: 100.0256 | BD127: 103.9048 | BE127: 109.23265 | BF127: 104.4188095 | BG127: 1.58 | BH127: 6.214769231 | BI127: 104.5753333 | BJ127: 110.6210223 | BK127: 99.13421326 | BL127: 104.4188095 | BM127: 3.670655902 | BN127: 113.2283837 | BO127: 95.60923536 | BP127: 104.4188095
A128: 96 | B128: =OFFSET(InputPriceData!B$15,CalculationsAndCharts!$A128+$A$11,0,1,1) -> 2018-07-06 | C128: =OFFSET(InputPriceData!G$15,CalculationsAndCharts!$A128+$A$11,IF($C$7,8,0),1,1) -> 357000 | D128: =OFFSET(InputPriceData!C$15,CalculationsAndCharts!$A128+$A$11,IF($C$7,8,0),1,1) -> 104.95 | E128: =OFFSET(InputPriceData!D$15,CalculationsAndCharts!$A128+$A$11,IF($C$7,8,0),1,1) -> 107.02 | F128: =OFFSET(InputPriceData!E$15,CalculationsAndCharts!$A128+$A$11,IF($C$7,8,0),1,1) -> 104.95 | G128: =OFFSET(InputPriceData!F$15,CalculationsAndCharts!$A128+$A$11,IF($C$7,8,0),1,1) -> 106.36 | H128: -75 | I128: -75 | J128: 96 | K128: 2016-05-26 | L128: 254100 | M128: 114.26 | N128: 116.56 | O128: 114.66 | P128: 116.56 | Q128: 2 | S128: 115.9266667 | T128: 105.888 | U128: 83.026 | V128: 41.513 | W128: 109.4352698 | X128: 2.3 | Y128: 8.649846154 | Z128: 109.4847619 | AA128: 117.609559 | AB128: 102.1724445 | AC128: 109.4352698 | AD128: 4.802540994 | AE128: 120.9613682 | AF128: 97.90917146 | AG128: 109.4352698 | BB128: 106.11 | BC128: 99.8042 | BD128: 103.9465 | BE128: 109.23355 | BF128: 103.9301111 | BG128: 2.32 | BH128: 6.195076923 | BI128: 104.0935238 | BJ128: 110.1565869 | BK128: 98.63676705 | BL128: 103.9301111 | BM128: 3.809024678 | BN128: 113.0717703 | BO128: 94.78845188 | BP128: 103.9301111
A129: 97 | B129: =OFFSET(InputPriceData!B$15,CalculationsAndCharts!$A129+$A$11,0,1,1) -> 2018-07-05 | C129: =OFFSET(InputPriceData!G$15,CalculationsAndCharts!$A129+$A$11,IF($C$7,8,0),1,1) -> 286100 | D129: =OFFSET(InputPriceData!C$15,CalculationsAndCharts!$A129+$A$11,IF($C$7,8,0),1,1) -> 102.78 | E129: =OFFSET(InputPriceData!D$15,CalculationsAndCharts!$A129+$A$11,IF($C$7,8,0),1,1) -> 104.76 | F129: =OFFSET(InputPriceData!E$15,CalculationsAndCharts!$A129+$A$11,IF($C$7,8,0),1,1) -> 102.45 | G129: =OFFSET(InputPriceData!F$15,CalculationsAndCharts!$A129+$A$11,IF($C$7,8,0),1,1) -> 104.7 | H129: -76 | I129: -76 | J129: 97 | K129: 2016-05-24 | L129: 1480400 | M129: 109.66 | N129: 114.26 | O129: 112.95 | P129: 114.26 | Q129: 4 | S129: 113.8233333 | T129: 105.336 | U129: 81.8604 | V129: 40.9302 | W129: 108.8086508 | X129: 4.6 | Y129: 8.649846154 | Z129: 108.7838095 | AA129: 117.0190906 | AB129: 101.3720566 | AC129: 108.8086508 | AD129: 4.802540994 | AE129: 120.3347492 | AF129: 97.28255241 | AG129: 108.8086508 | BB129: 103.97 | BC129: 99.618 | BD129: 103.987 | BE129: 109.23325 | BF129: 103.5137302 | BG129: 2.42 | BH129: 6.104615385 | BI129: 103.6725238 | BJ129: 109.7172314 | BK129: 98.23228699 | BL129: 103.5137302 | BM129: 3.918731268 | BN129: 112.9186852 | BO129: 94.10877512 | BP129: 103.5137302
A130: 98 | B130: =OFFSET(InputPriceData!B$15,CalculationsAndCharts!$A130+$A$11,0,1,1) -> 2018-07-03 | C130: =OFFSET(InputPriceData!G$15,CalculationsAndCharts!$A130+$A$11,IF($C$7,8,0),1,1) -> 192000 | D130: =OFFSET(InputPriceData!C$15,CalculationsAndCharts!$A130+$A$11,IF($C$7,8,0),1,1) -> 103.12 | E130: =OFFSET(InputPriceData!D$15,CalculationsAndCharts!$A130+$A$11,IF($C$7,8,0),1,1) -> 104.38 | F130: =OFFSET(InputPriceData!E$15,CalculationsAndCharts!$A130+$A$11,IF($C$7,8,0),1,1) -> 102.17 | G130: =OFFSET(InputPriceData!F$15,CalculationsAndCharts!$A130+$A$11,IF($C$7,8,0),1,1) -> 102.34 | H130: -77 | I130: -77 | J130: 98 | K130: 2016-05-18 | L130: 2255800 | M130: 114.26 | N130: 114.19 | O130: 109.66 | P130: 109.66 | Q130: 6 | S130: 111.17 | T130: 104.784 | U130: 80.7178 | V130: 40.3589 | W130: 108.3759048 | X130: 4.6 | Y130: 8.508307692 | Z130: 108.2909524 | AA130: 116.6930383 | AB130: 100.729075 | AC130: 108.3759048 | AD130: 4.706577844 | AE130: 119.6716916 | AF130: 97.08011794 | AG130: 108.3759048 | BB130: 102.9633333 | BC130: 99.4486 | BD130: 104.0509 | BE130: 109.24395 | BF130: 103.2722381 | BG130: 2.21 | BH130: 6.071384615 | BI130: 103.3787143 | BJ130: 109.5117213 | BK130: 97.85900799 | BL130: 103.2722381 | BM130: 3.945325715 | BN130: 112.7410198 | BO130: 93.80345638 | BP130: 103.2722381
A131: 99 | B131: =OFFSET(InputPriceData!B$15,CalculationsAndCharts!$A131+$A$11,0,1,1) -> 2018-07-02 | C131: =OFFSET(InputPriceData!G$15,CalculationsAndCharts!$A131+$A$11,IF($C$7,8,0),1,1) -> 431100 | D131: =OFFSET(InputPriceData!C$15,CalculationsAndCharts!$A131+$A$11,IF($C$7,8,0),1,1) -> 104.07 | E131: =OFFSET(InputPriceData!D$15,CalculationsAndCharts!$A131+$A$11,IF($C$7,8,0),1,1) -> 104.18 | F131: =OFFSET(InputPriceData!E$15,CalculationsAndCharts!$A131+$A$11,IF($C$7,8,0),1,1) -> 101.97 | G131: =OFFSET(InputPriceData!F$15,CalculationsAndCharts!$A131+$A$11,IF($C$7,8,0),1,1) -> 103.03 | H131: -78 | I131: -78 | J131: 99 | K131: 2016-05-10 | L131: 0 | M131: 111.96 | N131: 114.26 | O131: 111.96 | P131: 114.26 | Q131: 1 | S131: 113.4933333 | T131: 104.278 | U131: 79.6212 | V131: 39.8106 | W131: 108.2179048 | X131: 2.3 | Y131: 8.366769231 | Z131: 108.2580952 | AA131: 116.1853708 | AB131: 101.1235473 | AC131: 108.2179048 | AD131: 4.839573845 | AE131: 119.832882 | AF131: 96.60292753 | AG131: 108.2179048 | BB131: 103.06 | BC131: 99.3504 | BD131: 104.1447 | BE131: 109.2596 | BF131: 103.0968571 | BG131: 2.59 | BH131: 6.124307692 | BI131: 103.2855238 | BJ131: 109.4250203 | BK131: 97.75997693 | BL131: 103.0968571 | BM131: 4.052036864 | BN131: 112.8217456 | BO131: 93.37196867 | BP131: 103.0968571
A132: 100 | B132: =OFFSET(InputPriceData!B$15,CalculationsAndCharts!$A132+$A$11,0,1,1) -> 2018-06-29 | C132: =OFFSET(InputPriceData!G$15,CalculationsAndCharts!$A132+$A$11,IF($C$7,8,0),1,1) -> 541100 | D132: =OFFSET(InputPriceData!C$15,CalculationsAndCharts!$A132+$A$11,IF($C$7,8,0),1,1) -> 105.44 | E132: =OFFSET(InputPriceData!D$15,CalculationsAndCharts!$A132+$A$11,IF($C$7,8,0),1,1) -> 105.62 | F132: =OFFSET(InputPriceData!E$15,CalculationsAndCharts!$A132+$A$11,IF($C$7,8,0),1,1) -> 103.98 | G132: =OFFSET(InputPriceData!F$15,CalculationsAndCharts!$A132+$A$11,IF($C$7,8,0),1,1) -> 104.56 | H132: -79 | I132: -79 | J132: 100 | K132: 2016-05-09 | L132: 4954600 | M132: 109.66 | N132: 111.96 | O132: 107.1 | P132: 111.96 | Q132: 13 | S132: 110.34 | T132: 103.588 | U132: 78.4786 | V132: 39.2393 | W132: 107.8568889 | X132: 4.86 | Y132: 8.366769231 | Z132: 107.7980952 | AA132: 115.8538454 | AB132: 100.5479201 | AC132: 107.8568889 | AD132: 4.9809738 | AE132: 119.811226 | AF132: 95.90255177 | AG132: 107.8568889 | BB132: 104.72 | BC132: 99.2898 | BD132: 104.256 | BE132: 109.26445 | BF132: 102.8811746 | BG132: 1.67 | BH132: 6.086153846 | BI132: 103.0917143 | BJ132: 109.0924032 | BK132: 97.69109426 | BL132: 102.8811746 | BM132: 4.212851172 | BN132: 112.9920174 | BO132: 92.77033179 | BP132: 102.8811746
A133: 101 | B133: =OFFSET(InputPriceData!B$15,CalculationsAndCharts!$A133+$A$11,0,1,1) -> 2018-06-28 | C133: =OFFSET(InputPriceData!G$15,CalculationsAndCharts!$A133+$A$11,IF($C$7,8,0),1,1) -> 911400 | D133: =OFFSET(InputPriceData!C$15,CalculationsAndCharts!$A133+$A$11,IF($C$7,8,0),1,1) -> 105.63 | E133: =OFFSET(InputPriceData!D$15,CalculationsAndCharts!$A133+$A$11,IF($C$7,8,0),1,1) -> 106.7 | F133: =OFFSET(InputPriceData!E$15,CalculationsAndCharts!$A133+$A$11,IF($C$7,8,0),1,1) -> 104.11 | G133: =OFFSET(InputPriceData!F$15,CalculationsAndCharts!$A133+$A$11,IF($C$7,8,0),1,1) -> 105.65 | H133: -80 | I133: -80 | J133: 101 | K133: 2016-04-20 | L133: 2826200 | M133: 105.06 | N133: 109.66 | O133: 107.16 | P133: 109.66 | Q133: 7 | S133: 108.8266667 | T133: 103.036 | U133: 77.359 | V133: 38.6795 | W133: 107.8422222 | X133: 4.6 | Y133: 8.209230769 | Z133: 107.59 | AA133: 115.644269 | AB133: 100.3411579 | AC133: 107.8422222 | AD133: 5.368172408 | AE133: 120.725836 | AF133: 94.95860844 | AG133: 107.8422222 | BB133: 105.4866667 | BC133: 99.2124 | BD133: 104.3502 | BE133: 109.2694 | BF133: 102.4681587 | BG133: 2.59 | BH133: 6.089846154 | BI133: 102.7124762 | BJ133: 108.6329985 | BK133: 97.38400615 | BL133: 102.4681587 | BM133: 4.251916744 | BN133: 112.6727589 | BO133: 92.26355854 | BP133: 102.4681587
A134: 102 | B134: =OFFSET(InputPriceData!B$15,CalculationsAndCharts!$A134+$A$11,0,1,1) -> 2018-06-27 | C134: =OFFSET(InputPriceData!G$15,CalculationsAndCharts!$A134+$A$11,IF($C$7,8,0),1,1) -> 622700 | D134: =OFFSET(InputPriceData!C$15,CalculationsAndCharts!$A134+$A$11,IF($C$7,8,0),1,1) -> 106.23 | E134: =OFFSET(InputPriceData!D$15,CalculationsAndCharts!$A134+$A$11,IF($C$7,8,0),1,1) -> 107.93 | F134: =OFFSET(InputPriceData!E$15,CalculationsAndCharts!$A134+$A$11,IF($C$7,8,0),1,1) -> 104.49 | G134: =OFFSET(InputPriceData!F$15,CalculationsAndCharts!$A134+$A$11,IF($C$7,8,0),1,1) -> 105.99 | H134: -81 | I134: -81 | J134: 102 | K134: 2016-04-11 | L134: 3129500 | M134: 109.66 | N134: 108.39 | O134: 105.06 | P134: 105.06 | Q134: 8 | S134: 106.17 | T134: 102.484 | U134: 76.2624 | V134: 38.1312 | W134: 108.0363175 | X134: 4.6 | Y134: 8.224 | Z134: 107.6666667 | AA134: 116.0947141 | AB134: 100.0814239 | AC134: 108.0363175 | AD134: 6.140396974 | AE134: 122.7732702 | AF134: 93.29936472 | AG134: 108.0363175 | BB134: 106.1366667 | BC134: 99.121 | BD134: 104.4145 | BE134: 109.2697 | BF134: 101.9412222 | BG134: 3.44 | BH134: 6.023384615 | BI134: 102.185 | BJ134: 107.9921474 | BK134: 96.95856731 | BL134: 101.9412222 | BM134: 4.181081529 | BN134: 111.9758179 | BO134: 91.90662655 | BP134: 101.9412222
A135: 103 | B135: =OFFSET(InputPriceData!B$15,CalculationsAndCharts!$A135+$A$11,0,1,1) -> 2018-06-26 | C135: =OFFSET(InputPriceData!G$15,CalculationsAndCharts!$A135+$A$11,IF($C$7,8,0),1,1) -> 490000 | D135: =OFFSET(InputPriceData!C$15,CalculationsAndCharts!$A135+$A$11,IF($C$7,8,0),1,1) -> 108.07 | E135: =OFFSET(InputPriceData!D$15,CalculationsAndCharts!$A135+$A$11,IF($C$7,8,0),1,1) -> 108.37 | F135: =OFFSET(InputPriceData!E$15,CalculationsAndCharts!$A135+$A$11,IF($C$7,8,0),1,1) -> 106.42 | G135: =OFFSET(InputPriceData!F$15,CalculationsAndCharts!$A135+$A$11,IF($C$7,8,0),1,1) -> 106.68 | H135: -82 | I135: -82 | J135: 103 | K135: 2016-03-30 | L135: 1978700 | M135: 107.36 | N135: 109.66 | O135: 104.9 | P135: 109.66 | Q135: 5 | S135: 108.0733333 | T135: 101.978 | U135: 75.2118 | V135: 37.6059 | W135: 108.5511587 | X135: 4.76 | Y135: 8.082461538 | Z135: 108.2580952 | AA135: 116.2372298 | AB135: 101.0768742 | AC135: 108.5511587 | AD135: 6.427666762 | AE135: 123.977559 | AF135: 93.1247585 | AG135: 108.5511587 | BB135: 107.1566667 | BC135: 99.023 | BD135: 104.5177 | BE135: 109.26385 | BF135: 101.3124603 | BG135: 1.95 | BH135: 6.020307692 | BI135: 101.5887619 | BJ135: 107.3217541 | BK135: 96.42906895 | BL135: 101.3124603 | BM135: 3.970242404 | BN135: 110.8410421 | BO135: 91.78387855 | BP135: 101.3124603
A136: 104 | B136: =OFFSET(InputPriceData!B$15,CalculationsAndCharts!$A136+$A$11,0,1,1) -> 2018-06-25 | C136: =OFFSET(InputPriceData!G$15,CalculationsAndCharts!$A136+$A$11,IF($C$7,8,0),1,1) -> 609800 | D136: =OFFSET(InputPriceData!C$15,CalculationsAndCharts!$A136+$A$11,IF($C$7,8,0),1,1) -> 106.32 | E136: =OFFSET(InputPriceData!D$15,CalculationsAndCharts!$A136+$A$11,IF($C$7,8,0),1,1) -> 108.25 | F136: =OFFSET(InputPriceData!E$15,CalculationsAndCharts!$A136+$A$11,IF($C$7,8,0),1,1) -> 105.75 | G136: =OFFSET(InputPriceData!F$15,CalculationsAndCharts!$A136+$A$11,IF($C$7,8,0),1,1) -> 107.81 | H136: -83 | I136: -83 | J136: 104 | K136: 2016-03-22 | L136: 1315300 | M136: 105.06 | N136: 107.36 | O136: 105.61 | P136: 107.36 | Q136: 3 | S136: 106.7766667 | T136: 101.334 | U136: 74.1152 | V136: 37.0576 | W136: 108.9324444 | X136: 2.3 | Y136: 8.094153846 | Z136: 108.4552381 | AA136: 116.6319648 | AB136: 101.096184 | AC136: 108.9324444 | AD136: 6.622242822 | AE136: 124.8258272 | AF136: 93.03906167 | AG136: 108.9324444 | BB136: 107.27 | BC136: 98.9112 | BD136: 104.6414 | BE136: 109.26 | BF136: 100.533746 | BG136: 2.5 | BH136: 6.091076923 | BI136: 100.8772381 | BJ136: 106.5766261 | BK136: 95.74778892 | BL136: 100.533746 | BM136: 3.697950649 | BN136: 109.4088276 | BO136: 91.65866447 | BP136: 100.533746
A137: 105 | B137: =OFFSET(InputPriceData!B$15,CalculationsAndCharts!$A137+$A$11,0,1,1) -> 2018-06-22 | C137: =OFFSET(InputPriceData!G$15,CalculationsAndCharts!$A137+$A$11,IF($C$7,8,0),1,1) -> 1017900 | D137: =OFFSET(InputPriceData!C$15,CalculationsAndCharts!$A137+$A$11,IF($C$7,8,0),1,1) -> 106.97 | E137: =OFFSET(InputPriceData!D$15,CalculationsAndCharts!$A137+$A$11,IF($C$7,8,0),1,1) -> 107.59 | F137: =OFFSET(InputPriceData!E$15,CalculationsAndCharts!$A137+$A$11,IF($C$7,8,0),1,1) -> 105.18 | G137: =OFFSET(InputPriceData!F$15,CalculationsAndCharts!$A137+$A$11,IF($C$7,8,0),1,1) -> 106.31 | H137: -84 | I137: -84 | J137: 105 | K137: 2016-03-17 | L137: 6569100 | M137: 100.46 | N137: 105.06 | O137: 104.37 | P137: 105.06 | Q137: 10 | S137: 104.83 | T137: 100.69 | U137: 73.0416 | V137: 36.5208 | W137: 109.4801746 | X137: 4.6 | Y137: 8.094153846 | Z137: 108.9152381 | AA137: 117.3064116 | AB137: 101.3631819 | AC137: 109.4801746 | AD137: 6.622242822 | AE137: 125.3735574 | AF137: 93.58679183 | AG137: 109.4801746 | BB137: 106.36 | BC137: 98.771 | BD137: 104.7652 | BE137: 109.2554 | BF137: 99.69085714 | BG137: 2.41 | BH137: 6.022153846 | BI137: 100.0008095 | BJ137: 105.665566 | BK137: 94.90252871 | BL137: 99.69085714 | BM137: 3.194069309 | BN137: 107.3566235 | BO137: 92.0250908 | BP137: 99.69085714
A138: 106 | B138: =OFFSET(InputPriceData!B$15,CalculationsAndCharts!$A138+$A$11,0,1,1) -> 2018-06-21 | C138: =OFFSET(InputPriceData!G$15,CalculationsAndCharts!$A138+$A$11,IF($C$7,8,0),1,1) -> 809200 | D138: =OFFSET(InputPriceData!C$15,CalculationsAndCharts!$A138+$A$11,IF($C$7,8,0),1,1) -> 103.21 | E138: =OFFSET(InputPriceData!D$15,CalculationsAndCharts!$A138+$A$11,IF($C$7,8,0),1,1) -> 106.51 | F138: =OFFSET(InputPriceData!E$15,CalculationsAndCharts!$A138+$A$11,IF($C$7,8,0),1,1) -> 103.21 | G138: =OFFSET(InputPriceData!F$15,CalculationsAndCharts!$A138+$A$11,IF($C$7,8,0),1,1) -> 106.14 | H138: -85 | I138: -85 | J138: 106 | K138: 2016-03-03 | L138: 1759500 | M138: 102.76 | N138: 104.4 | O138: 100.46 | P138: 100.46 | Q138: 3 | S138: 101.7733333 | T138: 100.046 | U138: 71.991 | V138: 35.9955 | W138: 110.2532222 | X138: 3.94 | Y138: 7.952615385 | Z138: 109.6380952 | AA138: 118.3172671 | AB138: 101.8268406 | AC138: 110.2532222 | AD138: 6.427666762 | AE138: 125.6796225 | AF138: 94.82682199 | AG138: 110.2532222 | BB138: 105.2866667 | BC138: 98.7694 | BD138: 104.9202 | BE138: 109.24995 | BF138: 98.89022222 | BG138: 3.3 | BH138: 5.988307692 | BI138: 99.21928571 | BJ138: 104.817134 | BK138: 94.1812223 | BL138: 98.89022222 | BM138: 2.694882929 | BN138: 105.3579413 | BO138: 92.42250319 | BP138: 98.89022222
A139: 107 | B139: =OFFSET(InputPriceData!B$15,CalculationsAndCharts!$A139+$A$11,0,1,1) -> 2018-06-20 | C139: =OFFSET(InputPriceData!G$15,CalculationsAndCharts!$A139+$A$11,IF($C$7,8,0),1,1) -> 609700 | D139: =OFFSET(InputPriceData!C$15,CalculationsAndCharts!$A139+$A$11,IF($C$7,8,0),1,1) -> 100.54 | E139: =OFFSET(InputPriceData!D$15,CalculationsAndCharts!$A139+$A$11,IF($C$7,8,0),1,1) -> 103.31 | F139: =OFFSET(InputPriceData!E$15,CalculationsAndCharts!$A139+$A$11,IF($C$7,8,0),1,1) -> 99.36 | G139: =OFFSET(InputPriceData!F$15,CalculationsAndCharts!$A139+$A$11,IF($C$7,8,0),1,1) -> 103.22 | H139: -86 | I139: -86 | J139: 107 | K139: 2016-02-29 | L139: 795800 | M139: 107.36 | N139: 107.99 | O139: 102.76 | P139: 102.76 | Q139: 2 | S139: 104.5033333 | T139: 99.448 | U139: 70.9864 | V139: 35.4932 | W139: 111.3603175 | X139: 5.23 | Y139: 7.993230769 | Z139: 110.8538095 | AA139: 119.4766207 | AB139: 103.0932794 | AC139: 111.3603175 | AD139: 5.794676436 | AE139: 125.2675409 | AF139: 97.45309401 | AG139: 111.3603175 | BB139: 101.9633333 | BC139: 98.7786 | BD139: 105.0892 | BE139: 109.23715 | BF139: 98.16312698 | BG139: 3.95 | BH139: 5.854153846 | BI139: 98.42166667 | BJ139: 104.0036816 | BK139: 93.39785325 | BL139: 98.16312698 | BM139: 1.999371151 | BN139: 102.9616177 | BO139: 93.36463622 | BP139: 98.16312698
A140: 108 | B140: =OFFSET(InputPriceData!B$15,CalculationsAndCharts!$A140+$A$11,0,1,1) -> 2018-06-19 | C140: =OFFSET(InputPriceData!G$15,CalculationsAndCharts!$A140+$A$11,IF($C$7,8,0),1,1) -> 477500 | D140: =OFFSET(InputPriceData!C$15,CalculationsAndCharts!$A140+$A$11,IF($C$7,8,0),1,1) -> 99.66 | E140: =OFFSET(InputPriceData!D$15,CalculationsAndCharts!$A140+$A$11,IF($C$7,8,0),1,1) -> 100.52 | F140: =OFFSET(InputPriceData!E$15,CalculationsAndCharts!$A140+$A$11,IF($C$7,8,0),1,1) -> 98.85 | G140: =OFFSET(InputPriceData!F$15,CalculationsAndCharts!$A140+$A$11,IF($C$7,8,0),1,1) -> 100.06 | H140: -87 | I140: -87 | J140: 108 | K140: 2016-02-25 | L140: 2173800 | M140: 102.76 | N140: 107.36 | O140: 104.22 | P140: 107.36 | Q140: 5 | S140: 106.3133333 | T140: 98.758 | U140: 69.9588 | V140: 34.9794 | W140: 112.2287619 | X140: 4.6 | Y140: 7.812923077 | Z140: 111.8833333 | AA140: 120.0254335 | AB140: 104.5554432 | AC140: 112.2287619 | AD140: 5.349663541 | AE140: 125.0679544 | AF140: 99.38956941 | AG140: 112.2287619 | BB140: 99.81 | BC140: 98.8482 | BD140: 105.3219 | BE140: 109.2422 | BF140: 97.73001587 | BG140: 1.67 | BH140: 5.745846154 | BI140: 97.86919048 | BJ140: 103.4892316 | BK140: 92.81115349 | BL140: 97.73001587 | BM140: 1.58026232 | BN140: 101.5226454 | BO140: 93.93738631 | BP140: 97.73001587
A141: 109 | B141: =OFFSET(InputPriceData!B$15,CalculationsAndCharts!$A141+$A$11,0,1,1) -> 2018-06-18 | C141: =OFFSET(InputPriceData!G$15,CalculationsAndCharts!$A141+$A$11,IF($C$7,8,0),1,1) -> 641200 | D141: =OFFSET(InputPriceData!C$15,CalculationsAndCharts!$A141+$A$11,IF($C$7,8,0),1,1) -> 100 | E141: =OFFSET(InputPriceData!D$15,CalculationsAndCharts!$A141+$A$11,IF($C$7,8,0),1,1) -> 102.02 | F141: =OFFSET(InputPriceData!E$15,CalculationsAndCharts!$A141+$A$11,IF($C$7,8,0),1,1) -> 99.23 | G141: =OFFSET(InputPriceData!F$15,CalculationsAndCharts!$A141+$A$11,IF($C$7,8,0),1,1) -> 100.11 | H141: -88 | I141: -88 | J141: 109 | K141: 2016-02-18 | L141: 0 | M141: 105.06 | N141: 105.06 | O141: 102.76 | P141: 102.76 | Q141: 1 | S141: 103.5266667 | T141: 97.884 | U141: 68.8852 | V141: 34.4426 | W141: 112.9217619 | X141: 2.3 | Y141: 7.671384615 | Z141: 112.4747619 | AA141: 120.8713866 | AB141: 104.9177996 | AC141: 112.9217619 | AD141: 5.349663541 | AE141: 125.7609544 | AF141: 100.0825694 | AG141: 112.9217619 | BB141: =SUM(E141:G141)/3 -> 100.4533333 | BC141: 98.979 | BD141: 105.5528 | BE141: 109.2627 | BF141: 97.50304762 | BG141: =IF(A141<$A$8,MAX(E141,G142)-MIN(F141,G142),IF(A141=$A$8,E141-F141,NA())) -> 2.79 | BH141: 5.790769231 | BI141: 97.61647619 | BJ141: =BI141+BI141*BH141/G141 -> 103.2630099 | BK141: 92.53459588 | BL141: 97.50304762 | BM141: 1.560183563 | BN141: 101.2474882 | BO141: 93.75860707 | BP141: 97.50304762
A142: 110 | B142: =OFFSET(InputPriceData!B$15,CalculationsAndCharts!$A142+$A$11,0,1,1) -> 2018-06-15 | C142: =OFFSET(InputPriceData!G$15,CalculationsAndCharts!$A142+$A$11,IF($C$7,8,0),1,1) -> 601900 | D142: =OFFSET(InputPriceData!C$15,CalculationsAndCharts!$A142+$A$11,IF($C$7,8,0),1,1) -> 98.68 | E142: =OFFSET(InputPriceData!D$15,CalculationsAndCharts!$A142+$A$11,IF($C$7,8,0),1,1) -> 100.52 | F142: =OFFSET(InputPriceData!E$15,CalculationsAndCharts!$A142+$A$11,IF($C$7,8,0),1,1) -> 98.57 | G142: =OFFSET(InputPriceData!F$15,CalculationsAndCharts!$A142+$A$11,IF($C$7,8,0),1,1) -> 100.33 | H142: -89 | I142: -89 | J142: 110 | K142: 2016-02-17 | L142: 0 | M142: 107.36 | N142: 107.36 | O142: 105.06 | P142: 105.06 | Q142: 0 | S142: 105.8266667 | T142: 97.148 | U142: 67.8576 | V142: 33.9288 | W142: 113.8807619 | X142: 2.3 | Y142: 7.812923077 | Z142: 113.5152381 | AA142: 121.9569459 | AB142: 105.9177011 | AC142: 113.8807619 | AD142: 5.13652363 | AE142: 126.2084186 | AF142: 101.5531052 | AG142: 113.8807619 | BB142: 99.80666667 | BC142: 99.1042 | BD142: 105.7882 | BE142: 109.28055 | BF142: 97.2145873 | BG142: 1.95 | BH142: 5.827692308 | BI142: 97.35890476 | BJ142: 103.0140203 | BK142: 92.26930079 | BL142: 97.2145873 | BM142: 1.558455886 | BN142: 100.9548814 | BO142: 93.47429317 | BP142: 97.2145873
A143: 111 | B143: =OFFSET(InputPriceData!B$15,CalculationsAndCharts!$A143+$A$11,0,1,1) -> 2018-06-14 | C143: =OFFSET(InputPriceData!G$15,CalculationsAndCharts!$A143+$A$11,IF($C$7,8,0),1,1) -> 439400 | D143: =OFFSET(InputPriceData!C$15,CalculationsAndCharts!$A143+$A$11,IF($C$7,8,0),1,1) -> 98.68 | E143: =OFFSET(InputPriceData!D$15,CalculationsAndCharts!$A143+$A$11,IF($C$7,8,0),1,1) -> 99.78 | F143: =OFFSET(InputPriceData!E$15,CalculationsAndCharts!$A143+$A$11,IF($C$7,8,0),1,1) -> 98.36 | G143: =OFFSET(InputPriceData!F$15,CalculationsAndCharts!$A143+$A$11,IF($C$7,8,0),1,1) -> 98.62 | H143: -90 | I143: -90 | J143: 111 | K143: 2016-02-17 | L143: 1661800 | M143: 109.66 | N143: 114.85 | O143: 107.36 | P143: 107.36 | Q143: 5 | S143: 109.8566667 | T143: 96.458 | U143: 66.807 | V143: 33.4035 | W143: 114.5988095 | X143: 7.49 | Y143: 7.970461538 | Z143: 114.3147619 | AA143: 122.8015485 | AB143: 106.6766539 | AC143: 114.5988095 | AD143: 5.599685259 | AE143: 128.0380541 | AF143: 101.1595649 | AG143: 114.5988095 | BB143: 98.92 | BC143: 99.234 | BD143: 106.0133 | BE143: 109.29195 | BF143: 96.9937619 | BG143: 1.42 | BH143: 5.868923077 | BI143: 97.08228571 | BJ143: 102.8596987 | BK143: 91.88261404 | BL143: 96.9937619 | BM143: 1.597925139 | BN143: 100.8287822 | BO143: 93.15874157 | BP143: 96.9937619
A144: 112 | B144: =OFFSET(InputPriceData!B$15,CalculationsAndCharts!$A144+$A$11,0,1,1) -> 2018-06-13 | C144: =OFFSET(InputPriceData!G$15,CalculationsAndCharts!$A144+$A$11,IF($C$7,8,0),1,1) -> 994400 | D144: =OFFSET(InputPriceData!C$15,CalculationsAndCharts!$A144+$A$11,IF($C$7,8,0),1,1) -> 96.05 | E144: =OFFSET(InputPriceData!D$15,CalculationsAndCharts!$A144+$A$11,IF($C$7,8,0),1,1) -> 100.09 | F144: =OFFSET(InputPriceData!E$15,CalculationsAndCharts!$A144+$A$11,IF($C$7,8,0),1,1) -> 94.8 | G144: =OFFSET(InputPriceData!F$15,CalculationsAndCharts!$A144+$A$11,IF($C$7,8,0),1,1) -> 98.69 | H144: -91 | I144: -91 | J144: 112 | K144: 2016-02-09 | L144: 0 | M144: 111.96 | N144: 111.96 | O144: 109.66 | P144: 109.66 | Q144: 1 | S144: 110.4266667 | T144: 95.676 | U144: 65.7334 | V144: 32.8667 | W144: 114.9030952 | X144: 2.3 | Y144: 7.651076923 | Z144: 114.8733333 | AA144: 122.8881492 | AB144: 107.659999 | AC144: 114.9030952 | AD144: 5.930031619 | AE144: 129.1351711 | AF144: 100.6710194 | AG144: 114.9030952 | BB144: 97.86 | BC144: 99.4366 | BD144: 106.2366 | BE144: 109.31765 | BF144: 96.86653968 | BG144: 5.29 | BH144: 5.848 | BI144: 96.97990476 | BJ144: 102.7265709 | BK144: 91.80790522 | BL144: 96.86653968 | BM144: 1.763568825 | BN144: 101.0991049 | BO144: 92.6339745 | BP144: 96.86653968
A145: 113 | B145: =OFFSET(InputPriceData!B$15,CalculationsAndCharts!$A145+$A$11,0,1,1) -> 2018-06-12 | C145: =OFFSET(InputPriceData!G$15,CalculationsAndCharts!$A145+$A$11,IF($C$7,8,0),1,1) -> 2283800 | D145: =OFFSET(InputPriceData!C$15,CalculationsAndCharts!$A145+$A$11,IF($C$7,8,0),1,1) -> 93.84 | E145: =OFFSET(InputPriceData!D$15,CalculationsAndCharts!$A145+$A$11,IF($C$7,8,0),1,1) -> 96.77 | F145: =OFFSET(InputPriceData!E$15,CalculationsAndCharts!$A145+$A$11,IF($C$7,8,0),1,1) -> 89.97 | G145: =OFFSET(InputPriceData!F$15,CalculationsAndCharts!$A145+$A$11,IF($C$7,8,0),1,1) -> 96.19 | H145: -92 | I145: -92 | J145: 113 | K145: 2016-02-08 | L145: 0 | M145: 114.26 | N145: 114.26 | O145: 111.96 | P145: 111.96 | Q145: 1 | S145: 112.7266667 | T145: 94.756 | U145: 64.6368 | V145: 32.3184 | W145: 115.135873 | X145: 2.3 | Y145: 7.731692308 | Z145: 115.2019048 | AA145: 123.1574753 | AB145: 108.0418913 | AC145: 115.135873 | AD145: 6.019676071 | AE145: 129.5830956 | AF145: 100.6886504 | AG145: 115.135873 | BB145: 94.31 | BC145: 99.629 | BD145: 106.4591 | BE145: 109.34245 | BF145: 96.84979365 | BG145: 6.8 | BH145: 5.646153846 | BI145: 96.87647619 | BJ145: 102.5629248 | BK145: 91.75867247 | BL145: 96.84979365 | BM145: 1.819731848 | BN145: 101.2171501 | BO145: 92.48243721 | BP145: 96.84979365
A146: 114 | B146: =OFFSET(InputPriceData!B$15,CalculationsAndCharts!$A146+$A$11,0,1,1) -> 2018-06-11 | C146: =OFFSET(InputPriceData!G$15,CalculationsAndCharts!$A146+$A$11,IF($C$7,8,0),1,1) -> 639700 | D146: =OFFSET(InputPriceData!C$15,CalculationsAndCharts!$A146+$A$11,IF($C$7,8,0),1,1) -> 96.21 | E146: =OFFSET(InputPriceData!D$15,CalculationsAndCharts!$A146+$A$11,IF($C$7,8,0),1,1) -> 97.14 | F146: =OFFSET(InputPriceData!E$15,CalculationsAndCharts!$A146+$A$11,IF($C$7,8,0),1,1) -> 95.06 | G146: =OFFSET(InputPriceData!F$15,CalculationsAndCharts!$A146+$A$11,IF($C$7,8,0),1,1) -> 95.9 | H146: -93 | I146: -93 | J146: 114 | K146: 2016-02-05 | L146: 1260900 | M146: 118.86 | N146: 117.2 | O146: 114.26 | P146: 114.26 | Q146: 4 | S146: 115.24 | T146: 93.836 | U146: 63.5172 | V146: 31.7586 | W146: 115.106 | X146: 4.6 | Y146: 7.731692308 | Z146: 115.2785714 | AA146: 123.079188 | AB146: 108.2580166 | AC146: 115.106 | AD146: 6.268291234 | AE146: 130.149899 | AF146: 100.062101 | AG146: 115.106 | BB146: 96.03333333 | BC146: 99.8726 | BD146: 106.7207 | BE146: 109.3688 | BF146: 97.19587302 | BG146: 2.08 | BH146: 5.339076923 | BI146: 97.02795238 | BJ146: 102.4298262 | BK146: 92.16626592 | BL146: 97.19587302 | BM146: 1.845040582 | BN146: 101.6239704 | BO146: 92.76777562 | BP146: 97.19587302
A147: 115 | B147: =OFFSET(InputPriceData!B$15,CalculationsAndCharts!$A147+$A$11,0,1,1) -> 2018-06-08 | C147: =OFFSET(InputPriceData!G$15,CalculationsAndCharts!$A147+$A$11,IF($C$7,8,0),1,1) -> 502700 | D147: =OFFSET(InputPriceData!C$15,CalculationsAndCharts!$A147+$A$11,IF($C$7,8,0),1,1) -> 96.26 | E147: =OFFSET(InputPriceData!D$15,CalculationsAndCharts!$A147+$A$11,IF($C$7,8,0),1,1) -> 97.17 | F147: =OFFSET(InputPriceData!E$15,CalculationsAndCharts!$A147+$A$11,IF($C$7,8,0),1,1) -> 95.59 | G147: =OFFSET(InputPriceData!F$15,CalculationsAndCharts!$A147+$A$11,IF($C$7,8,0),1,1) -> 96.13 | H147: -94 | I147: -94 | J147: 115 | K147: 2016-02-01 | L147: 445900 | M147: 116.56 | N147: 118.86 | O147: 116.56 | P147: 118.86 | Q147: 1 | S147: 118.0933333 | T147: 92.916 | U147: 62.3746 | V147: 31.1873 | W147: 114.772746 | X147: 2.3 | Y147: 7.590153846 | Z147: 115.0814286 | AA147: 122.4302907 | AB147: 108.4674527 | AC147: 114.772746 | AD147: 6.622242822 | AE147: 130.6661288 | AF147: 98.87936326 | AG147: 114.772746 | BB147: 96.29666667 | BC147: 100.1334 | BD147: 106.9792 | BE147: 109.40645 | BF147: 97.39292063 | BG147: 1.58 | BH147: 5.385846154 | BI147: 97.223 | BJ147: 102.6700833 | BK147: 92.320625 | BL147: 97.39292063 | BM147: 1.818591763 | BN147: 101.7575409 | BO147: 93.0283004 | BP147: 97.39292063
A148: 116 | B148: =OFFSET(InputPriceData!B$15,CalculationsAndCharts!$A148+$A$11,0,1,1) -> 2018-06-07 | C148: =OFFSET(InputPriceData!G$15,CalculationsAndCharts!$A148+$A$11,IF($C$7,8,0),1,1) -> 350200 | D148: =OFFSET(InputPriceData!C$15,CalculationsAndCharts!$A148+$A$11,IF($C$7,8,0),1,1) -> 98.22 | E148: =OFFSET(InputPriceData!D$15,CalculationsAndCharts!$A148+$A$11,IF($C$7,8,0),1,1) -> 98.31 | F148: =OFFSET(InputPriceData!E$15,CalculationsAndCharts!$A148+$A$11,IF($C$7,8,0),1,1) -> 96.05 | G148: =OFFSET(InputPriceData!F$15,CalculationsAndCharts!$A148+$A$11,IF($C$7,8,0),1,1) -> 96.33 | H148: -95 | I148: -95 | J148: 116 | K148: 2016-01-29 | L148: 1978300 | M148: 111.96 | N148: 116.56 | O148: 112.34 | P148: 116.56 | Q148: 6 | S148: 115.1533333 | T148: 91.996 | U148: 61.186 | V148: 30.593 | W148: 114.080127 | X148: 4.6 | Y148: 7.590153846 | Z148: 114.3585714 | AA148: 121.8053727 | AB148: 107.6564503 | AC148: 114.080127 | AD148: 6.903832269 | AE148: 130.6493244 | AF148: 97.51092954 | AG148: 114.080127 | BB148: 96.89666667 | BC148: 100.3434 | BD148: 107.2366 | BE148: 109.44295 | BF148: 97.57736508 | BG148: 2.26 | BH148: 5.692923077 | BI148: 97.40904762 | BJ148: 103.1657404 | BK148: 92.22802412 | BL148: 97.57736508 | BM148: 1.778606969 | BN148: 101.8460218 | BO148: 93.30870835 | BP148: 97.57736508
A149: 117 | B149: =OFFSET(InputPriceData!B$15,CalculationsAndCharts!$A149+$A$11,0,1,1) -> 2018-06-06 | C149: =OFFSET(InputPriceData!G$15,CalculationsAndCharts!$A149+$A$11,IF($C$7,8,0),1,1) -> 391000 | D149: =OFFSET(InputPriceData!C$15,CalculationsAndCharts!$A149+$A$11,IF($C$7,8,0),1,1) -> 97.71 | E149: =OFFSET(InputPriceData!D$15,CalculationsAndCharts!$A149+$A$11,IF($C$7,8,0),1,1) -> 98.37 | F149: =OFFSET(InputPriceData!E$15,CalculationsAndCharts!$A149+$A$11,IF($C$7,8,0),1,1) -> 97.11 | G149: =OFFSET(InputPriceData!F$15,CalculationsAndCharts!$A149+$A$11,IF($C$7,8,0),1,1) -> 98.21 | H149: -96 | I149: -96 | J149: 117 | K149: 2016-01-21 | L149: 4507500 | M149: 114.26 | N149: 113.49 | O149: 111.96 | P149: 111.96 | Q149: 12 | S149: 112.47 | T149: 91.076 | U149: 60.0204 | V149: 30.0102 | W149: 113.5835397 | X149: 2.3 | Y149: 7.448615385 | Z149: 113.7671429 | AA149: 121.3359861 | AB149: 106.9551839 | AC149: 113.5835397 | AD149: 7.349210842 | AE149: 131.2216457 | AF149: 95.94543366 | AG149: 113.5835397 | BB149: 97.89666667 | BC149: 100.5442 | BD149: 107.5037 | BE149: 109.47025 | BF149: 97.71419048 | BG149: 1.26 | BH149: 5.651076923 | BI149: 97.58852381 | BJ149: 103.2038405 | BK149: 92.53473876 | BL149: 97.71419048 | BM149: 1.740713862 | BN149: 101.8919037 | BO149: 93.53647721 | BP149: 97.71419048
A150: 118 | B150: =OFFSET(InputPriceData!B$15,CalculationsAndCharts!$A150+$A$11,0,1,1) -> 2018-06-05 | C150: =OFFSET(InputPriceData!G$15,CalculationsAndCharts!$A150+$A$11,IF($C$7,8,0),1,1) -> 728300 | D150: =OFFSET(InputPriceData!C$15,CalculationsAndCharts!$A150+$A$11,IF($C$7,8,0),1,1) -> 95.58 | E150: =OFFSET(InputPriceData!D$15,CalculationsAndCharts!$A150+$A$11,IF($C$7,8,0),1,1) -> 97.67 | F150: =OFFSET(InputPriceData!E$15,CalculationsAndCharts!$A150+$A$11,IF($C$7,8,0),1,1) -> 95.2 | G150: =OFFSET(InputPriceData!F$15,CalculationsAndCharts!$A150+$A$11,IF($C$7,8,0),1,1) -> 97.27 | H150: -97 | I150: -97 | J150: 118 | K150: 2016-01-04 | L150: 1924900 | M150: 116.56 | N150: 118.88 | O150: 114.26 | P150: 114.26 | Q150: 8 | S150: 115.8 | T150: 90.202 | U150: 58.9008 | V150: 29.4504 | W150: 113.2607619 | X150: 4.62 | Y150: 7.448615385 | Z150: 113.5371429 | AA150: 120.9386351 | AB150: 106.8757998 | AC150: 113.2607619 | AD150: 7.98318702 | AE150: 132.4204108 | AF150: 94.10111306 | AG150: 113.2607619 | BB150: 96.71333333 | BC150: 100.7216 | BD150: 107.7318 | BE150: 109.49305 | BF150: 97.762 | BG150: 2.47 | BH150: 5.698461538 | BI150: 97.58890476 | BJ150: 103.306049 | BK150: 92.44347494 | BL150: 97.762 | BM150: 1.740716519 | BN150: 101.9397196 | BO150: 93.58428035 | BP150: 97.762
A151: 119 | B151: =OFFSET(InputPriceData!B$15,CalculationsAndCharts!$A151+$A$11,0,1,1) -> 2018-06-04 | C151: =OFFSET(InputPriceData!G$15,CalculationsAndCharts!$A151+$A$11,IF($C$7,8,0),1,1) -> 528700 | D151: =OFFSET(InputPriceData!C$15,CalculationsAndCharts!$A151+$A$11,IF($C$7,8,0),1,1) -> 96.72 | E151: =OFFSET(InputPriceData!D$15,CalculationsAndCharts!$A151+$A$11,IF($C$7,8,0),1,1) -> 98.48 | F151: =OFFSET(InputPriceData!E$15,CalculationsAndCharts!$A151+$A$11,IF($C$7,8,0),1,1) -> 95.41 | G151: =OFFSET(InputPriceData!F$15,CalculationsAndCharts!$A151+$A$11,IF($C$7,8,0),1,1) -> 95.7 | H151: -98 | I151: -98 | J151: 119 | K151: 2015-12-21 | L151: 0 | M151: 118.86 | N151: 118.86 | O151: 116.56 | P151: 116.56 | Q151: 1 | S151: 117.3266667 | T151: 89.236 | U151: 57.7582 | V151: 28.8791 | W151: 112.5119365 | X151: 2.3 | Y151: 7.447384615 | Z151: 112.9895238 | AA151: 120.2087795 | AB151: 106.4921937 | AC151: 112.5119365 | AD151: 8.621165814 | AE151: 133.2027345 | AF151: 91.82113855 | AG151: 112.5119365 | BB151: 96.53 | BC151: 100.9052 | BD151: 107.9483 | BE151: 109.5201 | BF151: 97.93903175 | BG151: 3.07 | BH151: 5.625846154 | BI151: 97.694 | BJ151: 103.437066 | BK151: 92.52524062 | BL151: 97.93903175 | BM151: 1.792295386 | BN151: 102.2405407 | BO151: 93.63752282 | BP151: 97.93903175
A152: 120 | B152: =OFFSET(InputPriceData!B$15,CalculationsAndCharts!$A152+$A$11,0,1,1) -> 2018-06-01 | C152: =OFFSET(InputPriceData!G$15,CalculationsAndCharts!$A152+$A$11,IF($C$7,8,0),1,1) -> 514400 | D152: =OFFSET(InputPriceData!C$15,CalculationsAndCharts!$A152+$A$11,IF($C$7,8,0),1,1) -> 96.92 | E152: =OFFSET(InputPriceData!D$15,CalculationsAndCharts!$A152+$A$11,IF($C$7,8,0),1,1) -> 97.18 | F152: =OFFSET(InputPriceData!E$15,CalculationsAndCharts!$A152+$A$11,IF($C$7,8,0),1,1) -> 96.04 | G152: =OFFSET(InputPriceData!F$15,CalculationsAndCharts!$A152+$A$11,IF($C$7,8,0),1,1) -> 96.22 | H152: -99 | I152: -99 | J152: 120 | K152: 2015-12-18 | L152: 2325300 | M152: 123.46 | N152: 122.3 | O152: 118.86 | P152: 118.86 | Q152: 4 | S152: 120.0066667 | T152: 88.178 | U152: 56.5926 | V152: 28.2963 | W152: 111.4902381 | X152: 4.6 | Y152: 7.447384615 | Z152: 112.102381 | AA152: 119.1263549 | AB152: 105.7808044 | AC152: 111.4902381 | AD152: 9.184893848 | AE152: 133.5339833 | AF152: 89.44649286 | AG152: 111.4902381 | BB152: 96.48 | BC152: 101.1648 | BD152: 108.2037 | BE152: 109.55815 | BF152: 98.1458254 | BG152: 1.14 | BH152: 5.576 | BI152: 97.96457143 | BJ152: 103.6416703 | BK152: 92.85518247 | BL152: 98.1458254 | BM152: 1.688125884 | BN152: 102.1973275 | BO152: 94.09432328 | BP152: 98.1458254
A153: 121 | B153: =OFFSET(InputPriceData!B$15,CalculationsAndCharts!$A153+$A$11,0,1,1) -> 2018-05-31 | C153: =OFFSET(InputPriceData!G$15,CalculationsAndCharts!$A153+$A$11,IF($C$7,8,0),1,1) -> 578300 | D153: =OFFSET(InputPriceData!C$15,CalculationsAndCharts!$A153+$A$11,IF($C$7,8,0),1,1) -> 98.12 | E153: =OFFSET(InputPriceData!D$15,CalculationsAndCharts!$A153+$A$11,IF($C$7,8,0),1,1) -> 98.51 | F153: =OFFSET(InputPriceData!E$15,CalculationsAndCharts!$A153+$A$11,IF($C$7,8,0),1,1) -> 95.86 | G153: =OFFSET(InputPriceData!F$15,CalculationsAndCharts!$A153+$A$11,IF($C$7,8,0),1,1) -> 96.32 | H153: -100 | I153: -100 | J153: 121 | K153: 2015-12-14 | L153: 1545200 | M153: 121.16 | N153: 123.46 | O153: 120.28 | P153: 123.46 | Q153: 3 | S153: 122.4 | T153: 87.028 | U153: 55.404 | V153: 27.702 | W153: 110.0577778 | X153: 3.18 | Y153: 7.447384615 | Z153: 110.8538095 | AA153: 117.5407604 | AB153: 104.8355537 | AC153: 110.0577778 | AD153: 9.596817181 | AE153: 133.090139 | AF153: 87.02541654 | AG153: 110.0577778 | BB153: 96.89666667 | BC153: 101.4452 | BD153: 108.4595 | BE153: 109.5914 | BF153: 98.36620635 | BG153: 2.65 | BH153: 5.671384615 | BI153: 98.19557143 | BJ153: 103.9773909 | BK153: 92.99193389 | BL153: 98.36620635 | BM153: 1.603796979 | BN153: 102.2153191 | BO153: 94.5170936 | BP153: 98.36620635
A154: 122 | B154: =OFFSET(InputPriceData!B$15,CalculationsAndCharts!$A154+$A$11,0,1,1) -> 2018-05-30 | C154: =OFFSET(InputPriceData!G$15,CalculationsAndCharts!$A154+$A$11,IF($C$7,8,0),1,1) -> 540000 | D154: =OFFSET(InputPriceData!C$15,CalculationsAndCharts!$A154+$A$11,IF($C$7,8,0),1,1) -> 96.65 | E154: =OFFSET(InputPriceData!D$15,CalculationsAndCharts!$A154+$A$11,IF($C$7,8,0),1,1) -> 98.7 | F154: =OFFSET(InputPriceData!E$15,CalculationsAndCharts!$A154+$A$11,IF($C$7,8,0),1,1) -> 96.21 | G154: =OFFSET(InputPriceData!F$15,CalculationsAndCharts!$A154+$A$11,IF($C$7,8,0),1,1) -> 98.35 | H154: -101 | I154: -101 | J154: 122 | K154: 2015-12-09 | L154: 0 | M154: 118.86 | N154: 121.16 | O154: 118.86 | P154: 121.16 | Q154: 1 | S154: 120.3933333 | T154: 85.74 | U154: 54.1694 | V154: 27.0847 | W154: 108.2235397 | X154: 2.3 | Y154: 7.393230769 | Z154: 108.9919048 | AA154: 115.6426336 | AB154: 103.0062488 | AC154: 108.2235397 | AD154: 9.552617442 | AE154: 131.1498215 | AF154: 85.29725782 | AG154: 108.2235397 | BB154: 97.75333333 | BC154: 101.711 | BD154: 108.6989 | BE154: 109.6301 | BF154: 98.55187302 | BG154: 2.49 | BH154: 5.663384615 | BI154: 98.42747619 | BJ154: 104.0953222 | BK154: 93.32641479 | BL154: 98.55187302 | BM154: 1.513504212 | BN154: 102.1842831 | BO154: 94.91946291 | BP154: 98.55187302
A155: 123 | B155: =OFFSET(InputPriceData!B$15,CalculationsAndCharts!$A155+$A$11,0,1,1) -> 2018-05-29 | C155: =OFFSET(InputPriceData!G$15,CalculationsAndCharts!$A155+$A$11,IF($C$7,8,0),1,1) -> 609200 | D155: =OFFSET(InputPriceData!C$15,CalculationsAndCharts!$A155+$A$11,IF($C$7,8,0),1,1) -> 95.3 | E155: =OFFSET(InputPriceData!D$15,CalculationsAndCharts!$A155+$A$11,IF($C$7,8,0),1,1) -> 96.94 | F155: =OFFSET(InputPriceData!E$15,CalculationsAndCharts!$A155+$A$11,IF($C$7,8,0),1,1) -> 94.99 | G155: =OFFSET(InputPriceData!F$15,CalculationsAndCharts!$A155+$A$11,IF($C$7,8,0),1,1) -> 96.27 | H155: -102 | I155: -102 | J155: 123 | K155: 2015-12-08 | L155: 667300 | M155: 116.56 | N155: 118.86 | O155: 116.56 | P155: 118.86 | Q155: 1 | S155: 118.0933333 | T155: 84.452 | U155: 52.9578 | V155: 26.4789 | W155: 106.4009683 | X155: 2.3 | Y155: 7.534769231 | Z155: 107.1738095 | AA155: 113.9677682 | AB155: 101.0592468 | AC155: 106.4009683 | AD155: 9.596817181 | AE155: 129.4333295 | AF155: 83.36860702 | AG155: 106.4009683 | BB155: 96.06666667 | BC155: 101.9786 | BD155: 108.9305 | BE155: 109.6633 | BF155: 98.6527619 | BG155: 1.95 | BH155: 5.680615385 | BI155: 98.46366667 | BJ155: 104.273724 | BK155: 93.23461506 | BL155: 98.6527619 | BM155: 1.52408005 | BN155: 102.310554 | BO155: 94.99496978 | BP155: 98.6527619
A156: 124 | B156: =OFFSET(InputPriceData!B$15,CalculationsAndCharts!$A156+$A$11,0,1,1) -> 2018-05-25 | C156: =OFFSET(InputPriceData!G$15,CalculationsAndCharts!$A156+$A$11,IF($C$7,8,0),1,1) -> 473600 | D156: =OFFSET(InputPriceData!C$15,CalculationsAndCharts!$A156+$A$11,IF($C$7,8,0),1,1) -> 96.21 | E156: =OFFSET(InputPriceData!D$15,CalculationsAndCharts!$A156+$A$11,IF($C$7,8,0),1,1) -> 96.97 | F156: =OFFSET(InputPriceData!E$15,CalculationsAndCharts!$A156+$A$11,IF($C$7,8,0),1,1) -> 95.43 | G156: =OFFSET(InputPriceData!F$15,CalculationsAndCharts!$A156+$A$11,IF($C$7,8,0),1,1) -> 95.78 | H156: -103 | I156: -103 | J156: 124 | K156: 2015-12-07 | L156: 1870900 | M156: 114.26 | N156: 116.56 | O156: 114.27 | P156: 116.56 | Q156: 7 | S156: 115.7966667 | T156: 83.164 | U156: 51.7692 | V156: 25.8846 | W156: 104.6185556 | X156: 2.3 | Y156: 7.534769231 | Z156: 105.3885714 | AA156: 112.2011878 | AB156: 99.25721669 | AC156: 104.6185556 | AD156: 9.953314774 | AE156: 128.506511 | AF156: 80.7306001 | AG156: 104.6185556 | BB156: 96.06 | BC156: 102.2592 | BD156: 109.1582 | BE156: 109.70495 | BF156: 98.91625397 | BG156: 1.54 | BH156: 5.753846154 | BI156: 98.6972381 | BJ156: 104.6263331 | BK156: 93.36105255 | BL156: 98.91625397 | BM156: 1.536485844 | BN156: 102.60382 | BO156: 95.22868794 | BP156: 98.91625397
A157: 125 | B157: =OFFSET(InputPriceData!B$15,CalculationsAndCharts!$A157+$A$11,0,1,1) -> 2018-05-24 | C157: =OFFSET(InputPriceData!G$15,CalculationsAndCharts!$A157+$A$11,IF($C$7,8,0),1,1) -> 1095100 | D157: =OFFSET(InputPriceData!C$15,CalculationsAndCharts!$A157+$A$11,IF($C$7,8,0),1,1) -> 99.36 | E157: =OFFSET(InputPriceData!D$15,CalculationsAndCharts!$A157+$A$11,IF($C$7,8,0),1,1) -> 99.53 | F157: =OFFSET(InputPriceData!E$15,CalculationsAndCharts!$A157+$A$11,IF($C$7,8,0),1,1) -> 95.33 | G157: =OFFSET(InputPriceData!F$15,CalculationsAndCharts!$A157+$A$11,IF($C$7,8,0),1,1) -> 96.24 | H157: -104 | I157: -104 | J157: 125 | K157: 2015-11-25 | L157: 3348500 | M157: 111.96 | N157: 114.26 | O157: 111.12 | P157: 114.26 | Q157: 11 | S157: 113.2133333 | T157: 81.876 | U157: 50.6036 | V157: 25.3018 | W157: 102.8953492 | X157: 3.14 | Y157: 7.534769231 | Z157: 103.6580952 | AA157: 110.4937317 | AB157: 97.50602239 | AC157: 102.8953492 | AD157: 9.943344508 | AE157: 126.759376 | AF157: 79.03132239 | AG157: 102.8953492 | BB157: 97.03333333 | BC157: 102.5408 | BD157: 109.3134 | BE157: 109.75325 | BF157: 99.18025397 | BG157: 4.2 | BH157: 5.790153846 | BI157: 98.9777619 | BJ157: 104.9326296 | BK157: 93.61838096 | BL157: 99.18025397 | BM157: 1.530785664 | BN157: 102.8541396 | BO157: 95.50636837 | BP157: 99.18025397
A158: 126 | B158: =OFFSET(InputPriceData!B$15,CalculationsAndCharts!$A158+$A$11,0,1,1) -> 2018-05-23 | C158: =OFFSET(InputPriceData!G$15,CalculationsAndCharts!$A158+$A$11,IF($C$7,8,0),1,1) -> 3661400 | D158: =OFFSET(InputPriceData!C$15,CalculationsAndCharts!$A158+$A$11,IF($C$7,8,0),1,1) -> 95.84 | E158: =OFFSET(InputPriceData!D$15,CalculationsAndCharts!$A158+$A$11,IF($C$7,8,0),1,1) -> 103.72 | F158: =OFFSET(InputPriceData!E$15,CalculationsAndCharts!$A158+$A$11,IF($C$7,8,0),1,1) -> 94.71 | G158: =OFFSET(InputPriceData!F$15,CalculationsAndCharts!$A158+$A$11,IF($C$7,8,0),1,1) -> 99.36 | H158: -105 | I158: -105 | J158: 126 | K158: 2015-11-10 | L158: 593400 | M158: 109.66 | N158: 111.96 | O158: 108.45 | P158: 111.96 | Q158: 2 | S158: 110.79 | T158: 80.588 | U158: 49.461 | V158: 24.7305 | W158: 101.2829524 | X158: 3.51 | Y158: 7.630769231 | Z158: 102.0042857 | AA158: 108.9565112 | AB158: 95.74728278 | AC158: 101.2829524 | AD158: 9.689389816 | AE158: 124.5374879 | AF158: 78.02841682 | AG158: 101.2829524 | BB158: 99.26333333 | BC158: 102.8304 | BD158: 109.4595 | BE158: 109.80285 | BF158: 99.3501746 | BG158: 9.01 | BH158: 5.699692308 | BI158: 99.21538095 | BJ158: 104.9067773 | BK158: 94.09312422 | BL158: 99.3501746 | BM158: 1.515847948 | BN158: 102.9882097 | BO158: 95.71213953 | BP158: 99.3501746
A159: 127 | B159: =OFFSET(InputPriceData!B$15,CalculationsAndCharts!$A159+$A$11,0,1,1) -> 2018-05-22 | C159: =OFFSET(InputPriceData!G$15,CalculationsAndCharts!$A159+$A$11,IF($C$7,8,0),1,1) -> 710700 | D159: =OFFSET(InputPriceData!C$15,CalculationsAndCharts!$A159+$A$11,IF($C$7,8,0),1,1) -> 99.6 | E159: =OFFSET(InputPriceData!D$15,CalculationsAndCharts!$A159+$A$11,IF($C$7,8,0),1,1) -> 99.6 | F159: =OFFSET(InputPriceData!E$15,CalculationsAndCharts!$A159+$A$11,IF($C$7,8,0),1,1) -> 95.8 | G159: =OFFSET(InputPriceData!F$15,CalculationsAndCharts!$A159+$A$11,IF($C$7,8,0),1,1) -> 96.3 | H159: -106 | I159: -106 | J159: 127 | K159: 2015-11-06 | L159: 926200 | M159: 107.36 | N159: 109.66 | O159: 107.64 | P159: 109.66 | Q159: 3 | S159: 108.9866667 | T159: 79.254 | U159: 48.3414 | V159: 24.1707 | W159: 99.79409524 | X159: 2.3 | Y159: 7.556307692 | Z159: 100.46 | AA159: 107.3823661 | AB159: 94.22987048 | AC159: 99.79409524 | AD159: 9.184893848 | AE159: 121.8378405 | AF159: 77.75035 | AG159: 99.79409524 | BB159: 97.23333333 | BC159: 103.054 | BD159: 109.5798 | BE159: 109.8426 | BF159: 99.29557143 | BG159: 4.01 | BH159: 5.248 | BI159: 99.14485714 | BJ159: 104.5478915 | BK159: 94.28212621 | BL159: 99.29557143 | BM159: 1.551413791 | BN159: 103.0189645 | BO159: 95.57217833 | BP159: 99.29557143
A160: 128 | B160: =OFFSET(InputPriceData!B$15,CalculationsAndCharts!$A160+$A$11,0,1,1) -> 2018-05-21 | C160: =OFFSET(InputPriceData!G$15,CalculationsAndCharts!$A160+$A$11,IF($C$7,8,0),1,1) -> 398900 | D160: =OFFSET(InputPriceData!C$15,CalculationsAndCharts!$A160+$A$11,IF($C$7,8,0),1,1) -> 100.26 | E160: =OFFSET(InputPriceData!D$15,CalculationsAndCharts!$A160+$A$11,IF($C$7,8,0),1,1) -> 100.72 | F160: =OFFSET(InputPriceData!E$15,CalculationsAndCharts!$A160+$A$11,IF($C$7,8,0),1,1) -> 99.57 | G160: =OFFSET(InputPriceData!F$15,CalculationsAndCharts!$A160+$A$11,IF($C$7,8,0),1,1) -> 99.81 | H160: -107 | I160: -107 | J160: 128 | K160: 2015-11-03 | L160: 3139900 | M160: 105.06 | N160: 107.36 | O160: 102.29 | P160: 107.36 | Q160: 11 | S160: 105.67 | T160: 78.012 | U160: 47.2448 | V160: 23.6224 | W160: 98.36888889 | X160: 5.07 | Y160: 7.556307692 | Z160: 99.0252381 | AA160: 105.9949211 | AB160: 92.75252338 | AC160: 98.36888889 | AD160: 8.802572067 | AE160: 119.4950619 | AF160: 77.24271593 | AG160: 98.36888889 | BB160: 100.0333333 | BC160: 103.3472 | BD160: 109.7181 | BE160: 109.9005 | BF160: 99.4328254 | BG160: 1.15 | BH160: 5.275692308 | BI160: 99.36542857 | BJ160: 104.617622 | BK160: 94.63845448 | BL160: 99.4328254 | BM160: 1.556712562 | BN160: 103.1689355 | BO160: 95.69671525 | BP160: 99.4328254
A161: 129 | B161: =OFFSET(InputPriceData!B$15,CalculationsAndCharts!$A161+$A$11,0,1,1) -> 2018-05-18 | C161: =OFFSET(InputPriceData!G$15,CalculationsAndCharts!$A161+$A$11,IF($C$7,8,0),1,1) -> 494700 | D161: =OFFSET(InputPriceData!C$15,CalculationsAndCharts!$A161+$A$11,IF($C$7,8,0),1,1) -> 100.88 | E161: =OFFSET(InputPriceData!D$15,CalculationsAndCharts!$A161+$A$11,IF($C$7,8,0),1,1) -> 101.34 | F161: =OFFSET(InputPriceData!E$15,CalculationsAndCharts!$A161+$A$11,IF($C$7,8,0),1,1) -> 99.79 | G161: =OFFSET(InputPriceData!F$15,CalculationsAndCharts!$A161+$A$11,IF($C$7,8,0),1,1) -> 100.09 | H161: -108 | I161: -108 | J161: 129 | K161: 2015-10-19 | L161: 4963900 | M161: 100.46 | N161: 105.06 | O161: 100.84 | P161: 105.06 | Q161: 14 | S161: 103.6533333 | T161: =IF($S$16,AVERAGE(OFFSET($P161,0,0,B$18,1)),NA()) -> 76.862 | U161: =IF($S$17,AVERAGE(OFFSET($P161,0,0,C$18,1)),NA()) -> 46.1712 | V161: =IF($S$18,AVERAGE(OFFSET($P161,0,0,D$18,1)),NA()) -> 23.0856 | W161: =IF($S$19,SUMPRODUCT(OFFSET($S161,0,0,$A$24,1),OFFSET($I$33,0,0,$A$24,1))/$C$24,NA()) -> 97.15319048 | X161: 4.6 | Y161: =AVERAGE(OFFSET(X161,0,0,$A$21*2-1,1))*$A$22 -> 7.385846154 | Z161: =SUMPRODUCT(OFFSET($P161,0,0,$A$21,1),OFFSET($I$33,0,0,$A$21,1))/$C$21 -> 97.7 | AA161: 104.5684292 | AB161: =Z161-Z161*Y161*$A$23/P161 -> 91.51841374 | AC161: =SUMPRODUCT(OFFSET($S161,0,0,$A$24,1),OFFSET($I$33,0,0,$A$24,1))/$C$24 -> 97.15319048 | AD161: =_xlfn.STDEV.P(OFFSET($P161,0,0,$A$21,1)) -> 8.55881271 | AE161: =AG161+AD161*$A$22 -> 117.694341 | AF161: =AG161-AD161*$A$22 -> 76.61203997 | AG161: =SUMPRODUCT(OFFSET($S161,0,0,$A$24,1),OFFSET($I$33,0,0,$A$24,1))/$C$24 -> 97.15319048 | AH161: =IF($S$22=1,AA161,IF($S$22=2,AE161,NA())) ->  | AI161: =IF($S$22=1,AB161,IF($S$22=2,AF161,NA())) ->  | AJ161: =IF($S$22=1,AC161,IF($S$22=2,AG161,NA())) ->  | BB161: 100.4066667 | BC161: =IF($S$3,AVERAGE(OFFSET($G161,0,0,B$18,1)),NA()) -> 103.5502 | BD161: =IF($S$4,AVERAGE(OFFSET($G161,0,0,C$18,1)),NA()) -> 109.8156 | BE161: =IF($S$5,AVERAGE(OFFSET($G161,0,0,D$18,1)),NA()) -> 109.93935 | BF161: =IF($S$6,SUMPRODUCT(OFFSET($BB161,0,0,$A$24,1),OFFSET($I$33,0,0,$A$24,1))/$C$24,NA()) -> 99.29588889 | BG161: 1.55 | BH161: =AVERAGE(OFFSET(BG161,0,0,$A$21*2-1,1))*$A$22 -> 5.299076923 | BI161: =SUMPRODUCT(OFFSET($G161,0,0,$A$21,1),OFFSET($I$33,0,0,$A$21,1))/$C$21 -> 99.24038095 | BJ161: 104.4944764 | BK161: =BI161-BI161*BH161*$A$23/G161 -> 94.51169506 | BL161: =SUMPRODUCT(OFFSET($BB161,0,0,$A$24,1),OFFSET($I$33,0,0,$A$24,1))/$C$24 -> 99.29588889 | BM161: =_xlfn.STDEV.P(OFFSET($G161,0,0,$A$21,1)) -> 1.55185083 | BN161: =BP161+BM161*$A$22 -> 103.0203309 | BO161: =BP161-BM161*$A$22 -> 95.5714469 | BP161: =SUMPRODUCT(OFFSET($BB161,0,0,$A$24,1),OFFSET($I$33,0,0,$A$24,1))/$C$24 -> 99.29588889
A162: 130 | B162: =OFFSET(InputPriceData!B$15,CalculationsAndCharts!$A162+$A$11,0,1,1) -> 2018-05-17 | C162: =OFFSET(InputPriceData!G$15,CalculationsAndCharts!$A162+$A$11,IF($C$7,8,0),1,1) -> 417100 | D162: =OFFSET(InputPriceData!C$15,CalculationsAndCharts!$A162+$A$11,IF($C$7,8,0),1,1) -> 101.25 | E162: =OFFSET(InputPriceData!D$15,CalculationsAndCharts!$A162+$A$11,IF($C$7,8,0),1,1) -> 101.92 | F162: =OFFSET(InputPriceData!E$15,CalculationsAndCharts!$A162+$A$11,IF($C$7,8,0),1,1) -> 100.58 | G162: =OFFSET(InputPriceData!F$15,CalculationsAndCharts!$A162+$A$11,IF($C$7,8,0),1,1) -> 100.73 | H162: -109 | I162: -109 | J162: 130 | K162: 2015-09-29 | L162: 389000 | M162: 102.76 | N162: 102.76 | O162: 100.46 | P162: 100.46 | Q162: 1 | S162: =SUM(N162:P162)/3 -> 101.2266667 | T162: 75.804 | U162: 45.1206 | V162: 22.5603 | W162: 96.02349206 | X162: =IF(A162<$J$31,MAX(N162,P163)-MIN(O162,P163),IF(A162=$J$31,N162-O162,NA())) -> 2.3 | Y162: 7.244307692 | Z162: 96.47333333 | AA162: =Z162+Z162*Y162/P162 -> 103.4301571 | AB162: 90.21219199 | AC162: 96.02349206 | AD162: 8.618097238 | AE162: 116.7069254 | AF162: 75.34005869 | AG162: 96.02349206 | BB162: 101.0766667 | BC162: 103.7134 | BD162: 109.9145 | BE162: 109.9721 | BF162: 99.12390476 | BG162: 1.34 | BH162: 5.427076923 | BI162: 99.0882381 | BJ162: 104.4268611 | BK162: 94.28347744 | BL162: 99.12390476 | BM162: 1.547348943 | BN162: 102.8375422 | BO162: 95.4102673 | BP162: 99.12390476 | BQ162: =IF($S$10=1,BJ162,IF($S$10=2,BN162,NA())) ->  | BR162: =IF($S$10=1,BK162,IF($S$10=2,BO162,NA())) ->  | BS162: =IF($S$10=1,BL162,IF($S$10=2,BP162,NA())) -> 
A163: 131 | B163: =OFFSET(InputPriceData!B$15,CalculationsAndCharts!$A163+$A$11,0,1,1) -> 2018-05-16 | C163: =OFFSET(InputPriceData!G$15,CalculationsAndCharts!$A163+$A$11,IF($C$7,8,0),1,1) -> 375300 | D163: =OFFSET(InputPriceData!C$15,CalculationsAndCharts!$A163+$A$11,IF($C$7,8,0),1,1) -> 100.12 | E163: =OFFSET(InputPriceData!D$15,CalculationsAndCharts!$A163+$A$11,IF($C$7,8,0),1,1) -> 101.52 | F163: =OFFSET(InputPriceData!E$15,CalculationsAndCharts!$A163+$A$11,IF($C$7,8,0),1,1) -> 100 | G163: =OFFSET(InputPriceData!F$15,CalculationsAndCharts!$A163+$A$11,IF($C$7,8,0),1,1) -> 101.01 | H163: =H162-1 -> -110 | I163: =I162-1 -> -110 | J163: 131 | K163: 2015-09-28 | L163: 2431700 | M163: 107.36 | N163: 105.18 | O163: 102.76 | P163: 102.76 | Q163: 8 | S163: 103.5666667 | T163: 74.93 | U163: 44.116 | V163: 22.058 | W163: 95.04155556 | X163: 4.6 | Y163: 7.256615385 | Z163: 95.60809524 | AA163: 102.3596637 | AB163: 89.53168363 | AC163: 95.04155556 | AD163: 8.55881271 | AE163: 115.5827061 | AF163: 74.50040505 | AG163: 95.04155556 | BB163: 100.8433333 | BC163: 103.9332 | BD163: 109.9974 | BE163: 109.99745 | BF163: 98.88684127 | BG163: 1.65 | BH163: 5.504615385 | BI163: 98.87495238 | BJ163: 104.2632168 | BK163: 94.02551445 | BL163: 98.88684127 | BM163: 1.544478796 | BN163: 102.5935904 | BO163: 95.18009216 | BP163: 98.88684127
A164: 132 | B164: =OFFSET(InputPriceData!B$15,CalculationsAndCharts!$A164+$A$11,0,1,1) -> 2018-05-15 | C164: =OFFSET(InputPriceData!G$15,CalculationsAndCharts!$A164+$A$11,IF($C$7,8,0),1,1) -> 273300 | D164: =OFFSET(InputPriceData!C$15,CalculationsAndCharts!$A164+$A$11,IF($C$7,8,0),1,1) -> 99.68 | E164: =OFFSET(InputPriceData!D$15,CalculationsAndCharts!$A164+$A$11,IF($C$7,8,0),1,1) -> 100.47 | F164: =OFFSET(InputPriceData!E$15,CalculationsAndCharts!$A164+$A$11,IF($C$7,8,0),1,1) -> 99.24 | G164: =OFFSET(InputPriceData!F$15,CalculationsAndCharts!$A164+$A$11,IF($C$7,8,0),1,1) -> 99.87 | H164: -111 | I164: -111 | J164: 132 | K164: 2015-09-16 | L164: 2627900 | M164: 105.06 | N164: 107.36 | O164: 105.71 | P164: 107.36 | Q164: 6 | S164: 106.81 | T164: 73.964 | U164: 43.0884 | V164: 21.5442 | W164: 93.72861905 | X164: 2.3 | Y164: 7.115076923 | Z164: 94.4252381 | AA164: 100.6830886 | AB164: 88.79317262 | AC164: 93.72861905 | AD164: 8.368966483 | AE164: 113.8141386 | AF164: 73.64309949 | AG164: 93.72861905 | BB164: 99.86 | BC164: 104.1192 | BD164: 110.0788 | BE164: 110.01845 | BF164: 98.67511111 | BG164: 1.23 | BH164: 5.548923077 | BI164: 98.63533333 | BJ164: 104.1156565 | BK164: 93.70304246 | BL164: 98.67511111 | BM164: 1.550252883 | BN164: 102.395718 | BO164: 94.95450419 | BP164: 98.67511111
A165: 133 | B165: =OFFSET(InputPriceData!B$15,CalculationsAndCharts!$A165+$A$11,0,1,1) -> 2018-05-14 | C165: =OFFSET(InputPriceData!G$15,CalculationsAndCharts!$A165+$A$11,IF($C$7,8,0),1,1) -> 505100 | D165: =OFFSET(InputPriceData!C$15,CalculationsAndCharts!$A165+$A$11,IF($C$7,8,0),1,1) -> 99.01 | E165: =OFFSET(InputPriceData!D$15,CalculationsAndCharts!$A165+$A$11,IF($C$7,8,0),1,1) -> 100.15 | F165: =OFFSET(InputPriceData!E$15,CalculationsAndCharts!$A165+$A$11,IF($C$7,8,0),1,1) -> 98.64 | G165: =OFFSET(InputPriceData!F$15,CalculationsAndCharts!$A165+$A$11,IF($C$7,8,0),1,1) -> 99.72 | H165: -112 | I165: -112 | J165: 133 | K165: 2015-09-08 | L165: 5822200 | M165: 102.76 | N165: 105.06 | O165: 100.59 | P165: 105.06 | Q165: 16 | S165: 103.57 | T165: 72.814 | U165: 42.0148 | V165: 21.0074 | W165: 91.97560317 | X165: 4.47 | Y165: 7.115076923 | Z165: 92.67285714 | AA165: 98.94902797 | AB165: 87.0243034 | AC165: 91.97560317 | AD165: 7.697272244 | AE165: 110.4490566 | AF165: 73.50214979 | AG165: 91.97560317 | BB165: 99.50333333 | BC165: 104.3358 | BD165: 110.1487 | BE165: 110.04095 | BF165: 98.56493651 | BG165: 1.51 | BH165: 5.649846154 | BI165: 98.51009524 | BJ165: 104.0913917 | BK165: 93.48692843 | BL165: 98.56493651 | BM165: 1.625378417 | BN165: 102.4658447 | BO165: 94.66402831 | BP165: 98.56493651
A166: 134 | B166: =OFFSET(InputPriceData!B$15,CalculationsAndCharts!$A166+$A$11,0,1,1) -> 2018-05-11 | C166: =OFFSET(InputPriceData!G$15,CalculationsAndCharts!$A166+$A$11,IF($C$7,8,0),1,1) -> 288700 | D166: =OFFSET(InputPriceData!C$15,CalculationsAndCharts!$A166+$A$11,IF($C$7,8,0),1,1) -> 98.59 | E166: =OFFSET(InputPriceData!D$15,CalculationsAndCharts!$A166+$A$11,IF($C$7,8,0),1,1) -> 99.81 | F166: =OFFSET(InputPriceData!E$15,CalculationsAndCharts!$A166+$A$11,IF($C$7,8,0),1,1) -> 98.55 | G166: =OFFSET(InputPriceData!F$15,CalculationsAndCharts!$A166+$A$11,IF($C$7,8,0),1,1) -> 99.25 | H166: -113 | I166: -113 | J166: 134 | K166: 2015-08-14 | L166: 2747400 | M166: 100.46 | N166: 102.76 | O166: 99.87 | P166: 102.76 | Q166: 9 | S166: 101.7966667 | T166: 71.802 | U166: 40.9642 | V166: 20.4821 | W166: 90.40519048 | X166: 2.89 | Y166: 6.988923077 | Z166: 91.00809524 | AA166: 97.19774663 | AB166: 85.43740899 | AC166: 90.40519048 | AD166: 7.14112036 | AE166: 107.5438793 | AF166: 73.26650161 | AG166: 90.40519048 | BB166: 99.20333333 | BC166: 104.5624 | BD166: 110.2202 | BE166: 110.07435 | BF166: 98.49536508 | BG166: 1.26 | BH166: 5.721230769 | BI166: 98.40566667 | BJ166: 104.0782261 | BK166: 93.30036314 | BL166: 98.49536508 | BM166: 1.700180211 | BN166: 102.5757976 | BO166: 94.41493257 | BP166: 98.49536508
A167: 135 | B167: =OFFSET(InputPriceData!B$15,CalculationsAndCharts!$A167+$A$11,0,1,1) -> 2018-05-10 | C167: =OFFSET(InputPriceData!G$15,CalculationsAndCharts!$A167+$A$11,IF($C$7,8,0),1,1) -> 208200 | D167: =OFFSET(InputPriceData!C$15,CalculationsAndCharts!$A167+$A$11,IF($C$7,8,0),1,1) -> 99.38 | E167: =OFFSET(InputPriceData!D$15,CalculationsAndCharts!$A167+$A$11,IF($C$7,8,0),1,1) -> 99.38 | F167: =OFFSET(InputPriceData!E$15,CalculationsAndCharts!$A167+$A$11,IF($C$7,8,0),1,1) -> 98.53 | G167: =OFFSET(InputPriceData!F$15,CalculationsAndCharts!$A167+$A$11,IF($C$7,8,0),1,1) -> 98.84 | H167: -114 | I167: -114 | J167: 135 | K167: 2015-08-03 | L167: 407600 | M167: 98.16 | N167: 100.46 | O167: 98.16 | P167: 100.46 | Q167: 1 | S167: 99.69333333 | T167: 70.79 | U167: 39.9366 | V167: 19.9683 | W167: 88.8731746 | X167: 2.3 | Y167: 6.952615385 | Z167: 89.43095238 | AA167: 95.62027167 | AB167: 83.86056502 | AC167: 88.8731746 | AD167: 6.729219866 | AE167: 105.0233023 | AF167: 72.72304693 | AG167: 88.8731746 | BB167: 98.91666667 | BC167: 104.8096 | BD167: 110.2797 | BE167: 110.10385 | BF167: 98.46839683 | BG167: 0.85 | BH167: 5.744 | BI167: 98.35338095 | BJ167: 104.0691015 | BK167: 93.20923245 | BL167: 98.46839683 | BM167: 1.76120385 | BN167: 102.6952861 | BO167: 94.24150759 | BP167: 98.46839683
A168: 136 | B168: =OFFSET(InputPriceData!B$15,CalculationsAndCharts!$A168+$A$11,0,1,1) -> 2018-05-09 | C168: =OFFSET(InputPriceData!G$15,CalculationsAndCharts!$A168+$A$11,IF($C$7,8,0),1,1) -> 346400 | D168: =OFFSET(InputPriceData!C$15,CalculationsAndCharts!$A168+$A$11,IF($C$7,8,0),1,1) -> 98.33 | E168: =OFFSET(InputPriceData!D$15,CalculationsAndCharts!$A168+$A$11,IF($C$7,8,0),1,1) -> 99.81 | F168: =OFFSET(InputPriceData!E$15,CalculationsAndCharts!$A168+$A$11,IF($C$7,8,0),1,1) -> 97.93 | G168: =OFFSET(InputPriceData!F$15,CalculationsAndCharts!$A168+$A$11,IF($C$7,8,0),1,1) -> 98.95 | H168: -115 | I168: -115 | J168: 136 | K168: 2015-07-31 | L168: 2451900 | M168: 95.86 | N168: 98.16 | O168: 96.24 | P168: 98.16 | Q168: 11 | S168: 97.52 | T168: 69.778 | U168: 38.932 | V168: 19.466 | W168: 87.41092063 | X168: 2.3 | Y168: 6.952615385 | Z168: 87.94142857 | AA168: 94.17026852 | AB168: 82.33547262 | AC168: 87.41092063 | AD168: 6.489098551 | AE168: 102.9847572 | AF168: 71.83708411 | AG168: 87.41092063 | BB168: 98.89666667 | BC168: 105.062 | BD168: 110.329 | BE168: 110.14305 | BF168: 98.50568254 | BG168: 1.88 | BH168: 5.781538462 | BI168: 98.37533333 | BJ168: 104.1232947 | BK168: 93.20216814 | BL168: 98.50568254 | BM168: 2.408035454 | BN168: 104.2849676 | BO168: 92.72639745 | BP168: 98.50568254
A169: 137 | B169: =OFFSET(InputPriceData!B$15,CalculationsAndCharts!$A169+$A$11,0,1,1) -> 2018-05-08 | C169: =OFFSET(InputPriceData!G$15,CalculationsAndCharts!$A169+$A$11,IF($C$7,8,0),1,1) -> 631600 | D169: =OFFSET(InputPriceData!C$15,CalculationsAndCharts!$A169+$A$11,IF($C$7,8,0),1,1) -> 100.5 | E169: =OFFSET(InputPriceData!D$15,CalculationsAndCharts!$A169+$A$11,IF($C$7,8,0),1,1) -> 101.24 | F169: =OFFSET(InputPriceData!E$15,CalculationsAndCharts!$A169+$A$11,IF($C$7,8,0),1,1) -> 98.17 | G169: =OFFSET(InputPriceData!F$15,CalculationsAndCharts!$A169+$A$11,IF($C$7,8,0),1,1) -> 98.2 | H169: -116 | I169: -116 | J169: 137 | K169: 2015-07-16 | L169: 10315300 | M169: 93.56 | N169: 95.86 | O169: 94.19 | P169: 95.86 | Q169: 15 | S169: 95.30333333 | T169: 68.766 | U169: 37.9504 | V169: 18.9752 | W169: 86.02395238 | X169: 2.3 | Y169: 7.094153846 | Z169: 86.53952381 | AA169: 92.94391246 | AB169: 80.77557403 | AC169: 86.02395238 | AD169: 6.44 | AE169: 101.4799524 | AF169: 70.56795238 | AG169: 86.02395238 | BB169: 99.20333333 | BC169: 105.3406 | BD169: 110.4076 | BE169: 110.17395 | BF169: 98.58138095 | BG169: 3.07 | BH169: 5.748923077 | BI169: 98.4232381 | BJ169: 104.1852302 | BK169: 93.2374452 | BL169: 98.58138095 | BM169: 2.913120492 | BN169: 105.5728701 | BO169: 91.58989177 | BP169: 98.58138095
A170: 138 | B170: =OFFSET(InputPriceData!B$15,CalculationsAndCharts!$A170+$A$11,0,1,1) -> 2018-05-07 | C170: =OFFSET(InputPriceData!G$15,CalculationsAndCharts!$A170+$A$11,IF($C$7,8,0),1,1) -> 475800 | D170: =OFFSET(InputPriceData!C$15,CalculationsAndCharts!$A170+$A$11,IF($C$7,8,0),1,1) -> 99.32 | E170: =OFFSET(InputPriceData!D$15,CalculationsAndCharts!$A170+$A$11,IF($C$7,8,0),1,1) -> 101.02 | F170: =OFFSET(InputPriceData!E$15,CalculationsAndCharts!$A170+$A$11,IF($C$7,8,0),1,1) -> 99.07 | G170: =OFFSET(InputPriceData!F$15,CalculationsAndCharts!$A170+$A$11,IF($C$7,8,0),1,1) -> 100.46 | H170: -117 | I170: -117 | J170: 138 | K170: 2015-06-24 | L170: 1385300 | M170: 91.26 | N170: 93.56 | O170: 91.67 | P170: 93.56 | Q170: 4 | S170: 92.93 | T170: 67.754 | U170: 36.9918 | V170: 18.4959 | W170: 84.7171746 | X170: 2.3 | Y170: 7.094153846 | Z170: 85.2252381 | AA170: 91.68741157 | AB170: 79.40928196 | AC170: 84.7171746 | AD170: 6.586197689 | AE170: 100.5240491 | AF170: 68.91030015 | AG170: 84.7171746 | BB170: 100.1833333 | BC170: 105.6354 | BD170: 110.487 | BE170: 110.20755 | BF170: 98.66336508 | BG170: 1.97 | BH170: 5.639384615 | BI170: 98.58304762 | BJ170: 104.1170683 | BK170: 93.60242897 | BL170: 98.66336508 | BM170: 3.29440374 | BN170: 106.5699341 | BO170: 90.7567961 | BP170: 98.66336508
A171: 139 | B171: =OFFSET(InputPriceData!B$15,CalculationsAndCharts!$A171+$A$11,0,1,1) -> 2018-05-04 | C171: =OFFSET(InputPriceData!G$15,CalculationsAndCharts!$A171+$A$11,IF($C$7,8,0),1,1) -> 406300 | D171: =OFFSET(InputPriceData!C$15,CalculationsAndCharts!$A171+$A$11,IF($C$7,8,0),1,1) -> 98.47 | E171: =OFFSET(InputPriceData!D$15,CalculationsAndCharts!$A171+$A$11,IF($C$7,8,0),1,1) -> 100.01 | F171: =OFFSET(InputPriceData!E$15,CalculationsAndCharts!$A171+$A$11,IF($C$7,8,0),1,1) -> 98.28 | G171: =OFFSET(InputPriceData!F$15,CalculationsAndCharts!$A171+$A$11,IF($C$7,8,0),1,1) -> 99.05 | H171: -118 | I171: -118 | J171: 139 | K171: 2015-06-18 | L171: 2857300 | M171: 88.96 | N171: 91.26 | O171: 89.15 | P171: 91.26 | Q171: 7 | S171: 90.55666667 | T171: 66.742 | U171: 36.0562 | V171: 18.0281 | W171: 83.49919048 | X171: 2.3 | Y171: 7.094153846 | Z171: 83.98761905 | AA171: 90.51644976 | AB171: 78.11167141 | AC171: 83.49919048 | AD171: 7.17345628 | AE171: 100.7154855 | AF171: 66.2828954 | AG171: 83.49919048 | BB171: 99.11333333 | BC171: 105.8518 | BD171: 110.6831 | BE171: 110.23005 | BF171: 98.68314286 | BG171: 1.73 | BH171: 5.640615385 | BI171: 98.55685714 | BJ171: 104.1693894 | BK171: 93.50557807 | BL171: 98.68314286 | BM171: 3.605714215 | BN171: 107.336857 | BO171: 90.02942874 | BP171: 98.68314286
A172: 140 | B172: =OFFSET(InputPriceData!B$15,CalculationsAndCharts!$A172+$A$11,0,1,1) -> 2018-05-03 | C172: =OFFSET(InputPriceData!G$15,CalculationsAndCharts!$A172+$A$11,IF($C$7,8,0),1,1) -> 482600 | D172: =OFFSET(InputPriceData!C$15,CalculationsAndCharts!$A172+$A$11,IF($C$7,8,0),1,1) -> 98.29 | E172: =OFFSET(InputPriceData!D$15,CalculationsAndCharts!$A172+$A$11,IF($C$7,8,0),1,1) -> 99.1 | F172: =OFFSET(InputPriceData!E$15,CalculationsAndCharts!$A172+$A$11,IF($C$7,8,0),1,1) -> 97.59 | G172: =OFFSET(InputPriceData!F$15,CalculationsAndCharts!$A172+$A$11,IF($C$7,8,0),1,1) -> 98.31 | H172: -119 | I172: -119 | J172: 140 | K172: 2015-06-09 | L172: 4349800 | M172: 86.66 | N172: 88.96 | O172: 84.12 | P172: 88.96 | Q172: 15 | S172: 87.34666667 | T172: 65.684 | U172: 35.1436 | V172: 17.5718 | W172: 82.39122222 | X172: 4.84 | Y172: 7.094153846 | Z172: 82.84857143 | AA172: 89.45536675 | AB172: 76.90245564 | AC172: 82.39122222 | AD172: 7.402999392 | AE172: 100.1584208 | AF172: 64.62402368 | AG172: 82.39122222 | BB172: 98.33333333 | BC172: 106.108 | BD172: 110.9286 | BE172: 110.2538 | BF172: 98.84114286 | BG172: 1.51 | BH172: 5.776615385 | BI172: 98.69980952 | BJ172: 104.4993298 | BK172: 93.48024128 | BL172: 98.84114286 | BM172: 3.836081204 | BN172: 108.0477377 | BO172: 89.63454797 | BP172: 98.84114286
A173: 141 | B173: =OFFSET(InputPriceData!B$15,CalculationsAndCharts!$A173+$A$11,0,1,1) -> 2018-05-02 | C173: =OFFSET(InputPriceData!G$15,CalculationsAndCharts!$A173+$A$11,IF($C$7,8,0),1,1) -> 790700 | D173: =OFFSET(InputPriceData!C$15,CalculationsAndCharts!$A173+$A$11,IF($C$7,8,0),1,1) -> 97.41 | E173: =OFFSET(InputPriceData!D$15,CalculationsAndCharts!$A173+$A$11,IF($C$7,8,0),1,1) -> 99.35 | F173: =OFFSET(InputPriceData!E$15,CalculationsAndCharts!$A173+$A$11,IF($C$7,8,0),1,1) -> 95.96 | G173: =OFFSET(InputPriceData!F$15,CalculationsAndCharts!$A173+$A$11,IF($C$7,8,0),1,1) -> 98.51 | H173: -120 | I173: -120 | J173: 141 | K173: 2015-05-18 | L173: 0 | M173: 84.36 | N173: 86.66 | O173: 84.36 | P173: 86.66 | Q173: 1 | S173: 85.89333333 | T173: 64.764 | U173: 34.254 | V173: 17.127 | W173: 81.50652381 | X173: 2.3 | Y173: 7.079384615 | Z173: 81.84095238 | AA173: 88.52666181 | AB173: 75.82381389 | AC173: 81.50652381 | AD173: 7.287770578 | AE173: 98.9971732 | AF173: 64.01587442 | AG173: 81.50652381 | BB173: 97.94 | BC173: 106.3986 | BD173: 111.1702 | BE173: 110.2743 | BF173: 99.11544444 | BG173: 3.39 | BH173: 5.939692308 | BI173: 98.9537619 | BJ173: 104.920211 | BK173: 93.58395774 | BL173: 99.11544444 | BM173: 4.030928274 | BN173: 108.7896723 | BO173: 89.44121659 | BP173: 99.11544444
A174: 142 | B174: =OFFSET(InputPriceData!B$15,CalculationsAndCharts!$A174+$A$11,0,1,1) -> 2018-05-01 | C174: =OFFSET(InputPriceData!G$15,CalculationsAndCharts!$A174+$A$11,IF($C$7,8,0),1,1) -> 556200 | D174: =OFFSET(InputPriceData!C$15,CalculationsAndCharts!$A174+$A$11,IF($C$7,8,0),1,1) -> 96.06 | E174: =OFFSET(InputPriceData!D$15,CalculationsAndCharts!$A174+$A$11,IF($C$7,8,0),1,1) -> 98.25 | F174: =OFFSET(InputPriceData!E$15,CalculationsAndCharts!$A174+$A$11,IF($C$7,8,0),1,1) -> 95.15 | G174: =OFFSET(InputPriceData!F$15,CalculationsAndCharts!$A174+$A$11,IF($C$7,8,0),1,1) -> 97.85 | H174: -121 | I174: -121 | J174: 142 | K174: 2015-05-15 | L174: 2760300 | M174: 79.76 | N174: 84.36 | O174: 79.41 | P174: 84.36 | Q174: 11 | S174: 82.71 | T174: 63.844 | U174: 33.3874 | V174: 16.6937 | W174: 80.67504762 | X174: 4.95 | Y174: 7.079384615 | Z174: 80.9647619 | AA174: 87.75922243 | AB174: 74.84974743 | AC174: 80.67504762 | AD174: 7.345610934 | AE174: 98.30451386 | AF174: 63.04558138 | AG174: 80.67504762 | BB174: 97.08333333 | BC174: 106.7178 | BD174: 111.4187 | BE174: 110.2936 | BF174: 99.47612698 | BG174: 3.1 | BH174: 6.289846154 | BI174: 99.23742857 | BJ174: 105.6164593 | BK174: 93.4963009 | BL174: 99.47612698 | BM174: 4.324745397 | BN174: 109.8555159 | BO174: 89.09673803 | BP174: 99.47612698
A175: 143 | B175: =OFFSET(InputPriceData!B$15,CalculationsAndCharts!$A175+$A$11,0,1,1) -> 2018-04-30 | C175: =OFFSET(InputPriceData!G$15,CalculationsAndCharts!$A175+$A$11,IF($C$7,8,0),1,1) -> 648400 | D175: =OFFSET(InputPriceData!C$15,CalculationsAndCharts!$A175+$A$11,IF($C$7,8,0),1,1) -> 96.12 | E175: =OFFSET(InputPriceData!D$15,CalculationsAndCharts!$A175+$A$11,IF($C$7,8,0),1,1) -> 97.22 | F175: =OFFSET(InputPriceData!E$15,CalculationsAndCharts!$A175+$A$11,IF($C$7,8,0),1,1) -> 96.1 | G175: =OFFSET(InputPriceData!F$15,CalculationsAndCharts!$A175+$A$11,IF($C$7,8,0),1,1) -> 96.12 | H175: -122 | I175: -122 | J175: 143 | K175: 2015-04-30 | L175: 0 | M175: 82.06 | N175: 82.06 | O175: 79.76 | P175: 79.76 | Q175: 1 | S175: 80.52666667 | T175: 62.924 | U175: 32.5438 | V175: 16.2719 | W175: 80.05725397 | X175: 2.3 | Y175: 7.057846154 | Z175: 80.20904762 | AA175: 87.30662934 | AB175: 73.82122407 | AC175: 80.05725397 | AD175: 7.747791621 | AE175: 98.65195386 | AF175: 61.46255408 | AG175: 80.05725397 | BB175: 96.48 | BC175: 107.0788 | BD175: 111.6625 | BE175: 110.3199 | BF175: 99.97220635 | BG175: 1.38 | BH175: 6.226461538 | BI175: 99.6337619 | BJ175: 106.0878379 | BK175: 93.82509349 | BL175: 99.97220635 | BM175: 4.482700386 | BN175: 110.7306873 | BO175: 89.21372542 | BP175: 99.97220635
A176: 144 | B176: =OFFSET(InputPriceData!B$15,CalculationsAndCharts!$A176+$A$11,0,1,1) -> 2018-04-27 | C176: =OFFSET(InputPriceData!G$15,CalculationsAndCharts!$A176+$A$11,IF($C$7,8,0),1,1) -> 512500 | D176: =OFFSET(InputPriceData!C$15,CalculationsAndCharts!$A176+$A$11,IF($C$7,8,0),1,1) -> 96.43 | E176: =OFFSET(InputPriceData!D$15,CalculationsAndCharts!$A176+$A$11,IF($C$7,8,0),1,1) -> 97.06 | F176: =OFFSET(InputPriceData!E$15,CalculationsAndCharts!$A176+$A$11,IF($C$7,8,0),1,1) -> 95.2 | G176: =OFFSET(InputPriceData!F$15,CalculationsAndCharts!$A176+$A$11,IF($C$7,8,0),1,1) -> 95.84 | H176: -123 | I176: -123 | J176: 144 | K176: 2015-04-29 | L176: 10677100 | M176: 84.36 | N176: 82.77 | O176: 82.06 | P176: 82.06 | Q176: 40 | S176: 82.29666667 | T176: 62.004 | U176: 31.7462 | V176: 15.8731 | W176: 79.58168254 | X176: 2.3 | Y176: 7.310769231 | Z176: 79.82571429 | AA176: 86.93742981 | AB176: 73.42517031 | AC176: 79.58168254 | AD176: 8.029438025 | AE176: 98.8523338 | AF176: 60.31103128 | AG176: 79.58168254 | BB176: 96.03333333 | BC176: 107.4424 | BD176: 111.9062 | BE176: 110.35305 | BF176: 100.5827302 | BG176: 1.86 | BH176: 6.297846154 | BI176: 100.2531905 | BJ176: 106.8410366 | BK176: 94.32412899 | BL176: 100.5827302 | BM176: 4.472749043 | BN176: 111.3173279 | BO176: 89.84813246 | BP176: 100.5827302
A177: 145 | B177: =OFFSET(InputPriceData!B$15,CalculationsAndCharts!$A177+$A$11,0,1,1) -> 2018-04-26 | C177: =OFFSET(InputPriceData!G$15,CalculationsAndCharts!$A177+$A$11,IF($C$7,8,0),1,1) -> 392500 | D177: =OFFSET(InputPriceData!C$15,CalculationsAndCharts!$A177+$A$11,IF($C$7,8,0),1,1) -> 97.04 | E177: =OFFSET(InputPriceData!D$15,CalculationsAndCharts!$A177+$A$11,IF($C$7,8,0),1,1) -> 97.46 | F177: =OFFSET(InputPriceData!E$15,CalculationsAndCharts!$A177+$A$11,IF($C$7,8,0),1,1) -> 96.34 | G177: =OFFSET(InputPriceData!F$15,CalculationsAndCharts!$A177+$A$11,IF($C$7,8,0),1,1) -> 96.43 | H177: -124 | I177: -124 | J177: 145 | K177: 2015-03-03 | L177: 8167700 | M177: 88.96 | N177: 85.73 | O177: 84.36 | P177: 84.36 | Q177: 33 | S177: 84.81666667 | T177: 61.084 | U177: 30.9256 | V177: 15.4628 | W177: 78.87815873 | X177: 4.6 | Y177: 7.310769231 | Z177: 79.15761905 | AA177: 86.01754183 | AB177: 72.98368855 | AC177: 78.87815873 | AD177: 8.04917853 | AE177: 98.1961872 | AF177: 59.56013026 | AG177: 78.87815873 | BB177: 96.74333333 | BC177: 107.784 | BD177: 112.1413 | BE177: 110.38565 | BF177: 101.2950159 | BG177: 1.12 | BH177: 6.368 | BI177: 100.9616667 | BJ177: 107.6289268 | BK177: 94.96113256 | BL177: 101.2950159 | BM177: 4.389751588 | BN177: 111.8304197 | BO177: 90.75961206 | BP177: 101.2950159
A178: 146 | B178: =OFFSET(InputPriceData!B$15,CalculationsAndCharts!$A178+$A$11,0,1,1) -> 2018-04-25 | C178: =OFFSET(InputPriceData!G$15,CalculationsAndCharts!$A178+$A$11,IF($C$7,8,0),1,1) -> 366100 | D178: =OFFSET(InputPriceData!C$15,CalculationsAndCharts!$A178+$A$11,IF($C$7,8,0),1,1) -> 95.86 | E178: =OFFSET(InputPriceData!D$15,CalculationsAndCharts!$A178+$A$11,IF($C$7,8,0),1,1) -> 97.64 | F178: =OFFSET(InputPriceData!E$15,CalculationsAndCharts!$A178+$A$11,IF($C$7,8,0),1,1) -> 95.45 | G178: =OFFSET(InputPriceData!F$15,CalculationsAndCharts!$A178+$A$11,IF($C$7,8,0),1,1) -> 97.05 | H178: -125 | I178: -125 | J178: 146 | K178: 2015-01-13 | L178: 2854700 | M178: 86.66 | N178: 88.96 | O178: 86.88 | P178: 88.96 | Q178: 9 | S178: 88.26666667 | T178: 60.164 | U178: 30.082 | V178: 15.041 | W178: 77.87404762 | X178: 2.3 | Y178: 7.169230769 | Z178: 78.21571429 | AA178: 84.51906979 | AB178: 72.54269433 | AC178: 77.87404762 | AD178: 7.769099047 | AE178: 96.51988533 | AF178: 59.22820991 | AG178: 77.87404762 | BB178: 96.71333333 | BC178: 108.0888 | BD178: 112.3728 | BE178: 110.40855 | BF178: 101.9864921 | BG178: 2.19 | BH178: 6.468923077 | BI178: 101.6625238 | BJ178: 108.4388973 | BK178: 95.56378768 | BL178: 101.9864921 | BM178: 4.15040227 | BN178: 111.9474575 | BO178: 92.02552662 | BP178: 101.9864921
A179: 147 | B179: =OFFSET(InputPriceData!B$15,CalculationsAndCharts!$A179+$A$11,0,1,1) -> 2018-04-24 | C179: =OFFSET(InputPriceData!G$15,CalculationsAndCharts!$A179+$A$11,IF($C$7,8,0),1,1) -> 489600 | D179: =OFFSET(InputPriceData!C$15,CalculationsAndCharts!$A179+$A$11,IF($C$7,8,0),1,1) -> 98.04 | E179: =OFFSET(InputPriceData!D$15,CalculationsAndCharts!$A179+$A$11,IF($C$7,8,0),1,1) -> 98.47 | F179: =OFFSET(InputPriceData!E$15,CalculationsAndCharts!$A179+$A$11,IF($C$7,8,0),1,1) -> 96.07 | G179: =OFFSET(InputPriceData!F$15,CalculationsAndCharts!$A179+$A$11,IF($C$7,8,0),1,1) -> 96.23 | H179: -126 | I179: -126 | J179: 147 | K179: 2014-12-30 | L179: 2487400 | M179: 84.36 | N179: 86.66 | O179: 85.54 | P179: 86.66 | Q179: 8 | S179: 86.28666667 | T179: 58.3848 | U179: 29.1924 | V179: 14.5962 | W179: 76.45430159 | X179: 2.3 | Y179: 7.169230769 | Z179: 76.74809524 | AA179: 83.0973314 | AB179: 71.03378269 | AC179: 76.45430159 | AD179: 7.055416359 | AE179: 93.38730085 | AF179: 59.52130233 | AG179: 76.45430159 | BB179: 96.92333333 | BC179: 108.356 | BD179: 112.6136 | BE179: 110.42555 | BF179: 102.7322063 | BG179: 2.4 | BH179: 6.446769231 | BI179: 102.3487143 | BJ179: 109.2053966 | BK179: 96.17770018 | BL179: 102.7322063 | BM179: 3.88214567 | BN179: 112.049356 | BO179: 93.41505674 | BP179: 102.7322063
A180: 148 | B180: =OFFSET(InputPriceData!B$15,CalculationsAndCharts!$A180+$A$11,0,1,1) -> 2018-04-23 | C180: =OFFSET(InputPriceData!G$15,CalculationsAndCharts!$A180+$A$11,IF($C$7,8,0),1,1) -> 516500 | D180: =OFFSET(InputPriceData!C$15,CalculationsAndCharts!$A180+$A$11,IF($C$7,8,0),1,1) -> 99.38 | E180: =OFFSET(InputPriceData!D$15,CalculationsAndCharts!$A180+$A$11,IF($C$7,8,0),1,1) -> 100.66 | F180: =OFFSET(InputPriceData!E$15,CalculationsAndCharts!$A180+$A$11,IF($C$7,8,0),1,1) -> 97.27 | G180: =OFFSET(InputPriceData!F$15,CalculationsAndCharts!$A180+$A$11,IF($C$7,8,0),1,1) -> 97.43 | H180: -127 | I180: -127 | J180: 148 | K180: 2014-12-17 | L180: 4851600 | M180: 79.76 | N180: 84.36 | O180: 81.28 | P180: 84.36 | Q180: 15 | S180: 83.33333333 | T180: 56.6516 | U180: 28.3258 | V180: 14.1629 | W180: 75.13544444 | X180: 4.6 | Y180: 7.169230769 | Z180: 75.41190476 | AA180: 81.82069267 | AB180: 69.64399564 | AC180: 75.13544444 | AD180: 6.460503076 | AE180: 90.64065183 | AF180: 59.63023706 | AG180: 75.13544444 | BB180: 98.45333333 | BC180: 108.6532 | BD180: 112.8308 | BE180: 110.457 | BF180: 103.5045238 | BG180: 3.39 | BH180: 6.359384615 | BI180: 103.1646667 | BJ180: 109.8983605 | BK180: 97.10434218 | BL180: 103.5045238 | BM180: 3.457708598 | BN180: 111.8030244 | BO180: 95.20602317 | BP180: 103.5045238
A181: 149 | B181: =OFFSET(InputPriceData!B$15,CalculationsAndCharts!$A181+$A$11,0,1,1) -> 2018-04-20 | C181: =OFFSET(InputPriceData!G$15,CalculationsAndCharts!$A181+$A$11,IF($C$7,8,0),1,1) -> 317400 | D181: =OFFSET(InputPriceData!C$15,CalculationsAndCharts!$A181+$A$11,IF($C$7,8,0),1,1) -> 101.11 | E181: =OFFSET(InputPriceData!D$15,CalculationsAndCharts!$A181+$A$11,IF($C$7,8,0),1,1) -> 102.08 | F181: =OFFSET(InputPriceData!E$15,CalculationsAndCharts!$A181+$A$11,IF($C$7,8,0),1,1) -> 99.46 | G181: =OFFSET(InputPriceData!F$15,CalculationsAndCharts!$A181+$A$11,IF($C$7,8,0),1,1) -> 100 | H181: -128 | I181: -128 | J181: 149 | K181: 2014-11-25 | L181: 308600 | M181: 84.36 | N181: 84.62 | O181: 79.76 | P181: 79.76 | Q181: 1 | S181: 81.38 | T181: 54.9644 | U181: 27.4822 | V181: 13.7411 | W181: 74.01269841 | X181: 4.86 | Y181: 7.054153846 | Z181: 74.20714286 | AA181: 80.77018952 | AB181: 68.30040086 | AC181: 74.01269841 | AD181: 6.019676071 | AE181: 88.45992098 | AF181: 59.56547584 | AG181: 74.01269841 | BB181: 100.5133333 | BC181: 108.939 | BD181: 113.0239 | BE181: 110.47955 | BF181: 104.1743016 | BG181: 2.62 | BH181: 6.339692308 | BI181: 103.9092857 | BJ181: 110.4968147 | BK181: 97.98050962 | BL181: 104.1743016 | BM181: 3.029006892 | BN181: 111.4439181 | BO181: 96.90468505 | BP181: 104.1743016
A182: 150 | B182: =OFFSET(InputPriceData!B$15,CalculationsAndCharts!$A182+$A$11,0,1,1) -> 2018-04-19 | C182: =OFFSET(InputPriceData!G$15,CalculationsAndCharts!$A182+$A$11,IF($C$7,8,0),1,1) -> 356800 | D182: =OFFSET(InputPriceData!C$15,CalculationsAndCharts!$A182+$A$11,IF($C$7,8,0),1,1) -> 101.1 | E182: =OFFSET(InputPriceData!D$15,CalculationsAndCharts!$A182+$A$11,IF($C$7,8,0),1,1) -> 101.41 | F182: =OFFSET(InputPriceData!E$15,CalculationsAndCharts!$A182+$A$11,IF($C$7,8,0),1,1) -> 100.33 | G182: =OFFSET(InputPriceData!F$15,CalculationsAndCharts!$A182+$A$11,IF($C$7,8,0),1,1) -> 100.69 | H182: -129 | I182: -129 | J182: 150 | K182: 2014-11-24 | L182: 544600 | M182: 82.06 | N182: 84.36 | O182: 82.45 | P182: 84.36 | Q182: 2 | S182: 83.72333333 | T182: 53.3692 | U182: 26.6846 | V182: 13.3423 | W182: 72.98763492 | X182: 2.3 | Y182: 7.038153846 | Z182: 73.36380952 | AA182: 79.48455132 | AB182: 67.8551419 | AC182: 72.98763492 | AD182: 5.965607681 | AE182: 87.30509335 | AF182: 58.67017649 | AG182: 72.98763492 | BB182: 100.81 | BC182: 109.2222 | BD182: 113.2049 | BE182: 110.4958 | BF182: 104.690619 | BG182: 1.08 | BH182: 6.302153846 | BI182: 104.4504762 | BJ182: 110.987997 | BK182: 98.56670746 | BL182: 104.690619 | BM182: 2.863206026 | BN182: 111.5623135 | BO182: 97.81892458 | BP182: 104.690619
A183: 151 | B183: =OFFSET(InputPriceData!B$15,CalculationsAndCharts!$A183+$A$11,0,1,1) -> 2018-04-18 | C183: =OFFSET(InputPriceData!G$15,CalculationsAndCharts!$A183+$A$11,IF($C$7,8,0),1,1) -> 382900 | D183: =OFFSET(InputPriceData!C$15,CalculationsAndCharts!$A183+$A$11,IF($C$7,8,0),1,1) -> 100.98 | E183: =OFFSET(InputPriceData!D$15,CalculationsAndCharts!$A183+$A$11,IF($C$7,8,0),1,1) -> 102.71 | F183: =OFFSET(InputPriceData!E$15,CalculationsAndCharts!$A183+$A$11,IF($C$7,8,0),1,1) -> 100.7 | G183: =OFFSET(InputPriceData!F$15,CalculationsAndCharts!$A183+$A$11,IF($C$7,8,0),1,1) -> 101.08 | H183: -130 | I183: -130 | J183: 151 | K183: 2014-11-20 | L183: 1551800 | M183: 79.76 | N183: 82.06 | O183: 78.45 | P183: 82.06 | Q183: 9 | S183: 80.85666667 | T183: 51.682 | U183: 25.841 | V183: 12.9205 | W183: 71.6321746 | X183: 3.61 | Y183: 7.179692308 | Z183: 71.97285714 | AA183: 78.269993 | AB183: 66.30543487 | AC183: 71.6321746 | AD183: 5.456141036 | AE183: 84.72691309 | AF183: 58.53743612 | AG183: 71.6321746 | BB183: 101.4966667 | BC183: 109.488 | BD183: 113.3794 | BE183: 110.518 | BF183: 105.2242698 | BG183: 2.01 | BH183: 6.345846154 | BI183: 104.9714286 | BJ183: 111.5615803 | BK183: 99.04029202 | BL183: 105.2242698 | BM183: 2.786077888 | BN183: 111.9108568 | BO183: 98.53768291 | BP183: 105.2242698
A184: 152 | B184: =OFFSET(InputPriceData!B$15,CalculationsAndCharts!$A184+$A$11,0,1,1) -> 2018-04-17 | C184: =OFFSET(InputPriceData!G$15,CalculationsAndCharts!$A184+$A$11,IF($C$7,8,0),1,1) -> 436100 | D184: =OFFSET(InputPriceData!C$15,CalculationsAndCharts!$A184+$A$11,IF($C$7,8,0),1,1) -> 101.66 | E184: =OFFSET(InputPriceData!D$15,CalculationsAndCharts!$A184+$A$11,IF($C$7,8,0),1,1) -> 102.64 | F184: =OFFSET(InputPriceData!E$15,CalculationsAndCharts!$A184+$A$11,IF($C$7,8,0),1,1) -> 100.83 | G184: =OFFSET(InputPriceData!F$15,CalculationsAndCharts!$A184+$A$11,IF($C$7,8,0),1,1) -> 101.09 | H184: -131 | I184: -131 | J184: 152 | K184: 2014-11-07 | L184: 1224400 | M184: 77.46 | N184: 79.76 | O184: 78.26 | P184: 79.76 | Q184: 6 | S184: 79.26 | T184: 50.0408 | U184: 25.0204 | V184: 12.5102 | W184: 70.44334921 | X184: 2.3 | Y184: 7.099076923 | Z184: 70.69142857 | AA184: 76.98335296 | AB184: 65.02869662 | AC184: 70.44334921 | AD184: 5.157080085 | AE184: 82.82034141 | AF184: 58.066357 | AG184: 70.44334921 | BB184: 101.52 | BC184: 109.708 | BD184: 113.5442 | BE184: 110.53915 | BF184: 105.7345714 | BG184: 1.81 | BH184: 6.362461538 | BI184: 105.4958571 | BJ184: 112.1356171 | BK184: 99.52007319 | BL184: 105.7345714 | BM184: 2.623953649 | BN184: 112.0320602 | BO184: 99.43708267 | BP184: 105.7345714
A185: 153 | B185: =OFFSET(InputPriceData!B$15,CalculationsAndCharts!$A185+$A$11,0,1,1) -> 2018-04-16 | C185: =OFFSET(InputPriceData!G$15,CalculationsAndCharts!$A185+$A$11,IF($C$7,8,0),1,1) -> 369000 | D185: =OFFSET(InputPriceData!C$15,CalculationsAndCharts!$A185+$A$11,IF($C$7,8,0),1,1) -> 101.11 | E185: =OFFSET(InputPriceData!D$15,CalculationsAndCharts!$A185+$A$11,IF($C$7,8,0),1,1) -> 102.22 | F185: =OFFSET(InputPriceData!E$15,CalculationsAndCharts!$A185+$A$11,IF($C$7,8,0),1,1) -> 99.38 | G185: =OFFSET(InputPriceData!F$15,CalculationsAndCharts!$A185+$A$11,IF($C$7,8,0),1,1) -> 101.09 | H185: -132 | I185: -132 | J185: 153 | K185: 2014-10-30 | L185: 3480100 | M185: 75.16 | N185: 77.46 | O185: 76.43 | P185: 77.46 | Q185: 12 | S185: 77.11666667 | T185: 48.4456 | U185: 24.2228 | V185: 12.1114 | W185: 69.29560317 | X185: 2.3 | Y185: 7.099076923 | Z185: 69.51952381 | AA185: 75.89086963 | AB185: 63.78531257 | AC185: 69.29560317 | AD185: 5.105533762 | AE185: 81.5488842 | AF185: 57.04232214 | AG185: 69.29560317 | BB185: 100.8966667 | BC185: 110.0124 | BD185: 113.7141 | BE185: 110.55485 | BF185: 106.2900794 | BG185: 2.84 | BH185: 6.403076923 | BI185: 106.07 | BJ185: 112.7885119 | BK185: 100.0233393 | BL185: 106.2900794 | BM185: 2.532649354 | BN185: 112.3684378 | BO185: 100.2117209 | BP185: 106.2900794
A186: 154 | B186: =OFFSET(InputPriceData!B$15,CalculationsAndCharts!$A186+$A$11,0,1,1) -> 2018-04-13 | C186: =OFFSET(InputPriceData!G$15,CalculationsAndCharts!$A186+$A$11,IF($C$7,8,0),1,1) -> 894700 | D186: =OFFSET(InputPriceData!C$15,CalculationsAndCharts!$A186+$A$11,IF($C$7,8,0),1,1) -> 105.76 | E186: =OFFSET(InputPriceData!D$15,CalculationsAndCharts!$A186+$A$11,IF($C$7,8,0),1,1) -> 105.99 | F186: =OFFSET(InputPriceData!E$15,CalculationsAndCharts!$A186+$A$11,IF($C$7,8,0),1,1) -> 99.66 | G186: =OFFSET(InputPriceData!F$15,CalculationsAndCharts!$A186+$A$11,IF($C$7,8,0),1,1) -> 100.8 | H186: -133 | I186: -133 | J186: 154 | K186: 2014-10-14 | L186: 365300 | M186: 72.86 | N186: 75.16 | O186: 72.86 | P186: 75.16 | Q186: 1 | S186: 74.39333333 | T186: 46.8964 | U186: 23.4482 | V186: 11.7241 | W186: 68.24222222 | X186: 2.3 | Y186: 7.240615385 | Z186: 68.45714286 | AA186: 75.05203165 | AB186: 62.52174294 | AC186: 68.24222222 | AD186: 5.308716888 | AE186: 80.98314275 | AF186: 55.50130169 | AG186: 68.24222222 | BB186: 102.15 | BC186: 110.3716 | BD186: 113.8721 | BE186: 110.57485 | BF186: 106.9503492 | BG186: 6.57 | BH186: 6.395692308 | BI186: 106.688 | BJ186: 113.457282 | BK186: 100.5956462 | BL186: 106.9503492 | BM186: 2.211607786 | BN186: 112.2582079 | BO186: 101.6424905 | BP186: 106.9503492
A187: 155 | B187: =OFFSET(InputPriceData!B$15,CalculationsAndCharts!$A187+$A$11,0,1,1) -> 2018-04-12 | C187: =OFFSET(InputPriceData!G$15,CalculationsAndCharts!$A187+$A$11,IF($C$7,8,0),1,1) -> 350000 | D187: =OFFSET(InputPriceData!C$15,CalculationsAndCharts!$A187+$A$11,IF($C$7,8,0),1,1) -> 107.23 | E187: =OFFSET(InputPriceData!D$15,CalculationsAndCharts!$A187+$A$11,IF($C$7,8,0),1,1) -> 107.69 | F187: =OFFSET(InputPriceData!E$15,CalculationsAndCharts!$A187+$A$11,IF($C$7,8,0),1,1) -> 106.11 | G187: =OFFSET(InputPriceData!F$15,CalculationsAndCharts!$A187+$A$11,IF($C$7,8,0),1,1) -> 106.23 | H187: -134 | I187: -134 | J187: 155 | K187: 2014-10-13 | L187: 1503400 | M187: 70.56 | N187: 72.86 | O187: 71.11 | P187: 72.86 | Q187: 6 | S187: 72.27666667 | T187: 45.3932 | U187: 22.6966 | V187: 11.3483 | W187: 67.34160317 | X187: 2.3 | Y187: 7.240615385 | Z187: 67.50428571 | AA187: 74.21266575 | AB187: 61.46674368 | AC187: 67.34160317 | AD187: 5.739640668 | AE187: 81.11674078 | AF187: 53.56646557 | AG187: 67.34160317 | BB187: 106.6766667 | BC187: 110.7594 | BD187: 114.0211 | BE187: 110.59195 | BF187: 107.5298095 | BG187: 1.58 | BH187: 6.131692308 | BI187: 107.3767619 | BJ187: 113.5746464 | BK187: 101.7986659 | BL187: 107.5298095 | BM187: 1.627392393 | BN187: 111.4355513 | BO187: 103.6240678 | BP187: 107.5298095
A188: 156 | B188: =OFFSET(InputPriceData!B$15,CalculationsAndCharts!$A188+$A$11,0,1,1) -> 2018-04-11 | C188: =OFFSET(InputPriceData!G$15,CalculationsAndCharts!$A188+$A$11,IF($C$7,8,0),1,1) -> 364900 | D188: =OFFSET(InputPriceData!C$15,CalculationsAndCharts!$A188+$A$11,IF($C$7,8,0),1,1) -> 106.22 | E188: =OFFSET(InputPriceData!D$15,CalculationsAndCharts!$A188+$A$11,IF($C$7,8,0),1,1) -> 107.56 | F188: =OFFSET(InputPriceData!E$15,CalculationsAndCharts!$A188+$A$11,IF($C$7,8,0),1,1) -> 105.53 | G188: =OFFSET(InputPriceData!F$15,CalculationsAndCharts!$A188+$A$11,IF($C$7,8,0),1,1) -> 106.6 | H188: -135 | I188: -135 | J188: 156 | K188: 2014-10-03 | L188: 7672900 | M188: 68.26 | N188: 70.56 | O188: 68.47 | P188: 70.56 | Q188: 32 | S188: 69.86333333 | T188: 43.936 | U188: 21.968 | V188: 10.984 | W188: 66.53369841 | X188: 2.3 | Y188: 7.240615385 | Z188: 66.66095238 | AA188: 73.50146141 | AB188: 60.50449425 | AC188: 66.53369841 | AD188: 6.352123661 | AE188: 81.7787952 | AF188: 51.28860163 | AG188: 66.53369841 | BB188: 106.5633333 | BC188: 111.071 | BD188: 114.0953 | BE188: 110.5865 | BF188: 107.6971429 | BG188: 2.03 | BH188: 6.208 | BI188: 107.5697619 | BJ188: 113.8342373 | BK188: 101.931734 | BL188: 107.6971429 | BM188: 1.672397306 | BN188: 111.7108964 | BO188: 103.6833893 | BP188: 107.6971429
A189: 157 | B189: =OFFSET(InputPriceData!B$15,CalculationsAndCharts!$A189+$A$11,0,1,1) -> 2018-04-10 | C189: =OFFSET(InputPriceData!G$15,CalculationsAndCharts!$A189+$A$11,IF($C$7,8,0),1,1) -> 365300 | D189: =OFFSET(InputPriceData!C$15,CalculationsAndCharts!$A189+$A$11,IF($C$7,8,0),1,1) -> 107.18 | E189: =OFFSET(InputPriceData!D$15,CalculationsAndCharts!$A189+$A$11,IF($C$7,8,0),1,1) -> 107.28 | F189: =OFFSET(InputPriceData!E$15,CalculationsAndCharts!$A189+$A$11,IF($C$7,8,0),1,1) -> 105.99 | G189: =OFFSET(InputPriceData!F$15,CalculationsAndCharts!$A189+$A$11,IF($C$7,8,0),1,1) -> 106.7 | H189: -136 | I189: -136 | J189: 157 | K189: 2014-08-19 | L189: 2085400 | M189: 63.66 | N189: 68.26 | O189: 66.91 | P189: 68.26 | Q189: 13 | S189: 67.81 | T189: 42.5248 | U189: 21.2624 | V189: 10.6312 | W189: 65.84033333 | X189: 4.6 | Y189: 7.099076923 | Z189: 65.91619048 | AA189: 72.77150994 | AB189: 59.74640296 | AC189: 65.84033333 | AD189: 7.36 | AE189: 83.50433333 | AF189: 48.17633333 | AG189: 65.84033333 | BB189: 106.6566667 | BC189: 111.3998 | BD189: 114.1778 | BE189: 110.5775 | BF189: 107.8935556 | BG189: 1.29 | BH189: 6.252923077 | BI189: 107.7462857 | BJ189: 114.0605241 | BK189: 102.0634712 | BL189: 107.8935556 | BM189: 1.697534315 | BN189: 111.9676379 | BO189: 103.8194732 | BP189: 107.8935556
A190: 158 | B190: =OFFSET(InputPriceData!B$15,CalculationsAndCharts!$A190+$A$11,0,1,1) -> 2018-04-09 | C190: =OFFSET(InputPriceData!G$15,CalculationsAndCharts!$A190+$A$11,IF($C$7,8,0),1,1) -> 278200 | D190: =OFFSET(InputPriceData!C$15,CalculationsAndCharts!$A190+$A$11,IF($C$7,8,0),1,1) -> 106.53 | E190: =OFFSET(InputPriceData!D$15,CalculationsAndCharts!$A190+$A$11,IF($C$7,8,0),1,1) -> 107.91 | F190: =OFFSET(InputPriceData!E$15,CalculationsAndCharts!$A190+$A$11,IF($C$7,8,0),1,1) -> 105.65 | G190: =OFFSET(InputPriceData!F$15,CalculationsAndCharts!$A190+$A$11,IF($C$7,8,0),1,1) -> 106.6 | H190: -137 | I190: -137 | J190: 158 | K190: 2014-07-31 | L190: 2005300 | M190: 65.96 | N190: 65.01 | O190: 63.66 | P190: 63.66 | Q190: 12 | S190: 64.11 | T190: 41.1596 | U190: 20.5798 | V190: 10.2899 | W190: 65.24822222 | X190: 2.3 | Z190: 65.29190476 | AC190: 65.24822222 | AD190: 7.943328962 | AE190: 84.31221173 | AF190: 46.18423271 | AG190: 65.24822222 | BB190: 106.72 | BC190: 111.7956 | BD190: 114.2558 | BE190: 110.56315 | BF190: 108.100254 | BG190: 2.26 | BH190: 6.329846154 | BI190: 107.9335714 | BJ190: 114.3426043 | BK190: 102.1654419 | BL190: 108.100254 | BM190: 1.731081382 | BN190: 112.2548493 | BO190: 103.9456587 | BP190: 108.100254
A191: 159 | B191: =OFFSET(InputPriceData!B$15,CalculationsAndCharts!$A191+$A$11,0,1,1) -> 2018-04-06 | C191: =OFFSET(InputPriceData!G$15,CalculationsAndCharts!$A191+$A$11,IF($C$7,8,0),1,1) -> 333200 | D191: =OFFSET(InputPriceData!C$15,CalculationsAndCharts!$A191+$A$11,IF($C$7,8,0),1,1) -> 106.33 | E191: =OFFSET(InputPriceData!D$15,CalculationsAndCharts!$A191+$A$11,IF($C$7,8,0),1,1) -> 108.27 | F191: =OFFSET(InputPriceData!E$15,CalculationsAndCharts!$A191+$A$11,IF($C$7,8,0),1,1) -> 105.58 | G191: =OFFSET(InputPriceData!F$15,CalculationsAndCharts!$A191+$A$11,IF($C$7,8,0),1,1) -> 106.37 | H191: -138 | I191: -138 | J191: 159 | K191: 2014-07-15 | L191: 4958400 | M191: 70.56 | N191: 66.66 | O191: 65.96 | P191: 65.96 | Q191: 25 | S191: 66.19333333 | T191: 39.8864 | U191: 19.9432 | V191: 9.9716 | W191: 64.94346032 | X191: 4.6 | Z191: 65.04 | AC191: 64.94346032 | AD191: 8.333335167 | AE191: 84.94346472 | AF191: 44.94345592 | AG191: 64.94346032 | BB191: 106.74 | BC191: 112.1266 | BD191: 114.333 | BE191: 110.5561 | BF191: 108.3137778 | BG191: 2.69 | BH191: 6.502769231 | BI191: 108.146381 | BJ191: 114.7577465 | BK191: 102.1961519 | BL191: 108.3137778 | BM191: 1.684801101 | BN191: 112.3573004 | BO191: 104.2702551 | BP191: 108.3137778
A192: 160 | B192: =OFFSET(InputPriceData!B$15,CalculationsAndCharts!$A192+$A$11,0,1,1) -> 2018-04-05 | C192: =OFFSET(InputPriceData!G$15,CalculationsAndCharts!$A192+$A$11,IF($C$7,8,0),1,1) -> 384700 | D192: =OFFSET(InputPriceData!C$15,CalculationsAndCharts!$A192+$A$11,IF($C$7,8,0),1,1) -> 108.42 | E192: =OFFSET(InputPriceData!D$15,CalculationsAndCharts!$A192+$A$11,IF($C$7,8,0),1,1) -> 108.42 | F192: =OFFSET(InputPriceData!E$15,CalculationsAndCharts!$A192+$A$11,IF($C$7,8,0),1,1) -> 106.23 | G192: =OFFSET(InputPriceData!F$15,CalculationsAndCharts!$A192+$A$11,IF($C$7,8,0),1,1) -> 106.82 | H192: -139 | I192: -139 | J192: 160 | K192: 2014-06-09 | L192: 376500 | M192: 68.26 | N192: 70.56 | O192: 68.98 | P192: 70.56 | Q192: 2 | S192: 70.03333333 | T192: 38.5672 | U192: 19.2836 | V192: 9.6418 | W192: 64.37595238 | X192: 2.3 | Z192: 64.50333333 | AC192: 64.37595238 | AD192: 8.4655936 | AE192: 84.69337702 | AF192: 44.05852774 | AG192: 64.37595238 | BB192: 107.1566667 | BC192: 112.4722 | BD192: 114.3965 | BE192: 110.549 | BF192: 108.535619 | BG192: 2.52 | BH192: 6.524307692 | BI192: 108.3900476 | BJ192: 115.01025 | BK192: 102.4318654 | BL192: 108.535619 | BM192: 1.594714003 | BN192: 112.3629327 | BO192: 104.7083054 | BP192: 108.535619
A193: 161 | B193: =OFFSET(InputPriceData!B$15,CalculationsAndCharts!$A193+$A$11,0,1,1) -> 2018-04-04 | C193: =OFFSET(InputPriceData!G$15,CalculationsAndCharts!$A193+$A$11,IF($C$7,8,0),1,1) -> 441700 | D193: =OFFSET(InputPriceData!C$15,CalculationsAndCharts!$A193+$A$11,IF($C$7,8,0),1,1) -> 107.07 | E193: =OFFSET(InputPriceData!D$15,CalculationsAndCharts!$A193+$A$11,IF($C$7,8,0),1,1) -> 109.33 | F193: =OFFSET(InputPriceData!E$15,CalculationsAndCharts!$A193+$A$11,IF($C$7,8,0),1,1) -> 106.56 | G193: =OFFSET(InputPriceData!F$15,CalculationsAndCharts!$A193+$A$11,IF($C$7,8,0),1,1) -> 108.75 | H193: -140 | I193: -140 | J193: 161 | K193: 2014-06-05 | L193: 24901400 | M193: 63.66 | N193: 68.26 | O193: 67.49 | P193: 68.26 | Q193: 102 | S193: 68.00333333 | T193: 37.156 | U193: 18.578 | V193: 9.289 | W193: 63.37749206 | X193: 4.6 | Z193: 63.46285714 | AC193: 63.37749206 | AD193: 8.160139398 | AE193: 82.96182662 | AF193: 43.79315751 | AG193: 63.37749206 | BB193: 108.2133333 | BC193: 112.7926 | BD193: 114.4568 | BE193: 110.546 | BF193: 108.7314762 | BG193: 2.77 | BH193: 6.510769231 | BI193: 108.6141905 | BJ193: 115.1168289 | BK193: 102.7618159 | BL193: 108.7314762 | BM193: 1.628011901 | BN193: 112.6387048 | BO193: 104.8242476 | BP193: 108.7314762
